{"text_format":"1","workbook":"xlsx","n_sheets":2,"sheets":["Info","012"],"not_rendered":{"charts":0,"images":1,"macros":1,"external_links":0,"defined_names":2,"comments":1,"pivot_tables":0},"unopened":[],"bounds":{"document_bytes":16777216,"sheet_cells":100000,"rows_first":2000,"rows_last":500,"rows_between":2000,"halvings":0,"cell_chars":16384,"cell_head_chars":4096},"cells_cut":0,"cells_raw":0,"read":"whole","date_system":"1900"}

{"sheet":"Info","index":0,"n_rows":40,"n_cols":3,"rows_kept":40,"cut":false,"hidden":false,"merged":[]}
[]
[null,null,"Les données du cadastre napoléonien"]
[]
[]
[null,"Les données proviennent essentiellement des archives de la mairie de la commune du Freney d'Oisans."]
[]
[null,"Notre but est de lister les propriétaires successifs des parcelles bâties."]
[null,"Il existe trois gros registres de ces données que nous symbolisons par Cad0, Cad1 et Cad2 :"]
[null,"Cad0","C'est un état initial des parcelles et leur propriétaire en 1833,"]
[null,"Cad1","Ce registre fait état des différentes mutations des propriétaires pour la période de 1833 à environ 1910,"]
[null,"Cad2","Ici la période du suivi se situe de, environ 1910 à 1960."]
[]
[null,"Le registre Cad2 est très confortable car il regroupe les parcelles bâties seulement. Pour Cad0 et Cad1 tout est mélangé. On doit tout lire pour extraire les propriétés bâties."]
[]
["Le listing de la feuille \"012\""]
[]
[null,"Pour chaque parcelle, on reporte les propriétaires successifs qui apparaisssent d'abord à Cad0, puis à Cad1 et enfin à Cad2."]
[null,"L'ordre chronologique n'est pas très facile à établir car les périodes annoncées ne succèdent pas toujours rigoureusement."]
[null,"On adopte de mettre dans l'ordre, d'abord la date d'entrée, puis, pour des entrées identiques, la date de sortie."]
[null,"Les pages des registres sont repérées par un n° de folio dans le cas de Cad1 et par un n° de case dans le cas de Cad2."]
[null,"Il y a beaucoup de reports d'un folio à un autre ou d'une case à une autre, soit à la suite d'une page pleine, soit pour un changement de régime fiscal, soit pour une mutation."]
[null,"La cohérence des reports n'est pas toujours remplie. On a donc hésité à mentionner ces n° de report."]
[null,"Pourtant il y a des cas où ces n° permettent de lever des ambiguités. Donc on les a laissés."]
[]
[null,"Détail des colonnes de cette feuille \"012\""]
[null,null,"Les colonnes C à H mentionnent ces n° de folios ou cases et leurs reports."]
[null,null,"Les colonnes I et J donnent la plage d'existence du propriétaire indiqué."]
[null,null,"Les colonnes K à M se rapportent à la parcelle et la nature de la batisse."]
[null,null,"La colonne N indique le propriétaire."]
[]
[null,"Les parcelles bis ou p"]
[null,null,"Il arrive que certaines parcelles soient divisées en bis ou p (pour partie)."]
[null,null,"Ces subdivisions ont été regroupées (à condition qu'elles soient en nombre conséquent)."]
[null,null,"Cela reste très arbitraire car on se rend compte que le suivi n'est pas régulier."]
[null,null,"De plus ce regroupement des parcelles entières d'une part et des parcelles divisées d'autre part produit des ruptures dans la chronologie."]
[]
[null,"Les incohérences"]
[null,null,"Il y a assez souvent des incohérences par exemple entre n° de parcelle et lieudit. Les corrections assez évidentes ont été apportées."]
[null,null,"Les éléments qui ont été modifiés sont repérés par un astéristique."]
[null,null,"Par exemple pour la parcelle !A0149* la première lecture a donné !A0169. !A0149 s'impose (erreur de lecture)"]

{"sheet":"012","index":1,"n_rows":2119,"n_cols":28,"rows_kept":2119,"cut":false,"hidden":false,"merged":[[3,14,4,14],[3,2,3,4],[3,5,3,7],[3,8,3,9],[3,1,4,1],[3,10,4,10],[3,11,4,11],[3,12,4,12],[3,13,4,13]]}
[]
[null,null,null,"24K, Les trois cadastres 0, 1 et 2"]
[null,null,null,null,null,null,null,null,null,null,null,null,null,null,null,null,"k"]
[null,"Cad","Folio du Cadastre 1",null,null,"Case du Cadastre 2",null,null,"Plage dates",null,"Lieudit","Parcelle","Nature","Propriétaire","Com JP",null,"t"]
[null,null,"Tiré de","Act","Passé à","Tiré de","Act","Passé à","Entrée","Sortie",null,null,null,null,null,null,null,null,null,null,null,null,null,null,null,null,"Modifs et remarques","Sortie"]
[null,2,null,null,null,"Création",189,"",1956,null,"-","-","Force motrice Chambon","Etat, Domaines, Forces motrices de la Hte Romanche, Paris",null,null,{"$f":"IF(AND(INDIRECT(CONCATENATE(Q$3,ROW()))=\"\",INDIRECT(CONCATENATE(Q$4,ROW()))=\"\"),\"v v\",IF(INDIRECT(CONCATENATE(Q$3,ROW()))=\"\",\"v -\",IF(INDIRECT(CONCATENATE(Q$4,ROW()))=\"\",\"- v\",IF(INDIRECT(CONCATENATE(Q$3,ROW()))=INDIRECT(CONCATENATE(Q$4,ROW())),\"=\",\"<>\"))))","v":"- v"}]
[null,0,null,null,null,null,null,null,null,null,"Pierre Grosse","!A0017","Masure","VEYRAT Pierre",null,null,"- v"]
[null,1,null,"0530",332,null,null,null,null,1851,"Pierre Grosse","!A0017","Maison","VEYRAT Pierre",null,null,"- v",null,null,null,"Lignes 923 à 931, Marie-Do, 936 à 944"]
[null,1,null,"0334","-7-",null,null,null,1851,1880,"Pierre Grosse","!A0017","Mais rurale","PELLAT Denis fils de Denis",null,null,"- v",null,null,null,"1382, extraire D843, D844, Cert Chevallier, à mettre où ?"]
[null,1,332,"0809",1001,null,null,null,1880,1898,"Pierre Grosse","!A0017","Maison","VERNET Jean Pierre gendre PELLAT",null,null,"- v",null,null,null,"Généalogie Dussert pour Séraphin, 1er et 2ème, puis Girollet (?)"]
[null,1,809,"0999",981,null,null,null,1898,1899,"Pierre Grosse","!A0017","Maison","VERNET Marie Fannie",null,null,"- v",null,null,null,"Rebalayer tout Cad2 pour trouver E1790 et E1791, E1806"]
[null,0,null,null,null,null,null,null,null,null,"Pierre Grosse","!A0019","Grange","VEYRAT Pierre",null,null,"- v",null,null,null,"Voir fichier Word : Vérif"]
[null,1,null,"0530",332,null,null,null,null,1851,"Pierre Grosse","!A0019","Grange","VEYRAT Pierre",null,null,"- v",null,null,null,"Voir le tableau E1812 sur le fichier Puy le Bas"]
[null,1,null,"0334","7--",null,null,null,1851,1880,"Pierre Grosse","!A0019","Grange","PELLAT Denis fils de Denis",null,null,"- v",null,null,null,"Séparer les propriétaires"]
[null,1,332,"0809",999,null,null,null,1880,1898,"Pierre Grosse","!A0019","Grange","VERNET Jean Pierre gendre PELLAT",null,null,"- v",null,null,null,"Giroud Rémy gendre Fleur"]
[null,1,809,"0999",981,null,null,null,1898,1899,"Pierre Grosse","!A0019","Grange","VERNET Marie Fannie",null,null,"- v"]
[null,1,999,"0981",null,null,null,null,1899,null,"Pierre Grosse","!A0019","Grange","BELLON Gustave",null,null,"- v"]
[null,0,null,null,null,null,null,null,null,null,"Les Chambrettes","!A0149","Grange","PELLAT Denis",null,null,"- v"]
[null,1,352,"0772","?",null,null,null,1881,1898,"Les Chambrettes","!A0149","Grange","VERNET Jean Pierre gendre PELLAT",null,null,"- v"]
[null,1,332,"0810","?",null,null,null,1881,1907,"Les Chambrettes","!A0149 *","Grange","VERNET Jean Pierre gendre PELLAT",null,null,"- v",null,null,null,null,null,null,null,null,null,"Noté A169, corrigé A149"]
[null,1,332,"0713",981,null,null,null,1881,1908,"Les Chambrettes","!A0149","Grange","PELLAT Jean René gendre REYMOND",null,null,"- v"]
[null,1,809,1001,null,null,null,null,1898,null,"Les Chambrettes","!A0149","Grange","Vernet Pierre Denis",null,null,"- v"]
[null,1,804,"0980",null,null,null,null,1907,null,"Les Chambrettes","!A0149p","Grange","BELLON Gustave",null,null,"- v"]
[null,1,709,"0789",null,null,null,null,1908,null,"Les Chambrettes","!A0149","Grange","BELLON Gustave",null,null,"- v"]
[null,0,null,null,null,null,null,null,null,null,"Les Certs","!A0171","Maison","BLANC Pierre indivis …",null,null,"- v"]
[null,1,61,"0053",114,null,null,null,1841,1866,"Les Certs","!A0171","Mais rurale","BLANC Pierre",null,null,"- v"]
[null,1,61,"0054",114,null,null,null,1841,1872,"Les Certs","!A0171","Mais rurale","BLANC Jean",null,null,"- v"]
[null,1,null,"0130",53,null,null,null,1866,null,"Les Certs","!A0171","Mais rurale","DUPRE Laurent",null,null,"- v"]
[null,1,54,"0154",null,null,null,null,1872,null,"Les Certs","!A0171p","Mais rurale","DUPRE Laurent",null,null,"- v"]
[null,0,null,null,null,null,null,null,null,null,"Les Certs","!A0178","Maison","PELLORCE Laurent",null,null,"- v"]
[null,1,null,"0393","558, 561",null,null,null,null,1836,"Les Certs","!A0178","Maison","PELLORCE Laurent",null,null,"- v"]
[null,1,393,"0561",558,null,null,null,1836,1851,"Les Certs *","!A0178","Bât rural","PELLORCE Vierge feu Laurent",null,null,"- v",null,null,null,null,null,null,null,null,null,"Noté Le Sacet, corrigé"]
[null,1,null,"0558",null,null,null,null,1836,1864,"Les Certs *","!A0178","Bât rural","PELLORCE Etienne feu Louis, PELLORCE Laurent feu Etienne",null,null,"- v",null,null,null,null,null,null,null,null,null,"Noté Le Sec, corrigé"]
[null,1,null,"0558",null,null,null,null,1851,1862,"Les Certs","!A0178","Bât rural","PELLORCE Etienne feu Louis, PELLORCE Laurent feu Etienne",null,null,"- v"]
[null,1,null,"0129",558,null,null,null,1862,null,"Les Certs","!A0178","Bât rural","DUPRE Laurent",null,null,"- v"]
[null,1,null,"0129",null,null,null,null,1864,null,"Les Certs","!A0178","Bât rural","DUPRE Laurent",null,null,"- v"]
[null,1,93,"0327",114,null,null,null,1835,1850,"Les Certs","!A0250","Fontaine","ODDOUX Jean",null,null,"- v"]
[null,1,457,"0662",311,null,null,null,1859,1879,"Les Certs *","!A0254p","Mais rurale","REYMOND Jeanne-Marie feu Joseph",null,null,"- v",null,null,null,null,null,null,null,null,null,"Noté Les Beaux, corrigé"]
[null,0,null,null,null,null,null,null,null,null,"Les Beaux","!A0259","Maison","DUPRE Laurent fils à Laurent",null,null,"- v"]
[null,1,null,"0114",null,null,null,null,null,null,"Les Beaux","!A0259","Mais rurale","DUPRE Laurent",null,null,"- v"]
[null,0,null,null,null,null,null,null,null,null,"Les Beaux","!A0270","Bâtiment","CAIX Etienne",null,null,"- v"]
[null,1,65,"0637",null,null,null,null,1850,null,"Les Beaux","!A0270","Bât rural","PELLORCE (Paul) fils d'Henry",null,null,"- v"]
[null,0,null,null,null,null,null,null,null,null,"Les Beaux","!A0275","Maison","PELLISSIER Jean",null,null,"- v"]
[null,1,null,"0338",null,null,null,null,null,1844,"Les Beaux","!A0275","Maison","PELLISSIER Y- Louis",null,null,"- v"]
[null,1,338,"0115",null,null,null,null,1844,null,"Les Beaux","!A0275","Mais rurale","DUPRE Laurent fils",null,null,"- v"]
[null,1,null,"0105",204,null,null,null,null,1847,"Les Beaux","!A0277","Mais rurale","DUPRE Laurent",null,null,"- v"]
[null,0,null,null,null,null,null,null,null,null,"Les Beaux","!A0278","Maison","DUPRE Laurent",null,null,"- v"]
[null,1,105,"0204",450,null,null,null,1847,1877,"Les Beaux","!A0278","Mais rurale","RIVOIRE Amable feu Paul",null,null,"- v"]
[null,1,204,"0430",null,null,null,null,1877,1907,"Les Beaux","!A0278","Mais rurale","RIVOIRE Augustine femme THIBAUD",null,null,"- v"]
[null,1,null,"0560",null,null,null,null,1907,null,"Les Beaux","!A0278","Mais rurale","PELLORCE Vincent, ARLOT Antoine Adolphe, notaire",null,null,"- v"]
[null,0,null,null,null,null,null,null,null,null,"Les Beaux","!A0281b","Maison","RIVOIRE Laurent",null,null,"- v"]
[null,1,null,"0489",null,null,null,null,null,null,"Les Beaux","!A0281","Maison","RIVOIRE Laurent",null,null,"- v"]
[null,0,null,null,null,null,null,null,null,null,"Les Beaux","!A0285","Maison","REYMOND Joseph",null,null,"- v"]
[null,1,null,"0457","662, 661",null,null,null,null,1853,"Les Beaux","!A0285p","Maison","REYMOND Joseph feu Guillaume",null,null,"- v"]
[null,1,457,"0661",510,null,null,null,1853,1879,"Les Beaux","!A0285p","Mais rurale","REYMOND ?te feu Joseph",null,null,"- v"]
[null,1,457,"0585",17,null,null,null,1853,1888,"Les Beaux","!A0285p","Mais rurale","FLEUR Joseph de Joseph à Lachenal",null,null,"- v"]
[null,1,457,"0029",900,null,null,null,1853,1894,"Les Beaux","!A0285p","Mais rurale étage ","BLANC Joseph vve REYMOND Louise",null,null,"- v"]
[null,1,661,"0510","17-",null,null,null,1879,1888,"Les Beaux","!A0285p","Maison","FLEUR Joseph vve née REYMOND Anne",null,null,"- v"]
[null,1,662,"0397",900,null,null,null,1879,1894,"Les Beaux","!A0285p","Maison","BLANC Joseph",null,null,"- v"]
[null,1,null,"0191",null,null,null,null,1888,null,"Les Beaux","!A0285p","Maison","DUSSERT Pierre, DUSSERT Elie",null,null,"- v"]
[null,1,29,"0900",null,null,null,null,1894,null,"Les Beaux","!A0285p","Mais rurale","BLANC Rémy",null,null,"- v"]
[null,1,388,"0900",null,null,null,null,1894,null,"Les Beaux","!A0285p","Mais rurale","BLANC Rémy",null,null,"- v"]
[null,1,508,"1021",17,null,null,null,1899,1903,"Les Beaux *","!A0285p","Mais rurale","REYMOND Joseph Romain gendre de REYMOND",null,null,"- v",null,null,null,null,null,null,null,null,null,"Noté Les Broue, corrigé"]
[null,1,null,"0194",1021,null,null,null,1903,null,"Les Beaux","!A0285p","Mais rurale","DUSSERT Pierre, DUSSERT Elie",null,null,"- v"]
[null,0,null,null,null,null,null,null,null,null,"Terre Laval","!A0312","Masure","DUSSERT Jean-Louis",null,null,"- v"]
[null,1,null,"0128",119,null,null,null,null,1839,"Terre Laval (Lavable)","!A0312","Masure","DUSSERT Jean Louis Emile",null,null,"- v"]
[null,1,128,"0119","287, 545",null,null,null,1839,1846,"Terre Laval (Lavable)","!A0312","Masure","(DUSSERT)",null,null,"- v"]
[null,1,545,"0197",null,null,null,null,1877,null,"Terre Laval (Lavable)","!A0312","Masure","DUSSERT Pierre, DUSSERT Elie",null,null,{"$f":"IF(AND(INDIRECT(CONCATENATE(Q$3,ROW()))=\"\",INDIRECT(CONCATENATE(Q$4,ROW()))=\"\"),\"v v\",IF(INDIRECT(CONCATENATE(Q$3,ROW()))=\"\",\"v -\",IF(INDIRECT(CONCATENATE(Q$4,ROW()))=\"\",\"- v\",IF(INDIRECT(CONCATENATE(Q$3,ROW()))=INDIRECT(CONCATENATE(Q$4,ROW())),\"=\",\"<>\"))))","v":"- v"}]
[null,1,545,"0361","17, 825",null,null,null,1877,1885,"Laval","!A0312 *","Masure","DUSSERT Joseph fils de feu Pierre",null,null,"- v",null,null,null,null,null,null,null,null,null,"Noté D312, corrigé A312"]
[null,1,119,"0545","17, 825, 830, 361",null,null,null,1846,1877,"Terre Laval (Lavable)","!A0312p","Masure","DUSSERT Pierre fils à Jean-Louis",null,null,"- v"]
[null,1,119,"0287",830,null,null,null,1846,1864,"Terre Laval (Lavable)","!A0312p","Masure","JOSSERAND Joseph gendre à DUSSERT",null,null,"- v"]
[null,1,119,"0287",830,null,null,null,1864,1881,"Terre Laval (Lavable)","!A0312p","Masure","DUSSERT Rose vve JOSSERAND",null,null,"- v"]
[null,1,119,"0287",830,null,null,null,1881,1889,"Terre Laval (Lavable)","!A0312p","Masure","JOSSERAND Adélaïde femme RIVOIRE",null,null,{"$f":"IF(AND(INDIRECT(CONCATENATE(Q$3,ROW()))=\"\",INDIRECT(CONCATENATE(Q$4,ROW()))=\"\"),\"v v\",IF(INDIRECT(CONCATENATE(Q$3,ROW()))=\"\",\"v -\",IF(INDIRECT(CONCATENATE(Q$4,ROW()))=\"\",\"- v\",IF(INDIRECT(CONCATENATE(Q$3,ROW()))=INDIRECT(CONCATENATE(Q$4,ROW())),\"=\",\"<>\"))))","v":"- v"}]
[null,1,545,"0830",null,null,null,null,1877,1911,"Terre Laval (Lavable)","!A0312p","Masure","HEST Jean, meunier à Auris",null,null,"- v"]
[null,1,545,"0825",990,null,null,null,1877,1913,"Laval","!A0312p *","Masure","DUSSERT Jean de feu Pierre",null,null,"- v",null,null,null,null,null,null,null,null,null,"Noté D312, corrigé A312"]
[null,1,287,"0830",9,null,null,null,1889,1911,"Terre Laval (Lavable)","!A0312p","Masure","HEST Jean, meunier à Airis",null,null,"- v"]
[null,1,825,"0968",null,null,null,null,1913,null,"Laval","!A0312p *","Masure","DUSSERT Joseph époux REYMOND",null,null,"- v",null,null,null,null,null,null,null,null,null,"Noté D312, corrigé A312"]
[null,0,null,null,null,null,null,null,null,null,"Les Envers","!A0335","Grange","La Commune",null,null,"- v"]
[null,1,null,"0359",219,null,null,null,null,1862,"Les Envers","!A0335","Grange","PELLORCE Vincent",null,null,"- v"]
[null,1,359,"0227",null,null,null,null,1860,"B","Les Envers","!A0335","Grange","Freney la commune",null,null,"- v",null,null,null,null,null,null,null,null,null,null,"B"]
[null,0,null,null,null,null,null,null,null,null,"L'Alp de Sarennes","!A0347","Grange","REYMOND Joseph",null,null,"- v"]
[null,1,null,"0454",null,null,null,null,null,1835,"L'Alp de Sarennes","!A0347","Grange","REYMOND Joseph",null,null,"- v"]
[null,1,454,"0072",69,null,null,null,1835,1837,"L'Alp de Sarennes","!A0347","Grange","CAIX Jacques",null,null,"- v"]
[null,1,71,"0090","(741)",null,null,null,1837,1911,"L'Alp de Sarennes","!A0347","Grange","CHALVIN",null,null,"- v"]
[null,1,null,"0268",89,null,null,null,1911,null,"L'Alp de Sarennes","!A0347","Grange","GIROUD Blaise",null,null,"- v"]
[null,0,null,null,null,null,null,null,null,null,"L'Alp de Sarennes","!A0352","Grange","REYMOND Jean-Baptiste",null,null,"- v"]
[null,1,448,"0567",821,null,null,null,1856,1874,"L'Alp de Sarennes","!A0352","Grange","PELLORCE Félix",null,null,"- v"]
[null,1,448,"0606",null,null,null,null,1856,1903,"L'Alp de Sarennes","!A0352 *","Grange","REYMOND Louis",null,null,"- v",null,null,null,null,null,null,null,null,null,"Noté B corrigé A352"]
[null,1,59,"0821","872, 884",null,null,null,1874,1884,"L'Alp de Sarennes","!A0352p","Grange","AUBERT Jean fils de Jean et CHARBONNEL ? Feu Jean",null,null,"- v"]
[null,1,"(821)","0884",null,null,null,null,1884,1897,"L'Alp de Sarennes","!A0352p","Grange","CHARBONNEL Joseph feu Jean",null,null,"- v"]
[null,1,884,"0984",null,null,null,null,1897,null,"L'Alp de Sarennes","!A0352p","Grange","CHARBONNEL Louis fils de Jean à Clavans",null,null,"- v"]
[null,1,590,"0317",null,null,null,null,1903,null,"L'Alp de Sarennes","!A0352p","Grange","NICOLLET Joseph à Auris, REYMOND Joseph",null,null,"- v"]
[null,0,null,null,null,null,null,null,null,null,"L'Alp de Sarennes","!A0354","Grange","REYMOND Jean-Baptiste",null,null,"- v"]
[null,1,null,"0463",114,null,null,null,null,1842,"L'Alp de Sarennes","!A0354","Grange","REYMOND Antoine",null,null,"- v"]
[null,1,463,"0115",751,null,null,null,1842,1866,"L'Alp de Sarennes","!A0354","Grange","DUPRE Laurent fils",null,null,"- v"]
[null,1,114,"0751",318,null,null,null,1866,1869,"L'Alp de Sarennes","!A0354","Grange","? (CAIX ou VIEUX) Louis feu Jean",null,null,"- v"]
[null,1,751,"0328",null,null,null,null,1869,1884,"L'Alp de Sarennes","!A0354","Grange","CAIX Louis",null,null,"- v"]
[null,1,"(318)","0884",null,null,null,null,1884,1897,"L'Alp de Sarennes","!A0354","Grange","CHARBONNEL Joseph feu Jean",null,null,"- v"]
[null,1,884,"0984",null,null,null,null,1897,null,"L'Alp de Sarennes","!A0354","Grange","CHARBONNEL Louis fils de Jean à Clavans",null,null,"- v"]
[null,0,null,null,null,null,null,null,null,null,"L'Alp de Sarennes","!A0356","Grange","REYMOND Denis",null,null,"- v"]
[null,1,470,"0043",559,null,null,null,1844,1855,"L'Alp de Sarennes","!A0356","Grange","REYMOND Jean fils de Denis",null,null,"- v"]
[null,1,43,"0559",821,null,null,null,1855,1874,"L'Alp de Sarennes","!A0356","Grange","PELLORCE Félix (feu) Laurent",null,null,"- v"]
[null,1,559,"0821",872,null,null,null,1874,1884,"L'Alp de Sarennes","!A0356","Grange","AUBERT Jean fils de Jean et CHARBONNEL ? Feu Jean",null,null,"- v"]
[null,1,821,"0872",null,null,null,null,1884,null,"L'Alp de Sarennes","!A0356p","Grange","AUBERT Jean feu Jean",null,null,"- v"]
[null,0,null,null,null,null,null,null,null,null,"L'Alp de Sarennes","!A0400","Grange","ANGOT André et Pierre",null,null,"- v"]
[null,1,null,"0002","2--",null,null,null,null,1872,"L'Alp de Sarennes","!A0400","Grange","ANGOT Pierre",null,null,"- v"]
[null,1,2,"0002","107-",null,null,null,1872,1907,"L'Alp de Sarennes","!A0400","Grange","ANGOT Pierre",null,null,{"$f":"IF(AND(INDIRECT(CONCATENATE(Q$3,ROW()))=\"\",INDIRECT(CONCATENATE(Q$4,ROW()))=\"\"),\"v v\",IF(INDIRECT(CONCATENATE(Q$3,ROW()))=\"\",\"v -\",IF(INDIRECT(CONCATENATE(Q$4,ROW()))=\"\",\"- v\",IF(INDIRECT(CONCATENATE(Q$3,ROW()))=INDIRECT(CONCATENATE(Q$4,ROW())),\"=\",\"<>\"))))","v":"- v"}]
[null,1,2,"0019",null,null,null,null,1872,null,"L'Alp de Sarennes","!A0400p","Grange","ANGOT Jean",null,null,"- v"]
[null,1,2,1070,null,null,null,null,1907,null,"L'Alp de Sarennes","!A0400p","Grange","ROUX Auguste",null,null,"- v"]
[null,1,654,"0141",140,null,null,null,null,1853,"Les Jeux","!A0500","Maison","DUSSERT (Jacques)",null,null,"- v"]
[null,1,141,"0654",null,null,null,null,1853,null,"Les Jeux","!A0500","Masure","DUSSERT André feu Jean, DUSSERT Madeleine femme Pierre à Clavans",null,null,"- v"]
[null,1,141,"0140",null,null,null,null,1853,1871,"Les Jeux","!A0500p","Masure","DUSSERT Pierre",null,null,"- v"]
[null,1,140,"0106","2-6",null,null,null,1871,1911,"Les Jeux","!A0500p","Masure","DUSSERT (Jean) feu (Jean)",null,null,"- v"]
[null,1,106,"0002",null,null,null,null,1911,null,"Les Jeux","!A0500p","Masure","DUSSERTT Pierre vve née ANGOT Marie",null,null,"- v"]
[null,0,null,null,null,null,null,null,null,null,"Lafond","!B0149","Bâtiment","REYMOND Blaise",null,null,"- v"]
[null,1,null,"0463","114, 455, 461, 465",null,null,null,null,1855,"Lafond","!B0149","Bât rural","REYMOND Antoine",null,null,"- v"]
[null,1,null,"0462",463,null,null,null,1855,1857,"Lafond","!B0149p","Bât rural","REYMOND Blaise",null,null,"- v"]
[null,1,463,"0129",465,null,null,null,1855,1857,"Lafond","!B0149p","Bât rural","DUPRE Laurent",null,null,"- v"]
[null,1,463,"0477",827,null,null,null,1855,1874,"Lafond","!B0149p","Bât rural","REYMOND André Fils de Blaise",null,null,"- v"]
[null,1,null,"0456",null,null,null,null,1855,1886,"Lafond","!B0149p","Bât rural","REYMOND Joseph",null,null,"- v"]
[null,1,114,"0477",827,null,null,null,1857,1874,"Lafond","!B0149p","Bât rural","REYMOND André Fils de Blaise",null,null,"- v"]
[null,1,461,"0709",173,null,null,null,1857,1899,"Lafond","!B0149p","Bât rural","PELLAT Jean René gendre REYMOND",null,null,"- v"]
[null,1,465,"0827","173, 634",null,null,null,1874,1899,"Lafond","!B0149p","Bât rural","GIROUD Joseph, ODDOUX Jean",null,null,"- v"]
[null,1,455,"0867",995,null,null,null,1886,1898,"Lafond","!B0149p","Bât rural","REYMOND Louise femme DUSSERT",null,null,"- v"]
[null,1,"(455)","0920",null,null,null,null,1886,1898,"Lafond","!B0149p","Bât rural","DUSSERT Séraphin et André",null,null,"- v"]
[null,1,967,"0995",null,null,null,null,1898,null,"Lafond","!B0149p","Bâtiment","DUSSERT Séraphin gendre RANQUE",null,null,"- v"]
[null,1,920,"0995",null,null,null,null,1898,null,"Lafond","!B0149p","Bât rural","DUSSERT Séraphin gendre RANQUE",null,null,"- v"]
[null,1,709,"0231",null,null,null,null,1899,null,"Lafond","!B0149p","Bât rural","SIAUD Marie Marguerite",null,null,"- v"]
[null,1,827,"0231",null,null,null,null,1899,null,"Lafond","!B0149p","Bât rural","SIAUD Marie Marguerite",null,null,"- v"]
[null,1,827,"0639",null,null,null,null,1899,null,"Lafond","!B0149p","Bât rural","ODDOUX Jean Baptiste fils de Jean",null,null,"- v"]
[null,0,null,null,null,null,null,null,null,null,"La Courbe","!B0165","Bâtiment","REYMOND Denis ou Pierre",null,null,"- v"]
[null,1,470,"0592",590,null,null,null,1841,1842,"La Courbe","!B0165","Bât rural","RAYMOND Louis fils de Denis",null,null,"- v"]
[null,1,null,"0468",null,null,null,null,1841,1859,"La Courbe","!B0165","Bât rural","REYMOND Joseph",null,null,"- v"]
[null,1,592,"0590",712,null,null,null,1842,1861,"La Courbe *","!B0165","Bât écurie","REYMOND Louis",null,null,"- v",null,null,null,null,null,null,null,null,null,"Noté La Combe, corrigé"]
[null,1,468,"0712",null,null,null,null,1859,null,"La Courbe","!B0165","Bât rural","PELLORCE Vincent feu Vincent, PELLORCE Théophile feu Vincent",null,null,"- v"]
[null,1,590,"0712",null,null,null,null,1861,null,"La Courbe","!B0165p","Bât rural","PELLORCE Vincent feu Vincent, PELLORCE Théophile feu Vincent",null,null,{"$f":"IF(AND(INDIRECT(CONCATENATE(Q$3,ROW()))=\"\",INDIRECT(CONCATENATE(Q$4,ROW()))=\"\"),\"v v\",IF(INDIRECT(CONCATENATE(Q$3,ROW()))=\"\",\"v -\",IF(INDIRECT(CONCATENATE(Q$4,ROW()))=\"\",\"- v\",IF(INDIRECT(CONCATENATE(Q$3,ROW()))=INDIRECT(CONCATENATE(Q$4,ROW())),\"=\",\"<>\"))))","v":"- v"}]
[null,1,590,"0317",null,null,null,null,1903,null,"La Courbe","!B0165p","Bât rural","NICOLLET Joseph à Auris, REYMOND Joseph",null,null,"- v"]
[null,1,null,"0448",null,null,null,null,null,1856,"La Courbe","!B0166","Bât rural","REYMOND Jean",null,null,"- v"]
[null,1,448,"0375",27,null,null,null,1856,1860,"La Courbe","!B0166","Bât rural","PELLORCE Vincent fils",null,null,"- v"]
[null,1,448,"0567",694,null,null,null,1856,1883,"La Courbe","!B0166","Bât rural","PELLORCE Félix",null,null,"- v"]
[null,1,448,"0027",504,null,null,null,1856,1887,"La Courbe","!B0166","Bât rural","RAYMOND Esprit feu Jean",null,null,"- v"]
[null,1,448,"0571","965, 206",null,null,null,1856,1898,"La Courbe","!B0166","Bât rural","REYMOND Joseph fils de Jean",null,null,"- v"]
[null,1,null,"0235",null,null,null,null,1898,1908,"La Courbe","!B0166","Bâtiment","REYMOND Joseph, maire",null,null,{"$f":"IF(AND(INDIRECT(CONCATENATE(Q$3,ROW()))=\"\",INDIRECT(CONCATENATE(Q$4,ROW()))=\"\"),\"v v\",IF(INDIRECT(CONCATENATE(Q$3,ROW()))=\"\",\"v -\",IF(INDIRECT(CONCATENATE(Q$4,ROW()))=\"\",\"- v\",IF(INDIRECT(CONCATENATE(Q$3,ROW()))=INDIRECT(CONCATENATE(Q$4,ROW())),\"=\",\"<>\"))))","v":"- v"}]
[null,1,448,"0606",null,null,null,null,1856,1901,"La Courbe","!B0166p","Bât rural","REYMOND Louis",null,null,"- v"]
[null,1,370,"0045",504,null,null,null,1860,1887,"La Courbe","!B0166p","Bât rural","REYMOND Esprit feu Jean",null,null,"- v"]
[null,1,559,"0708",1007,null,null,null,1883,1905,"La Courbe *","!B0166p","Bât rural","PELLORCE Pierre fils de Pierre",null,null,"- v",null,null,null,null,null,null,null,null,null,"Noté Pré de la Courbe, corrigé"]
[null,1,"27-","0518",null,null,null,null,1887,null,"La Courbe","!B0166p","Bât rural","BLANC Joseph Laurent, fils de Joseph, gendre REYMOND",null,null,"- v"]
[null,1,557,"0966",742,null,null,null,1898,1900,"La Courbe *","!B0166p","Bâtiment","PELLORCE Casimir",null,null,"- v",null,null,null,null,null,null,null,null,null,"Noté Pré de la Courbe, corrigé"]
[null,1,590,"0311(dir)",null,null,null,null,1901,null,"La Courbe","!B0166p","Bât rural","REYMOND Honorine",null,null,"- v"]
[null,1,694,1008,null,null,null,null,1905,null,"La Courbe *","!B0166p","Bât rural","MOREL Auguste époux PELLORCE",null,null,"- v",null,null,null,null,null,null,null,null,null,"Noté Pré de la Courbe, corrigé"]
[null,1,694,1013,null,null,null,null,1905,null,"La Courbe *","!B0166p","Bât rural","PELLORCE Pierre fils de Pierre",null,null,"- v",null,null,null,null,null,null,null,null,null,"Noté Pré de la Courbe, corrigé"]
[null,1,206,1004,null,null,null,null,1908,null,"La Courbe *","!B0166p","Bâtiment","REYMOND Alceste",null,null,"- v",null,null,null,null,null,null,null,null,null,"Noté Pré de la Courbe, corrigé"]
[null,1,null,"0970",null,null,null,null,null,null,"La Courbe *","!B0166p","Bâtiment","CARTIER la dame née REYMOND",null,null,"- v",null,null,null,null,null,null,null,null,null,"Noté Pré de la Courbe, corrigé"]
[null,1,590,"0607",317,null,null,null,1861,1903,"La Courbe *","!B0167p","Bât rural","REYMOND Louis",null,null,"- v",null,null,null,null,null,null,null,null,null,"Noté La Combe, corrigé"]
[null,1,null,"0061",54,null,null,null,null,"(184?)","Sagnère","!B0257","Maison","BLANC (Pierre)",null,null,"- v",null,null,null,null,null,null,null,null,null,null,"(184?)"]
[null,0,null,null,null,null,null,null,null,null,"Chazeaux","!B0330","Maison","REYMOND André adjoint",null,null,"- v"]
[null,1,null,"0478",622,null,null,null,null,1849,"Chazeaux","!B0330","Mais rurale","REYMOND André",null,null,"- v"]
[null,1,"cn","0479",622,null,null,null,1837,1849,"Chazeaux","!B0330","Maison","REYMOND André",null,null,"- v"]
[null,1,622,"0831","97 B",null,null,null,1874,1882,"Chazeaux","!B0330","Maison","OUGIER Jacques gendre REYMOND",null,null,"- v"]
[null,2,null,null,null,"CN",142,"",1927,1930,"Chazeau","!B0330","Maison","OUGIER Joseph",null,null,"- v"]
[null,2,null,null,null,"",142,"",1930,null,"Chazeau","!B0330","Maison","OUGIER Maurice Numia Joseph, négociant",null,null,"- v"]
[null,1,null,"0343",814,null,null,null,null,1876,"Chazeaux","!B0332","Mais rurale","PELLORCE Jean-Aimé fils d'Etienne",null,null,"- v"]
[null,0,null,null,null,null,null,null,null,null,"Chazeaux","!B0333","Maison","PELLORCE Jean-Aimé",null,null,"- v"]
[null,1,"cn","0343",814,null,null,null,1842,1876,"Chazeaux","!B0333","Maison","PELLORCE Jean-Aimé fils d'Etienne",null,null,"- v"]
[null,1,343,"0814","188 B",null,null,null,1876,1882,"Chazeaux","!B0333","Maison","PELLORCE Eugène fils de Jean (Aimé ou Elisé)",null,null,"- v"]
[null,1,343,"0814",271,null,null,null,1876,1913,"Chazeaux","!B0333","Mais rurale","PELLORCE Eugène fils de Jean (Aimé ou Elisé)",null,null,"- v"]
[null,1,814,"0271",null,null,null,null,null,null,"Chazeaux","!B0333","Mais rurale","MOULIN Auguste",null,null,{"$f":"IF(AND(INDIRECT(CONCATENATE(Q$3,ROW()))=\"\",INDIRECT(CONCATENATE(Q$4,ROW()))=\"\"),\"v v\",IF(INDIRECT(CONCATENATE(Q$3,ROW()))=\"\",\"v -\",IF(INDIRECT(CONCATENATE(Q$4,ROW()))=\"\",\"- v\",IF(INDIRECT(CONCATENATE(Q$3,ROW()))=INDIRECT(CONCATENATE(Q$4,ROW())),\"=\",\"<>\"))))","v":"- v"}]
[null,2,null,null,null,"",74,119,null,1913,"Chazeau","!B0333","Maison","PELLORCE Eugène fils de Jean",null,null,"- v"]
[null,2,null,null,null,"CN 1939",119,null,1913,1943,"Le Chazeau","!B0333","Maison","MOULIN Auguste, instituteur chasseur",null,null,"- v"]
[null,2,null,null,null,null,119,"RB",1943,1954,"Le Chazeau","!B0333","Maison","MOULIN Marie, Fernande et Aimé",null,null,"- v"]
[null,2,null,null,null,"",119,"",1954,null,"Le Chazeau","!B0333","Maison","MOULIN Marie et Aimé",null,null,"- v"]
[null,2,null,null,null,"CN 1939",119,"",1940,1943,"Chazeau","!B0334","Garage","MOULIN Auguste, instituteur chasseur",null,null,"- v"]
[null,2,null,null,null,"",119,"",1943,1954,"Chazeau","!B0334","Garage","MOULIN Marie, Fernande et Aimé",null,null,"- v"]
[null,2,null,null,null,"",119,"",1954,null,"Chazeau","!B0334","Garage","MOULIN Marie et Aimé",null,null,"- v"]
[null,1,"47(1)","0622",null,null,null,null,1849,1874,"Chazeaux","!B0336 ou 330","Maison","REYMOND Joseph François feu André",null,null,"- v"]
[null,0,null,null,null,null,null,null,null,null,"Chazeaux","!B0339","Maison","PELLORCE Pierre Etienne feu Etienne",null,null,"- v"]
[null,1,null,"0355",106,null,null,null,null,1867,"Chazeaux","!B0339","Maison","PELLORCE Pierre Etienne",null,null,"- v"]
[null,1,355,"0106",629,null,null,null,1867,1869,"Chazeaux","!B0339","Maison","DODE louis et Pierre et PELLORCE Vincent",null,null,"- v"]
[null,1,106,"0697","159 B",null,null,null,1867,1882,"Chazeaux","!B0339","Maison","ROUX François",null,null,"- v",null,null,null,null,null,null,null,null,null,null,"1882 (sol 1893)"]
[null,2,null,null,null,"",26,"",null,1942,"Chazeaux","!B0339","Maison","DUSSERT Auguste Casimir",null,null,"- v"]
[null,2,null,null,null,"",26,"",1942,null,"Chazeaux","!B0339","Maison","DUSSERT Louis Casimir Eugène et Marcel Lucien Emile",null,null,"- v"]
[null,0,null,null,null,null,null,null,null,null,"Chazeaux","!B0340b","Maison","PELLORCE Vincent",null,null,"- v"]
[null,0,null,null,null,null,null,null,null,null,"Chazeaux","!B0340","Bâtiment","PELLORCE Vincent",null,null,"- v"]
[null,1,null,"0354",null,null,null,null,null,1871,"Chazeaux","!B0340","Bât rural","PELLORCE Félix",null,null,"- v"]
[null,1,null,"0359","11B",null,null,null,null,"1882","Chazeaux","!B0340","Maison","PELLORCE Vincent",null,null,"- v",null,null,null,null,null,null,null,null,null,null,"1882 (sol 1909)"]
[null,1,354,"0155",702,null,null,null,1871,1899,"Chazeaux","!B0340","Bât rural","PELLORCE Etienne, Vincent, Théophile",null,null,"- v"]
[null,1,155,"0615",null,null,null,null,1899,null,"Chazeaux","!B0340","Bât rural","PELLORCE Théophile feu Vincent",null,null,"- v"]
[null,2,null,null,null,"",81,"RB",null,1943,"Chazeau","!B0340","Maison","PELLORCE Théophile feu Vincent",null,null,"- v"]
[null,0,null,null,null,null,null,null,null,null,"Chazeaux","!B0343","Maison","PELLORCE Jean-Aimé",null,null,"- v"]
[null,1,null,"0343","incendie",null,null,null,null,"1875","Chazeaux","!B0343","Maison incendiée","PELLORCE Jean-Aimé fils d'Etienne",null,null,"- v",null,null,null,null,null,null,null,null,null,null,"1875 (sol 1876)"]
[null,1,"cn","0369","112B",null,null,null,1877,1882,"Chazeaux","!B0343","Maison","PELLORCE Jean-Aimé fils d'Etienne",null,null,"- v"]
[null,2,null,null,null,"",74,120,null,1913,"Chazeau","!B0343","Maison","PELLORCE Eugène fils de Jean",null,null,"- v"]
[null,2,null,null,null,74,120,139,1913,1943,"Chazeau","!B0343","Maison","PELLORCE Eugène fils de Eugène",null,null,"- v"]
[null,2,null,null,null,120,119,"",1943,1954,"Chazeau","!B0343","Maison","MOULIN Marie, Fernande et Aimé",null,null,"- v"]
[null,2,null,null,null,"",119,"",1954,null,"Chazeau","!B0343","Maison","MOULIN Marie et Aimé",null,null,"- v"]
[null,0,null,null,null,null,null,null,null,null,"Chazeaux","!B0344","Maison","PELLORCE Vincent",null,null,"- v"]
[null,1,null,"0359",343,null,null,null,null,1855,"Chazeaux","!B0344","Mais rurale","PELLORCE Vincent",null,null,"- v"]
[null,1,173,"0344",null,null,null,null,1855,1876,"Chazeaux","!B0344","Bât rural","PELLORCE Jean-Aimé fils d'Etienne",null,null,"- v"]
[null,1,343,"0814","1(09)",null,null,null,1876,1913,"Chazeaux","!B0344","Bât rural","PELLORCE Eugène fils de Jean (Aimé ou Elisé)",null,null,"- v"]
[null,1,814,1015,null,null,null,null,1913,null,"Chazeaux","!B0344","Bât rural","PELLORCE Eugène",null,null,"- v"]
[null,0,null,null,null,null,null,null,null,null,"Chazeaux","!B0345","Maison","REYMOND André",null,null,"- v"]
[null,1,null,"0478",508,null,null,null,null,1849,"Chazeaux","!B0345","Maison","REYMOND André",null,null,"- v"]
[null,1,478,"0508","148B",null,null,null,1849,1882,"Chazeaux","!B0345","Maison","REYMOND André fils de Joseph",null,null,"- v"]
[null,2,null,null,null,"",100,"",null,null,"Chazeau","!B0345","Maison","REYMOND Joseph Romain gendre REYMOND",null,null,"- v"]
[null,0,null,null,null,null,null,null,null,null,"Chazeaux","!B0346","Maison","FLEUR Pierre",null,null,"- v"]
[null,1,null,"0195",624,null,null,null,null,1851,"Chazeaux","!B0346","Maison","ARNOL Rémy",null,null,{"$f":"IF(AND(INDIRECT(CONCATENATE(Q$3,ROW()))=\"\",INDIRECT(CONCATENATE(Q$4,ROW()))=\"\"),\"v v\",IF(INDIRECT(CONCATENATE(Q$3,ROW()))=\"\",\"v -\",IF(INDIRECT(CONCATENATE(Q$4,ROW()))=\"\",\"- v\",IF(INDIRECT(CONCATENATE(Q$3,ROW()))=INDIRECT(CONCATENATE(Q$4,ROW())),\"=\",\"<>\"))))","v":"- v"}]
[null,1,195,"0624","?",null,null,null,1851,"1882","Chazeaux","!B0346","Maison","REYMOND Hypolite",null,null,"- v",null,null,null,null,null,null,null,null,null,null,"1882 (sol 1895)"]
[null,2,null,null,null,"",101,"",null,1912,"Chazeau","!B0346","Maison","REYMOND Marie feu Hippolyte",null,null,"- v"]
[null,2,null,null,null,"",101,"",1912,1914,"Chazeau","!B0346","Maison","VIVIER François",null,null,"- v"]
[null,2,null,null,null,"",101,146,1914,1941,"Chazeau","!B0346","Maison","REYMOND Marie feu Hippolyte",null,null,"- v"]
[null,2,null,null,null,101,146,171,1941,1947,"Chazeau","!B0346","Maison","OUGIER Théophile gendre CHARBONNEL, épicier",null,null,"- v"]
[null,2,null,null,null,146,171,"",1947,null,"Chazeau","!B0346","Maison","MASIER Jean époux OGIER",null,null,"- v"]
[null,0,null,null,null,null,null,null,null,null,"Chazeaux","!B0347","Maison","MICHEL Pierre feu Mathieu",null,null,"- v"]
[null,1,"?","0308",null,null,null,null,null,1837,"Chazeaux","!B0347","Maison","MICHEL Paul feu Mathieu",null,null,"- v"]
[null,1,308,"0576",null,null,null,null,1837,1853,"Chazeaux","!B0347","Maison","MICHEL Joseph fils de Paul",null,null,"- v"]
[null,1,null,"0352",null,null,null,null,1853,1859,"Chazeaux","!B0347","Maison","PELLORCE Pierre Etienne",null,null,"- v"]
[null,1,355,"0697","159 B (sol 412)",null,null,null,1859,"1882","Chazeaux","!B0347","Maison","ROUX François",null,null,"- v",null,null,null,null,null,null,null,null,null,null,"1882 (sol 1893)"]
[null,2,null,null,null,"",26,"",null,null,"Chazeaux","!B0347","Maison","DUSSERT Auguste Casimir",null,null,"- v"]
[null,2,null,null,null,"",26,"",null,null,"Chazeaux","!B0347","Maison","DUSSERTLouis Casimir Eugène et Marcel Lucien Emile",null,null,"- v"]
[null,0,null,null,null,null,null,null,null,null,"Chazeaux","!B0348","Maison","MICHEL Pierre feu Mathieu",null,null,"- v"]
[null,1,"?","0308",null,null,null,null,null,1837,"Chazeaux","!B0348","Mais rurale","MICHEL Paul feu Mathieu",null,null,"- v"]
[null,1,308,"0576",null,null,null,null,1837,1853,"Chazeaux","!B0348","Maison","MICHEL Joseph fils de Paul",null,null,"- v"]
[null,1,null,"0352",null,null,null,null,1853,1860,"Chazeaux","!B0348","Mais rurale","PELLORCE Pierre Etienne",null,null,"- v"]
[null,1,355,"0744","(1)55",null,null,null,1860,1874,"Chazeaux","!B0348","Mais rurale","ALBERT Jean Baptiste",null,null,"- v"]
[null,1,744,"0155",702,null,null,null,1874,1899,"Chazeaux","!B0348","Mais rurale","PELLORCE Etienne, Vincent, Théophile",null,null,"- v"]
[null,1,155,"0615",null,null,null,null,1899,null,"Chazeaux","!B0348","Mais rurale","PELLORCE Théophile feu Vincent",null,null,"- v"]
[null,0,null,null,null,null,null,null,null,null,"Chazeaux","!B0349","Maison","PELLORCE Félix",null,null,"- v"]
[null,1,null,"0354",null,null,null,null,null,1856,"Chazeaux","!B0349","Maison","PELLORCE Félix",null,null,"- v"]
[null,1,null,"0358","?",null,null,null,1856,1856,"Chazeaux","!B0349","Maison","PELLORCE Pierre",null,null,"- v"]
[null,1,null,"0352",354,null,null,null,1856,1860,"Chazeaux","!B0349","Maison","PELLORCE Pierre Etienne",null,null,"- v"]
[null,1,355,"0697",null,null,null,null,1860,1862,"Chazeaux","!B0349","Maison","ROUX François",null,null,"- v"]
[null,1,null,"0382",null,null,null,null,1862,1869,"Chazeaux","!B0349","Maison","PELLORCE Vincent",null,null,"- v"]
[null,1,370,"0155",132,null,null,null,1869,"1882","Chazeaux","!B0349","Maison","PELLORCE Etienne, Vincent, Théophile",null,null,"- v",null,null,null,null,null,null,null,null,null,null,"1882 (Sol en 1899)"]
[null,2,null,null,null,"",81,"Dém",null,1943,"Chazeau","!B0349","Maison","PELLORCE Théophile feu Vincent",null,null,"- v"]
[null,0,null,null,null,null,null,null,null,null,"Chazeaux","!B0351","Maison","PELLORCE Félix",null,null,"- v"]
[null,1,null,"0354",null,null,null,null,null,1856,"Chazeaux","!B0351","Mais rurale","PELLORCE Félix",null,null,"- v"]
[null,1,null,"0358","?",null,null,null,1856,1856,"Chazeaux","!B0351","Bât rural","PELLORCE Pierre",null,null,"- v"]
[null,1,null,"0352",354,null,null,null,1856,1860,"Chazeaux","!B0351","Bât rural","PELLORCE Pierre Etienne",null,null,"- v"]
[null,1,355,"0697",null,null,null,null,1860,1862,"Chazeaux","!B0351","Bât rural","ROUX François",null,null,"- v"]
[null,1,null,"0382",null,null,null,null,1862,1869,"Chazeaux","!B0351","Bât rural","PELLORCE Vincent",null,null,"- v"]
[null,1,370,"0155",702,null,null,null,1869,1899,"Chazeaux","!B0351","Bât rural","PELLORCE Etienne, Vincent, Théophile",null,null,"- v"]
[null,1,155,"0615",null,null,null,null,1899,1909,"Chazeaux","!B0351","Bât rural","PELLORCE Théophile feu Vincent",null,null,"- v"]
[null,2,null,null,null,"",81,"RB",null,1943,"Chazeau","!B0351","Chambre","PELLORCE Théophile feu Vincent",null,null,"- v"]
[null,2,null,null,null,"RB",81,"",1943,1949,"Chazeau","!B0351","Chambre","PELLORCE Vincent",null,null,"- v"]
[null,2,null,null,null,"",81,"",1949,null,"Chazeau","!B0351","Chambre","PELLORCE Théophile, les héritiers",null,null,"- v"]
[null,0,null,null,null,null,null,null,null,null,"Chazeaux","!B0359","Maison","REYMOND André adjoint",null,null,"- v"]
[null,1,null,"0478",283,null,null,null,null,1849,"Chazeaux","!B0359","Maison","REYMOND André",null,null,"- v"]
[null,1,478,"0283","145B",null,null,null,1849,"1882","Ham des Chazeaux","!B0359","Maison","REYMOND Joseph André",null,null,"- v",null,null,null,null,null,null,null,null,null,null,"1882 (sol 1892)"]
[null,2,null,null,null,"",35,"",null,1923,"Chazeaux","!B0359","Maison","DUSSERT Rémy Joseph",null,null,"- v"]
[null,2,null,null,null,"",35,"D",1923,1926,"Chazeaux","!B0359","Maison","DUSSERT Auguste Casimir vve née ROUX (1923)",null,null,"- v"]
[null,0,null,null,null,null,null,null,null,null,"Chazeaux","!B0360","Maison","OGIER Sébastien",null,null,"- v"]
[null,1,null,"0329","bat rural",null,null,null,null,"1867","Chazeaux","!B0360","Maison","OUGIER Sébastien feu Sébastien",null,null,"- v",null,null,null,null,null,null,null,null,null,null,"1867 (sol 1878)"]
[null,1,"cn","0155",329,null,null,null,1872,1874,"Chazeaux","!B0360","Maison","PELLORCE Etienne, Vincent, Théophile",null,null,"- v"]
[null,1,155,"0329",329,null,null,null,1874,1875,"Chazeaux","!B0360","Maison","OUGIER Sébastien",null,null,"- v"]
[null,1,"329 augmentation","0329","845, 844",null,null,null,1875,1878,"Chazeaux","!B0360","Maison agrandie","OUGIER Sébastien",null,null,"- v"]
[null,1,329,"0844","82B (sol 206)",null,null,null,1878,"1882","Chazeaux","!B0360p","Maison","HUSTACHE André feu François",null,null,"- v",null,null,null,null,null,null,null,null,null,null,"1882 (sol 1889)"]
[null,1,329,"0845","81 B (sol 206)",null,null,null,1878,"1882","Chazeaux","!B0360p","Maison","HUSTACHE François dit Paul, HUSTACHE André Sébastien, Pierre André François",null,null,"- v",null,null,null,null,null,null,null,null,null,null,"1882 (sol 1889)"]
[null,2,null,null,null,"",22,95,null,1926,"Chazeaux","!B0360p","Maison","CARTIER La dame née REYMOND",null,null,"- v"]
[null,2,null,null,null,22,95,"RB en 1943",null,null,"Chazeau","!B0360p","Maison","REYMOND Alceste",null,null,"- v"]
[null,2,null,null,null,"RB",95,"",null,null,"Chazeau","!B0360p","Maison","REYMOND Robert",null,null,"- v"]
[null,1,null,"0282","?",null,null,null,1853,1882,"Chazeaux","!B0361","Maison","REYMOND Joseph André","Verger en 1833",null,"- v"]
[null,2,null,null,null,"Création",161,"",1938,null,"Gardette","!C0001","partie de barrage, chute de Ste Guillerme","Etat pour l'administration des Domaines",null,null,"- v"]
[null,1,null,"0560",null,null,null,null,1907,null,"Gardette *","!C0021","Bât rural","PELLORCE Vincent, ARLOT Antoine Adolphe, notaire","Terre en 1833",null,"- v",null,null,null,null,null,null,null,null,null,"Noté Freney (à revoir)"]
[null,2,null,null,null,"CN1938, CN1356 en 1957",1,"",1941,null,"Gardette","!C0070","Moulin, entrepôt","Commune du Frenay",null,null,"- v"]
[null,2,null,null,null,"CN1956",1,"",1957,null,"Gardette","!C0070","Moulin","Commune du Frenay"]
[null,2,null,null,null,"CN 1956",180,"",1957,null,"Gardette","!C0070","Entrepôt sol","OUGIER Pierre époux SIAUD, transporteur et mécanicien",null,null,"- v"]
[null,2,null,null,null,"",148,180,1935,1954,"Freney","!C0076","Maison et magasin","OUGIER Pierre époux REY, boulanger",null,null,"- v"]
[null,2,null,null,null,148,180,"",1954,null,"Le Freney","!C0076","Maison et magasin","OUGIER Pierre époux SIAUD, transporteur et mécanicien",null,null,"- v"]
[null,1,null,"0536",81,null,null,null,null,1862,"Freney","!C0204","Maison","VIAL Pierre",null,null,"- v"]
[null,1,"?","0312",null,null,null,null,null,1869,"Freney","!C0232","Maison","MICHEL Jacques dit But",null,null,"- v"]
[null,1,312,"0117","démolie",null,null,null,1869,1882,"Freney","!C0232","Maison démolie","MICHEL Louis Marius fils de Jacques",null,null,"- v"]
[null,0,null,null,null,null,null,null,null,null,"Freney","!C0233","Maison","GARCIN Michel",null,null,"- v"]
[null,1,null,"0243",244,null,null,null,null,1839,"Freney","!C0233","Maison","GARCIN (Mel)",null,null,"- v"]
[null,1,"reste","0243",243,null,null,null,1839,1849,"Freney","!C0233","Maison","GARCIN (Mel)",null,null,"- v"]
[null,1,243,"0244","?",null,null,null,1839,"1882","Freney","!C0233","Maison","GARCIN Pierre, Jeanne",null,null,"- v",null,null,null,null,null,null,null,null,null,null,"1882 (sol 1896)"]
[null,1,null,"0610",null,null,null,null,1849,1856,"Freney","!C0233","Maison","GARCIN Jean-Baptiste feu Jean-Baptiste",null,null,{"$f":"IF(AND(INDIRECT(CONCATENATE(Q$3,ROW()))=\"\",INDIRECT(CONCATENATE(Q$4,ROW()))=\"\"),\"v v\",IF(INDIRECT(CONCATENATE(Q$3,ROW()))=\"\",\"v -\",IF(INDIRECT(CONCATENATE(Q$4,ROW()))=\"\",\"- v\",IF(INDIRECT(CONCATENATE(Q$3,ROW()))=INDIRECT(CONCATENATE(Q$4,ROW())),\"=\",\"<>\"))))","v":"- v"}]
[null,1,610,"0692",181,null,null,null,1856,1872,"Freney","!C0233","Maison","GARCIN Paul fils de Michel",null,null,{"$f":"IF(AND(INDIRECT(CONCATENATE(Q$3,ROW()))=\"\",INDIRECT(CONCATENATE(Q$4,ROW()))=\"\"),\"v v\",IF(INDIRECT(CONCATENATE(Q$3,ROW()))=\"\",\"v -\",IF(INDIRECT(CONCATENATE(Q$4,ROW()))=\"\",\"- v\",IF(INDIRECT(CONCATENATE(Q$3,ROW()))=INDIRECT(CONCATENATE(Q$4,ROW())),\"=\",\"<>\"))))","v":"- v"}]
[null,1,243,"0243",692,null,null,null,1849,1872,"Freney","!C0233p","Maison","GARCIN (Mel)",null,null,"- v"]
[null,1,243,"0007",740,null,null,null,1849,1875,"Freney","!C0233p","Maison","DUPRE femme GARCIN",null,null,"- v"]
[null,1,692,"0181",740,null,null,null,1872,1873,"Freney","!C0233p","Maison","GARCIN Marie institutrice",null,null,"- v"]
[null,1,243,"0692","67 (sol 740)",null,null,null,1872,"1882","Freney","!C0233p","Maison","GARCIN Paul fils de Michel",null,null,"- v",null,null,null,null,null,null,null,null,null,null,"1882 (sol 1897)"]
[null,1,181,"0732","68 B",null,null,null,1873,1882,"Freney","!C0233p","Maison","GARCIN Jean Baptiste fils de Michel",null,null,"- v"]
[null,1,181,"0732","68 B",null,null,null,1873,"1882","Freney","!C0233p","Maison","GARCIN Jean Baptiste fils de Michel",null,null,"- v",null,null,null,null,null,null,null,null,null,null,"1882 (sol 1903)"]
[null,0,null,null,null,null,null,null,null,null,"Freney","!C0238","Maison","GUILLET Louis",null,null,"- v"]
[null,1,null,"0267","(266 ou 246)",null,null,null,null,1848,"Freney","!C0238","Maison","GUILLET Louis",null,null,"- v"]
[null,1,267,"0246","27-",null,null,null,1848,1879,"Freney","!C0238","Maison","GUILLET Paul",null,null,"- v"]
[null,1,246,"0279","80B",null,null,null,1879,"1882","Freney","!C0238","Maison","GUILLET Paul feu Louis la vve",null,null,"- v",null,null,null,null,null,null,null,null,null,null,"1882 (sol 1886)"]
[null,2,null,null,null,"",51,115,null,1921,"Le Freney","!C0238p","Maison","GRANGER Pierre, tailleur",null,null,"- v"]
[null,2,null,null,null,"",42,"D",null,1921,"Le Freney","!C0238p","Maison","FLEUR Pierre feu Pierre Louis",null,null,"- v"]
[null,2,null,null,null,51,115,"D",1921,1926,"Le Freney","!C0238p","Maison","VEYRAT Joseph fils de Louis facteur",null,null,"- v"]
[null,1,"cn","0544",null,null,null,null,1837,1882,"Freney","!C0240 *","Maison","DUSSERT Joseph",null,null,"- v",null,null,null,null,null,null,null,null,null,"Noté B240, corrigé C240 "]
[null,2,null,null,null,"",63,55,null,1913,"Le Freney","!C0240","Maison","NOIREY Ulysse vve née DUSSERT",null,null,"- v"]
[null,2,null,null,null,63,55,118,1913,1923,"Freney","!C0240","Maison","JOUFFREY Pierre, vve née DUSSERT",null,null,"- v"]
[null,2,null,null,null,55,118,"196 à 198",1923,1958,"Freney","!C0240","Maison","DUSSERT Joseph époux REYMOND",null,null,"- v"]
[null,2,null,null,null,118,196,"",1958,null,"Freney","!C0240","Maison","DELEUZE Pierre époux DUSSERT, technicien",null,null,"- v"]
[null,2,null,null,null,118,197,"",1958,null,"Freney","!C0240","Maison","DUSSERT Raymond époux PERRIER, instituteur",null,null,"- v"]
[null,2,null,null,null,118,198,"",1958,null,"Freney","!C0240",null,"FEGE Pierre Marcel époux DUSSERT ",null,null,"- v",null,null,null,null,null,null,null,null,null,"Pas noté la nature sur la case 198"]
[null,0,null,null,null,null,null,null,null,null,"Freney","!C0241","Maison","PELLORCE Laurent",null,null,"- v"]
[null,1,null,"0365",206,null,null,null,null,1871,"Freney","!C0241","Mais rurale","PELLORCE Laurent",null,null,"- v"]
[null,1,"cn","0366",206,null,null,null,1871,1877,"Freney","!C0241","Maison","PELLORCE Laurent",null,null,"- v"]
[null,1,365,"0206","?",null,null,null,1871,1903,"Freney","!C0241","Mais rurale","REYMOND Joseph, maire",null,null,"- v"]
[null,1,365,"0206","?",null,null,null,1877,1882,"Freney","!C0241","Maison","REYMOND Joseph, maire",null,null,"- v"]
[null,1,206,"0402",null,null,null,null,1903,null,"Freney","!C0241","Mais rurale","PIERRAZ Jean Pierre",null,null,"- v"]
[null,2,null,null,null,"",11,152,null,1931,"Freney","!C0241","Maison","BERARD Jean Pierre gendre SIMONET",null,null,"- v"]
[null,2,null,null,null,11,152,149,1931,1955,"Le Freney","!C0241","Maison","BERARD Jean Théophile"]
[null,2,null,null,null,152,149,"",1955,null,"Le Freney","!C0241","Maison","SOUDA Casimir époux BERARD Marie",null,null,"- v"]
[null,0,null,null,null,null,null,null,null,null,"Freney","!C0243","Maison","CAIX Jean",null,null,"- v"]
[null,1,null,"0078","59(8 ou 4)",null,null,null,null,1847,"Freney","!C0243","Maison","CAIX Jean feu Louis",null,null,"- v"]
[null,1,null,"0594",null,null,null,null,1847,1873,"Freney","!C0243","Maison","BRUN Charles",null,null,"- v"]
[null,1,365,"0206","?",null,null,null,1871,"1882","Freney","!C0243","Maison","REYMOND Joseph, maire",null,null,"- v",null,null,null,null,null,null,null,null,null,null,"1882 (sol en 1903)"]
[null,1,594,"0819","153 B (sol 1042)",null,null,null,1873,"1882","Freney","!C0243","Maison","RIVOIRE Hippolyte fils de Joseph",null,null,"- v",null,null,null,null,null,null,null,null,null,null,"1882 (sol 1903)"]
[null,1,null,"0295",217,null,null,null,null,1850,"Freney","!C0244","Maison","MICHEL Paul feu Paul",null,null,"- v"]
[null,1,295,"0228","?",null,null,null,1850,"1865","Freney","!C0244","Maison","MICHEL Antoine feu Blaise",null,null,"- v",null,null,null,null,null,null,null,null,null,null,"1865 (sol 1880)"]
[null,1,217,"0229","285, 15(1)",null,null,null,1865,1880,"Freney","!C0244","Maison","MICHEL Antoine feu Blaise",null,null,"- v"]
[null,1,217,"0285","88B",null,null,null,1880,1882,"Freney","!C0244","Maison","MICHEL Antoine feu Antoine",null,null,"- v"]
[null,1,217,"0151",null,null,null,null,1880,1882,"Freney","!C0244","Maison","MICHEL Rémy et Antoine",null,null,"- v"]
[null,2,null,null,null,"",58,"",null,1943,"Freney","!C0244","Maison","MICHEL Antoine feu Antoine",null,null,"- v"]
[null,2,null,null,null,"",58,"",1943,null,"Freney","!C0244","Maison","MICHEL Antoine feu Antoine, héritiers",null,null,"- v"]
[null,2,null,null,null,"",59,"",null,1947,"Freney","!C0244","Maison","MICHEL Rémy feu Antoine",null,null,"- v"]
[null,2,null,null,null,"",59,"",1947,null,"Freney","!C0244","Maison","REYMOND Rémy époux ROUARD (1947)",null,null,"- v"]
[null,0,null,null,null,null,null,null,null,null,"Freney","!C0245","Maison","MICHEL Pierre",null,null,"- v"]
[null,1,null,"0297",383,null,null,null,null,1835,"Freney","!C0245","Maison","MICHEL (Pierre)",null,null,"- v"]
[null,1,297,"0384",null,null,null,null,1835,1835,"Freney","!C0245","Maison","PELLORCE Pierre, MARTIN Adélaïde Mt de Lans",null,null,"- v"]
[null,1,297,"0383",217,null,null,null,1835,1847,"Freney","!C0245","Maison","PELLORCE (Agnès) vve MICHEL",null,null,"- v"]
[null,1,383,"0217",217,null,null,null,1847,"1865","Freney","!C0245","Maison","FONTANT Michel Euphroisine , MICHEL Antoine",null,null,"- v",null,null,null,null,null,null,null,null,null,null,"1865 (sol 1880)"]
[null,1,"cn","0720",null,null,null,null,1872,1882,"Freney","!C0245","Maison","SIMONET Joseph époux GARNIER",null,null,"- v"]
[null,1,"217, augmentation","0229",285,null,null,null,1875,1880,"Freney","!C0245","Maison agrandie","MICHEL Antoine feu Blaise",null,null,"- v"]
[null,1,217,"0285","88B",null,null,null,1880,1882,"Freney","!C0245","Maison","MICHEL Antoine feu Antoine",null,null,"- v"]
[null,2,null,null,null,11,152,182,1931,1955,"Le Freney","!C0245","Maison","BERARD Jean Théophile",null,null,"- v"]
[null,2,null,null,null,152,182,"",1955,null,"Le Freney","!C0245","Maison","JOUFFREY Georges époux FIRMONT",null,null,"- v"]
[null,2,null,null,null,"",11,152,null,1943,"Freney","!C0245","Maison","BERARD Jean Pierre gendre SIMONET",null,null,"- v"]
[null,2,null,null,null,"",58,"",null,1943,"Freney","!C0245p","Maison","MICHEL Antoine feu Antoine",null,null,"- v"]
[null,2,null,null,null,"",58,"",1943,null,"Freney","!C0245p","Maison","MICHEL Antoine feu Antoine, héritiers",null,null,"- v"]
[null,2,null,null,null,"",59,"",null,1947,"Freney","!C0245p","Maison","MICHEL Rémy feu Antoine",null,null,"- v"]
[null,2,null,null,null,"",59,"",1947,null,"Freney","!C0245p","Maison","REYMOND Rémy époux ROUARD",null,null,"- v"]
[null,0,null,null,null,null,null,null,null,null,"Freney","!C0249","Maison","FLEUR Jean",null,null,"- v"]
[null,1,null,"0185","56B (sol en 403)",null,null,null,null,1882,"Freney","!C0249","Maison","FLEUR Jean feu Antoine",null,null,"- v"]
[null,1,"cn","0186","56-",null,null,null,1842,1882,"Freney","!C0249","Maison","FLEUR Jean feu Antoine",null,null,"- v"]
[null,2,null,null,null,"",11,"150, 151",null,1931,"Freney","!C0249","Maison","BERARD Jean Pierre gendre SIMONET",null,null,"- v"]
[null,2,null,null,null,11,151,150,1931,1933,"Le Freney","!C0249p","Maison","BERARD Pierre Joseph Prosper, bourrelier",null,null,"- v"]
[null,2,null,null,null,"11, 151",150,"RB 1943",1931,null,"Le Freney","!C0249","Maison","ARNOL Eugène époux BERARD Marie Hortense",null,null,"- v"]
[null,1,null,"0524",null,null,null,null,null,"(188","Freney","!C0258","Maison","VEYRAT (Paul)",null,null,"- v",null,null,null,null,null,null,null,null,null,null,"(1882)"]
[null,0,null,null,null,null,null,null,null,null,"Freney","!C0262","Maison","FONTANT Jacques",null,null,"- v"]
[null,1,null,"0218",null,null,null,null,null,"1882","Freney","!C0262","Maison","FONTANT Jacques",null,null,"- v",null,null,null,null,null,null,null,null,null,null,"1882 (sol 1908)"]
[null,0,null,null,null,null,null,null,null,null,"Freney","!C0263","Maison","CAIX Paul",null,null,{"$f":"IF(AND(INDIRECT(CONCATENATE(Q$3,ROW()))=\"\",INDIRECT(CONCATENATE(Q$4,ROW()))=\"\"),\"v v\",IF(INDIRECT(CONCATENATE(Q$3,ROW()))=\"\",\"v -\",IF(INDIRECT(CONCATENATE(Q$4,ROW()))=\"\",\"- v\",IF(INDIRECT(CONCATENATE(Q$3,ROW()))=INDIRECT(CONCATENATE(Q$4,ROW())),\"=\",\"<>\"))))","v":"- v"}]
[null,1,null,"0073","73.246",null,null,null,null,1878,"Freney","!C0263","Maison","CAIX (Paul)",null,null,"- v"]
[null,1,73,"0073",null,null,null,null,1878,"1882","Freney","!C0263","Maison","CAIX (Paul)",null,null,{"$f":"IF(AND(INDIRECT(CONCATENATE(Q$3,ROW()))=\"\",INDIRECT(CONCATENATE(Q$4,ROW()))=\"\"),\"v v\",IF(INDIRECT(CONCATENATE(Q$3,ROW()))=\"\",\"v -\",IF(INDIRECT(CONCATENATE(Q$4,ROW()))=\"\",\"- v\",IF(INDIRECT(CONCATENATE(Q$3,ROW()))=INDIRECT(CONCATENATE(Q$4,ROW())),\"=\",\"<>\"))))","v":"- v"},null,null,null,null,null,null,null,null,null,null,"1882 (sol en 1904)"]
[null,1,73,"0247",820,null,null,null,1878,1881,"Freney","!C0263p","Maison","GUILLET Paul",null,null,"- v"]
[null,1,"(366)","0820",null,null,null,null,1881,"1882","Freney","!C0263p","Maison","PERRARD Joseph",null,null,"- v",null,null,null,null,null,null,null,null,null,null,"1882 (sol 1894)"]
[null,0,null,null,null,null,null,null,null,null,"Freney","!C0264","Maison","VIAL Paul",null,null,"- v"]
[null,1,536,"0080","(534)",null,null,null,1862,1867,"Freney","!C0264","Maison","MICHEL denis feu Antoine",null,null,"- v"]
[null,1,81,"0534","169B",null,null,null,1867,"1882","Freney","!C0264","Maison","VIAL Vincent feu Paul",null,null,"- v",null,null,null,null,null,null,null,null,null,null,"1882 (sol 1904)"]
[null,2,null,null,null,"",116,"",null,1916,"Freney","!C0264","Maison","VIAL Célestine",null,null,"- v"]
[null,2,null,null,null,"",116,"ruines",1916,1924,"Freney","!C0264","Maison","PAILLAS Auguste et Alexis indivis",null,null,"- v"]
[null,0,null,null,null,null,null,null,null,null,"Freney","!C0265","Maison","DUPRE Louis",null,null,"- v"]
[null,1,"cn","0107",93,null,null,null,1840,1869,"Freney","!C0265","Maison","DUPRE Louis fils à Louis",null,null,"- v"]
[null,1,107,"0093",94,null,null,null,1869,1874,"Freney","!C0265","Maison","DUPRE Alphonse de feu Louis",null,null,"- v"]
[null,1,107,"0093",1028,null,null,null,1869,1910,"Freney","!C0265","Mais rurale","DUPRE Alphonse de feu Louis",null,null,"- v"]
[null,1,93,1028,null,null,null,null,1910,null,"Freney","!C0265","Mais rurale","HUGUE Jean-Pierre, PEYRARD Constant et Jules",null,null,"- v"]
[null,0,null,null,null,null,null,null,null,null,"Freney","!C0267","Maison","FLEUR Etienne",null,null,"- v"]
[null,1,null,"0201","107, 201",null,null,null,null,1843,"Freney","!C0267","Maison","FLEUR (Etienne)",null,null,"- v"]
[null,1,null,"0202","reste",null,null,null,1843,1844,"Freney","!C0267","Maison","FLEUR (Etienne)",null,null,"- v"]
[null,1,201,"0160","?",null,null,null,1843,"1845","Freney","!C0267","Maison","DUPRE Louis fils à Louis",null,null,"- v",null,null,null,null,null,null,null,null,null,null,"1845 (sol en 1869)"]
[null,1,201,"0016",null,null,null,null,1844,1848,"Freney","!C0267","Maison","AMIEUX Jean feu Pierre",null,null,"- v"]
[null,1,16,"0162",86,null,null,null,1848,1869,"Freney","!C0267","Maison","DUPRE Louis fils à Louis",null,null,"- v"]
[null,1,107,"0086",null,null,null,null,1869,1875,"Freney","!C0267p","Maison","DUPRE Eugène  fils à feu Denis",null,null,"- v"]
[null,1,86,"0666","61B (sol 936)",null,null,null,1875,"1882","Freney","!C0267p","Maison","FLEUR Pierre Auguste feu Mathieu",null,null,"- v",null,null,null,null,null,null,null,null,null,null,"1882 (sol 1890)"]
[null,1,"cn","0162","97-",null,null,null,1861,1869,"Freney *","!C0277","Maison","DUPRE Louis fils à Louis",null,null,"- v",null,null,null,null,null,null,null,null,null,"Noté Au-delà du Pont, corrigé"]
[null,1,107,"0097","176, agrandissement",null,null,null,1869,1870,"Freney","!C0277","Maison agrandie","DUPRE Maximin et consorts",null,null,"- v"]
[null,1,97,"0176",null,null,null,null,1870,1882,"Freney","!C0277","Maison","DUSSERT Firmin, DUSSERT Firmin neveu",null,null,"- v"]
[null,2,null,null,null,"",28,"",null,1928,"Le Freney","!C0277","Maison","DUSSERT Firmin",null,null,"- v",null,null,null,null,null,null,null,null,null,"Hésité entre !C0271 et !C0277, mais DUSSERT Firmin"]
[null,2,null,null,null,"",28,"",1928,null,"Le Freney","!C0277","Maison","PERRIN Georges Emmanuel Auguste",null,null,"- v",null,null,null,null,null,null,null,null,null,"Hésité entre !C0271 et !C0277, mais DUSSERT Firmin"]
[null,1,"cn","0656","61 B",null,null,null,1865,1882,"Freney","!C0285p","Maison","FLEUR Pierre Auguste feu Mathieu",null,null,"- v"]
[null,2,null,null,null,"",16,"",null,1943,"Le Freney","!C0285p","Maison","BOURGEOIS Joseph gendarme",null,null,"- v"]
[null,2,null,null,null,"",16,"",1943,null,"Le Freney","!C0285p","Maison","ARLOT Alexis époux BOURDI, garde forestier",null,null,"- v"]
[null,2,null,null,null,"",39,"",null,1943,"Le Freney","!C0285p","Maison","FLEUR André Emile",null,null,"- v"]
[null,2,null,null,null,"",39,"",1943,1959,"Le Freney","!C0285p","Maison","BERTRAND Louis époux FLEUR",null,null,"- v"]
[null,2,null,null,null,"",39,"",1959,null,"Le Freney","!C0285p","Maison","BERTRAND François, Fernand et Suzanne",null,null,"- v"]
[null,0,null,null,null,null,null,null,null,null,"Freney","!C0287","Maison","FAURE Jacques",null,null,"- v"]
[null,1,null,"0179",370,null,null,null,null,1844,"Freney","!C0287","Maison","FAURE Jacques",null,null,"- v"]
[null,1,179,"0371",423,null,null,null,1844,1845,"Freney","!C0287","Maison","PELLORCE Vincent",null,null,"- v"]
[null,1,370,"0423",370,null,null,null,1845,1862,"Freney","!C0287","Maison","VIAL Célestine",null,null,"- v"]
[null,1,null,"0382",null,null,null,null,1862,1868,"Freney","!C0287","Maison","PELLORCE Vincent",null,null,"- v"]
[null,1,370,"0694","65-",null,null,null,1868,1869,"Freney","!C0287","Maison","PELLORCE Pierre fils de Pierre",null,null,"- v"]
[null,1,694,"0656","61 B (sol 987)",null,null,null,1869,"1882","Freney","!C0287","Maison","FLEUR Pierre Auguste feu Mathieu",null,null,"- v",null,null,null,null,null,null,null,null,null,null,"1882 (sol 1890)"]
[null,2,null,null,null,"",21,"",null,1947,"Le Freney","!C0287","Maison","CARMINATTI Eugène maçon, Etienne (1947)",null,null,"- v"]
[null,2,null,null,null,"",21,"",1947,null,"Le Freney","!C0287","Maison","CARMINATTI Pierre, facteur à Bourg d'Oisans",null,null,"- v"]
[null,0,null,null,null,null,null,null,null,null,"Freney","!C0288","Maison","RIVOIRE Mathieu",null,null,"- v"]
[null,1,null,"0493",486,null,null,null,null,1833,"Freney","!C0288","Mais rurale","RIVOIRE Marie",null,null,{"$f":"IF(AND(INDIRECT(CONCATENATE(Q$3,ROW()))=\"\",INDIRECT(CONCATENATE(Q$4,ROW()))=\"\"),\"v v\",IF(INDIRECT(CONCATENATE(Q$3,ROW()))=\"\",\"v -\",IF(INDIRECT(CONCATENATE(Q$4,ROW()))=\"\",\"- v\",IF(INDIRECT(CONCATENATE(Q$3,ROW()))=INDIRECT(CONCATENATE(Q$4,ROW())),\"=\",\"<>\"))))","v":"- v"}]
[null,1,486,"0060",94,null,null,null,1868,1888,"Freney","!C0288","Mais rurale","RIVOIRE Théotiste femme REY",null,null,{"$f":"IF(AND(INDIRECT(CONCATENATE(Q$3,ROW()))=\"\",INDIRECT(CONCATENATE(Q$4,ROW()))=\"\"),\"v v\",IF(INDIRECT(CONCATENATE(Q$3,ROW()))=\"\",\"v -\",IF(INDIRECT(CONCATENATE(Q$4,ROW()))=\"\",\"- v\",IF(INDIRECT(CONCATENATE(Q$3,ROW()))=INDIRECT(CONCATENATE(Q$4,ROW())),\"=\",\"<>\"))))","v":"- v"}]
[null,1,null,"0094",null,null,null,null,1888,1903,"Freney","!C0288","Mais rurale","DUPRE Rosalie fille de feu Louis",null,null,"- v"]
[null,1,null,"0094",null,null,null,null,1888,1903,"Freney","!C0288","Mais rurale","DUPRE Rosalie fille de feu Louis",null,null,"- v"]
[null,1,null,"0486",null,null,null,null,1903,null,"Freney","!C0288","Mais rurale","REY Alexis instituteur",null,null,"- v"]
[null,0,null,null,null,null,null,null,null,null,"Freney","!C0288b","Bâtiment rural","RIVOIRE Marie",null,null,"- v"]
[null,1,null,"0486",null,null,null,null,1833,1868,"Freney","!C0288bis","Mais rurale","REY Alexis instituteur",null,null,{"$f":"IF(AND(INDIRECT(CONCATENATE(Q$3,ROW()))=\"\",INDIRECT(CONCATENATE(Q$4,ROW()))=\"\"),\"v v\",IF(INDIRECT(CONCATENATE(Q$3,ROW()))=\"\",\"v -\",IF(INDIRECT(CONCATENATE(Q$4,ROW()))=\"\",\"- v\",IF(INDIRECT(CONCATENATE(Q$3,ROW()))=INDIRECT(CONCATENATE(Q$4,ROW())),\"=\",\"<>\"))))","v":"- v"}]
[null,1,486,"0060",94,null,null,null,1868,1888,"Freney","!C0288bis","Mais rurale","RIVOIRE Théotiste femme REY",null,null,{"$f":"IF(AND(INDIRECT(CONCATENATE(Q$3,ROW()))=\"\",INDIRECT(CONCATENATE(Q$4,ROW()))=\"\"),\"v v\",IF(INDIRECT(CONCATENATE(Q$3,ROW()))=\"\",\"v -\",IF(INDIRECT(CONCATENATE(Q$4,ROW()))=\"\",\"- v\",IF(INDIRECT(CONCATENATE(Q$3,ROW()))=INDIRECT(CONCATENATE(Q$4,ROW())),\"=\",\"<>\"))))","v":"- v"}]
[null,1,null,"0486",null,null,null,null,1903,null,"Freney","!C0288bis","Mais rurale","REY Alexis instituteur",null,null,{"$f":"IF(AND(INDIRECT(CONCATENATE(Q$3,ROW()))=\"\",INDIRECT(CONCATENATE(Q$4,ROW()))=\"\"),\"v v\",IF(INDIRECT(CONCATENATE(Q$3,ROW()))=\"\",\"v -\",IF(INDIRECT(CONCATENATE(Q$4,ROW()))=\"\",\"- v\",IF(INDIRECT(CONCATENATE(Q$3,ROW()))=INDIRECT(CONCATENATE(Q$4,ROW())),\"=\",\"<>\"))))","v":"- v"}]
[null,0,null,null,null,null,null,null,null,null,"Freney","!C0289","Maison","RIVOIRE Mathieu",null,null,"- v"]
[null,1,null,"0486",null,null,null,null,null,null,"Freney","!C0289","Mais rurale","REY Alexis instituteur",null,null,"- v"]
[null,0,null,null,null,null,null,null,null,null,"Freney","!C0290","Maison","DUPRE Louis",null,null,"- v"]
[null,1,"démolie","0107",null,null,null,null,null,1840,"Freney","!C0290","Maison démolie","DUPRE Louis fils à Louis",null,null,"- v"]
[null,1,167,"0093",94,null,null,null,1869,1874,"Freney","!C0290","Sol","DUPRE Alphonse de feu Louis",null,null,"- v"]
[null,1,93,"0094",null,null,null,null,1874,1882,"Freney","!C0290","Maison","DUPRE Rosalie fille de feu Louis",null,null,"- v"]
[null,2,null,null,null,"",37,130,null,1922,"Le Freney","!C0290","Maison","DUPRE Rosalie fille de Louis",null,null,"- v"]
[null,2,null,null,null,37,130,"",1922,null,"Le Freney","!C0290","Maison","REY Alexis vve, née BRUTIN Marie",null,null,"- v"]
[null,0,null,null,null,null,null,null,null,null,"Freney","!C0293","Maison","PELLORCE Laurent",null,null,"- v"]
[null,1,null,"0365",206,null,null,null,null,1871,"Freney","!C0293","Maison","PELLORCE Laurent",null,null,"- v"]
[null,2,null,null,null,"",11,149,null,1931,"Freney","!C0293","Maison","BERARD Jean-Pierre gendre SIMONET"]
[null,2,null,null,null,11,149,"",1931,null,"Le Freney","!C0293","Maison","SOUDA Casimir époux BERARD Marie",null,null,"- v"]
[null,1,"cn","0677",283,null,null,null,1865,1868,"Freney","!C0295","Maison","BALMAIN Pierre",null,null,"- v"]
[null,1,"cn","0694","694, --",null,null,null,1866,1868,"Freney","!C0295","Maison","PELLORCE Pierre fils de Pierre",null,null,"- v"]
[null,1,"694 agrandie","0694","?",null,null,null,1868,1882,"Freney","!C0295","Maison agrandie","PELLORCE Pierre fils de Pierre",null,null,"- v"]
[null,1,"cn","0755","96 B",null,null,null,1865,1882,"Freney","!C0295p","Maison","? (CHALVIN) Laurent, VIEUX Vincent, … ?(DUSSERT) Pierre, REYMOND Joséphine",null,null,{"$f":"IF(AND(INDIRECT(CONCATENATE(Q$3,ROW()))=\"\",INDIRECT(CONCATENATE(Q$4,ROW()))=\"\"),\"v v\",IF(INDIRECT(CONCATENATE(Q$3,ROW()))=\"\",\"v -\",IF(INDIRECT(CONCATENATE(Q$4,ROW()))=\"\",\"- v\",IF(INDIRECT(CONCATENATE(Q$3,ROW()))=INDIRECT(CONCATENATE(Q$4,ROW())),\"=\",\"<>\"))))","v":"- v"}]
[null,1,null,"0284","?",null,null,null,1868,1872,"Freney","!C0295p","Maison","REYMOND Joseph André",null,null,{"$f":"IF(AND(INDIRECT(CONCATENATE(Q$3,ROW()))=\"\",INDIRECT(CONCATENATE(Q$4,ROW()))=\"\"),\"v v\",IF(INDIRECT(CONCATENATE(Q$3,ROW()))=\"\",\"v -\",IF(INDIRECT(CONCATENATE(Q$4,ROW()))=\"\",\"- v\",IF(INDIRECT(CONCATENATE(Q$3,ROW()))=INDIRECT(CONCATENATE(Q$4,ROW())),\"=\",\"<>\"))))","v":"- v"}]
[null,1,283,"0755","96 B",null,null,null,1872,1882,"Freney","!C0295p","Maison","? Laurent, VIEUX Vincent, … ? Pierre, REYMOND Joséphine",null,null,{"$f":"IF(AND(INDIRECT(CONCATENATE(Q$3,ROW()))=\"\",INDIRECT(CONCATENATE(Q$4,ROW()))=\"\"),\"v v\",IF(INDIRECT(CONCATENATE(Q$3,ROW()))=\"\",\"v -\",IF(INDIRECT(CONCATENATE(Q$4,ROW()))=\"\",\"- v\",IF(INDIRECT(CONCATENATE(Q$3,ROW()))=INDIRECT(CONCATENATE(Q$4,ROW())),\"=\",\"<>\"))))","v":"- v"}]
[null,2,null,null,null,"",60,"",null,1938,"Feney","!C0295","Maison","MOREL Auguste époux PELLORCE",null,null,{"$f":"IF(AND(INDIRECT(CONCATENATE(Q$3,ROW()))=\"\",INDIRECT(CONCATENATE(Q$4,ROW()))=\"\"),\"v v\",IF(INDIRECT(CONCATENATE(Q$3,ROW()))=\"\",\"v -\",IF(INDIRECT(CONCATENATE(Q$4,ROW()))=\"\",\"- v\",IF(INDIRECT(CONCATENATE(Q$3,ROW()))=INDIRECT(CONCATENATE(Q$4,ROW())),\"=\",\"<>\"))))","v":"- v"}]
[null,2,null,null,null,"",60,134,1938,null,"Feney","!C0295","Maison","Département 38",null,null,"- v"]
[null,2,null,null,null,"",33,139,null,1926,"Le Freney","!C0295","Maison","DUSSERT Pierre et REYMOND Joséphine épouse CHALVIN",null,null,"- v"]
[null,2,null,null,null,33,139,15,1926,1937,"Le Freney","!C0295","Maison","DUSSERT Pierre Laurent fils de Pierre",null,null,"- v"]
[null,2,null,null,null,139,15,"",1937,null,"Le Freney","!C0295","Maison","BLANC Rémy époux DUSSERT",null,null,"- v"]
[null,2,null,null,null,"",39,"",null,1943,"Le Freney","!C0297p","Maison","FLEUR André Emile",null,null,"- v"]
[null,2,null,null,null,"",39,"",1943,1959,"Le Freney","!C0297p","Maison","BERTRAND Louis époux FLEUR",null,null,"- v"]
[null,2,null,null,null,"",39,"",1959,null,"Le Freney","!C0297p","Maison","BERTRAND François, Fernand et Suzanne",null,null,"- v"]
[null,0,null,null,null,null,null,null,null,null,"Freney","!C0300","Maison","FLEUR Jean",null,null,"- v"]
[null,1,null,"0185",173,null,null,null,null,1851,"Freney","!C0300","Maison","FLEUR Jean feu Antoine",null,null,"- v"]
[null,1,185,"0173",529,null,null,null,1851,"1875","Freney","!C0300","Maison","SCIAUD Marie Marguerite",null,null,"- v",null,null,null,null,null,null,null,null,null,null,"1875 (sol en 78)"]
[null,1,"511 ou cn","0724",524,null,null,null,1858,1879,"Freney","!C0300","Maison CN","MARTIN Joseph",null,null,"- v"]
[null,1,"cn","0729","128 B (sol 529)",null,null,null,1858,"1882","Freney","!C0300","Maison","PELLORCE Vincent fils de Jean",null,null,"- v",null,null,null,null,null,null,null,null,null,null,"1882 (sol 1883)"]
[null,1,724,"0529","136B",null,null,null,1879,"1882","Freney","!C0300","Maison","RAMBAUD Emile",null,null,{"$f":"IF(AND(INDIRECT(CONCATENATE(Q$3,ROW()))=\"\",INDIRECT(CONCATENATE(Q$4,ROW()))=\"\"),\"v v\",IF(INDIRECT(CONCATENATE(Q$3,ROW()))=\"\",\"v -\",IF(INDIRECT(CONCATENATE(Q$4,ROW()))=\"\",\"- v\",IF(INDIRECT(CONCATENATE(Q$3,ROW()))=INDIRECT(CONCATENATE(Q$4,ROW())),\"=\",\"<>\"))))","v":"- v"},null,null,null,null,null,null,null,null,null,null,"1882 (sol 1906)"]
[null,1,173,"0529","136B",null,null,null,1875,"1882","Freney","!C0300p","Maison","RAMBAUD Emile",null,null,"- v",null,null,null,null,null,null,null,null,null,null,"1882 (sol 1906)"]
[null,2,null,null,null,"",55,133,null,1923,"Freney","!C0300p","Maison","JOUFFREY Pierre, vve née DUSSERT",null,null,"- v"]
[null,2,null,null,null,55,133,"",1923,1937,"Freney","!C0300p","Maison","ARLOT Auguste vve née GUILLET",null,null,"- v"]
[null,2,null,null,null,55,133,"",1937,1938,"Freney","!C0300p","Maison","RAFFOUX Maximin",null,null,"- v"]
[null,2,null,null,null,55,133,"",1938,null,"Freney","!C0300p","Maison","HOSTACHE Ernest Louis, époux DUSSERT",null,null,"- v"]
[null,0,null,null,null,null,null,null,null,null,"Freney","!C0302","Grange","FLEUR Etienne",null,null,"- v"]
[null,1,null,"0160",null,null,null,null,1843,1869,"Freney","!C0302","Grange","DUPRE Louis fils à Louis",null,null,"- v"]
[null,1,107,"0097",1028,null,null,null,1869,1910,"Freney","!C0302","Grange","DUPRE Maximin et consorts",null,null,"- v"]
[null,1,"37, 44",1028,null,null,null,null,1911,null,"Freney","!C0302","Grange","HUGUE Jean-Pierre, PEYRARD Constant et Jules",null,null,"- v"]
[null,0,null,null,null,null,null,null,null,null,"Freney","!C0303","Maison","RIVOIRE Laurent",null,null,"- v"]
[null,1,null,"0487",740,null,null,null,null,1869,"Freney","!C0303","Maison","RIVOIRE (Laurent) feu (Paul)",null,null,"- v"]
[null,1,487,"0740","démolie (sol 46)",null,null,null,1869,1875,"Freney","!C0303","Maison démolie","GARCIN Jean Baptiste fils de Michel",null,null,"- v"]
[null,0,null,null,null,null,null,null,null,null,"Freney","!C0305","Maison","MICHEL Laurent",null,null,"- v"]
[null,1,null,"0302",null,null,null,null,null,1841,"Freney","!C0305","Maison","MICHEL Laurent, l'Armentier",null,null,"- v"]
[null,1,302,"0581",691,null,null,null,1841,1862,"Freney","!C0305","Maison","ARLLOT Marianne femme Michel",null,null,"- v"]
[null,1,581,"0581",691,null,null,null,1862,1863,"Freney","!C0305p","Maison","ARLLOT Marianne femme Michel",null,null,"- v"]
[null,1,581,"0691",816,null,null,null,1862,1866,"Freney","!C0305p","Maison","DORVILLE André, ARNOL",null,null,"- v"]
[null,1,581,"0691",816,null,null,null,1863,1866,"Freney","!C0305p","Maison","DORVILLE André, ARNOL",null,null,"- v"]
[null,1,691,"0816","?",null,null,null,1866,"1882","Freney","!C0305","Maison","PELLORCE Auguste et Théophile fils d'Alexandre",null,null,"- v",null,null,null,null,"",null,null,null,null,null,"1882 (sol 1902)"]
[null,2,null,null,null,"",54,"",null,1943,"Le Freney","!C0305p","Maison","JOUFFREY Jean Baptiste",null,null,"- v",null,null,null,null,""]
[null,2,null,null,null,"",54,"",1943,1947,"Le Freney","!C0305p","Maison","JOUFFREY Jean Baptiste, vve et hértiers",null,null,"- v",null,null,null,null,""]
[null,2,null,null,null,"",54,"",1947,null,"Le Freney","!C0305p","Maison","JOUFFREY Théophile époux BERARD et consorts",null,null,"- v",null,null,null,null,""]
[null,2,null,null,null,"",82,143,null,1929,"Freney","!C0305","Maison","PELLORCE Théophile fils d'Alexandre",null,null,"- v",null,null,null,null,"",null,null,null,null,"noté sans p"]
[null,2,null,null,null,82,143,"",1929,1931,"Freney","!C0305","Maison","PELLORCE Auguste, tailleur",null,null,"- v",null,null,null,null,""]
[null,2,null,null,null,82,143,"",1931,1943,"Freney","!C0305p","Maison","PELLORCE Auguste, tailleur",null,null,"- v",null,null,null,null,""]
[null,2,null,null,null,82,143,"",1943,1951,"Freney","!C0305p","Maison","PELLORCE Auguste,  vve et héritiers",null,null,"- v",null,null,null,null,""]
[null,2,null,null,null,82,143,"",1951,null,"Freney","!C0305p","Maison","PELLORCE Auguste, les héritiers",null,null,"- v",null,null,null,null,""]
[null,2,null,null,null,143,154,"Dém",1931,1943,"Freney","!C0305p","Maison","REYMOND Emile Joseph Henri",null,null,"- v",null,null,null,null,""]
[null,0,null,null,null,null,null,null,null,null,"Freney","!C0310","Maison","ARGENTIER Hippolyte",null,null,"- v",null,null,null,null,""]
[null,1,null,"0003","route",null,null,null,null,1856,"Freney","!C0310","Sol et cour","ARGENTIER Hippolyte, notaire",null,null,"- v",null,null,null,null,""]
[null,1,null,"0003","283",null,null,null,null,1859,"Freney","!C0310","Maison","ARGENTIER Hippolyte, notaire",null,null,"- v",null,null,null,null,""]
[null,1,3,"0003",283,null,null,null,1856,1859,"Freney","!C0310","Sol et cour","ARGENTIER Hippolyte, notaire",null,null,"- v",null,null,null,null,""]
[null,1,null,"0282","3--",null,null,null,1859,1906,"Freney","!C0310","Maison","REYMOND Joseph André",null,null,"- v",null,null,null,null,""]
[null,1,null,"0284","?",null,null,null,1865,1882,"Freney","!C0310","Maison","REYMOND Joseph André",null,null,"- v",null,null,null,null,""]
[null,2,null,null,null,"",15,"ac",null,1914,"Le Freney","!C0310","Maison","BLANC Rémy époux DUSSERT",null,null,"- v",null,null,null,null,""]
[null,2,null,null,null,"",15,null,1914,null,"Le Freney","!C0310","Maison","BLANC Rémy époux DUSSERT",null,null,"- v",null,null,null,null,""]
[null,2,null,null,null,"",9,"",null,null,"Freney","!C0310p","Maison","BASSET Etienne, instituteur en retraite au Freney",null,null,"- v",null,null,null,null,""]
[null,2,null,null,null,"",9,"",null,null,"Freney","!C0310p","Maison","DUSSERT Casimir vve née BASSET (1935)"]
[null,2,null,null,null,"",102,"",null,1916,"Freney","!C0310p","Maison"," REYMOND Rémy fils de Joseph André gendre DUPRE",null,null,"- v",null,null,null,null,""]
[null,2,null,null,null,"",102,"",null,1943,"Freney","!C0310p","Maison","REYMOND Louis fils de Rémy gendarme en retraite",null,null,"- v",null,null,null,null,""]
[null,2,null,null,null,"",102,"",1943,null,"Freney","!C0310p","Maison","REYMOND Rémy et Emile",null,null,"- v",null,null,null,null,""]
[null,0,null,null,null,null,null,null,null,null,"Freney","!C0312","Chapelle","La Commune",null,null,"- v",null,null,null,null,""]
[null,1,null,"0221","x",null,null,null,null,null,"Freney","!C0312","Chapelle","Freney la commune",null,null,"- v",null,null,null,null,""]
[null,2,null,null,null,"",12,43,null,1920,"La Grange","!D0313","Maison","BLANC Joseph fils de Jean"]
[null,0,null,null,null,null,null,null,null,null,"Freney","!C0318","Maison","GUILLET Pierre",null,null,"- v",null,null,null,null,""]
[null,1,null,"0264",null,null,null,null,null,1839,"Freney","!C0318","Maison","GUILLET (Pierre)",null,null,"- v",null,null,null,null,""]
[null,1,"reste","0265",260,null,null,null,1839,1840,"Freney","!C0318","Maison","GUILLET (Pierre)",null,null,"- v",null,null,null,null,""]
[null,1,null,"0260",null,null,null,null,1839,1841,"Freney","!C0318","Maison","GUILLET Pierre feu Pierre",null,null,"- v",null,null,null,null,""]
[null,1,null,"0266",null,null,null,null,1840,1841,"Freney","!C0318 *","Maison","GUILLET Pierre feu Pierre",null,null,"- v",null,null,null,null,"",null,null,null,null,"noté D, corrigé C"]
[null,1,"260","0269",319,null,null,null,1841,1846,"Freney","!C0318","Maison","GUILLET pa?",null,null,"- v",null,null,null,null,""]
[null,1,260,"0271",538,null,null,null,1841,1847,"Freney","!C0318","Maison","GUILLET Nicolas",null,null,"- v",null,null,null,null,""]
[null,1,195,"0280","?",null,null,null,1873,"1882","Freney","!C0318","Maison","SARRET Claude vve DUPRE Théotiste",null,null,{"$f":"IF(AND(INDIRECT(CONCATENATE(Q$3,ROW()))=\"\",INDIRECT(CONCATENATE(Q$4,ROW()))=\"\"),\"v v\",IF(INDIRECT(CONCATENATE(Q$3,ROW()))=\"\",\"v -\",IF(INDIRECT(CONCATENATE(Q$4,ROW()))=\"\",\"- v\",IF(INDIRECT(CONCATENATE(Q$3,ROW()))=INDIRECT(CONCATENATE(Q$4,ROW())),\"=\",\"<>\"))))","v":"- v"},null,null,null,null,"",null,null,null,null,null,"1882 (sol 1885)"]
[null,1,269,"0319",280,null,null,null,1846,1873,"Freney","!C0318p","Maison","NOYRET François",null,null,"- v",null,null,null,null,""]
[null,1,271,"0538","(628)",null,null,null,1847,"1882","Freney","!C0318p","Maison","SARRET Claude",null,null,"- v",null,null,null,null,"",null,null,null,null,null,"1882 (sol 1885)"]
[null,2,null,null,null,"",89,129,null,1921,"Freney","!C0318p","Maison","RANQUE Rémy",null,null,"- v",null,null,null,null,"",null,null,null,null,null,"1925 1921"]
[null,2,null,null,null,89,129,"",1921,1936,"Freney","!C0318p","Maison","RANQUE Rémy",null,null,"- v",null,null,null,null,""]
[null,2,null,null,null,"",129,"",1936,1937,"Freney","!C0318p","Maison","CREVEAU Henri époux RANQUE",null,null,"- v",null,null,null,null,""]
[null,2,null,null,null,"",129,"",1937,null,"Freney","!C0318p","Maison","RANQUE Rémy , secrétaire de mairie",null,null,"- v",null,null,null,null,""]
[null,2,null,null,null,"",111,138,null,1926,"Le Freney","!C0318p","Maison","SARRET Emile feu Claude",null,null,"- v",null,null,null,null,""]
[null,2,null,null,null,111,138,"",1926,null,"Le Freney","!C0318p","Maison","JOUFFREY Théophile époux BERARD, facteur",null,null,"- v",null,null,null,null,""]
[null,0,null,null,null,null,null,null,null,null,"Freney","!C0321","Maison","FLEUR Paul",null,null,"- v",null,null,null,null,""]
[null,1,null,"0213",61,null,null,null,null,1846,"Freney","!C0321","Maison","FLEUR Paul feu Claude",null,null,"- v",null,null,null,null,""]
[null,1,213,"0061","28B",null,null,null,1846,1882,"Freney","!C0321","Maison","CHABERT Pierre gendre FLEUR",null,null,"- v",null,null,null,null,""]
[null,0,null,null,null,null,null,null,null,null,"Freney","!C0323","Maison","DUPRE Louis",null,null,"- v",null,null,null,null,""]
[null,1,null,"0108","12-",null,null,null,null,1842,"Freney","!C0323","Maison","DUPRE Louis feu Laurent",null,null,"- v",null,null,null,null,""]
[null,1,108,"0126","37B",null,null,null,1842,1882,"Freney","!C0323","Maison","DUPRE Louis fils de Louis",null,null,"- v",null,null,null,null,""]
[null,2,null,null,null,"",102,91,null,1916,"Freney","!C0323","Maison"," REYMOND Rémy fils de Joseph André gendre DUPRE",null,null,{"$f":"IF(AND(INDIRECT(CONCATENATE(Q$3,ROW()))=\"\",INDIRECT(CONCATENATE(Q$4,ROW()))=\"\"),\"v v\",IF(INDIRECT(CONCATENATE(Q$3,ROW()))=\"\",\"v -\",IF(INDIRECT(CONCATENATE(Q$4,ROW()))=\"\",\"- v\",IF(INDIRECT(CONCATENATE(Q$3,ROW()))=INDIRECT(CONCATENATE(Q$4,ROW())),\"=\",\"<>\"))))","v":"- v"},null,null,null,null,""]
[null,2,null,null,null,"",102,91,1916,1943,"Freney","!C0323","Maison","REYMOND Louis fils de Rémy",null,null,"- v",null,null,null,null,""]
[null,2,null,null,null,102,91,"",1943,1958,"Freney","!C0323","Maison et atelier","BERARD Jean  Pierre Gratien",null,null,"- v",null,null,null,null,""]
[null,2,null,null,null,"",91,"",1958,null,"Freney","!C0323","Maison et atelier","BERARD Jean  Pierre Gratien et ARNOL Emile Léon époux BERARD",null,null,"- v",null,null,null,null,""]
[null,0,null,null,null,null,null,null,null,null,"Freney","!C0324","Maison","ARLOT Joseph",null,null,"- v",null,null,null,null,""]
[null,1,null,"0005",549,null,null,null,null,1860,"Freney","!C0324","Maison","ARLOT Joseph",null,null,"- v",null,null,null,null,""]
[null,1,"cn","0549","incendiée",null,null,null,1837,1843,"Freney","!C0324","Maison incendiée","ARLOT Jean-Baptiste",null,null,"- v",null,null,null,null,""]
[null,1,5,"0549",46,null,null,null,1840,1871,"Freney","!C0324","Maison","ARLOT Jean-Baptiste",null,null,"- v",null,null,null,null,""]
[null,0,null,null,null,null,null,null,null,null,"Freney","!C0325","Maison","FLEUR Paul",null,null,"- v",null,null,null,null,""]
[null,1,null,"0213",61,null,null,null,null,1846,"Freney","!C0325","Maison","FLEUR Paul feu Claude",null,null,"- v",null,null,null,null,""]
[null,1,"(213)","0061","28B",null,null,null,1846,1882,"Freney","!C0325","Maison","CHABERT Pierre gendre FLEUR",null,null,"- v",null,null,null,null,""]
[null,2,null,null,null,"",23,54,null,1922,"Le Freney","!C0325","Maison","CHABERT Pierre gendre FLEUR",null,null,"- v",null,null,null,null,""]
[null,2,null,null,null,23,54,"Démol",1922,1943,"Le Freney","!C0325","Maison","JOUFFREY Jean Baptiste",null,null,"- v",null,null,null,null,""]
[null,0,null,null,null,null,null,null,null,null,"Freney","!C0326","Maison","BRUTIN Séraphin",null,null,"- v",null,null,null,null,""]
[null,0,null,null,null,null,null,null,null,null,"Freney","!C0326b","Maison","FLEUR Joseph",null,null,"- v",null,null,null,null,""]
[null,1,null,"0184","(467)",null,null,null,null,1840,"Freney","!C0326","Maison","FLEUR Joseph feu Claude",null,null,"- v",null,null,null,null,""]
[null,1,484,"0467","158B",null,null,null,1840,1882,"Freney","!C0326","Maison","REYMOND François, FLEUR André, PIVOT Louis Barthélémy",null,null,"- v",null,null,null,null,""]
[null,1,"cn","0467","158B",null,null,null,1842,1882,"Freney","!C0326","Maison","REYMOND François, FLEUR André, PIVOT Louis Barthélémy",null,null,"- v",null,null,null,null,""]
[null,1,"cn","0059",784,null,null,null,1866,1871,"Freney","!C0326","Maison","BRUTIN Séraphin feu Joseph",null,null,"- v",null,null,null,null,""]
[null,1,53,"0784","?",null,null,null,1871,1882,"Freney","!C0326","Maison","BRUTIN Auguste feu Séraphin",null,null,"- v",null,null,null,null,""]
[null,1,58,"0784","11-",null,null,null,1871,1882,"Freney","!C0326","Maison","BRUTIN Auguste feu Séraphin",null,null,"- v",null,null,null,null,""]
[null,1,409,"0080",null,null,null,null,1914,null,"Freney","!C0326","Sol et cour","BRUTIN Auguste feu Séraphin",null,null,"- v",null,null,null,null,""]
[null,2,null,null,null,"",85,36,null,1924,"Freney","!C0326","Maison","PIVOT Louis Barthélémy",null,null,"- v",null,null,null,null,""]
[null,2,null,null,null,85,36,140,1924,1926,"Freney","!C0326","Maison","DUSSERT Joseph Séraphin gendre RANQUE",null,null,"- v",null,null,null,null,""]
[null,2,null,null,null,36,140,"",1926,1956,"Freney","!C0326","Maison","DUSSERT Marius Joseph Eugène",null,null,"- v",null,null,null,null,""]
[null,2,null,null,null,36,140,"",1956,null,"Freney","!C0326","Maison","CREVEAU Gaston époux RANQUE",null,null,"- v",null,null,null,null,""]
[null,2,null,null,null,"",17,"162, 163",null,1939,"Le Freney","!C0326","Maison","BRUTIN Auguste feu Séraphin",null,null,"- v",null,null,null,null,""]
[null,2,null,null,null,17,162,"",1939,null,"Le Freney","!C0326p","Maison","BRUTIN Alcide Pierre Auguste",null,null,"- v",null,null,null,null,""]
[null,2,null,null,null,null,163,null,1939,1943,"Le Freney","!C0326p","Maison","HEST Aristide Jean Ernest, époux BRUTIN",null,null,"- v",null,null,null,null,""]
[null,2,null,null,null,null,163,90,1943,1950,"Le Freney","!C0326p","Maison","HEST Aristide Jean Ernest, époux BRUTIN, vve et héritiers",null,null,"- v",null,null,null,null,""]
[null,2,null,null,null,163,90,"",1950,1951,"Le Freney","!C0326p","Maison","HEST Ida",null,null,"- v",null,null,null,null,""]
[null,2,null,null,null,"",90,"",1951,null,"Le Freney","!C0326p","Maison","VIEUX Maurice époux HEST",null,null,"- v",null,null,null,null,""]
[null,0,null,null,null,null,null,null,null,null,"Freney","!C0334","Maison","RIVOIRE Paul",null,null,"- v",null,null,null,null,""]
[null,1,null,"0496",null,null,null,null,null,1841,"Freney","!C0334","Maison","RIVOIRE ?",null,null,"- v",null,null,null,null,""]
[null,1,null,"0496",null,null,null,null,1841,1851,"Freney","!C0334","Maison","RIVOIRE ?",null,null,"- v",null,null,null,null,""]
[null,1,496,"0184",null,null,null,null,1841,"1859","Freney","!C0334","Maison","FLEUR Joseph feu Claude",null,null,"- v",null,null,null,null,"",null,null,null,null,null,"1859 (sol en 71)"]
[null,1,496,"0184","?",null,null,null,1851,"1859","Freney","!C0334","Maison","FLEUR Joseph feu Claude",null,null,"- v",null,null,null,null,"",null,null,null,null,null,"1859 (sol en 71)"]
[null,1,184,"0184",null,null,null,null,1859,1871,"Freney","!C0334",null,"FLEUR Joseph feu Claude",null,null,"- v",null,null,null,null,""]
[null,1,184,"0732","68 B",null,null,null,1871,1903,"Freney","!C0334","Maison","GARCIN Jean Baptiste fils de Michel",null,null,"- v",null,null,null,null,""]
[null,2,null,null,null,"",91,"",null,1934,"Freney","!C0334","Maison","REBEU Ambroise, instituteur",null,null,"- v",null,null,null,null,""]
[null,2,null,null,null,"",91,"",1934,1958,"Freney","!C0334","Maison","BERARD Jean  Pierre Gratien",null,null,"- v",null,null,null,null,""]
[null,2,null,null,null,"",91,"",null,null,"Freney","!C0334","Maison","BERARD Jean  Pierre Gratien et ARNOL Emile Léon époux BERARD",null,null,"- v",null,null,null,null,""]
[null,0,null,null,null,null,null,null,null,null,"Freney","!C0335","Maison","FLEUR Marie",null,null,"- v",null,null,null,null,""]
[null,1,null,"0198",397,null,null,null,null,1838,"Freney","!C0335","Maison","FLEUR Marie Rose vve PELLORCE",null,null,"- v",null,null,null,null,""]
[null,1,198,"0397",689,null,null,null,"1838",1773,"Freney","!C0335","Maison","PELLORCE Paul feu Pierre",null,null,"- v",null,null,null,null,""]
[null,1,null,"0698",null,null,null,null,1873,1877,"Freney","!C0335","Maison","ROUX François",null,null,"- v",null,null,null,null,""]
[null,1,689,"0410","814, 851",null,null,null,1877,1878,"Freney","!C0335p","Maison","PELLORCE Paul, maréchal",null,null,"- v",null,null,null,null,""]
[null,1,null,"0698",null,null,null,null,1877,"1882","Freney","!C0335p","Maison","ROUX François",null,null,"- v",null,null,null,null,"",null,null,null,null,null,"1882 (sol 1894)"]
[null,1,410,"0846","83 B",null,null,null,1878,1882,"Freney","!C0335p","Maison","JOSSERAND Pierre, Epoux de PELLORCE Marie ",null,null,"- v",null,null,null,null,""]
[null,1,410,"0851","117 B (sol 846)",null,null,null,1878,"1882","Freney","!C0335p","Maison","PELLORCE Hilaire feu Paul",null,null,"- v",null,null,null,null,"",null,null,null,null,null,"1882 (sol 1890)"]
[null,2,null,null,null,"",53,58,null,1917,"Le Freney","!C0335p","Maison","JOSSERAND Pierre époux PELLORCE Marie",null,null,"- v",null,null,null,null,""]
[null,2,null,null,null,"",53,58,1917,1944,"Le Freney","!C0335p","Maison","JOSSERAND Hilaire Auguste",null,null,"- v",null,null,null,null,""]
[null,2,null,null,null,"",53,58,1944,1958,"Le Freney","!C0335p","Maison","JOSSERAND Pierre Hilaire Antoine époux FAY",null,null,"- v",null,null,null,null,""]
[null,2,null,null,null,"",53,58,1958,null,"Le Freney","!C0335p","Maison","JOSSERAND Robert Eugène époux MILLIAT",null,null,"- v",null,null,null,null,""]
[null,2,null,null,null,"AC1957",53,"",1958,null,"Le Freney","!C0335","Maison","JOSSERAND Robert Eugène époux MILLIAT",null,null,"- v",null,null,null,null,""]
[null,2,null,null,null,"ReConstruct 1957",195,"",1958,null,"Freney","!C0335p","Maison","RANQUE Marcel Rémy Auguste, agent de police",null,null,"- v",null,null,null,null,null,null,null,null,null,"écrit B335 Freney, corrigé le 16/11/24"]
[null,0,null,null,null,null,null,null,null,null,"Freney","!C0337","Maison","FLEUR Paul",null,null,"- v",null,null,null,null,""]
[null,1,null,"0195","8B",null,null,null,null,1882,"Freney","!C0337","Maison","ARNOL Rémy",null,null,"- v",null,null,null,null,""]
[null,2,null,null,null,"",8,124,null,1921,"Freney","!C0337","Maison","ARNOL Rémy",null,null,"- v",null,null,null,null,""]
[null,2,null,null,null,8,124,"",1921,null,"Freney","!C0337","Maison","ARNOL Léon Edouard époux DUSSERT",null,null,"- v",null,null,null,null,""]
[null,0,null,null,null,null,null,null,null,null,"Freney","!C0338","Maison","MICHEL Paul",null,null,"- v",null,null,null,null,""]
[null,1,"?","0308",null,null,null,null,null,1880,"Freney","!C0338","Maison","MICHEL Paul feu Mathieu",null,null,"- v",null,null,null,null,""]
[null,1,308,"0035","131B",null,null,null,1880,1882,"Freney","!C0338p","Maison","PELLORCE Pierre notaire",null,null,"- v",null,null,null,null,""]
[null,1,308,"0644","9(6)3",null,null,null,1880,"1882","Freney","!C0338p","Maison","MICHEL Paul fils de Paul",null,null,"- v",null,null,null,null,"",null,null,null,null,null,"1882 (sol 1893)"]
[null,2,null,null,null,"",80,"",null,1923,"Freney","!C0338p","Maison","PELLORCE Pierre, notaire",null,null,"- v",null,null,null,null,""]
[null,2,null,null,null,"",80,"140, 155",1923,1932,"Freney","!C0338p","Maison","ODDOUX Rémy, vve née FLEUR",null,null,"- v",null,null,null,null,""]
[null,2,null,null,null,80,140,null,1932,1956,"Freney","!C0338p","Maison","DUSSERT Marius Joseph Eugène",null,null,{"$f":"IF(AND(INDIRECT(CONCATENATE(Q$3,ROW()))=\"\",INDIRECT(CONCATENATE(Q$4,ROW()))=\"\"),\"v v\",IF(INDIRECT(CONCATENATE(Q$3,ROW()))=\"\",\"v -\",IF(INDIRECT(CONCATENATE(Q$4,ROW()))=\"\",\"- v\",IF(INDIRECT(CONCATENATE(Q$3,ROW()))=INDIRECT(CONCATENATE(Q$4,ROW())),\"=\",\"<>\"))))","v":"- v"},null,null,null,null,""]
[null,2,null,null,null,null,140,176,1956,1959,"Freney","!C0338p","Maison","CREVEAU Gaston époux RANQUE",null,null,{"$f":"IF(AND(INDIRECT(CONCATENATE(Q$3,ROW()))=\"\",INDIRECT(CONCATENATE(Q$4,ROW()))=\"\"),\"v v\",IF(INDIRECT(CONCATENATE(Q$3,ROW()))=\"\",\"v -\",IF(INDIRECT(CONCATENATE(Q$4,ROW()))=\"\",\"- v\",IF(INDIRECT(CONCATENATE(Q$3,ROW()))=INDIRECT(CONCATENATE(Q$4,ROW())),\"=\",\"<>\"))))","v":"- v"},null,null,null,null,""]
[null,2,null,null,null,"80, 176",155,176,1932,null,"Freney","!C0338","Partie de Maison","ANDRIEUX Alfred époux ODDOUX, garde forestier",null,null,"- v",null,null,null,null,"",null,null,null,null,"Noté partie de maison avec pas de p à !C0338"]
[null,2,null,null,null,"cn 1928",168,176,1944,1956,"Freney","!C0338","Maison","ODDOUX Rémy, tailleur",null,null,"- v",null,null,null,null,"",null,null,null,null,null,"1953 1956"]
[null,2,null,null,null,"155, 140, 168",176,"",1951,null,"Freney","!C0338p","Maison","ODDOUX Rémy Pierre, tailleur d'habits",null,null,"- v",null,null,null,null,""]
[null,1,"cn","0123","811, 79",null,null,null,1857,1880,"Freney","!C0340","Maison","DEGOUL Pierre",null,null,"- v",null,null,null,null,""]
[null,1,"cn","0801","801 agrandie",null,null,null,1866,1873,"Freney","!C0340","Maison agrandie","REY Jacques Alexis, maréchal Ferrant",null,null,"- v",null,null,null,null,""]
[null,1,801,"0801","140 B",null,null,null,1873,1882,"Freney","!C0340","Maison","REY Jacques Alexis, maréchal Ferrant",null,null,"- v",null,null,null,null,""]
[null,1,123,"0079","33B",null,null,null,1880,1882,"Freney","!C0340p","Maison","DEGOUL Eugène",null,null,"- v",null,null,null,null,""]
[null,1,123,"0082","30B",null,null,null,1880,1882,"Freney","!C0340p","Maison","DEGOUL Eugénie, REYMOND Joseph vve née PELLORCE",null,null,"- v",null,null,null,null,""]
[null,1,123,"0811","19B",null,null,null,1880,1882,"Freney","!C0340p","Maison","BRUTIN Hippolyte vve DEGOUL",null,null,"- v",null,null,null,null,""]
[null,2,null,null,null,"CN 1937",164,"",1940,null,"Freney","!C0340","Garage","REYMOND Maximin fils, époux OUGIER",null,null,{"$f":"IF(AND(INDIRECT(CONCATENATE(Q$3,ROW()))=\"\",INDIRECT(CONCATENATE(Q$4,ROW()))=\"\"),\"v v\",IF(INDIRECT(CONCATENATE(Q$3,ROW()))=\"\",\"v -\",IF(INDIRECT(CONCATENATE(Q$4,ROW()))=\"\",\"- v\",IF(INDIRECT(CONCATENATE(Q$3,ROW()))=INDIRECT(CONCATENATE(Q$4,ROW())),\"=\",\"<>\"))))","v":"- v"},null,null,null,null,""]
[null,2,null,null,null,"",3,"RB",null,1943,"Freney","!C0340","Magasin de vins","ARLOT Louis fils de Louis, puis vve et héritiers (1943)",null,null,"- v",null,null,null,null,""]
[null,2,null,null,null,"RB",3,"",1943,null,"Freney","!C0340","Maison et garage"]
[null,2,null,null,null,"",84,"",1926,1943,"Freney","!C0340p","Maison","PICHOUD François cordonnier",null,null,"- v",null,null,null,null,""]
[null,2,null,null,null,"",84,"",1943,1944,"Freney","!C0340p","Maison","PICHOUD François  vve et héritiers",null,null,"- v",null,null,null,null,""]
[null,2,null,null,null,"",84,"",1944,1953,"Freney","!C0340p","Maison","ARNOL Jean Marius veuve née PICHOUD",null,null,"- v",null,null,null,null,""]
[null,2,null,null,null,"",84,"",1953,null,"Freney","!C0340p","Maison","ODDOUX Marcel Casimir époux ARNOL",null,null,"- v",null,null,null,null,""]
[null,2,null,null,null,"",2,127,null,1938,"Freney","!C0345","Maison","ARLOT La femme vve née DODE Marie Philomène",null,null,"- v",null,null,null,null,""]
[null,1,"cn","0785","16 B",null,null,null,1871,1882,"Freney","!C0346","Maison","BLANC Pierre Louis",null,null,"- v",null,null,null,null,""]
[null,2,null,null,null,"",14,"",null,1912,"Freney","!C0346","Maison","BLANC Pierre Louis feu Pierre, chez NOURISSAT"]
[null,2,null,null,null,"",14,"",1912,1924,"Freney","!C0346","Maison","NOURISSAT Joseph"]
[null,2,null,null,null,"",14,"",1924,null,"Freney","!C0346","Maison","RANQUE Marcel Félicien"]
[null,0,null,null,null,null,null,null,null,null,"Freney","!C0347","Maison","FLEUR Mathieu",null,null,"- v",null,null,null,null,""]
[null,1,null,"0192","3-5",null,null,null,null,1837,"Freney","!C0347","Maison","(DUSSERT) Pierre FLEUR Mathieu",null,null,"- v",null,null,null,null,""]
[null,1,192,"0385",785,null,null,null,1837,1866,"Freney","!C0347","Maison","PELLORCE Alexandre",null,null,"- v",null,null,null,null,""]
[null,1,385,"0785","16 B (sol 749)",null,null,null,1866,"1882","Freney","!C0347","Maison","BLANC Pierre Louis",null,null,"- v",null,null,null,null,"",null,null,null,null,null,"1882 (sol 1912)"]
[null,2,null,null,null,"",14,"",null,1912,"Le Feney","!C0347","Maison","BLANC Pierre Louis feu Pierre, chez NOURISSAT",null,null,"- v",null,null,null,null,""]
[null,2,null,null,null,"",14,"",1912,1924,"Le Feney","!C0347","Maison","NOURISSAT Joseph",null,null,"- v",null,null,null,null,""]
[null,2,null,null,null,"",14,"Démol",1924,1943,"Le Feney","!C0347","Maison","RANQUE Marcel Félicien",null,null,"- v",null,null,null,null,""]
[null,0,null,null,null,null,null,null,null,null,"Freney","!C0349","Maison","PELLORCE Etienne",null,null,"- v",null,null,null,null,""]
[null,1,482,"0347",null,null,null,null,null,1835,"Freney","!C0349","Mais rurale","PELLORCE Etienne",null,null,"- v",null,null,null,null,""]
[null,1,347,"0482",431,null,null,null,1835,1877,"Freney","!C0349","Mais rurale","RIVOIRE Laurent fils à Laurent",null,null,"- v",null,null,null,null,""]
[null,1,"cn","0482",331,null,null,null,1858,1877,"Freney","!C0349","Maison","RIVOIRE Laurent fils à Laurent",null,null,"- v",null,null,null,null,""]
[null,1,482,"0431",499,null,null,null,1877,1879,"Freney","!C0349","Mais rurale","RIVOIRE Jules, DUMAS Jean Jacques",null,null,"- v",null,null,null,null,""]
[null,1,482,"0331",499,null,null,null,1877,1879,"Freney","!C0349p","Maison","DUMAS Jean, ep RIVOIRE Pauline",null,null,"- v",null,null,null,null,""]
[null,1,482,"0431",499,null,null,null,1877,1879,"Freney","!C0349p","Maison","RIVOIRE Jules, DUMAS Jean Jacques",null,null,"- v",null,null,null,null,""]
[null,1,331,"0499","17B",null,null,null,1879,1882,"Freney","!C0349p","Maison","BOTTELIER PASQUIN Simon",null,null,"- v",null,null,null,null,""]
[null,1,431,"0499","17B",null,null,null,1879,1882,"Freney","!C0349p","Maison","BOTTELIER PASQUIN Simon",null,null,"- v",null,null,null,null,""]
[null,1,431,"0499",433,null,null,null,1879,1890,"Freney","!C0349p","Mais rurale","BOTTELIER PASQUIN Simon",null,null,"- v",null,null,null,null,""]
[null,1,499,"0433",1023,null,null,null,1890,1899,"Freney","!C0349","Mais rurale","RIVOIRE Maximin, DUMAS Jean Jacques, la vve RIVOIRE Marie",null,null,"- v",null,null,null,null,""]
[null,1,433,1023,917,null,null,null,1899,1909,"Freney","!C0349p","Mais rurale","VILLARD André à Cuculet",null,null,"- v",null,null,null,null,""]
[null,1,280,"0917",null,null,null,null,1909,null,"Freney","!C0349p","Mais rurale","SARRET Claude feu Claude, SARRET Emile feu Claude",null,null,"- v",null,null,null,null,""]
[null,2,null,null,null,"",111,"",null,1929,"Le Freney","!C0349","Maison","SARRET Emile feu Claude",null,null,"- v",null,null,null,null,""]
[null,2,null,null,null,"",111,"",1929,1940,"Le Freney","!C0349","Maison","PELLORCE Mémorin",null,null,"- v",null,null,null,null,""]
[null,2,null,null,null,"",111,"",1940,1947,"Le Freney","!C0349","Maison","PELLORCE Mémorin, vve née HOSTACHE",null,null,"- v",null,null,null,null,""]
[null,2,null,null,null,"",111,"",1947,1955,"Le Freney","!C0349","Maison","DEMADE PELLORCE Jacques par Mme PELLORCE Mémorin",null,null,"- v",null,null,null,null,""]
[null,2,null,null,null,"",111,170,1955,1956,"Le Freney","!C0349","Maison","DEMADE PELLORCE Jacques",null,null,"- v",null,null,null,null,""]
[null,2,null,null,null,111,170,"AC en 1957",1956,null,"Freney","!C0349","Maison","OUGIER Raymond, époux DUFAYARD",null,null,"- v"]
[null,2,null,null,null,"",96,"",1944,1950,"Bas Freney","!C0352","Maison","REYMOND Alphée époux CUYNAT, vve et héritiers",null,null,"- v",null,null,null,null,""]
[null,2,null,null,null,"",96,"",1950,null,"Bas Freney","!C0352","Maison","FOURRAT Romain épouse REYMOND",null,null,"- v",null,null,null,null,""]
[null,0,null,null,null,null,null,null,null,null,"Freney","!C0353","Maison","RONNA Joseph",null,null,"- v",null,null,null,null,""]
[null,1,null,"0499",41,null,null,null,null,1841,"Freney","!C0353","Mais rurale","RENNA Jacques",null,null,"- v",null,null,null,null,""]
[null,1,null,"0123","811, 79, 22",null,null,null,1841,1857,"Freney","!C0353","Mais rurale","DEGOUL Pierre",null,null,"- v",null,null,null,null,""]
[null,1,123,"0079",778,null,null,null,1880,1883,"Freney","!C0353p","Sol","DEGOUL Eugène",null,null,"- v",null,null,null,null,""]
[null,1,123,"0082","77(2)",null,null,null,1880,1883,"Freney","!C0353p","Mais rurale","DEGOUL Eugénie, REYMOND Joseph vve née PELLORCE",null,null,"- v",null,null,null,null,""]
[null,1,123,"0811",778,null,null,null,1880,1883,"Freney","!C0353p","Mais rurale","BRUTIN Hippolyte vve DEGOUL",null,null,"- v",null,null,null,null,""]
[null,1,82,"0778",742,null,null,null,1883,1893,"Freney","!C0353p","Bât rural","DEGOUL Adolphe",null,null,"- v",null,null,null,null,""]
[null,1,811,"0778",742,null,null,null,1883,1893,"Freney","!C0353p","Bât rural","DEGOUL Adolphe",null,null,"- v",null,null,null,null,""]
[null,1,778,"0743",null,null,null,null,1893,null,"Freney","!C0353p","Bât rural","REYMOND Rémy feu Joseph",null,null,"- v",null,null,null,null,""]
[null,1,"cn","0524","(682)",null,null,null,1850,1859,"Freney","!C0355p","Maison","VEYRAT (Paul)",null,null,"- v",null,null,null,null,""]
[null,1,524,"0682","59(B)",null,null,null,1859,1882,"Freney","!C0355","Maison","FLEUR Claude fils de Paul",null,null,"- v",null,null,null,null,""]
[null,1,"cn","0682","59B",null,null,null,1866,1882,"Freney","!C0355","Remise et magasin","FLEUR Claude fils de Paul",null,null,"- v",null,null,null,null,""]
[null,2,null,null,null,"",23,null,null,1922,"Le Freney","!C0355","Maison et magasin","CHABERT Pierre gendre FLEUR",null,null,"- v",null,null,null,null,""]
[null,2,null,null,null,"",23,"RB",1922,1943,"Le Freney","!C0355","Maison et magasin","TRAMOY de l'AUBEPIN",null,null,"- v",null,null,null,null,""]
[null,2,null,null,null,"RB",23,"",1943,null,"Le Freney","!C0355","Maison et magasin","TRAMOY de l'AUBEPIN",null,null,"- v",null,null,null,null,""]
[null,1,"nc","0682","59 B",null,null,null,1859,1882,"Freney","!C0356","Maison CN","FLEUR Claude fils de Paul",null,null,"- v",null,null,null,null,""]
[null,2,null,null,null,"",23,null,null,1924,"Le Freney","!C0356","Maison et remise","CHABERT Pierre gendre FLEUR",null,null,"- v",null,null,null,null,""]
[null,2,null,null,null,"",23,null,1924,1943,"Le Freney","!C0356","Maison et remise","TRAMOY de l'AUBEPIN",null,null,"- v",null,null,null,null,""]
[null,2,null,null,null,"",23,"RB",1943,null,"Le Freney","!C0356","Maison et remise","TRAMOY de l'AUBEPIN",null,null,"- v",null,null,null,null,""]
[null,2,null,null,null,"",112,127,null,1921,"Freney","!C0357","Maison","SALLE Jacques, cabaretier",null,null,"- v",null,null,null,null,""]
[null,2,null,null,null,112,127,"dém part en 1921, AC en 1924",1921,null,"Freney","!C0357","Maison","PICHOUD François, époux RIVOIRE ",null,null,"- v",null,null,null,null,""]
[null,0,null,null,null,null,null,null,null,null,"Freney","!C0358","Maison","VEYRAT Pierre",null,null,"- v",null,null,null,null,""]
[null,1,"cn","0524",null,null,null,null,1844,1857,"Freney","!C0358","Maison","VEYRAT (Paul)",null,null,"- v",null,null,null,null,""]
[null,1,524,"0524",674,null,null,null,1857,1860,"Freney","!C0358","Maison","VEYRAT (Paul)",null,null,"- v",null,null,null,null,""]
[null,1,524,"0714","166 B (sol 714)",null,null,null,1857,1882,"Freney","!C0358p","Maison","VEYRAT Pierre fils de Paul, maréchal ferrant",null,null,"- v",null,null,null,null,""]
[null,1,524,"0696",682,null,null,null,1860,1866,"Freney","!C0358p","Maison","PELLORCE Pierre fils de Jean-Aimé",null,null,"- v",null,null,null,null,""]
[null,1,674,"0682","59-",null,null,null,1866,"1882","Freney","!C0358p","Maison","FLEUR Claude fils de Paul",null,null,"- v",null,null,null,null,"",null,null,null,null,null,"1882 (sol 1883)"]
[null,1,"cn","0819","153 B",null,null,null,1868,1882,"Freney","!C0358","Maison","RIVOIRE Hippolyte fils de Joseph",null,null,"- v",null,null,null,null,""]
[null,2,null,null,null,"",67,146,null,1930,"Freney","!C0358","Maison","OUGIER Jacques gendre REYMOND",null,null,"- v",null,null,null,null,""]
[null,2,null,null,null,"",67,148,null,1930,"Freney","!C0358p","Maison","OUGIER Jacques gendre REYMOND",null,null,"- v",null,null,null,null,""]
[null,2,null,null,null,"",105,"",null,1943,"Freney","!C0358p","Maison four","RIVOIRE Casimir, aubergiste",null,null,"- v",null,null,null,null,""]
[null,2,null,null,null,"",105,127,1943,1947,"Freney","!C0358p","Maison four","RIVOIRE Casimir, aubergiste, vve",null,null,"- v",null,null,null,null,""]
[null,2,null,null,null,67,146,172,1930,1947,"Freney","!C0358p","Maison","OUGIER Théophile gendre CHARBONNEL",null,null,"- v",null,null,null,null,""]
[null,2,null,null,null,67,148,164,1930,1954,"Le Freney","!C0358p","Maison","OUGIER Pierre époux REY, boulanger",null,null,"- v",null,null,null,null,""]
[null,2,null,null,null,105,127,"",1947,null,"Freney","!C0358","Maison et four","PICHOUD François, époux RIVOIRE ",null,null,"- v",null,null,null,null,"",null,null,null,null,"Pas de p à !C0358"]
[null,2,null,null,null,146,172,"",1947,null,"Freney","!C0358","Maison","OUGIER Georges, mercier ",null,null,"- v",null,null,null,null,""]
[null,2,null,null,null,148,164,"",1954,null,"Freney","!C0358p","Maison","REYMOND Maximin fils, époux OUGIER",null,null,"- v",null,null,null,null,""]
[null,0,null,null,null,null,null,null,null,null,"Freney","!C0359","Maison","REYMOND Jean",null,null,"- v",null,null,null,null,""]
[null,1,null,"0448",null,null,null,null,null,1838,"Freney","!C0359","Maison","REYMOND Jean",null,null,"- v",null,null,null,null,""]
[null,1,448,"0123","démolie",null,null,null,1838,"1844","Freney","!C0359","Maison démolie","DEGOUL Pierre",null,null,"- v",null,null,null,null,"",null,null,null,null,null,"1844 (sol en 1880)"]
[null,1,"Démolition, reconstruction","0123",null,null,null,null,1844,1880,"Freney","!C0359","Maison démolie","DEGOUL Pierre",null,null,"- v",null,null,null,null,""]
[null,1,123,"0123","agrandie",null,null,null,1857,1861,"Freney","!C0359","Maison agrandie","DEGOUL Pierre",null,null,"- v",null,null,null,null,""]
[null,1,283,"0123",79,null,null,null,1861,1880,"Freney","!C0359","Maison","DEGOUL Pierre",null,null,{"$f":"IF(AND(INDIRECT(CONCATENATE(Q$3,ROW()))=\"\",INDIRECT(CONCATENATE(Q$4,ROW()))=\"\"),\"v v\",IF(INDIRECT(CONCATENATE(Q$3,ROW()))=\"\",\"v -\",IF(INDIRECT(CONCATENATE(Q$4,ROW()))=\"\",\"- v\",IF(INDIRECT(CONCATENATE(Q$3,ROW()))=INDIRECT(CONCATENATE(Q$4,ROW())),\"=\",\"<>\"))))","v":"- v"},null,null,null,null,""]
[null,1,123,"0079","33B",null,null,null,1880,1882,"Freney","!C0359p","Maison","DEGOUL Eugène",null,null,"- v",null,null,null,null,""]
[null,1,123,"0082",303,null,null,null,1880,1882,"Freney","!C0359p","Maison","DEGOUL Eugénie, REYMOND Joseph vve née PELLORCE",null,null,"- v",null,null,null,null,""]
[null,1,123,"0811","19 B",null,null,null,1880,1882,"Freney","!C0359p","Maison","BRUTIN Hippolyte vve DEGOUL",null,null,"- v",null,null,null,null,""]
[null,1,123,"0092",778,null,null,null,1880,1883,"Le Freney","!C0359","Sol et cour","DEGOUL Pierre",null,null,"- v",null,null,null,null,""]
[null,2,null,null,null,"",96,164,null,1950,"Freney","!C0359p","Maison","REYMOND Alphée époux CUYNAT, vve et héritiers (1944)",null,null,"- v",null,null,null,null,""]
[null,2,null,null,null,96,164,"",1950,null,"Freney","!C0359","Maison","REYMOND Maximin fils, époux OUGIER",null,null,"- v",null,null,null,null,""]
[null,2,null,null,null,"",3,"RB",null,null,"Freney","!C0360p","Maison","ARLOT Louis fils de Louis",null,null,"- v",null,null,null,null,""]
[null,2,null,null,null,"RB",3,"",1943,null,"Freney","!C0360p","Maison et garage","vve et héritiers"]
[null,2,null,null,null,"",3,"RB",null,1943,"Freney","!C0361","Maison","ARLOT Louis fils de Louis, puis vve et héritiers (1943)",null,null,"- v",null,null,null,null,""]
[null,2,null,null,null,"RB",3,"",1943,null,"Freney","!C0361","Maison et garage"]
[null,2,null,null,null,"",146,"170, 171",1936,1947,"Freney","!C0361p *","Maison","OUGIER Théophile gendre CHARBONNEL",null,null,"- v",null,null,null,null,null,null,null,null,null,"Noté Freney, corrigé, non, le 16/11/24 c'est plutôt la section qui est fausse, passer de B en C"]
[null,2,null,null,null,146,170,"",1917,null,"Freney","!C0361","Partie de Maison","OUGIER Raymond, époux DUFAYARD",null,null,"- v",null,null,null,null,""]
[null,2,null,null,null,"CN 1936",160,"",1937,null,"Freney","!C0361","Transformateur","Electricité de France avec différentes adresses en 1937, 1941 et 1948",null,null,"- v",null,null,null,null,""]
[null,2,null,null,null,146,171,"",1947,null,"Freney","!C0361","Maison","MASIER Jean époux OGIER",null,null,"- v",null,null,null,null,""]
[null,2,null,null,null,"CN ac",175,"",1949,1952,"Freney","!C0361","Maison partie","OUGIER Josette Renée",null,null,"- v",null,null,null,null,"",null,null,null,null,"!C0361 sans p"]
[null,2,null,null,null,"CN ac",175,"",1952,null,"Freney","!C0361","Maison partie","GRAVIER Auguste époux OGIER",null,null,"- v",null,null,null,null,"",null,null,null,null,"!C0361 sans p"]
[null,0,null,null,null,null,null,null,null,null,"Freney","!C0363","Moulin","GUILLET Pierre",null,null,"- v",null,null,null,null,""]
[null,1,null,"0264",null,null,null,null,null,1839,"Freney","!C0363","Moulin","GUILLET (Pierre)",null,null,"- v",null,null,null,null,""]
[null,1,264,"0479","démolie",null,null,null,1839,"1844","Freney","!C0363","Maison démolie","REYMOND André",null,null,"- v",null,null,null,null,"",null,null,null,null,null,"1844 (sol 1849)"]
[null,1,"nc","0479",283,null,null,null,1844,1849,"Freney","!C0363","Maison CN","REYMOND André",null,null,"- v",null,null,null,null,""]
[null,1,478,"0283",576,null,null,null,1849,1850,"Freney","!C0363","Moulin","REYMOND Joseph André",null,null,"- v",null,null,null,null,""]
[null,1,"47(8)","0624","57(6)",null,null,null,1849,1850,"Freney","!C0363p","Moulin","REYMOND Hypolite",null,null,"- v",null,null,null,null,""]
[null,1,283,"0576",null,null,null,null,1850,1868,"Freney","!C0363","Moulin","MICHEL Joseph fils de Paul",null,null,"- v",null,null,null,null,""]
[null,1,"62-","0582",null,null,null,null,1850,1878,"Freney","!C0363p","Moulin","MICHEL Joseph",null,null,"- v",null,null,null,null,""]
[null,1,"cn","0582",null,null,null,null,1857,1868,"Freney","!C0363","Maison","MICHEL Joseph",null,null,"- v",null,null,null,null,""]
[null,1,576,"0357",694,null,null,null,1868,1871,"Freney","!C0363","Moulin","PELLORCE Pierre",null,null,"- v",null,null,null,null,""]
[null,1,576,"0357",694,null,null,null,1868,1871,"Freney","!C0363","Maison","PELLORCE Pierre",null,null,"- v",null,null,null,null,""]
[null,1,357,"0694","127 (sol 1018)",null,null,null,1871,"1882","Freney","!C0363","Moulin","PELLORCE Pierre fils de Pierre",null,null,"- v",null,null,null,null,"",null,null,null,null,null,"1882 (sol 1899)"]
[null,1,357,"0694",127,null,null,null,1871,1882,"Freney","!C0363","Maison","PELLORCE Pierre fils de Pierre",null,null,"- v",null,null,null,null,""]
[null,2,null,null,null,"",78,77,null,1912,"Freney","!C0363","Maison","PELLORCE Pierre fils de Pierre",null,null,"- v",null,null,null,null,""]
[null,2,null,null,null,"",77,"",null,1912,"Freney","!C0363","Moulin","PELLORCE Pierre fils de Pierre",null,null,"- v",null,null,null,null,""]
[null,2,null,null,null,"",77,1,1912,1914,"Freney","!C0363","Maison","DURAND Pierre Marie",null,null,"- v",null,null,null,null,""]
[null,2,null,null,null,77,1,"transformé en bureau de poste",1914,1937,"Freney","!C0363","Moulin","Commune du Frenay"]
[null,2,null,null,null,77,1,"RB",1914,1937,"Freney","!C0363","Maison","Commune du Frenay"]
[null,2,null,null,null,"",1,"RB",1937,1943,"Freney","!C0363","Bureau de poste","Commune du Frenay"]
[null,2,null,null,null,"RB",1,"",1943,null,"Freney","!C0363","Maison et bureau de poste","Commune du Frenay"]
[null,0,null,null,null,null,null,null,null,null,"Freney","!C0365","Maison","RAMBAUX Claude",null,null,"- v",null,null,null,null,""]
[null,1,null,"0439",61,null,null,null,null,1846,"Freney","!C0365","Maison en const","RAMBEAUX Etienne",null,null,"- v",null,null,null,null,""]
[null,1,"cn","0439",61,null,null,null,1840,1846,"Freney","!C0365","Maison","RAMBEAUX Etienne",null,null,"- v",null,null,null,null,""]
[null,1,439,"0061",61,null,null,null,1846,1865,"Freney","!C0365","Maison","CHABERT Pierre gendre FLEUR",null,null,"- v",null,null,null,null,""]
[null,1,"(67)","0061","(25)",null,null,null,1865,1880,"Freney","!C0365","Maison","CHABERT Pierre gendre FLEUR",null,null,"- v",null,null,null,null,""]
[null,1,61,"0015",61,null,null,null,1880,1882,"Freney","!C0365","Maison","CHABERT Louis vve née GARNIER Catherine",null,null,"- v",null,null,null,null,""]
[null,1,15,"0068","(885)",null,null,null,1882,1882,"Freney","!C0365","Maison","CHABERT Pierre gendre FLEUR",null,null,"- v",null,null,null,null,""]
[null,2,null,null,null,"",2,127,null,1938,"Freney","!C0365","Maison","ARLOT Marie Philomène vve née DODE"]
[null,2,null,null,null,2,127,"",1938,null,"Freney","!C0365","Maison","PICHOUD François, époux RIVOIRE ",null,null,"- v",null,null,null,null,""]
[null,1,"cn","0069",219,null,null,null,1850,1879,"Freney","!C0366","Maison","CHALVIN Joseph  feu Antoine",null,null,"- v",null,null,null,null,""]
[null,1,69,"0227",283,null,null,null,1859,1866,"Freney","!C0366p","Maison","Freney la commune",null,null,"- v",null,null,null,null,""]
[null,1,"cn","0695",679,null,null,null,1865,1868,"Freney","!C0366","Maison","VEYRAT Louis gendre d'Etienne",null,null,"- v",null,null,null,null,""]
[null,1,null,"0284","6--",null,null,null,1866,1873,"Freney","!C0366","Maison","REYMOND Joseph André",null,null,"- v",null,null,null,null,""]
[null,1,695,"0677",682,null,null,null,1868,1874,"Freney","!C0366","Maison","BALMAIN Pierre",null,null,"- v",null,null,null,null,""]
[null,1,null,"0284","?",null,null,null,1873,1882,"Freney","!C0366","Maison","REYMOND Joseph André",null,null,"- v",null,null,null,null,""]
[null,1,677,"0682","59-",null,null,null,1874,1882,"Freney","!C0366","Maison","FLEUR Claude fils de Paul",null,null,"- v",null,null,null,null,""]
[null,1,"cn","0063","cb",null,null,null,1879,1882,"Freney","!C0366","Maison CN","ARNAUDET Rémy",null,null,"- v",null,null,null,null,""]
[null,2,null,null,null,"",9,"",null,1914,"Freney","!C0366p","Maison","BASSET Etienne, instituteur en retraite au Freney",null,null,"- v",null,null,null,null,""]
[null,2,null,null,null,"",9,93,1916,1926,"Freney","!C0366p","Maison","BASSET Etienne, instituteur en retraite au Freney"]
[null,2,null,null,null,"",9,"",1914,1935,"Freney","!C0366p","Maison","BASSET Etienne, instituteur en retraite au Freney"]
[null,2,null,null,null,"",9,"",1935,null,"Freney","!C0366p","Maison","DUSSERT Casimir vve née BASSET"]
[null,2,null,null,null,9,8,9,1914,1916,"Freney","!C0366p","Maison","ARNOL Rémy",null,null,"- v",null,null,null,null,""]
[null,2,null,null,null,"",8,128,null,1921,"Freney","!C0366p","Maison","ARNOL Rémy"]
[null,2,null,null,null,"8 et 9",128,"RB en 1943, Dém",1921,1943,"Freney","!C0366p","Maison","PICHOUD Gabriel, époux COLLOMB, aubergiste",null,null,"- v",null,null,null,null,""]
[null,2,null,null,null,9,93,"RB",1916,1943,"Le Freney","!C0366p","Maison","REY Jean Baptiste",null,null,"- v",null,null,null,null,""]
[null,2,null,null,null,"",93,"RB",null,1943,"Le Freney","!C0366","Maison","REY Jean Baptiste",null,null,"- v",null,null,null,null,""]
[null,2,null,null,null,"RB",93,"",1943,null,"Le Freney","!C0366","Maison","VAYR Maurice",null,null,"- v",null,null,null,null,""]
[null,2,null,null,null,"",6,"",null,1928,"Le Freney","!C0366","Maison","ARNAUDET Rémy",null,null,"- v",null,null,null,null,""]
[null,2,null,null,null,"",6,"",1928,1932,"Le Freney","!C0366","Maison","PAILLAS Auguste Alfred"]
[null,2,null,null,null,"",6,"",1932,1960,"Le Freney","!C0366","Maison","GONON Hippolyte, débitant au Chambon"]
[null,2,null,null,null,"",6,"",1960,null,"Le Freney","!C0366","Maison","GONON Auguste,  hotelier au Chambon"]
[null,2,null,null,null,"",66,"",null,1932,"Freney","!C0366","Maison","ODDOUX Rémy, épicier",null,null,"- v",null,null,null,null,""]
[null,2,null,null,null,"",66,"",1932,null,"Freney","!C0366","Maison","ODDOUX Joseph fils de Rémy",null,null,"- v",null,null,null,null,""]
[null,2,null,null,null,"RB",128,"Grange",1943,null,"Freney","!C0366","Maison","PICHOUD Gabriel, époux COLLOMB, aubergiste",null,null,"- v",null,null,null,null,""]
[null,0,null,null,null,null,null,null,null,null,"Freney","!C0367","Maison","PELLORCE Etienne",null,null,"- v",null,null,null,null,""]
[null,1,"rurale","0347",null,null,null,null,null,"1842","Freney","!C0367","Maison","PELLORCE Etienne",null,null,"- v",null,null,null,null,"",null,null,null,null,null,"1842 (sol 1849)"]
[null,1,"?","0348",null,null,null,null,1842,1849,"Freney","!C0367","Maison","PELLORCE Etienne",null,null,"- v",null,null,null,null,""]
[null,1,347,"0348",null,null,null,null,1849,1855,"Freney","!C0367p","Maison","PELLORCE Etienne",null,null,"- v",null,null,null,null,""]
[null,1,347,"0604","incendie",null,null,null,1849,"1859","Freney","!C0367p","Maison incendiée","BALME Pierre",null,null,"- v",null,null,null,null,"",null,null,null,null,null,"1859 (sol 1860)"]
[null,1,347,"0348",null,null,null,null,1855,"1859","Freney","!C0367p","Maison","PELLORCE Etienne",null,null,"- v",null,null,null,null,"",null,null,null,null,null,"1859 (sol 1869)"]
[null,1,347,"0677","incendiée (sol 746)",null,null,null,1855,"1859","Freney","!C0367p","Maison incendiée","BALMAIN Pierre",null,null,"- v",null,null,null,null,"",null,null,null,null,null,"1859 (sol 1860)"]
[null,1,"cn","0165","111B",null,null,null,1880,1882,"Freney","!C0367","Maison","VEYRAT Louis vve PELLORCE Mélanie",null,null,"- v",null,null,null,null,""]
[null,2,null,null,null,"",115,"",null,1942,"Le Freney","!C0367","Maison","VEYRAT Joseph fils de Louis facteur",null,null,"- v",null,null,null,null,""]
[null,2,null,null,null,"",115,"",1942,null,"Le Freney","!C0367","Maison","VEYRAT Albert, facteur",null,null,"- v",null,null,null,null,""]
[null,1,"cn","0549",370,null,null,null,1843,1861,"Freney","!C0370","Maison","ARLOT Jean-Baptiste",null,null,"- v",null,null,null,null,""]
[null,1,549,"0375",763,null,null,null,1861,1869,"Le Freney","!C0370",null,"PELLORCE Vincent fils",null,null,"- v",null,null,null,null,""]
[null,1,370,"0763","2 B",null,null,null,1869,1882,"Freney","!C0370","Maison","Arlot Louis feu Benoit",null,null,"- v",null,null,null,null,""]
[null,2,null,null,null,"",7,"",null,1944,"Le Freney","!C0370","Maison","ARLOT Antoine Adolphe",null,null,"- v",null,null,null,null,""]
[null,2,null,null,null,"",7,"",1944,null,"Le Freney","!C0370","Maison","ARLOT Antoine Adolphe, les héritiers",null,null,"- v",null,null,null,null,""]
[null,0,null,null,null,null,null,null,null,null,"Freney","!C0371","Maison","MICHEL Magdeleine",null,null,{"$f":"IF(AND(INDIRECT(CONCATENATE(Q$3,ROW()))=\"\",INDIRECT(CONCATENATE(Q$4,ROW()))=\"\"),\"v v\",IF(INDIRECT(CONCATENATE(Q$3,ROW()))=\"\",\"v -\",IF(INDIRECT(CONCATENATE(Q$4,ROW()))=\"\",\"- v\",IF(INDIRECT(CONCATENATE(Q$3,ROW()))=INDIRECT(CONCATENATE(Q$4,ROW())),\"=\",\"<>\"))))","v":"- v"},null,null,null,null,""]
[null,1,null,"0304",null,null,null,null,null,1896,"Freney","!C0371","Mais rurale","MICHEL Magdeleine Agathe",null,null,"- v",null,null,null,null,""]
[null,1,"(540)","0304",null,null,null,null,1842,1862,"Freney","!C0371","Maison","MICHEL Magdeleine Agathe",null,null,"- v",null,null,null,null,""]
[null,1,"?","0304",null,null,null,null,1862,1882,"Freney","!C0371","Maison","MICHEL Magdeleine Agathe",null,null,"- v",null,null,null,null,""]
[null,1,804,"0928",null,null,null,null,1896,null,"Freney","!C0371 *","Mais rurale","VEYRAT Joseph fils de Louis",null,null,"- v",null,null,null,null,"",null,null,null,null,"Noté B371, corrigé C371"]
[null,2,null,null,null,"",115,128,null,1942,"Le Freney","!C0371","Maison","VEYRAT Joseph fils de Louis facteur",null,null,"- v",null,null,null,null,""]
[null,2,null,null,null,115,128,"",1942,null,"Freney","!C0371","Maison","PICHOUD Gabriel, époux COLLOMB, aubergiste",null,null,"- v",null,null,null,null,""]
[null,0,null,null,null,null,null,null,null,null,"Freney","!C0372","Maison","ARLOT Joseph",null,null,"- v",null,null,null,null,""]
[null,1,null,"0088","?",null,null,null,null,1907,"Freney","!C0372p","Bât rural","ARLOT Antoinr Adolphe fils de Louis, notaire",null,null,"- v",null,null,null,null,""]
[null,1,"cn","0192","?",null,null,null,1842,1867,"Freney","!C0372","Maison","(DUSSERT) Pierre FLEUR Mathieu",null,null,"- v",null,null,null,null,""]
[null,1,5,"0192","?",null,null,null,1855,1867,"Freney","!C0372","Bât rural","(DUSSERT) Pierre FLEUR Mathieu",null,null,"- v",null,null,null,null,""]
[null,1,192,"0536","bat rur",null,null,null,1867,1872,"Freney","!C0372","Maison","VIANDE Jean",null,null,"- v",null,null,null,null,""]
[null,1,null,"0194",192,null,null,null,1867,1872,"Freney","!C0372p","Bât rural","FLEUR Joséphine",null,null,"- v",null,null,null,null,""]
[null,1,192,"0536",656,null,null,null,1867,1873,"Freney","!C0372p","Bât rural","VIANDE Jean",null,null,"- v",null,null,null,null,""]
[null,1,194,"0656",88,null,null,null,1872,1901,"Freney","!C0372","Bât rural","FLEUR Pierre Auguste feu Mathieu",null,null,"- v",null,null,null,null,""]
[null,1,536,"0656",88,null,null,null,1873,1901,"Freney","!C0372p","Bât rural","FLEUR Pierre Auguste feu Mathieu",null,null,"- v",null,null,null,null,""]
[null,1,null,"0088","?",null,null,null,1901,1907,"Freney","!C0372p","Bât rural","ARLOT Antoinr Adolphe fils de Louis, notaire",null,null,"- v",null,null,null,null,""]
[null,1,"cn","0715","rural en 1867",null,null,null,1858,1869,"Freney","!C0373","Forge","ARLOT Jean fils d'Appolinaire",null,null,"- v",null,null,null,null,""]
[null,0,null,null,null,null,null,null,null,null,"Freney","!C0376","Maison","PELLORCE Vincent et Louis",null,null,"- v",null,null,null,null,""]
[null,1,null,"0434",null,null,null,null,null,1834,"Freney","!C0376","Mais rurale","PELLORCE Vincent",null,null,"- v",null,null,null,null,""]
[null,1,434,"0351","41, 343",null,null,null,1834,1850,"Freney","!C0376","Bât rural","PELLORCE Vincent",null,null,"- v",null,null,null,null,""]
[null,1,157,"0341",null,null,null,null,1834,1850,"Freney","!C0376 *","Bât rural","PELLORCE Louis",null,null,"- v",null,null,null,null,"",null,null,null,null,"Noté D376, corrigé C376","1850 (sol 1858)"]
[null,1,"démolie","0351","cn",null,null,null,1842,1850,"Freney","!C0376","Maison démolie et CN","PELLORCE Vincent",null,null,"- v",null,null,null,null,""]
[null,1,349,"0041",513,null,null,null,1850,1875,"Freney","!C0376","Bât rural","PELLORCE Catherine femme FLEUR",null,null,"- v",null,null,null,null,""]
[null,1,"(500)","0041","?",null,null,null,1850,1875,"Freney","!C0376","Maison","PELLORCE Catherine femme FLEUR",null,null,"- v",null,null,null,null,""]
[null,1,null,"0236",341,null,null,null,1850,1875,"Freney","!C0376","Bât rural","PELORCE Catherine femme FLEUR",null,null,"- v",null,null,null,null,""]
[null,1,349,"0344",null,null,null,null,1850,1876,"Freney","!C0376","Bât rural","PELLORCE Jean-Aimé fils d'Etienne",null,null,"- v",null,null,null,null,""]
[null,1,341,"0343",814,null,null,null,1850,1876,"Freney","!C0376 *","Bât rural","PELLORCE Jean-Aimé fils d'Etienne",null,null,"- v",null,null,null,null,"",null,null,null,null,"Noté D376, corrigé C376"]
[null,1,41,"0513",61,null,null,null,1875,1894,"Freney","!C0376p","Bât rural","FLEUR Claude, la vve FERRAT Sophie",null,null,"- v",null,null,null,null,""]
[null,1,41,"0513",61,null,null,null,1875,1894,"Freney","!C0376p","Bât rural","FLEUR Claude, la vve FERRAT Sophie",null,null,"- v",null,null,null,null,""]
[null,1,343,"0814",682,null,null,null,1876,1877,"Freney","!C0376p","Bât rural","PELLORCE Eugène fils de Jean (Aimé ou Elisé)",null,null,"- v",null,null,null,null,""]
[null,1,814,"0683",61,null,null,null,1877,1894,"Freney","!C0376 *","Bât rural","FLEUR Claude fils de Paul",null,null,"- v",null,null,null,null,"",null,null,null,null,"Noté B376, corrigé C376"]
[null,1,682,"0060",505,null,null,null,1894,1896,"Freney","!C0376p","Bât rural","CHABERT Pierre gendre FLEUR",null,null,"- v",null,null,null,null,""]
[null,1,61,"0505",null,null,null,null,1896,null,"Freney","!C0376p","Bât rural","CUINAT Rémy",null,null,"- v",null,null,null,null,""]
[null,1,61,"0505",null,null,null,null,1896,null,"Freney","!C0376p","Bât rural","CUINAT Rémy",null,null,"- v",null,null,null,null,""]
[null,2,null,null,null,"",24,153,null,1931,"Le Freney","!C0376","Maison","CUYNAT Rémy époux GRANGER",null,null,"- v",null,null,null,null,""]
[null,2,null,null,null,24,153,93,1931,1944,"Freney","!C0376p","Maison","BOUILLET Pierre Antoine et Marie-Louise",null,null,"- v",null,null,null,null,""]
[null,2,null,null,null,24,153,93,1944,1946,"Freney","!C0376p","Maison","BOUILLET Pierre Antoine et Marie-Louise, héritiers (1944)",null,null,"- v",null,null,null,null,""]
[null,2,null,null,null,153,93,"Transformée",1946,1951,"Freney","!C0376p","Maison","VAYR Maurice",null,null,"- v",null,null,null,null,""]
[null,1,"cn","0511",763,null,null,null,1878,1879,"Freney","!C0377","Maison","FLEUR Pauline",null,null,"- v",null,null,null,null,""]
[null,1,511,"0762","?",null,null,null,1879,1882,"Freney","!C0377p","Maison","Arlot Louis feu Benoit",null,null,"- v",null,null,null,null,""]
[null,2,null,null,null,"",24,153,null,1931,"Le Freney","!C0377p","Maison","CUYNAT Rémy époux GRANGER",null,null,"- v",null,null,null,null,""]
[null,2,null,null,null,24,153,"Dém",1931,1943,"Freney","!C0377p","Maison","BOUILLET Pierre Antoine et Marie-Louise",null,null,"- v",null,null,null,null,""]
[null,1,null,"0058",784,null,null,null,null,1871,"Freney","!C0386","Maison","BRUTIN Séraphin feu Joseph",null,null,"- v",null,null,null,null,""]
[null,1,null,"0486",null,null,null,null,null,1868,"Freney","!C0388","Mais rurale","REY Alexis instituteur",null,null,"- v",null,null,null,null,""]
[null,1,"cn","0482","155B",null,null,null,1842,1882,"Fontête et Balme *","!C0482","Maison","RIVOIRE Laurent fils à Laurent",null,null,"- v",null,null,null,null,"",null,null,null,null,"Noté Freney, corrigé"]
[null,1,"cn","0123","183 agr",null,null,null,1867,"1868","Freney","!C0750","Maison agrandie","DEGOUL Pierre",null,null,"- v",null,null,null,null,"",null,null,null,null,null,"1868 (sol en 1880)"]
[null,1,"183 agr","0123","92 M",null,null,null,1868,1880,"Freney","!C0750","Maison agrandie","DEGOUL Pierre",null,null,"- v",null,null,null,null,""]
[null,1,85,"0778","32 B",null,null,null,null,1882,"Freney","!C0750","Maison","DEGOUL Adolphe",null,null,"- v",null,null,null,null,""]
[null,1,123,"0085",778,null,null,null,1880,1881,"Freney","!C0750p","Maison","DEGOUL Hippolyte",null,null,"- v",null,null,null,null,""]
[null,1,123,"0092","?",null,null,null,1880,1882,"Freney","!C0750p","Maison","DEGOUL Pierre",null,null,"- v",null,null,null,null,""]
[null,1,123,"0079",778,null,null,null,1880,1883,"Freney","!C0750p","Sol","DEGOUL Eugène",null,null,"- v",null,null,null,null,""]
[null,1,123,"0082","?",null,null,null,1880,1883,"Freney","!C0750p","Sol","DEGOUL Eugénie, REYMOND Joseph vve née PELLORCE",null,null,"- v",null,null,null,null,""]
[null,2,null,null,null,"",92,"",null,1913,"Freney","!C0751p","Maison","REY Alexis époux BRUTIN",null,null,"- v",null,null,null,null,""]
[null,2,null,null,null,"",92,41,1913,1920,"Freney","!C0751p","Maison","REY Alexis feu Jacques",null,null,"- v",null,null,null,null,""]
[null,2,null,null,null,"",94,41,null,1920,"Freney","!C0751p","Maison","REY Joséphine",null,null,"- v",null,null,null,null,""]
[null,2,null,null,null,"",41,"",null,1920,"Le Freney","!C0751p","Maison","FLEUR Pierre",null,null,"- v",null,null,null,null,""]
[null,2,null,null,null,"92, 94",41,"Ruines",1920,1922,"Le Freney","!C0751p","Maison, ruines en 1922","RIVOIRE Casimir vve",null,null,"- v",null,null,null,null,""]
[null,2,null,null,null,"",114,141,null,1926,"Le Freney","!C0751p","Maison","VEYRAT Auguste Félix fils de Joseph",null,null,"- v",null,null,null,null,""]
[null,2,null,null,null,114,141,"AC",1926,null,"Le Freney","!C0751p","Maison","RIVOIRE Louis époux SIONNET",null,null,"- v",null,null,null,null,""]
[null,2,null,null,null,"",1,"",null,null,"Freney","!C0754","Bascule","Commune du Frenay",null,null,"- v",null,null,null,null,""]
[null,1,"cn","0118","44B",null,null,null,1871,1882,"La Combe","!C0756","Maison","DUSSERT François",null,null,"- v",null,null,null,null,""]
[null,0,null,null,null,null,null,null,null,null,"Les Côtes","!D0002","Moulin","REYMOND Denis",null,null,"- v",null,null,null,null,""]
[null,1,null,"0416",null,null,null,null,1858,1878,"La Côte","!D0002","Moulin","PELLORCE Jean-Louis",null,null,"- v",null,null,null,null,""]
[null,1,394,"0781","92 B (sol 484)",null,null,null,1878,"1882","La Côte","!D0002","Moulin","VEYRAT Constantin",null,null,"- v",null,null,null,null,"",null,null,null,null,null,"1882 (sol 1904)"]
[null,1,null,"0489",124,null,null,null,null,1851,"La Côte","!D0007","Grange","RIVOIRE Laurent",null,null,"- v",null,null,null,null,""]
[null,0,null,null,null,null,null,null,null,null,"Puy d'en Bas","!D0092","Maison","PELLAT Denis et consorts","ok",null,"- v",null,null,null,null,""]
[null,1,null,"0420",null,null,null,null,null,1840,"Puy d'en Bas","!D0092","Maison","PELLAT ?",null,null,{"$f":"IF(AND(INDIRECT(CONCATENATE(Q$3,ROW()))=\"\",INDIRECT(CONCATENATE(Q$4,ROW()))=\"\"),\"v v\",IF(INDIRECT(CONCATENATE(Q$3,ROW()))=\"\",\"v -\",IF(INDIRECT(CONCATENATE(Q$4,ROW()))=\"\",\"- v\",IF(INDIRECT(CONCATENATE(Q$3,ROW()))=INDIRECT(CONCATENATE(Q$4,ROW())),\"=\",\"<>\"))))","v":"- v"},null,"",null,"",""]
[null,1,420,"0333",709,null,null,null,1840,1880,"Puy d'en Bas *","!D0092","Maison","PELLAT Denis fils de Denis",null,null,"- v",null,"",null,"","",null,null,null,null,"Noté Suite d'Erban, corrigé"]
[null,1,332,"0710","103 B (sol 361)",null,null,null,1880,"1882","Puy d'en Bas","!D0092","Maison","PELLAT Jean René gendre REYMOND",null,null,"- v",null,"",null,"","",null,null,null,null,null,"1882 (sol 1908)"]
[null,2,null,null,null,"Omis",166,"",1943,1944,"Puy le Bas","!D0092","Maison","MARCE Clément",null,null,"- v",null,"",null,"",""]
[null,2,null,null,null,null,166,"",1944,1956,"Puy le Bas","!D0092","Maison","MARCE Clément Auguste, vve née PELLAT",null,null,"- v",null,"",null,"",""]
[null,2,null,null,null,null,166,"",1956,1958,"Puy le Bas","!D0092","Maison","MEJEAN Robert",null,null,"- v",null,"",null,"",""]
[null,2,null,null,null,null,166,"",1958,null,"Puy le Bas","!D0092","Maison","VIGOUROUX Charles Maxime, époux LOCQUARD",null,null,"- v",null,"",null,"",""]
[null,0,null,null,null,null,null,null,null,null,"Puy d'en Bas","!D0093","Maison","REYMOND Denis","ok",null,"- v",null,null,null,"",""]
[null,1,null,"0470",null,null,null,null,null,"1857","Puy d'en Bas","!D0093","Maison","REYMOND Denis",null,null,"- v",null,null,null,"","",null,null,null,null,null,"1857 (sol 1856 !)"]
[null,1,470,"0712",742,null,null,null,1857,1859,"Puy d'en Bas","!D0093","Maison","PELLORCE Vincent feu Vincent, PELLORCE Théophile feu Vincent",null,null,"- v",null,"",null,"",""]
[null,1,470,"0606",null,null,null,null,1857,"1882","Puy d'en Bas","!D0093p","Maison","REYMOND Louis",null,null,"- v",null,"",null,"","",null,null,null,null,null,"1882 (sol 1901)"]
[null,1,712,"0742",809,null,null,null,1859,1865,"Puy d'en Bas","!D0093p","Maison","REYMOND Rémy feu Joseph",null,null,"- v",null,"",null,"",""]
[null,1,742,"0809","165 B (sol 1001)",null,null,null,1865,"1882","Puy d'en Bas","!D0093p","Maison","VERNET Jean Pierre gendre PELLAT",null,null,"- v",null,"",null,"","",null,null,null,null,null,"1882 (sol 1898)"]
[null,2,null,null,null,"",98,97,null,1924,"Puy d'en Bas","!D0093p","Maison","REYMOND Honorine",null,null,{"$f":"IF(AND(INDIRECT(CONCATENATE(Q$3,ROW()))=\"\",INDIRECT(CONCATENATE(Q$4,ROW()))=\"\"),\"v v\",IF(INDIRECT(CONCATENATE(Q$3,ROW()))=\"\",\"v -\",IF(INDIRECT(CONCATENATE(Q$4,ROW()))=\"\",\"- v\",IF(INDIRECT(CONCATENATE(Q$3,ROW()))=INDIRECT(CONCATENATE(Q$4,ROW())),\"=\",\"<>\"))))","v":"- v"},null,"",null,"",""]
[null,2,null,null,null,"",97,"RB",1924,1929,"Puy d'en Bas","!D0093p","Maison","REYMOND Florentine",null,null,"- v",null,"",null,"",""]
[null,2,null,null,null,97,61,"",1929,1944,"Puy d'en Bas","!D0093p","Maison","PELLORCE Victor","?",null,"- v",null,"",null,null,""]
[null,2,null,null,null,97,61,"",1944,1960,"Puy d'en Bas","!D0093p","Maison","PELLORCE Rémy Alphonse Victor époux DUSSERT, vve et héritiers","?",null,"- v",null,null,null,null,""]
[null,2,null,null,null,97,61,"",1960,null,"Puy d'en Bas","!D0093p","Maison","PELLORCE Léon Elie dit Jules et Pierre dit Rémy époux HUMBERT","?",null,"- v",null,null,null,null,""]
[null,2,null,null,null,"",113,"",null,1924,"Puy d'en Bas","!D0093p","Maison","VERNET Pierre Denis",null,null,"- v",null,null,null,"",""]
[null,2,null,null,null,"",113,"",1924,1944,"Puy d'en Bas","!D0093p","Maison","VERNET Pierre Denis, vve née HEST",null,null,"- v",null,"",null,"",""]
[null,2,null,null,null,"",113,"",1944,1961,"Puy d'en Bas","!D0093p","Maison","MEARY CHABRY",null,null,"- v",null,"",null,"",""]
[null,2,null,null,null,"",113,"",1961,null,"Puy d'en Bas","!D0093p","Maison","ROSTEAU Paul, époux LEBARDIER",null,null,"- v",null,"",null,"",""]
[null,0,null,null,null,null,null,null,null,null,"Puy d'en Bas","!D0109","Maison rurale","RIVOIRE Mathieu","ok",null,"- v",null,null,null,null,""]
[null,1,null,"0485",488,null,null,null,null,1852,"Puy d'en Bas","!D0109","Mais rurale","RIVOIRE Mathieu",null,null,"- v",null,"",null,"",""]
[null,1,null,"0488",null,null,null,null,1852,1881,"Puy d'en Bas","!D0109","Mais rurale","RIVOIRE (Paul ou Pierre)",null,null,"- v",null,"",null,"",""]
[null,1,"?","0636",null,null,null,null,1861,1910,"Puy d'en Bas","!D0109","Mais rurale","ODDOUX Vincent fils de Jean",null,null,"- v",null,"",null,"",""]
[null,1,null,"0276",636,null,null,null,1910,null,"Puy d'en Bas","!D0109","Mais rurale","ODDOUX Edouard fils de Vincent maréchal Ferrant",null,null,"- v",null,"",null,"",""]
[null,0,null,null,null,null,null,null,null,null,"Puy d'en Bas","!D0110","Maison","DUSSERT Louis","ok",null,"- v",null,"",null,null,""]
[null,1,null,"0152",773,null,null,null,1864,null,"Puy d'en Bas *","!D0110","Maison","DUSSERT Denis ou Louis fils à Séraphin",null,null,"- v",null,null,null,"","",null,null,null,null,"Noté La Côte, corrigé"]
[null,1,152,"0773","53 B (sol 860)",null,null,null,1864,"1882","Puy d'en Bas *","!D0110","Maison","DUSSERT Louis père de Louis",null,null,"- v",null,"",null,"","",null,null,null,null,"Noté La Côte, corrigé","1882 (sol 1901)"]
[null,2,null,null,null,"",27,"",null,1924,"Puy d'en Bas *","!D0110","Maison","DUSSERT Eugène fils de Louis",null,null,"- v",null,"",null,"","",null,null,null,null,"Noté La Côte, corrigé"]
[null,2,null,null,null,"",27,"",1924,1949,"Puy d'en Bas *","!D0110","Maison","DODE Louis",null,null,"- v",null,"",null,"","",null,null,null,null,"Noté La Côte, corrigé"]
[null,2,null,null,null,"",27,"",1949,1959,"Puy d'en Bas *","!D0110","Maison","DODE Louis vve née BERTRAND",null,null,"- v",null,"",null,"","",null,null,null,null,"Noté La Côte, corrigé"]
[null,2,null,null,null,"",27,"",1959,null,"Puy d'en Bas *","!D0110","Maison","CASIER André époux FOUANT",null,null,"- v",null,"",null,"","",null,null,null,null,"Noté La Côte, corrigé"]
[null,2,null,null,null,"",64,"Dém",null,1943,"Puy d'en Bas *","!D0110p","Maison","ODDOUX Edouard fils de Vincent",null,null,"- v",null,"",null,"","",null,null,null,null,"Noté La Côte, corrigé"]
[null,1,null,"0152",null,null,null,null,null,1832,"Puy d'en Bas *","!D0112","Cave","DUSSERT Denis ou Louis fils à Séraphin","ok",null,"- v",null,"",null,null,"",null,null,null,null,"Noté La Côte, corrigé"]
[null,1,"Rectification","0153",773,null,null,null,1832,1864,"Puy d'en Bas","!D0112","Cave","DUSSERT Denis ou Louis fils à Séraphin",null,null,"- v",null,"",null,"",""]
[null,1,null,"0488",null,null,null,null,1842,1881,"Puy d'en Bas","!D0112","Maison","RIVOIRE (Paul ou Pierre)",null,null,"- v",null,null,null,"",""]
[null,1,"?","0636",null,null,null,null,1861,1882,"Puy d'en Bas","!D0112p","Maison","ODDOUX Vincent fils de Jean",null,null,"- v",null,null,null,"",""]
[null,1,773,"0860",null,null,null,null,1901,1902,"Puy d'en Bas *","!D0112","Cave","DUSSERT Eugène fils de Louis",null,null,"- v",null,"",null,"","",null,null,null,null,"Noté La Côte, corrigé"]
[null,2,null,null,null,"",64,"Dém",null,1943,"Puy Dessous","!D0112bis *","Maison","ODDOUX Edouard fils de Vincent",null,null,"- v",null,"",null,"","",null,null,null,null,"Noté E, corrigé D"]
[null,0,null,null,null,null,null,null,null,null,"Puy d'en Bas","!D0114","Maison","REYMOND Jean","ok",null,"- v",null,"",null,"",""]
[null,1,null,"0448",null,null,null,null,null,1832,"Puy d'en Bas","!D0114","Maison","REYMOND Jean",null,null,"- v",null,"",null,"",""]
[null,1,null,"0450",null,null,null,null,1832,1836,"Puy d'en Bas","!D0114","Maison","REYMOND Jean",null,null,"- v",null,"",null,"",""]
[null,1,448,"0557","143B",null,null,null,1836,"1882","Puy d'en Bas","!D0114","Maison","REYMOND Joseph fils de Jean",null,null,"- v",null,null,null,"","",null,null,null,null,null,"1882 (sol 1894)"]
[null,2,null,null,null,"",13,"144, 145",null,1930,"Puy d'en Bas","!D0114","Maison","BLANC Joseph Laurent fils de Joseph gendre RAYMOND",null,null,"- v",null,"",null,"",""]
[null,2,null,null,null,13,144,64,1930,1932,"Puy d'en Bas","!D0114p","Maison","BLANC Rémy Joseph Reymond et BLANC Georges Emile, indivis",null,null,"- v",null,"",null,"",""]
[null,2,null,null,null,13,145,64,1930,1932,"Puy d'en Bas","!D0114p","Maison","D'HAEYER époux BLANC Marie Alice",null,null,"- v",null,"",null,"",""]
[null,2,null,null,null,"144, 145",64,"RB",1932,1943,"Puy d'en Bas","!D0114p","Maison","ODDOUX Edouard fils de Vincent",null,null,"- v",null,"",null,"",""]
[null,2,null,null,null,"RB",64,"",1943,1955,"Puy d'en Bas","!D0114p","Maison","ODDOUX Edouard fils de Vincent",null,null,"- v",null,"",null,"",""]
[null,2,null,null,null,"",64,190,1955,1956,"Puy d'en Bas","!D0114p","Maison","ODDOUX Edouard fils de Vincent, les héritiers",null,null,"- v",null,"",null,"",""]
[null,2,null,null,null,64,84,"",1926,1943,"Puy d'en Bas","!D0114p","Maison","PICHOUD François cordonnier","Pichoud François ?",null,"- v",null,"",null,null,""]
[null,2,null,null,null,"",84,"",1943,1944,"Puy d'en Bas","!D0114p","Maison","PICHOUD François, vve et héritiers","Pichoud François ?",null,"- v",null,"",null,null,""]
[null,2,null,null,null,"",84,"",1944,1953,"Puy d'en Bas","!D0114p","Maison","ARNOL Jean Marius veuve née PICHOUD","Pichoud François ?",null,"- v",null,"",null,null,""]
[null,2,null,null,null,"",84,192,1953,1957,"Puy d'en Bas","!D0114p","Maison","ODDOUX Marcel Casimir époux ARNOL","Pichoud François ?",null,"- v",null,null,null,null,""]
[null,2,null,null,null,64,190,"",1956,null,"Puy d'en Bas","!D0114p","Maison 1er étage","ALDEGUER Ange époux ODDOUX",null,null,"- v",null,null,null,null,""]
[null,2,null,null,null,84,192,"",1957,null,"Puy d'en Bas","!D0114p","Maison","ALDEGUER Etienne époux ODDOUX",null,null,"- v",null,null,null,null,""]
[null,2,null,null,null,"",72,"Dém",null,1943,"Puy d'en Bas","!D0117p","Chambre","PELLORCE Alphonse Henri, les héritiers","ok",null,"- v",null,null,null,null,""]
[null,2,null,null,null,"",117,"",null,1933,"Puy d'en Bas","!D0117p","Chambre","PELLORCE Alphonse Henri, fils de Henri",null,null,"- v",null,null,null,null,""]
[null,2,null,null,null,"",117,"Dém",1933,1943,"Puy d'en Bas","!D0117p","Chambre","DODE Henri et Jacques et Julien époux DODE indivis",null,null,"- v",null,"",null,"",""]
[null,1,null,"0448",null,null,null,null,null,1856,"Puy d'en Bas","!D0119","Grange","REYMOND Jean","Ne figure pas sur la carte cadastrale, oui",null,"- v",null,null,null,null,""]
[null,0,null,null,null,null,null,null,null,null,"Puy d'en Bas","!D0120","Maison","PELLAT Denis","ok",null,"- v",null,"",null,null,""]
[null,1,"?","0332",null,null,null,null,null,1865,"Puy d'en Bas","!D0120","Maison","PELLAT Denis fils de Denis",null,null,"- v",null,"",null,"",""]
[null,1,332,"0804",null,null,null,null,1865,1866,"Puy d'en Bas","!D0120","Maison","BELLON Jacques gendre PELLAT",null,null,"- v",null,"",null,"",""]
[null,1,804,"0804",null,null,null,null,1866,1882,"Puy d'en Bas","!D0120","Maison","BELLON Jacques gendre PELLAT",null,null,"- v",null,"",null,"",""]
[null,2,null,null,null,"",10,"",null,null,"Puy d'en Bas","!D0120","Maison","BELLON Jacques gendre PELLAT",null,null,"- v",null,"",null,"",""]
[null,2,null,null,null,"",10,"",1943,null,"Puy d'en Bas","!D0120","Maison","BELLON Jacques gendre PELLAT, les héritiers",null,null,null,null,""]
[null,0,null,null,null,null,null,null,null,null,"Puy d'en Bas","!D0122","Maison","RANQUE Joseph","ok",null,"- v",null,null,null,null,""]
[null,1,null,"0443","442, 446",null,null,null,null,1840,"Puy d'en Bas","!D0122","Maison","RANQUE Joseph",null,null,"- v",null,"",null,"",""]
[null,1,443,"0446",441,null,null,null,1840,1848,"Puy d'en Bas","!D0122","Maison","RANQUE Blaise",null,null,"- v",null,"",null,"",""]
[null,1,null,"0442",null,null,null,null,1840,1882,"Puy d'en Bas","!D0122","Maison","RANQUE André feu Joseph",null,null,"- v",null,"",null,"",""]
[null,1,446,"0441","137B",null,null,null,1848,"1882","Puy d'en Bas","!D0122","Maison","RANQUE André feu Joseph",null,null,"- v",null,"",null,"","",null,null,null,null,null,"1882 (sol 1885)"]
[null,1,null,"0026",829,null,null,null,1911,null,"Puy d'en Bas","!D0122p","Sol et cour","PELLORCE Alphonse Henri, les enfants",null,null,"- v",null,"",null,"",""]
[null,2,null,null,null,"",72,"Dém",null,1943,"Puy d'en Bas","!D0122p","Maison","PELLORCE Alphonse Henri, les héritiers",null,null,"- v",null,"",null,"",""]
[null,2,null,null,null,"",117,"",null,1933,"Puy d'en Bas","!D0122p","Maison","PELLORCE Alphonse Henri, fils de Henri",null,null,"- v",null,"",null,"",""]
[null,2,null,null,null,"",117,"Dém",1933,1943,"Puy d'en Bas","!D0122p","Maison","DODE Henri et Jacques et Julien époux DODE indivis",null,null,"- v",null,"",null,"",""]
[null,0,null,null,null,null,null,null,null,null,"Puy d'en Bas","!D0123","Maison","ARNODET Paul","ok",null,"- v",null,"",null,null,""]
[null,1,null,"0017","23.377",null,null,null,null,1841,"Puy d'en Bas","!D0123","Maison","ARNAUDET Paul",null,null,"- v",null,null,null,"",""]
[null,1,77,"0023","démolition",null,null,null,1841,1858,"Puy d'en Bas","!D0123","Maison démolie","ARNODET Marie-Jeanne",null,null,"- v",null,"",null,"",""]
[null,1,377,"0600","démolie (sol 557)",null,null,null,1849,1878,"Puy d'en Bas","!D0123","Maison démolie","ARNAUDET Marie-Rose femme PELLORCE Daniel",null,null,"- v",null,"",null,"",""]
[null,1,"CN","0023","517 (557)",null,null,null,1858,1863,"Puy d'en Bas","!D0123","Maison","ARNODET Marie-Jeanne",null,null,"- v",null,"",null,"",""]
[null,1,23,"0611","démolie (sol 804)",null,null,null,1863,"1864","Puy d'en Bas","!D0123","Maison démolie","REYMOND Joseph fils de Jean",null,null,"- v",null,"",null,"","",null,null,null,null,null,"1864 (sol 1894)"]
[null,2,null,null,null,"Omis 1890",165,"",1943,null,"Puy le Bas","!D0123","Maison","MAGNAN Edouard, directeur d'école",null,null,"- v",null,"",null,"",""]
[null,0,null,null,null,null,null,null,null,null,"Puy d'en Bas","!D0124","Maison","REYMOND Françoise","ok",null,{"$f":"IF(AND(INDIRECT(CONCATENATE(Q$3,ROW()))=\"\",INDIRECT(CONCATENATE(Q$4,ROW()))=\"\"),\"v v\",IF(INDIRECT(CONCATENATE(Q$3,ROW()))=\"\",\"v -\",IF(INDIRECT(CONCATENATE(Q$4,ROW()))=\"\",\"- v\",IF(INDIRECT(CONCATENATE(Q$3,ROW()))=INDIRECT(CONCATENATE(Q$4,ROW())),\"=\",\"<>\"))))","v":"- v"},null,"",null,null,""]
[null,1,null,"0475",508,null,null,null,null,1843,"Puy d'en Bas","!D0124","Maison","REYMOND François",null,null,"- v",null,"",null,"",""]
[null,1,475,"0508",318,null,null,null,1843,1846,"Puy d'en Bas","!D0124","Maison","REYMOND André fils de Joseph",null,null,"- v",null,null,null,"",""]
[null,1,"(508)","0318",null,null,null,null,1846,1882,"Puy d'en Bas","!D0124","Maison","CAIX Louis fils de Jean",null,null,"- v",null,"",null,"",""]
[null,2,null,null,null,"",20,64,null,1920,"Puy d'en Bas","!D0124","Maison","CAIX Louis fils de Jean",null,null,"- v",null,"",null,"",""]
[null,2,null,null,null,20,64,"Dém",1920,1943,"Puy d'en Bas","!D0124","Maison","ODDOUX Edouard fils de Vincent",null,null,"- v",null,"",null,"",""]
[null,0,null,null,null,null,null,null,null,null,"Puy d'en Bas","!D0127","Chapelle","REYMOND Jean",null,null,"- v",null,"",null,null,""]
[null,1,null,"0510",null,null,null,null,null,1834,"Puy d'en Bas","!D0127","Chapelle","REYMOND Joseph",null,null,"- v",null,"",null,"","",null,null,null,null,"Noté Puy d'en Haut, corrigé"]
[null,1,550,"0450",27,null,null,null,1834,1857,"Puy le Bas *","!D0127 *","Chapelle","REYMOND Jean",null,null,"- v",null,"",null,"",""]
[null,1,null,"0472",null,null,null,null,1834,1867,"Puy d'en Bas *","!D0127","Chapelle","REYMOND Denis",null,null,"- v",null,"",null,"",""]
[null,1,448,"0044",500,null,null,null,1857,1887,"Puy le Bas *","!D0127","Sol de chapelle","REYMOND Esprit feu Jean",null,null,"- v",null,"",null,"",""]
[null,1,null,"0227",470,null,null,null,1867,null,"Puy d'en Bas","!D0127","Chapelle","Freney la commune",null,null,"- v",null,"",null,"","",null,null,null,null,"Noté Puy d'en Haut, corrigé"]
[null,0,null,null,null,null,null,null,null,null,"Puy d'en Bas","!D0128","Maison","REYMOND Françoise","ok",null,"- v",null,"",null,null,""]
[null,1,null,"0475",508,null,null,null,null,1843,"Puy d'en Bas","!D0128","Maison","REYMOND François",null,null,"- v",null,"",null,"",""]
[null,1,475,"0508",318,null,null,null,1843,1846,"Puy d'en Bas","!D0128","Maison","REYMOND André fils de Joseph",null,null,"- v",null,"",null,"",""]
[null,1,"(508)","0318",null,null,null,null,1846,1882,"Puy d'en Bas","!D0128","Maison","CAIX Louis fils de Jean",null,null,"- v",null,"",null,"","",null,null,null,null,"Noté D427 à Puy le Haut, corrigé D127 à Puy le Bas"]
[null,2,null,null,null,"",20,64,null,1920,"Puy d'en Bas","!D0128","Maison","CAIX Louis fils de Jean",null,null,"- v",null,null,null,"",""]
[null,2,null,null,null,20,64,"",1920,1955,"Puy d'en Bas","!D0128","Maison","ODDOUX Edouard fils de Vincent","Était noté D125, effectivement, corrigé le12/11/24 (Plutôt 128, à creuser -Plutôt Arnaudet)",null,"- v",null,"",null,null,"",null,null,null,null,"Hésité entre D125 et D128"]
[null,2,null,null,null,"",64,191,1955,1956,"Puy d'en Bas","!D0128","Maison","ODDOUX Edouard fils de Vincent, les héritiers","Était noté D125, effectivement, corrigé le12/11/24 (Plutôt 128, à creuser -Plutôt Arnaudet)",null,"- v",null,"",null,null,"",null,null,null,null,"Hésité entre D125 et D128"]
[null,2,null,null,null,64,191,"",1956,1958,"Puy d'en Bas","!D0128","Maison","ODDOUX Georges époux GALLE MICHON",null,null,"- v",null,"",null,"",""]
[null,2,null,null,null,null,191,"",1958,null,"Puy d'en Bas","!D0128","Maison","DORDAIN Gaston Georges époux BLONDY, instituteur (1958)",null,null,"- v",null,"",null,"",""]
[null,0,null,null,null,null,null,null,null,null,"Puy d'en Bas","!D0129","Grange","REYMOND Jean","N'existe plus, oui",null,"- v",null,null,null,null,""]
[null,1,448,"0044","(504)",null,null,null,"?",1883,"Puy d'en Bas","!D0129","Grange","REYMOND Esprit feu Jean","ok",null,"- v",null,null,null,null,""]
[null,1,null,"0518","?",null,null,null,1887,null,"Puy d'en Bas","!D0129","Grange","BLANC Joseph Laurent, fils de Joseph, gendre REYMOND",null,null,"- v",null,"",null,"",""]
[null,0,null,null,null,null,null,null,null,null,"Puy d'en Bas","!D0130","Grange","RIVOIRE Laurent","Rignon Jean-Louis",null,"- v",null,"",null,null,""]
[null,1,null,"0489",447,null,null,null,null,1839,"Puy d'en Bas","!D0130","Grange","RIVOIRE Laurent",null,null,"- v",null,"",null,"",""]
[null,1,489,"0447",336,null,null,null,1839,1907,"Puy d'en Bas","!D0130","Grange","RIVOIRE Mathieu fils Laurent",null,null,"- v",null,null,null,"",""]
[null,1,null,"0336",447,null,null,null,1907,null,"Puy d'en Bas","!D0130","Grange","DUSSERT Alphonse fils de feu Antoine","ok",null,"- v",null,null,null,null,""]
[null,2,null,null,null,"",25,71,null,1922,"Puy d'en Bas","!D0130","Maison","DUSSERT Alphonse fils de feu Antoine",null,null,"- v",null,null,null,null,""]
[null,2,null,null,null,25,71,"",1922,1943,"Puy le Bas","!D0130","Maison","PELLAT Aristide feu André",null,null,"- v",null,null,null,null,""]
[null,2,null,null,null,"",71,"RB",1943,1946,"Puy le Bas","!D0130","Maison","PELLAT Aristide feu André, les héritiers",null,null,"- v",null,null,null,null,""]
[null,2,null,null,null,"RB",71,121,1946,1954,"Puy le Bas","!D0130","Maison","PELLORCE Louis Aimé",null,null,"- v",null,null,null,null,""]
[null,0,null,null,null,null,null,null,null,null,"Puy d'en Bas","!D0131","Bâtiment","REYMOND Jean","Philippe Lecoquierre",null,"- v",null,null,null,null,""]
[null,1,null,"0449",27,null,null,null,null,1856,"Puy d'en Bas","!D0131","Bâtiment","REYMOND Jean",null,null,"- v",null,null,null,null,""]
[null,1,448,"0027","149B (504)",null,null,null,1856,1887,"Puy d'en Bas","!D0131","Maison","RAYMOND Esprit feu Jean",null,null,"- v",null,null,null,null,""]
[null,2,null,null,null,"",13,"15, 147",null,1930,"Puy d'en Bas","!D0131","Bâtiment","BLANC Joseph Laurent fils de Joseph gendre RAYMOND",null,null,"- v",null,null,null,null,""]
[null,2,null,null,null,13,147,15,1930,1941,"Puy d'en Bas","!D0131p","Bâtiment","PIERA André fils","Revoir les dates - A voir avec Marie-Do",null,"- v",null,"",null,"",""]
[null,2,null,null,null,13,15,"RB",1930,1941,"Puy d'en Bas","!D0131","Bâtiment","BLANC Rémy époux DUSSERT","Revoir les dates - A voir avec Marie-Do",null,"- v",null,null,null,"",""]
[null,2,null,null,null,147,15,"RB",1941,1943,"Puy d'en Bas","!D0131p","Bâtiment","BLANC Rémy époux DUSSERT","Revoir les dates - A voir avec Marie-Do",null,"- v",null,null,null,"",""]
[null,2,null,null,null,"RB",15,188,1943,1955,"Puy d'en Bas","!D0131","Bâtiment","BLANC Rémy époux DUSSERT","Revoir les dates - A voir avec Marie-Do",null,"- v",null,"",null,"",""]
[null,2,null,null,null,15,188,"",1955,null,"Puy le Bas","!D0131","Maison","LECOQUIERRE Jean, directeur commercial","A reclasser par dates",null,"- v",null,"",null,"",""]
[null,0,null,null,null,null,null,null,null,null,"Puy d'en Bas","!D0132","Maison","REYMOND André","Maison Perrin",null,"- v",null,"",null,"",""]
[null,1,null,"0465",634,null,null,null,null,1874,"Puy d'en Bas","!D0132","Maison","REYMOND André Fils à Blaise","Vérifier que le père Dode est bien Henri",null,"- v",null,null,null,null,""]
[null,1,465,"0638","94 B (sol 634)",null,null,null,1874,"1882","Puy d'en Bas","!D0132","Maison","ODDOUX Jean Baptiste fils de Jean",null,null,"- v",null,"",null,"","",null,null,null,null,null,"1882 (sol 1885)"]
[null,2,null,null,null,"",65,"D",null,1926,"Puy d'en Bas","!D0132","Maison","ODDOUX Jean Baptiste fils de Jean",null,null,"- v",null,"",null,"",""]
[null,0,null,null,null,null,null,null,null,null,"Puy d'en Bas","!D0138","Maison rurale","ARLOT Apolinaire","Jérôme Panthou - A voir avec Marie-Do",null,"- v",null,null,null,"",""]
[null,1,null,"0010",438,null,null,null,null,1840,"Puy d'en Bas","!D0138","Mais rurale","ARLOT Alphonse",null,null,"- v",null,"",null,"",""]
[null,1,null,"0438",null,null,null,null,1840,1853,"Puy d'en Bas","!D0138","Mais rurale","RANQUE Joseph",null,null,"- v",null,"",null,null,""]
[null,1,null,"0438",null,null,null,null,1843,1858,"Puy d'en Bas","!D0138","Maison","RANQUE Joseph","A revoir avec Jérôme et René Hamelin",null,"- v",null,"",null,null,""]
[null,1,null,"0438",null,null,null,null,1853,1858,"Puy d'en Bas","!D0138","Mais rurale","RANQUE Joseph",null,null,"- v",null,"",null,"",""]
[null,1,438,"0324",null,null,null,null,1858,1866,"Puy d'en Bas","!D0138","Maison","CAIX Louis",null,null,{"$f":"IF(AND(INDIRECT(CONCATENATE(Q$3,ROW()))=\"\",INDIRECT(CONCATENATE(Q$4,ROW()))=\"\"),\"v v\",IF(INDIRECT(CONCATENATE(Q$3,ROW()))=\"\",\"v -\",IF(INDIRECT(CONCATENATE(Q$4,ROW()))=\"\",\"- v\",IF(INDIRECT(CONCATENATE(Q$3,ROW()))=INDIRECT(CONCATENATE(Q$4,ROW())),\"=\",\"<>\"))))","v":"- v"},null,"",null,"",""]
[null,1,"(477)","0318",null,null,null,null,1853,1883,"Puy d'en Bas","!D0138p","Mais rurale","CAIX Louis fils de Jean",null,null,"- v",null,"",null,null,""]
[null,1,318,"0880",33,null,null,null,1883,1911,"Puy d'en Bas","!D0138p","Bât rural","RANQUE Joseph feu André",null,null,{"$f":"IF(AND(INDIRECT(CONCATENATE(Q$3,ROW()))=\"\",INDIRECT(CONCATENATE(Q$4,ROW()))=\"\"),\"v v\",IF(INDIRECT(CONCATENATE(Q$3,ROW()))=\"\",\"v -\",IF(INDIRECT(CONCATENATE(Q$4,ROW()))=\"\",\"- v\",IF(INDIRECT(CONCATENATE(Q$3,ROW()))=INDIRECT(CONCATENATE(Q$4,ROW())),\"=\",\"<>\"))))","v":"- v"},null,null,null,"",""]
[null,1,880,"0033",null,null,null,null,1911,null,"Puy d'en Bas","!D0138p","Bât rural","RANQUE Lucie",null,null,"- v",null,"",null,"",""]
[null,0,null,null,null,null,null,null,null,null,"Puy d'en Bas","!D0139","Maison","ODDOUX Etienne","Jérôme Panthou écroulée",null,"- v",null,"",null,"",""]
[null,1,null,"0323",633,null,null,null,null,1850,"Puy d'en Bas","!D0139","Maison","ODDOUX ? (Etienne)",null,null,"- v",null,"",null,"",""]
[null,1,323,"0633",684,null,null,null,1850,1859,"Puy d'en Bas","!D0139","Maison","ODDOUX ? Marie fille de Jean ",null,null,"- v",null,"",null,""]
[null,1,633,"0684","126 (B) (sol 880)",null,null,null,1859,"1882","Puy d'en Bas","!D0139","Maison","PELLORCE Henry père",null,null,"- v",null,"",null,"","",null,null,null,null,null,"1882 (sol 1899)"]
[null,2,null,null,null,"",73,"D",null,1926,"Puy d'en Bas","!D0139","Maison","PELLORCE Céline fille d'Henry, couturière",null,null,"- v",null,null,null,"",""]
[null,2,null,null,null,"",86,36,null,1943,"Puy d'en Bas","!D0141","Atelier","RANQUE Joseph","sur le rocher",null,"- v",null,null,null,"",""]
[null,2,null,null,null,86,36,"86 87",1943,1955,"Puy le Bas","!D0141","Maison","DUSSERT Joseph Séraphin gendre RANQUE, la veuve et les héritiers","Jérôme Panthou mais pas de représentation graphique en 1830 - Ne figure pas sur le Cad0 ",null,"- v",null,"",null,""]
[null,2,null,null,null,36,86,"",1955,null,"Puy le Bas","!D0141p","Maison 1er étage","PANTHOU Robert André",null,null,"- v",null,"",null,"",""]
[null,2,null,null,null,36,87,"",1955,null,"Puy le Bas","!D0141p","Maison r de ch","HAMELIN Jean Emile époux RANQUE, héritiers",null,null,"- v",null,"",null,"",""]
[null,0,null,null,null,null,null,null,null,null,"Puy d'en Bas","!D0142","Grange","ARLOT Apolinaire","ok",null,"- v",null,"",null,"",""]
[null,1,null,"0438",null,null,null,null,1840,1858,"Puy d'en Bas","!D0142","Grange","RANQUE Joseph",null,null,"- v",null,"",null,"",""]
[null,1,438,"0324",null,null,null,null,1858,1883,"Puy d'en Bas","!D0142","Grange","CAIX Louis",null,null,"- v",null,"",null,"",""]
[null,1,318,"0880",33,null,null,null,1883,1911,"Puy d'en Bas","!D0142","Grange","RANQUE Joseph feu André",null,null,"- v",null,"",null,"",""]
[null,2,null,null,null,"",86,"",null,1943,"Puy d'en Bas","!D0142","Maison","RANQUE Joseph",null,null,"- v",null,"",null,"",""]
[null,2,null,null,null,"",86,"",1943,1954,"Puy d'en Bas","!D0142","Maison","RANQUE Lucie",null,null,"- v",null,"",null,"",""]
[null,2,null,null,null,"",86,"",1954,null,"Puy d'en Bas","!D0142","Maison","PANTHOU Robert André",null,null,"- v",null,"",null,"",""]
[null,1,null,"0470",null,null,null,null,null,1841,"Le Passet *","!D0165","Bâtiment","REYMOND Denis",null,null,"- v",null,"",null,"","",null,null,null,null,"Noté La Combe, corrigé"]
[null,0,null,null,null,null,null,null,null,null,"Le Passet","!D0172","Maison","DUSSERT Jean-Louis",null,null,{"$f":"IF(AND(INDIRECT(CONCATENATE(Q$3,ROW()))=\"\",INDIRECT(CONCATENATE(Q$4,ROW()))=\"\"),\"v v\",IF(INDIRECT(CONCATENATE(Q$3,ROW()))=\"\",\"v -\",IF(INDIRECT(CONCATENATE(Q$4,ROW()))=\"\",\"- v\",IF(INDIRECT(CONCATENATE(Q$3,ROW()))=INDIRECT(CONCATENATE(Q$4,ROW())),\"=\",\"<>\"))))","v":"- v"},null,null,null,"",""]
[null,1,null,"0128",469,null,null,null,null,1846,"Le Passet","!D0172","Maison","DUSSERT Jean Louis Emile",null,null,"- v",null,"",null,"",""]
[null,1,128,"0545",17,null,null,null,1846,"1877","Le Passet","!D0172p","Maison","DUSSERT Pierre fils à Jean-Louis",null,null,"- v",null,"",null,"","",null,null,null,null,null,"1877 (sol 1854 !)"]
[null,1,128,"0593","142 B",null,null,null,1846,1882,"Le Passet *","!D0172p","Maison","REYMOND Jean-Denis fils à Jean",null,null,"- v",null,"",null,"","",null,null,null,null,"Noté Le Popot, corrigé"]
[null,1,128,"0287",null,null,null,null,1846,1864,"Le Passet *","!D0172p","Maison démolie","JOSSERAND Joseph gendre à DUSSERT",null,null,"- v",null,"",null,"","",null,null,null,null,"Noté (Le Puy le Bas), corrigé","1883 1858 (sol 1883)"]
[null,1,null,"0287",null,null,null,null,1964,1881,"Le Passet *","!D0172p","Maison démolie","DUSSERT Rose vve JOSSERAND",null,null,"- v",null,"",null,"","",null,null,null,null,"Noté (Le Puy le Bas), corrigé","1883 1858 (sol 1883)"]
[null,1,null,"0287","démolie",null,null,null,1881,"1883","Le Passet *","!D0172p","Maison démolie","JOSSERAND Adélaïde femme RIVOIRE",null,null,"- v",null,"",null,"","",null,null,null,null,"Noté (Le Puy le Bas), corrigé","1883 1858 (sol 1883)"]
[null,1,null,"0288","cn",null,null,null,1858,1864,"Le Passet","!D0172","Maison CN","JOSSERAND Joseph gendre à DUSSERT",null,null,"- v",null,"",null,"",""]
[null,1,null,"0288","cn",null,null,null,1864,1881,"Le Passet","!D0172","Maison CN","DUSSERT Rose vve JOSSERAND",null,null,"- v",null,"",null,"",""]
[null,1,null,"0288","cn",null,null,null,1881,"1883","Le Passet","!D0172","Maison CN","JOSSERAND Adélaïde femme RIVOIRE",null,null,"- v",null,"",null,"",""]
[null,1,545,"0197","46B",null,null,null,1877,1882,"Le Passet","!D0172","Maison","DUSSERT Pierre, DUSSERT Elie",null,null,"- v",null,"",null,"",""]
[null,0,null,null,null,null,null,null,null,null,"Le Passet","!D0173","Maison","PELLORCE Vincent",null,null,"- v",null,"",null,"",""]
[null,1,null,"0370",null,null,null,null,null,1869,"Le Passet","!D0173","Maison","PELLORCE Vincent fils de Vincent",null,null,"- v",null,null,null,"",""]
[null,1,null,"0356",370,null,null,null,1869,1876,"Le Passet","!D0173p","Maison","PELLORCE Louis",null,null,"- v",null,null,null,"",""]
[null,1,370,"0605","116 b (sol 933)",null,null,null,1869,"1882","Le Passet","!D0173p","Maison","PELLORCE Pierre fils à Vincent",null,null,"- v",null,null,null,"","",null,null,null,null,null,"1882 (sol 1888)"]
[null,1,341,"0744","129 B",null,null,null,1876,1882,"Le Passet","!D0173p","Maison","PELLORCE Pierre Louis fils de Louis",null,null,"- v",null,null,null,"",""]
[null,2,null,null,null,"",79,"B rural",null,1917,"Le Passet","!D0173p","Maison","PELLORCE Pierre Louis fils à Louis",null,null,"- v",null,null,null,"",""]
[null,2,null,null,null,"",87,"D",null,1926,"Le Passet","!D0173p","Maison","RANQUE Joseph Louis gendre PELLORCE",null,null,"- v",null,null,null,"",""]
[null,1,"cn","0375",341,null,null,null,1858,1869,"Le Passet","!D0174","Maison","PELLORCE Vincent fils",null,null,"- v",null,null,null,"",""]
[null,1,null,"0356",370,null,null,null,1869,1876,"Le Passet","!D0174","Maison","PELLORCE Louis",null,null,"- v",null,null,null,"",""]
[null,1,341,"0744","129 B",null,null,null,1876,1882,"Le Passet","!D0174","Maison","PELLORCE Pierre Louis fils de Louis",null,null,"- v",null,null,null,"",""]
[null,2,null,null,null,"",79,"B rural",null,1917,"Le Passet","!D0174","Maison","PELLORCE Pierre Louis fils à Louis",null,null,"- v",null,null,null,"",""]
[null,1,null,"0378",null,null,null,null,1841,1849,"Le Passet *","!D0183","Maison","PELLORCE Etienne",null,null,"- v",null,null,null,"","",null,null,null,null,"Noté Puy d'en Bas, corrigé"]
[null,1,"303, 691","0091",650,null,null,null,null,1864,"Le Périer","!D0252","Maison","(CHALVIN)",null,null,"- v",null,null,null,"",""]
[null,1,"cn","0561",628,null,null,null,1842,1857,"Le Périer","!D0253","Maison","PELLORCE Vierge feu Laurent",null,null,"- v",null,null,null,"",""]
[null,1,561,"0628",559,null,null,null,1857,1874,"Le Périer","!D0253","Maison","CAIX Victoire femme de DUSSERT Antoine",null,null,"- v",null,null,null,"",""]
[null,1,628,"0569","108, 109 B",null,null,null,1874,1882,"Le Périer","!D0253","Maison","PELLORCE Félix",null,null,"- v",null,null,null,"",""]
[null,0,null,null,null,null,null,null,null,null,"Le Périer","!D0259","Bâtiment","PELLORCE Laurent, les héritiers, sa femme",null,null,"- v",null,null,null,"",""]
[null,1,null,"0393","357, 393",null,null,null,null,1833,"Le Périer","!D0259","Bâtiment","PELLORCE Laurent",null,null,"- v",null,null,null,"",""]
[null,1,393,"0393","558, 559, 560",null,null,null,1833,"1836","Le Périer","!D0259","Bâtiment","PELLORCE Laurent",null,null,"- v",null,null,null,"","",null,null,null,null,null,"1836 (sol 1834 !)"]
[null,1,"(3)9(3)","0561",559,null,null,null,1836,1840,"Le Périer","!D0259","Bâtiment","PELLORCE Vierge feu Laurent",null,null,"- v",null,null,null,"",""]
[null,1,393,"0559",558,null,null,null,1836,1868,"Le Périer","!D0259","Maison","PELLORCE Félix (feu) Laurent",null,null,"- v",null,null,null,"",""]
[null,1,null,"0558",null,null,null,null,1836,"1882","Le Périer","!D0259 *","Maison","PELLORCE Etienne feu Louis, PELLORCE Laurent feu Etienne",null,null,"- v",null,null,null,"","",null,null,null,null,"Noté A259, corrigé D259","1882 (sol 1891)"]
[null,1,561,"0561","558, 559",null,null,null,1840,1850,"Le Périer","!D0259","Bâtiment","PELLORCE Vierge feu Laurent",null,null,"- v",null,null,null,"",""]
[null,1,357,"0561",559,null,null,null,1840,1850,"Le Périer","!D0259","Galetas","PELLORCE Vierge feu Laurent",null,null,"- v",null,null,null,"",""]
[null,1,357,"0559","108, 109B",null,null,null,1840,1882,"Le Périer","!D0259","Galetas","PELLORCE Félix (feu) Laurent",null,null,"- v",null,null,null,"",""]
[null,1,561,"0559","108, 109B",null,null,null,1840,1882,"Le Périer","!D0259","Bâtiment","PELLORCE Félix (feu) Laurent",null,null,"- v",null,null,null,"",""]
[null,1,"nc","0559","grosse tache",null,null,null,1845,1869,"Le Périer","!D0259","Maison CN","PELLORCE Félix (feu) Laurent",null,null,"- v",null,null,null,"",""]
[null,1,561,"0559","108, 109B",null,null,null,1850,1882,"Le Périer","!D0259","Bâtiment","PELLORCE Félix (feu) Laurent",null,null,"- v",null,null,null,"",""]
[null,1,null,"0558",null,null,null,null,1850,1882,"Le Périer","!D0259p","Bâtiment","PELLORCE Etienne feu Louis, PELLORCE Laurent feu Etienne",null,null,"- v",null,null,null,"",""]
[null,1,561,"0559","108, 109B",null,null,null,1850,1882,"Le Périer","!D0259","Galetas","PELLORCE Félix (feu) Laurent",null,null,"- v",null,null,null,"",""]
[null,1,null,"0558",559,null,null,null,1868,1869,"Le Périer","!D0259","Maison","PELLORCE Etienne feu Louis, PELLORCE Laurent feu Etienne",null,null,"- v",null,null,null,"",""]
[null,1,558,"0167","123B",null,null,null,1869,1882,"Le Périer","!D0259","Maison","PELLORCE Félix et Pierre",null,null,"- v",null,null,null,"",""]
[null,2,null,null,null,"",47,"",null,1916,"Perrier","!D0259","Bâtiment","GIROLET Pierre fils de Pierre, HUSTACHE Alphonse (1916)",null,null,"- v",null,null,null,"",""]
[null,2,null,null,null,"",47,134,1916,1943,"Perrier","!D0259","Bâtiment","GIROLET Pierre fils de Pierre, HUSTACHE Alphonse (1916)",null,null,"- v",null,null,null,"",""]
[null,2,null,null,null,47,134,"RB",1943,null,"Périer","!D0259","Maison","HOSTACHE vve née BRUN à PELLORCE Noël son mari",null,null,"- v",null,null,null,"",""]
[null,2,null,null,null,"",75,"",null,1943,"Perrier","!D0259","Maison","PELLORCE Félix et Pierre, indivis",null,null,"- v",null,null,null,"",""]
[null,2,null,null,null,"",75,169,1943,1948,"Perrier","!D0259","Maison","PELLORCE Jean Louis époux BLANC, vve et héritiers (1943)",null,null,"- v",null,null,null,"",""]
[null,2,null,null,null,75,169,"",1948,null,"Le Périer","!D0259","Maison","HOSTACHE Aimé époux RIBOT",null,null,"- v",null,null,null,"",""]
[null,1,"cn","0357","357, 694, 767",null,null,null,1840,1862,"Le Périer","!D0260","Maison","PELLORCE Pierre",null,null,"- v",null,null,null,"",""]
[null,1,357,"0357","113B",null,null,null,1862,1882,"Le Périer","!D0260p","Maison","PELLORCE Pierre",null,null,"- v",null,null,null,"",""]
[null,1,357,"0767","9 B",null,null,null,1862,1882,"Le Périer","!D0260p","Maison","BASSET Jean, instituteur",null,null,"- v",null,null,null,"",""]
[null,1,357,"0694","127B",null,null,null,1862,1882,"Le Périer","!D0260p (ou 200)","Maison","PELLORCE Pierre fils de Pierre",null,null,"- v",null,null,null,"",""]
[null,2,null,null,null,"",60,134,null,1923,"Périer","!D0260p","Maison","MOREL Auguste époux PELLORCE",null,null,{"$f":"IF(AND(INDIRECT(CONCATENATE(Q$3,ROW()))=\"\",INDIRECT(CONCATENATE(Q$4,ROW()))=\"\"),\"v v\",IF(INDIRECT(CONCATENATE(Q$3,ROW()))=\"\",\"v -\",IF(INDIRECT(CONCATENATE(Q$4,ROW()))=\"\",\"- v\",IF(INDIRECT(CONCATENATE(Q$3,ROW()))=INDIRECT(CONCATENATE(Q$4,ROW())),\"=\",\"<>\"))))","v":"- v"},null,null,null,"","",null,null,null,null,"Noté Perrier, corrigé - Le 16/11/24, était D360, corrigé en D260 car à la case 134 (qui vient de 60) on a bien D260"]
[null,2,null,null,null,60,134,"RB en 1943",1923,null,"Périer","!D0260p","Maison","HOSTACHE vve née BRUN à PELLORCE Noël son mari",null,null,"- v",null,null,null,"",""]
[null,2,null,null,null,60,134,"RB",1923,1943,"Périer","!D0261p","Maison","HOSTACHE vve née BRUN à PELLORCE Noël son mari",null,null,"- v",null,null,null,"",""]
[null,0,null,null,null,null,null,null,null,null,"Le Périer","!D0263","Maison","PELLORCE Vincent",null,null,"- v",null,null,null,"",""]
[null,1,null,"0349",370,null,null,null,null,1850,"Le Périer","!D0263","Maison","PELLORCE Vincent",null,null,"- v",null,null,null,"",""]
[null,1,null,"0372",null,null,null,null,1850,1858,"Le Périer","!D0263","Maison","PELLORCE Vincent fils de Vincent",null,null,"- v",null,null,null,"",""]
[null,1,370,"0129","558, 559",null,null,null,1858,1866,"Le Périer","!D0263","Maison","DUPRE Laurent",null,null,"- v",null,null,null,"",""]
[null,1,null,"0558",null,null,null,null,1866,1868,"Le Périer","!D0263p","Maison","PELLORCE Etienne feu Louis, PELLORCE Laurent feu Etienne",null,null,"- v",null,null,null,"",""]
[null,1,114,"0569","108, 109 B",null,null,null,1866,"1882","Le Périer","!D0263p","Maison","PELLORCE Félix",null,null,"- v",null,null,null,"","",null,null,null,null,null,"1882 (sol 1886)"]
[null,1,null,"0354",558,null,null,null,1868,1869,"Le Périer","!D0263p","Maison","PELLORCE Félix",null,null,"- v",null,null,null,"",""]
[null,1,354,"0569","108, 109 B",null,null,null,1869,"1882","Le Périer","!D0263p","Maison","PELLORCE Félix",null,null,"- v",null,null,null,"","",null,null,null,null,null,"1882 (sol 1886)"]
[null,2,null,null,null,"",79,"D",null,1926,"Perrier","!D0263p","Maison","PELLORCE Pierre Louis fils à Louis",null,null,"- v",null,null,null,"",""]
[null,0,null,null,null,null,null,null,null,null,"Le Périer","!D0264","Maison","DUPRE Laurent",null,null,"- v",null,null,null,"",""]
[null,1,"démolie","0105",null,null,null,null,null,1840,"Le Périer","!D0264","Maison démolie","DUPRE Laurent",null,null,"- v",null,null,null,"",""]
[null,1,"nc","0565",566,null,null,null,1841,1845,"Le Périer","!D0264","Maison CN","BELLET Auguste feu Etienne",null,null,"- v",null,null,null,"",""]
[null,1,"cn","0106",null,null,null,null,1842,1847,"Le Périer","!D0264","Maison","DODE louis et Pierre et PELLORCE Vincent",null,null,"- v",null,null,null,"",""]
[null,1,105,"0212","4--",null,null,null,1847,1877,"Le Périer","!D0264","Maison","RIVOIRE Amable feu Paul",null,null,"- v",null,null,null,"",""]
[null,1,98,"0436",null,null,null,null,1877,"1882","Le Périer","!D0264","Maison","RIVOIRE Pierre fils d'Aimable",null,null,"- v",null,null,null,"","",null,null,null,null,null,"1882 (sol 1913)"]
[null,2,null,null,null,"",109,"",null,1913,"Le Périer","!D0264","Maison","RIVOIRE Pierre fils d'Aimable",null,null,"- v",null,null,null,"",""]
[null,2,null,null,null,"",109,"",1913,1925,"Le Périer","!D0264","Maison","PELLORCE Jean Louis époux BLANC",null,null,"- v",null,null,null,"",""]
[null,2,null,null,null,"",109,"Dém",1925,1943,"Le Périer","!D0264","Maison","VINCON Paul époux PELLORCE, PELLORCE Jules, Thomas et Louise",null,null,{"$f":"IF(AND(INDIRECT(CONCATENATE(Q$3,ROW()))=\"\",INDIRECT(CONCATENATE(Q$4,ROW()))=\"\"),\"v v\",IF(INDIRECT(CONCATENATE(Q$3,ROW()))=\"\",\"v -\",IF(INDIRECT(CONCATENATE(Q$4,ROW()))=\"\",\"- v\",IF(INDIRECT(CONCATENATE(Q$3,ROW()))=INDIRECT(CONCATENATE(Q$4,ROW())),\"=\",\"<>\"))))","v":"- v"},null,null,null,"",""]
[null,0,null,null,null,null,null,null,null,null,"Le Périer","!D0265","Maison","DUPRE Laurent",null,null,"- v",null,null,null,"",""]
[null,1,null,"0157",341,null,null,null,null,1834,"Le Périer","!D0265","Maison","DUPRE Laurent et consorts",null,null,"- v",null,null,null,"",""]
[null,1,157,"0341",390,null,null,null,1834,1858,"Le Périer","!D0265","Maison","PELLORCE Louis",null,null,"- v",null,null,null,"",""]
[null,1,341,"0730","129 B",null,null,null,1858,1882,"Le Périer","!D0265","Maison","PELLORCE Pierre Louis fils de Louis",null,null,"- v",null,null,null,"",""]
[null,2,null,null,null,"",79,75,null,"1943","Perrier","!D0265","Maison","PELLORCE Pierre Louis fils à Louis",null,null,"- v",null,null,null,"","",null,null,null,null,"Corrigé de E en D","1943 -"]
[null,2,null,null,null,79,75,"",1943,null,"Perrier","!D0265","Maison","PELLORCE Jean Louis époux BLANC, vve et héritiers (1943)",null,null,"- v",null,null,null,"",""]
[null,0,null,null,null,null,null,null,null,null,"Le Périer","!D0266","Maison","CHALVIN Laurent",null,null,"- v",null,null,null,"",""]
[null,0,null,null,null,null,null,null,null,null,"Le Périer","!D0266b","Maison","CHALVIN Laurent",null,null,"- v",null,null,null,"",""]
[null,1,null,"0089",24,null,null,null,null,1848,"Le Périer","!D0266","Maison","CHALVIN Antoine",null,null,"- v",null,null,null,"",""]
[null,1,89,"0024","?",null,null,null,1848,1855,"Le Périer","!D0266","Maison","PELLORCE Laurent fils d'Alexandre",null,null,"- v",null,null,null,"",""]
[null,1,24,"0680","scotch",null,null,null,1855,1873,"Le Périer","!D0266bis","Maison","CHALVIN Pierre feu Antoine",null,null,"- v",null,null,null,"",""]
[null,1,91,"0691","34 B",null,null,null,1866,1882,"Le Périer","!D0266","Maison","DORVILLE André, ARNOL",null,null,"- v",null,null,null,"",""]
[null,1,680,"0730","129 B",null,null,null,1873,1882,"Le Périer","!D0266bis","Maison","PELLORCE Pierre Louis fils de Louis",null,null,"- v",null,null,null,"",""]
[null,2,null,null,null,"",79,75,null,"1943","Perrier","!D0266bis","Maison","PELLORCE Pierre Louis fils à Louis",null,null,"- v",null,null,null,"","",null,null,null,null,"Corrigé de E en D","1943 -"]
[null,2,null,null,null,79,75,"",1943,null,"Perrier","!D0266","Maison","PELLORCE Jean Louis époux BLANC, vve et héritiers",null,null,"- v",null,null,null,"",""]
[null,2,null,null,null,"",83,"",null,1915,"Perrier","!D0266","Maison","PELLORCE Vincent époux DUSSERT",null,null,"- v",null,null,null,"",""]
[null,2,null,null,null,"",83,"RB",1915,1943,"Perrier","!D0266","Maison","RIVOIRE Léon époux CAIX",null,null,"- v",null,null,null,"",""]
[null,2,null,null,null,"RB",83,"",1943,null,"Perrier","!D0266","Maison","RIVOIRE Léon époux CAIX, héritiers",null,null,"- v",null,null,null,null,""]
[null,0,null,null,null,null,null,null,null,null,"Le Périer","!D0268","Four rural","PELLORCE Vincent",null,null,"- v",null,null,null,"",""]
[null,1,349,"0353",730,null,null,null,1850,1858,"Le Périer","!D0268","Four rural","PELLORCE Louis",null,null,"- v",null,null,null,"",""]
[null,1,341,"0730",null,null,null,null,1858,null,"Le Périer","!D0268","Four rural","PELLORCE Pierre Louis fils de Louis",null,null,"- v",null,null,null,"",""]
[null,0,null,null,null,null,null,null,null,null,"Le Périer","!D0269","Maison","BELLET Etienne les héritiers",null,null,"- v",null,null,null,"",""]
[null,1,null,"0040","?",null,null,null,null,1837,"Le Périer","!D0269","Maison","BELLET (François)",null,null,"- v",null,null,null,"",""]
[null,1,40,"0565","C (sol 566)",null,null,null,1837,"1841","Le Périer","!D0269","Maison","BELLET Auguste feu Etienne",null,null,"- v",null,null,null,"","",null,null,null,null,null,"1841 (sol 1845)"]
[null,1,null,"0566",null,null,null,null,1837,1841,"Le Périer","!D0269","Maison","BELLET Pierre feu Etienne",null,null,"- v",null,null,null,"",""]
[null,1,40,"0567","démolie (sol 388)",null,null,null,1837,"1842","Le Périer","!D0269","Maison démolie","BELLET Marie feu Etienne",null,null,"- v",null,null,null,"","",null,null,null,null,null,"1842 (sol 1848)"]
[null,1,null,"0568",null,null,null,null,1837,1845,"Le Périer","!D0269","Maison","BELLET Arey feu Etienne",null,null,"- v",null,null,null,"",""]
[null,1,null,"0570",null,null,null,null,1837,"1882","Le Périer","!D0269","Maison","BELLET François fils Cr?",null,null,"- v",null,null,null,"","",null,null,null,null,null,"1882 (sol 1899)"]
[null,1,null,"0570",null,null,null,null,1841,"1882","Le Périer","!D0269","Maison","BELLET François fils Cr?",null,null,"- v",null,null,null,"","",null,null,null,null,null,"1882 (sol 1893)"]
[null,1,null,"0566",null,null,null,null,1845,1882,"Le Périer","!D269","Maison","BELLET Pierre feu Etienne",null,null,"- v",null,null,null,""]
[null,1,null,"0388",null,null,null,null,1856,1882,"Le Périer","!D0269",null,"BLANC Joseph",null,null,"- v",null,null,null,"",""]
[null,1,559,"0076",null,null,null,null,1869,1877,"Le Périer","!D0269p","Maison","CAIX Eugène",null,null,"- v",null,null,null,"",""]
[null,1,76,"0613","sol 828",null,null,null,1877,null,"Le Périer","!D0269","Maison","PELLORCE Félix (feu) Laurent",null,null,"- v",null,null,null,"","",null,null,null,null,null,"(sol 1891)"]
[null,1,388,"0029","898, 899",null,null,null,1885,1891,"Le Périer","!D0269","Sol et cour","BLANC Joseph vve REYMOND Louise",null,null,"- v",null,null,null,"",""]
[null,2,null,null,null,"",68,126,null,1923,"Perrier","!D0269","Maison","PAYAN Félix fils",null,null,"- v",null,null,null,"",""]
[null,2,null,null,null,68,126,158,1923,1935,"Périer","!D0269","Maison","PAYAN Honoré, rentier",null,null,"- v",null,null,null,"",""]
[null,2,null,null,null,"126, dém en 43",158,"dém en 1943, 183",1935,1955,"Périer","!D0269","Maison","RECROSIO Pierre Martin époux BADIN",null,null,"- v",null,null,null,"",""]
[null,2,null,null,null,158,183,"",1955,null,"Périer","!D0269","Maison","PELLORCE Vincent Théophile époux OUGIER, rentier",null,null,"- v",null,null,null,"",""]
[null,1,null,"0390",null,null,null,null,1866,1882,"Le Périer","!D0270","Maison","BLANC Joseph",null,null,"- v",null,null,null,"",""]
[null,0,null,null,null,null,null,null,null,null,"Le Périer","!D0271","Maison","PELLORCE Denis",null,null,"- v",null,null,null,"",""]
[null,1,null,"0391",577,null,null,null,null,1837,"Le Périer","!D0271","Maison","PELLORCE (Denis) père",null,null,"- v",null,null,null,"",""]
[null,1,391,"0577",580,null,null,null,1837,1846,"Le Périer","!D0271","Maison","PELLORCE Pierre feu Denis",null,null,"- v",null,null,null,"",""]
[null,1,577,580,null,null,null,null,1846,1882,"Le Périer","!D0271","Mais rurale","PELLORCE Pierre fils à Vincnet",null,null,"- v",null,null,null,"",""]
[null,2,null,null,null,"",83,87,null,1915,"Perrier","!D0271","Maison","PELLORCE Vincent époux DUSSERT",null,null,"- v",null,null,null,"",""]
[null,2,null,null,null,83,87,"RB",1915,1938,"Le Périer","!D0271","Maison","RANQUE Joseph Louis gendre PELLORCE",null,null,"- v",null,null,null,"",""]
[null,2,null,null,null,"",87,"",1938,1943,"Le Périer","!D0271","Maison","HAMELIN Jean Emile époux RANQUE",null,null,"- v",null,null,null,"",""]
[null,2,null,null,null,"RB",87,"",1943,1947,"Le Périer","!D0271","Maison","HAMELIN Jean Emile époux RANQUE",null,null,"- v",null,null,null,"",""]
[null,2,null,null,null,"",87,"",1947,null,"Le Périer","!D0271","Maison","HAMELIN Jean Emile époux RANQUE, héritiers",null,null,"- v",null,null,null,"",""]
[null,0,null,null,null,null,null,null,null,null,"Le Périer","!D0273","Maison","PELLORCE Vincent",null,null,"- v",null,null,null,"",""]
[null,1,null,349,580,null,null,null,null,1838,"Le Périer","!D0273","Maison","PELLORCE Vincent",null,null,"- v",null,null,null,"",""]
[null,1,349,580,"116B (sol 967)",null,null,null,1838,1882,"Le Périer","!D0273","Maison","PELLORCE Pierre fils à Vincent",null,null,"- v",null,null,null,"","",null,null,null,null,null,"1882 (sol 1895)"]
[null,2,null,null,null,"",83,87,null,1915,"Perrier","!D0273","Maison","PELLORCE Vincent époux DUSSERT",null,null,"- v",null,null,null,"",""]
[null,2,null,null,null,83,87,"RB",1915,1938,"Le Périer","!D0273","Maison","RANQUE Joseph Louis gendre PELLORCE",null,null,"- v",null,null,null,"",""]
[null,2,null,null,null,"",87,"",1938,1943,"Le Périer","!D0273","Maison","HAMELIN Jean Emile époux RANQUE",null,null,"- v",null,null,null,"",""]
[null,2,null,null,null,"RB",87,"",1943,1947,"Le Périer","!D0273","Maison","HAMELIN Jean Emile époux RANQUE",null,null,"- v",null,null,null,"",""]
[null,2,null,null,null,"",87,"",1947,null,"Le Périer","!D0273","Maison","HAMELIN Jean Emile époux RANQUE, vve et héritiers",null,null,"- v",null,null,null,"",""]
[null,0,null,null,null,null,null,null,null,null,"Le Périer","!D0274","Maison rurale","PELLORCE Vincent",null,null,"- v",null,null,null,"",""]
[null,1,null,"0349",580,null,null,null,null,1838,"Le Périer","!D0274","Mais rurale","PELLORCE Vincent",null,null,"- v",null,null,null,"",""]
[null,1,349,"0580","9--",null,null,null,1838,1895,"Le Périer","!D0274","Mais rurale","PELLORCE Pierre fils à Vincent",null,null,"- v",null,null,null,"",""]
[null,1,"cn","0603","116 B",null,null,null,1855,1882,"Le Périer","!D0274","Maison","PELLORCE Pierre fils à Vincent",null,null,"- v",null,null,null,"",""]
[null,1,580,"0933",null,null,null,null,1895,null,"Le Périer","!D0274","Mais rurale","PELLORCE Vincent époux DUSSERT",null,null,"- v",null,null,null,"",""]
[null,2,null,null,null,"",83,87,null,1915,"Perrier","!D0274","Maison","PELLORCE Vincent époux DUSSERT",null,null,"- v",null,null,null,"",""]
[null,2,null,null,null,83,87,"RB",1915,1938,"Le Périer","!D0271","Maison","RANQUE Joseph Louis gendre PELLORCE",null,null,"- v",null,null,null,"",""]
[null,2,null,null,null,"",87,"",1938,1943,"Le Périer","!D0271","Maison","HAMELIN Jean Emile époux RANQUE",null,null,"- v",null,null,null,"",""]
[null,2,null,null,null,"RB",87,"",1943,1947,"Le Périer","!D0271","Maison","HAMELIN Jean Emile époux RANQUE",null,null,"- v",null,null,null,"",""]
[null,2,null,null,null,"",87,"",1947,null,"Le Périer","!D0271","Maison","HAMELIN Jean Emile époux RANQUE, héritiers",null,null,"- v",null,null,null,"",""]
[null,1,"cn","0091",276,null,null,null,1837,1873,"Le Périer","!D0278","Maison","(CHALVIN)",null,null,"- v",null,null,null,"",""]
[null,1,null,"0276","9--",null,null,null,1873,1881,"Le Périer","!D0278","Maison","DORVILLE André la vve Née CHALVN Louise",null,null,"- v",null,null,null,"",""]
[null,1,276,"0691","34 B",null,null,null,1881,1882,"Le Périer","!D0278","Maison","DORVILLE André, ARNOL",null,null,"- v",null,null,null,"",""]
[null,2,null,null,null,"",83,null,null,1915,"Perrier","!D0278","Maison","PELLORCE Vincent époux DUSSERT",null,null,"- v",null,null,null,"",""]
[null,2,null,null,null,"RB",83,null,1915,1943,"Perrier","!D0278","Maison","RIVOIRE Léon époux CAIX",null,null,"- v",null,null,null,"",""]
[null,2,null,null,null,"",83,"RB en 1943",1943,"RB","Perrier","!D0278","Maison","RIVOIRE Léon époux CAIX, héritiers",null,null,"- v",null,null,null,"",""]
[null,0,null,null,null,null,null,null,null,null,"Le Périer","!D0280","Maison","MICHEL Georges",null,null,"- v",null,null,null,"",""]
[null,1,null,"0313","démolie (sol 745)",null,null,null,null,1865,"Le Périer","!D0280","Maison démolie","MICHEL (Georges)",null,null,"- v",null,null,null,"","",null,null,null,null,null,"1865 (sol 1869)"]
[null,0,null,null,null,null,null,null,null,null,"Le Périer","!D0281","Maison rurale","PELLORCE Vincent",null,null,"- v",null,null,null,"",""]
[null,1,null,"0362",null,null,null,null,null,1857,"Le Périer","!D0281","Mais rurale","PELLORCE Vincent, GARDEN Louise feu Jean",null,null,"- v",null,null,null,"",""]
[null,1,369,"0688",586,null,null,null,1857,1868,"Le Périer","!D0281","Bât rural","RIVOIRE Louis fils Joseph",null,null,{"$f":"IF(AND(INDIRECT(CONCATENATE(Q$3,ROW()))=\"\",INDIRECT(CONCATENATE(Q$4,ROW()))=\"\"),\"v v\",IF(INDIRECT(CONCATENATE(Q$3,ROW()))=\"\",\"v -\",IF(INDIRECT(CONCATENATE(Q$4,ROW()))=\"\",\"- v\",IF(INDIRECT(CONCATENATE(Q$3,ROW()))=INDIRECT(CONCATENATE(Q$4,ROW())),\"=\",\"<>\"))))","v":"- v"},null,null,null,"",""]
[null,1,688,"0605",771,null,null,null,1868,1869,"Le Périer","!D0281","Bât rural","PELLORCE Pierre fils à Vincent",null,null,"- v",null,null,null,"",""]
[null,1,180,"0711",942,null,null,null,1869,1904,"Le Périer","!D0281","Bât rural","PELLORCE Pierre fils de BLANC Magdeleine",null,null,"- v",null,null,null,"",""]
[null,1,711,"0949",null,null,null,null,1904,null,"Le Périer","!D0281","Bât rural","PAYAN Félix fils",null,null,"- v",null,null,null,"",""]
[null,0,null,null,null,null,null,null,null,null,"Le Périer","!D0282","Maison","PELLORCE Vincent",null,null,"- v",null,null,null,"",""]
[null,1,362,"0395",362,null,null,null,1837,1840,"Le Périer","!D0282","Maison","PELLORCE Denis fils à Denis",null,null,"- v",null,null,null,"",""]
[null,1,null,"0362",null,null,null,null,1840,1837,"Le Périer","!D0282","Maison","PELLORCE Vincent, GARDEN Louise feu Jean",null,null,"- v",null,null,null,"",""]
[null,1,395,"0363",711,null,null,null,1840,1857,"Le Périer","!D0282","Maison","PELLORCE Vincent",null,null,"- v",null,null,null,"",""]
[null,1,362,"0711","125 B (sol 942)",null,null,null,1857,"1882","Le Périer","!D0282","Maison","PELLORCE Pierre fils de BLANC Magdeleine",null,null,"- v",null,null,null,"","",null,null,null,null,null,"1882 (sol 1904)"]
[null,2,null,null,null,"",68,135,null,1923,"Perrier","!D0282","Maison","PAYAN Félix fils",null,null,"- v",null,null,null,"",""]
[null,2,null,null,null,68,135,"D",1923,1926,"Périer","!D0282","Maison","RIVOIRE Jules, fils de Léon",null,null,"- v",null,null,null,"",""]
[null,0,null,null,null,null,null,null,null,null,"Le Périer","!D0283","Maison","PELLORCE Vincent",null,null,"- v",null,null,null,"",""]
[null,1,null,"0349",341,null,null,null,null,"1838","Le Périer","!D0283","Maison","PELLORCE Vincent",null,null,"- v",null,null,null,"","",null,null,null,null,null,"1838 (1850)"]
[null,1,349,"0353",283,null,null,null,1850,1858,"Le Périer","!D0283","Maison","PELLORCE Louis",null,null,"- v",null,null,null,"",""]
[null,1,null,"0282","34-",null,null,null,1858,1875,"Le Périer","!D0283","Maison","REYMOND Joseph André",null,null,"- v",null,null,null,"",""]
[null,1,283,"0172","(156)",null,null,null,1875,1882,"Le Périer","!D0283","Maison","RIVOIRE Joseph fils de Joseph",null,null,"- v",null,null,null,"",""]
[null,2,null,null,null,"",107,132,null,1922,"Le Périer","!D0283p","Maison","RIVOIRE Joseph fils de Joseph",null,null,"- v",null,null,null,null,""]
[null,2,null,null,null,107,132,"",1922,1943,"Le Périer","!D0283p","Maison","RIVOIRE Marie, épouse FAVIER, sage femme",null,null,"- v",null,null,null,"",""]
[null,2,null,null,null,"",132,"",1943,null,"Le Périer","!D0283p","Maison","COUCHOUD Gabriel, époux DUSSERT",null,null,"- v",null,null,null,"",""]
[null,0,null,null,null,null,null,null,null,null,"Le Périer","!D0284","Maison","GUILLET Pierre",null,null,"- v",null,null,null,"",""]
[null,1,null,"0264",null,null,null,null,null,1838,"Le Périer","!D0284","Maison","GUILLET (Pierre)",null,null,"- v",null,null,null,"",""]
[null,1,null,"0270",578,null,null,null,null,1841,"Le Périer","!D0284","Maison","GUILLET Jacques, GUILLET Claude feu Pierre (1840)",null,null,"- v",null,null,null,"",""]
[null,1,null,"0578",null,null,null,null,1835,1840,"Le Périer","!D0284","Maison","BELLET Magdeleine",null,null,"- v",null,null,null,"",""]
[null,1,270,"0587","704, 587",null,null,null,1841,1857,"Le Périer","!D0284","Maison","GUILLET Pierre",null,null,"- v",null,null,null,"",""]
[null,1,587,"0587",172,null,null,null,1857,1858,"Le Périer","!D0284p","Maison","GUILLET Pierre",null,null,"- v",null,null,null,"",""]
[null,1,587,"0704",172,null,null,null,1857,1863,"Le Périer","!D0284","Maison","FLEUR Vincent",null,null,"- v",null,null,null,"",""]
[null,1,704,"0172","15-",null,null,null,1863,1882,"Le Périer","!D0284p","Maison","RIVOIRE Joseph fils de Joseph",null,null,"- v",null,null,null,"",""]
[null,1,587,"0172","(156B)",null,null,null,1878,1882,"Le Périer","!D0284","Maison","RIVOIRE Joseph fils de Joseph",null,null,"- v",null,null,null,"",""]
[null,2,null,null,null,"",107,131,null,1922,"Le Périer","!D0284","Maison","RIVOIRE Joseph fils de Joseph",null,null,null,null,null,null,""]
[null,2,null,null,null,107,131,"Dém",1922,1943,"Le Périer","!D0284","Maison","RIVOIRE Jean Joseph, gendarme ",null,null,"- v",null,null,null,"",""]
[null,1,457,"0508",102,null,null,null,1853,1899,"Le Périer *","!D0285bis *","Mais rurale","REYMOND André fils de Joseph",null,null,"- v",null,null,null,"","",null,null,null,null,"Noté A285 à Les Broue, corrigé D285 au Périer"]
[null,2,null,null,null,"",107,131,null,1922,"Le Périer","!D0287","Maison","RIVOIRE Joseph fils de Joseph",null,null,"- v",null,null,null,"",""]
[null,0,null,null,null,null,null,null,null,null,"La Grange","!D0313","Maison","BRUTIN Antoine",null,null,"- v",null,null,null,"",""]
[null,1,null,"0055",54,null,null,null,null,1839,"La Grange","!D0313","Maison","BRUTIN André",null,null,"- v",null,null,null,"",""]
[null,1,55,"0055",58,null,null,null,null,"(184","La Grange","!D0313","Maison","BRUTIN André",null,null,"- v",null,null,null,"","",null,null,null,null,null,"(1844) 1839"]
[null,1,55,"0054",769,null,null,null,1839,1868,"La Grange","!D0313","Maison","BLANC Jean",null,null,"- v",null,null,null,"",""]
[null,1,55,"0058","?",null,null,null,1844,1851,"La Grange","!D0313","Maison","BRUTIN Séraphin feu Joseph",null,null,"- v",null,null,null,"",""]
[null,1,"cn","0656",670,null,null,null,1858,1862,"La Grange","!D0313","Maison","FLEUR Pierre Auguste feu Mathieu",null,null,"- v",null,null,null,"",""]
[null,1,656,"0670","14 B",null,null,null,1862,1882,"La Grange","!D0313","Maison","BLANC Joseph fils de Jean",null,null,"- v",null,null,null,"",""]
[null,1,54,"0769","15 B (sol 929)",null,null,null,1868,"1882","La Grange","!D0313p","Maison","BLANC Louis fils de Jean, BEILLIER Eugène,  BLANC Marie",null,null,"- v",null,null,null,"","",null,null,null,null,null,"1882 (sol 1893)"]
[null,2,null,null,null,"",12,43,null,1920,"La Grange","!D0313","Maison","BLANC Joseph fils de Jean",null,null,"- v",null,null,null,"",""]
[null,2,null,null,null,"",43,"",null,1912,"La Grange","!D0313p","Maison","FLEUR Rémy époux BLANC",null,null,"- v",null,null,null,"",""]
[null,2,null,null,null,"",43,"Dém 1921",1912,1923,"La Grange","!D0313p","Maison","BLANC Joseph, instituteur",null,null,"- v",null,null,null,"",""]
[null,2,null,null,null,43,136,137,1924,1935,"La Grange","!D0313","Maison","BLANC Rémy époux DUSSERT Léonie",null,null,"- v",null,null,null,"",""]
[null,2,null,null,null,136,137,"RB",1935,1943,"La Grange","!D0313","Maison","BLANC Rémy époux DUSSERT Léonie",null,null,"- v",null,null,null,"",""]
[null,2,null,null,null,"RB",137,"186 dem",1943,1955,"La Grange","!D0313","Maison","GUERAUD Gustave époux BLANC",null,null,"- v",null,null,null,"",""]
[null,2,null,null,null,12,43,136,1920,1924,"La Grange","!D0318","Maison","BLANC Joseph, instituteur",null,null,"- v",null,null,null,"",""]
[null,0,null,null,null,null,null,null,null,null,"La Grange","!D0326","Bâtiment","SARRET Jean",null,null,"- v",null,null,null,"",""]
[null,1,null,"0514","(608)",null,null,null,null,1853,"La Grange","!D0326","Bâtiment","SARRET Jean",null,null,"- v",null,null,null,"",""]
[null,1,514,"0665",640,null,null,null,1853,1857,"La Grange","!D0326p","Bâtiment","SARRET (Anne) feu Jean",null,null,"- v",null,null,null,"",""]
[null,1,665,"0640",null,null,null,null,1857,1876,"La Grange","!D0326p","Maison","SARRET Joseph fils de Jean",null,null,"- v",null,null,null,"",""]
[null,1,640,"0664",650,null,null,null,1876,1879,"La Grange","!D0326p","Maison","SARRET Antoine vve RANQUE",null,null,"- v",null,null,null,"",""]
[null,1,640,"0671","14 B",null,null,null,1876,1882,"La Grange","!D0326p","Maison","BLANC Joseph fils de Jean",null,null,"- v",null,null,null,"",""]
[null,1,null,"0256",null,null,null,null,1879,"1882","La Grange","!D0326p","Maison","GIROUD Blaise DUSSERT Pierre Laurent fils de Pierre",null,null,"- v",null,null,null,"","",null,null,null,null,null,"1882 (sol 1907)"]
[null,1,null,"0658",null,null,null,null,1879,"1882","La Grange","!D0326p","Maison","DUSSERT Pierre feu Louis",null,null,"- v",null,null,null,"","",null,null,null,null,null,"1882 (sol 1894)"]
[null,2,null,null,null,"",12,43,null,1920,"La Grange","!D0326p","Maison","BLANC Joseph fils de Jean",null,null,"- v",null,null,null,"",""]
[null,2,null,null,null,12,43,137,1920,1926,"La Grange","!D0326p","Maison","BLANC Joseph, instituteur",null,null,"- v",null,null,null,"",""]
[null,2,null,null,null,43,137,"RB",1926,1943,"La Grange","!D0326","Maison","BLANC Rémy époux DUSSERT Léonie, GUERAUD Gustave époux BLANC (1943)",null,null,"- v",null,null,null,"",""]
[null,2,null,null,null,"RB",137,"186 dém",1943,1955,"La Grange","!D0326","Maison","BLANC Rémy époux DUSSERT Léonie, GUERAUD Gustave époux BLANC (1943)",null,null,"- v",null,null,null,"",""]
[null,2,null,null,null,137,186,"",1955,null,"La Grange","!D0326","Maison","GAMBY Maurice époux GUERAUD",null,null,"- v",null,null,null,"",""]
[null,0,null,null,null,null,null,null,null,null,"La Grange","!D0327","Maison","VERRAT Pierre",null,null,"- v",null,null,null,"",""]
[null,1,null,"0532","?",null,null,null,null,1861,"La Grange","!D0327","Maison","VEYRAT Pierre",null,null,"- v",null,null,null,"",""]
[null,1,532,"0275","167B",null,null,null,1861,1882,"La Grange","!D0327","Maison","DUSSERT Jacques feu Jacques, VEYRAT Joseph fils de Pierre",null,null,"- v",null,null,null,"",""]
[null,0,null,null,null,null,null,null,null,null,"La Grange","!D0328","Maison","CAIX Marguerite",null,null,"- v",null,null,null,"",""]
[null,1,null,"0064",81,null,null,null,null,1832,"La Grange","!D0328","Maison","CAIX (Serge)",null,null,"- v",null,null,null,"",""]
[null,2,null,null,null,"",69,"",null,1935,"La Grange","!D0328","Maison","PAYAN vve née PELLORCE",null,null,"- v",null,null,null,"",""]
[null,2,null,null,null,"",69,158,1935,1949,"La Grange","!D0328","Maison","DODE Henri Auguste Hyppolite",null,null,"- v",null,null,null,"",""]
[null,2,null,null,null,69,158,"",1949,null,"La Grange","!D0328","Maison","RECROSIO Pierre Martin époux BADIN",null,null,"- v",null,null,null,"",""]
[null,0,null,null,null,null,null,null,null,null,"La Grange","!D0329","Maison","CAIX Marguerite",null,null,"- v",null,null,null,"",""]
[null,1,null,"0081",559,null,null,null,null,1882,"La Grange","!D0329","Maison","CAIX (Claire), MICHEL Denis",null,null,{"$f":"IF(AND(INDIRECT(CONCATENATE(Q$3,ROW()))=\"\",INDIRECT(CONCATENATE(Q$4,ROW()))=\"\"),\"v v\",IF(INDIRECT(CONCATENATE(Q$3,ROW()))=\"\",\"v -\",IF(INDIRECT(CONCATENATE(Q$4,ROW()))=\"\",\"- v\",IF(INDIRECT(CONCATENATE(Q$3,ROW()))=INDIRECT(CONCATENATE(Q$4,ROW())),\"=\",\"<>\"))))","v":"- v"},null,null,null,"",""]
[null,1,64,"0081",1069,null,null,null,1832,"1882","La Grange","!D0329","Maison","CAIX (Claire), MICHEL Denis",null,null,"- v",null,null,null,"","",null,null,null,null,null,"1882 (sol en 1907)"]
[null,1,81,"0848","(7)8(1)",null,null,null,1882,"1882","La Grange","!D0329","Maison","OUGIER Jean Baptiste feu Sébastien",null,null,"- v",null,null,null,"","",null,null,null,null,null,"1882 (Sol en 1889)"]
[null,1,848,"0878",1069,null,null,null,1883,1907,"La Grange","!D0329","Sol","MICHEL Marie vve OUGIER Jean-Baptiste",null,null,"- v",null,null,null,"",""]
[null,1,878,1069,239,null,null,null,1907,1909,"La Grange","!D0329","Sol","PAYAN vve née PELLORCE Adélaïde",null,null,"- v",null,null,null,"",""]
[null,1,1069,"0239",null,null,null,null,1909,null,"La Grange","!D0329","Sol","PELLORCE Jean-Denis, fille de feu Denis ; PAYAN Honoré ; PAYAN vve née PELLORCE Adeline",null,null,"- v",null,null,null,"",""]
[null,0,null,null,null,null,null,null,null,null,"La Grange","!D0331","Maison","BLANC Joseph",null,null,"- v",null,null,null,"",""]
[null,1,null,"0051",650,null,null,null,null,1853,"La Grange","!D0331","Maison","BLANC Joseph",null,null,"- v",null,null,null,"",""]
[null,1,51,"0650","49 B",null,null,null,1853,"1882","La Grange","!D0331","Maison","DUSSERT Pierre feu Louis",null,null,"- v",null,null,null,"","",null,null,null,null,null,"1882 (sol 1894)"]
[null,2,null,null,null,"",31,"RB",null,1926,"La Grange","!D0331","Maison","Mme BLANC Rémy née DUSSERT Léonie",null,null,"- v",null,null,null,"",""]
[null,2,null,null,null,"RB",31,137,1926,1943,"La Grange","!D0331","Maison","Mme BLANC Rémy née DUSSERT Léonie",null,null,"- v",null,null,null,"",""]
[null,2,null,null,null,31,137,187,1943,1955,"La Grange","!D0331","Maison","GUERAUD Gustave époux BLANC",null,null,"- v",null,null,null,"",""]
[null,2,null,null,null,137,187,"",1955,1957,"La Grange","!D0331","Maison","GUERAUD Rémy Rémi, ingénieur",null,null,"- v",null,null,null,"",""]
[null,2,null,null,null,null,187,"",1957,null,"La Grange","!D0331","Maison","BUCHOT Elise Georgette",null,null,"- v",null,null,null,"",""]
[null,0,null,null,null,null,null,null,null,null,"La Grange","!D0339","Grange","VEYRAT Pierre",null,null,"- v",null,null,null,"",""]
[null,1,null,"0532","(875)",null,null,null,null,1861,"La Grange","!D0339","Grange","VEYRAT Pierre",null,null,"- v",null,null,null,"",""]
[null,1,532,"0275",null,null,null,null,1861,null,"La Grange","!D0339","Grange","VEYRAT Joseph",null,null,"- v",null,null,null,"",""]
[null,0,null,null,null,null,null,null,null,null,"La Grange","!D0343","Maison","BLANC Jean",null,null,"- v",null,null,null,"",""]
[null,1,61,"0053",141,null,null,null,1841,1869,"La Grange","!D0343","Maison","BLANC Pierre",null,null,"- v",null,null,null,"",""]
[null,1,53,"0141","100B (Sol 239)",null,null,null,1869,"1882","La Grange","!D0343","Maison","PAYAN Félix",null,null,"- v",null,null,null,"","",null,null,null,null,null,"1882 (Sol en 1904)"]
[null,2,null,null,null,"",69,126,null,1921,"La Grange","!D0343","Maison","PAYAN vve née PELLORCE",null,null,"- v",null,null,null,"",""]
[null,2,null,null,null,69,126,"",1921,1943,"La Grange","!D0343","Maison","PAYAN Honoré, rentier",null,null,"- v",null,null,null,"",""]
[null,2,null,null,null,"",126,"",1943,1951,"La Grange","!D0343","Maison","PAYAN Honoré, vve et héritiers",null,null,"- v",null,null,null,"",""]
[null,2,null,null,null,"",126,"",1951,null,"La Grange","!D0343","Maison","PAYAN Honoré, héritiers",null,null,"- v",null,null,null,"",""]
[null,1,null,"0061",54,null,null,null,null,"(184","La Grange","!D0344","Maison","BLANC (Pierre)",null,null,"- v",null,null,null,"","",null,null,null,null,null,"(184?)"]
[null,0,null,null,null,null,null,null,null,null,"La Grange","!D0345","Maison","BLANC Jean",null,null,"- v",null,null,null,"",""]
[null,1,61,"0054",53,null,null,null,1841,1843,"La Grange","!D0345","Maison","BLANC Jean",null,null,"- v",null,null,null,"",""]
[null,1,54,"0053",141,null,null,null,1843,1869,"La Grange","!D0345","Maison","BLANC Pierre",null,null,"- v",null,null,null,"",""]
[null,1,53,"0141","100B (Sol 239)",null,null,null,1869,"1882","La Grange","!D0345","Maison","PAYAN Félix",null,null,"- v",null,null,null,"","",null,null,null,null,null,"1882 (Sol en 1909)"]
[null,2,null,null,null,"",69,126,null,1921,"La Grange","!D0345","Maison","PAYAN vve née PELLORCE",null,null,"- v",null,null,null,"",""]
[null,2,null,null,null,69,126,158,1921,1943,"La Grange","!D0345","Maison","PAYAN Honoré, rentier, vve et héritiers (1943), héritiers (1951)",null,null,"- v",null,null,null,"",""]
[null,1,null,"0267","123, 215",null,null,null,null,1852,"Chamrond *","!D0421","Maison","GUILLET Louis",null,null,"- v",null,null,null,"","",null,null,null,null,"Noté Sous la Broue, corrigé"]
[null,1,349,"0213",41,null,null,null,1838,1844,"Champrond","!D0434","Mais rurale","FLEUR Paul feu Claude",null,null,"- v",null,null,null,"",""]
[null,1,null,"0355",123,null,null,null,null,1851,"Sous la Broue","!D0451","Moulin","PELLORCE Pierre Etienne",null,null,"- v",null,null,null,"",""]
[null,1,355,"0123",86,null,null,null,1851,1880,"Sous la Broue","!D0451","Moulin en ruines","DEGOUL Pierre",null,null,"- v",null,null,null,"",""]
[null,1,123,"0086","77(2)",null,null,null,1880,1894,"Sous la Broue","!D0451","Moulin rural","DEGOUL Jules",null,null,"- v",null,null,null,"",""]
[null,1,86,"0778",256,null,null,null,1894,1895,"Sous la Broue","!D0451","Moulin rural","DEGOUL Adolphe",null,null,"- v",null,null,null,"",""]
[null,1,null,"0268",772,null,null,null,1895,null,"Sous la Broue","!D0451","Moulin rural","GIROUD Blaise",null,null,"- v",null,null,null,"",""]
[null,1,null,"0127",null,null,null,null,1837,1857,"Sous la Broue","!D0462","Maison","DUSSERT ?",null,null,"- v",null,null,null,"","",null,null,null,null,"Noté La Combe, corrigé"]
[null,0,null,null,null,null,null,null,null,null,"Sous la Broue","!D0472","Bâtiment","CAIX Pierre",null,null,"- v",null,null,null,"",""]
[null,1,553,"0075",555,null,null,null,null,null,"Sous la Broue","!D0472","Bâtiment","(CAIX Paul)",null,null,"- v",null,null,null,"",""]
[null,1,null,"0554",null,null,null,null,1836,1839,"Sous la Broue","!D0472","Maison","CAIX Joseph feu Pierre",null,null,"- v",null,null,null,"",""]
[null,1,75,"0553","555, 556",null,null,null,1836,1853,"Sous la Broue","!D0472","Maison","CAIX Félix, PELLORCE Marie, CAIX Alexandre",null,null,"- v",null,null,null,"",""]
[null,1,75,"0555",553,null,null,null,1836,1857,"Sous la Broue","!D0472","Maison","CAIX Pierre feu Pierre",null,null,"- v",null,null,null,"",""]
[null,1,null,"0556",null,null,null,null,1836,1882,"Sous la Broue","!D0472","Maison","CAIX Jean feu Pierre",null,null,"- v",null,null,null,"",""]
[null,1,554,"0243",556,null,null,null,1839,1846,"Sous la Broue","!D0472","Maison","GARCIN (Mel)",null,null,"- v",null,null,null,"",""]
[null,1,554,"0555",553,null,null,null,1839,1857,"Sous la Broue","!D0472","Maison","CAIX Pierre feu Pierre",null,null,"- v",null,null,null,"",""]
[null,1,555,"0553",842,null,null,null,1857,"1878","Sous la Broue","!D0472","Maison","CAIX Félix, PELLORCE Marie, CAIX Alexandre",null,null,{"$f":"IF(AND(INDIRECT(CONCATENATE(Q$3,ROW()))=\"\",INDIRECT(CONCATENATE(Q$4,ROW()))=\"\"),\"v v\",IF(INDIRECT(CONCATENATE(Q$3,ROW()))=\"\",\"v -\",IF(INDIRECT(CONCATENATE(Q$4,ROW()))=\"\",\"- v\",IF(INDIRECT(CONCATENATE(Q$3,ROW()))=INDIRECT(CONCATENATE(Q$4,ROW())),\"=\",\"<>\"))))","v":"- v"},null,null,null,"","",null,null,null,null,null,"1878 (sol 1877)"]
[null,1,553,"0555",553,null,null,null,1853,1857,"Sous la Broue","!D0472p","Maison","CAIX Pierre feu Pierre",null,null,"- v",null,null,null,"",""]
[null,1,null,"0556",null,null,null,null,1853,1882,"Sous la Broue","!D0472p","Maison","CAIX Jean feu Pierre",null,null,"- v",null,null,null,"",""]
[null,1,null,"0556",null,null,null,null,1853,1882,"Sous la Broue","!D0472p","Maison","CAIX Jean feu Pierre",null,null,"- v",null,null,null,"",""]
[null,1,553,"0842","?",null,null,null,1878,1888,"Sous la Broue","!D0472p","Maison","GONON Alphonse, cantonnier",null,null,"- v",null,null,null,"",""]
[null,2,null,null,null,"18 en 1943, 50 en 58",108,"RB",null,1913,"Sous la Broue","!D0472","Maison","RIVOIRE Louis feu Joseph, marchand forain",null,null,"- v",null,null,null,"",""]
[null,2,null,null,null,"",108,"RB en 1943",1913,1947,"Sous la Broue","!D0472","Maison","GONON Jean Baptiste Elie époux ARNOL",null,null,"- v",null,null,null,"",""]
[null,2,null,null,null,"RB",108,199,1947,1958,"Sous la Broue","!D0472","Maison","CROUZET Jean époux GONON, cultivateur et débitant",null,null,"- v",null,null,null,"",""]
[null,2,null,null,null,108,199,"",1958,null,"Sous la Broue","!D0472","Maison","PELLORCE Georges Louis Lucien",null,null,{"$f":"IF(AND(INDIRECT(CONCATENATE(Q$3,ROW()))=\"\",INDIRECT(CONCATENATE(Q$4,ROW()))=\"\"),\"v v\",IF(INDIRECT(CONCATENATE(Q$3,ROW()))=\"\",\"v -\",IF(INDIRECT(CONCATENATE(Q$4,ROW()))=\"\",\"- v\",IF(INDIRECT(CONCATENATE(Q$3,ROW()))=INDIRECT(CONCATENATE(Q$4,ROW())),\"=\",\"<>\"))))","v":"- v"},null,null,null,"",""]
[null,2,null,null,null,"Création en 1950",177,"",1952,null,"Sous la Broue","!D0472","Maison","BRUNET Innocent, ouvrier maçon",null,null,{"$f":"IF(AND(INDIRECT(CONCATENATE(Q$3,ROW()))=\"\",INDIRECT(CONCATENATE(Q$4,ROW()))=\"\"),\"v v\",IF(INDIRECT(CONCATENATE(Q$3,ROW()))=\"\",\"v -\",IF(INDIRECT(CONCATENATE(Q$4,ROW()))=\"\",\"- v\",IF(INDIRECT(CONCATENATE(Q$3,ROW()))=INDIRECT(CONCATENATE(Q$4,ROW())),\"=\",\"<>\"))))","v":"- v"},null,null,null,"",""]
[null,2,null,null,null,"",18,108,null,1926,"Sous la Broue","!D0472p","Maison","CAIX Jean feu Pierre",null,null,"- v",null,null,null,null,""]
[null,2,null,null,null,"",50,108,null,1943,"Sous la Broue","!D0472p","Maison","GONON Alphonse, cantonnier",null,null,{"$f":"IF(AND(INDIRECT(CONCATENATE(Q$3,ROW()))=\"\",INDIRECT(CONCATENATE(Q$4,ROW()))=\"\"),\"v v\",IF(INDIRECT(CONCATENATE(Q$3,ROW()))=\"\",\"v -\",IF(INDIRECT(CONCATENATE(Q$4,ROW()))=\"\",\"- v\",IF(INDIRECT(CONCATENATE(Q$3,ROW()))=INDIRECT(CONCATENATE(Q$4,ROW())),\"=\",\"<>\"))))","v":"- v"},null,null,null,null,""]
[null,2,null,null,null,"",108,"RB",1926,1943,"Sous la Broue","!D0472p","Maison","GONON Jean Baptiste Elie époux ARNOL",null,null,"- v",null,null,null,"",""]
[null,0,null,null,null,null,null,null,null,null,"Sous la Broue","!D0481","Maison","GUILLET Louis",null,null,"- v",null,null,null,"",""]
[null,1,null,"0216",267,null,null,null,1852,null,"Sous la Broue","!D0481","Mais rurale","FLEUR Maxime",null,null,"- v",null,null,null,"",""]
[null,1,267,"0123",658,null,null,null,1852,1856,"Sous la Broue","!D0481","Maison rurale","DEGOUL Pierre",null,null,"- v",null,null,null,"",""]
[null,1,123,"0658",null,null,null,null,1856,1859,"Sous la Broue","!D0481","Bât rural","GUILLET Pierre Louis François",null,null,"- v",null,null,null,"",""]
[null,1,688,"0693",null,null,null,null,1909,null,"Sous la Broue","!D0481p","Bât rural","DORVILLE André, ARNOL",null,null,"- v",null,null,null,"",""]
[null,1,658,"0688",null,null,null,null,1859,1901,"Sous la Broue","!D0482p","Bât rural","RIVOIRE Louis fils Joseph",null,null,"- v",null,null,null,"",""]
[null,0,null,null,null,null,null,null,null,null,"Sous la Broue","!D0483","Maison","GUILLET François",null,null,"- v",null,null,null,"",""]
[null,1,null,"0269",688,null,null,null,null,1859,"Sous la Broue","!D0484","Maison","GUILLET pa?",null,null,"- v",null,null,null,"",""]
[null,1,269,"0688",null,null,null,null,1859,"1882","Sous la Broue","!D0484","Maison","RIVOIRE Louis fils Joseph",null,null,{"$f":"IF(AND(INDIRECT(CONCATENATE(Q$3,ROW()))=\"\",INDIRECT(CONCATENATE(Q$4,ROW()))=\"\"),\"v v\",IF(INDIRECT(CONCATENATE(Q$3,ROW()))=\"\",\"v -\",IF(INDIRECT(CONCATENATE(Q$4,ROW()))=\"\",\"- v\",IF(INDIRECT(CONCATENATE(Q$3,ROW()))=INDIRECT(CONCATENATE(Q$4,ROW())),\"=\",\"<>\"))))","v":"- v"},null,null,null,"","",null,null,null,null,null,"1882 (sol 1909)"]
[null,2,null,null,null,18,108,"",null,1913,"Sous le Broue","!D0484","Maison","RIVOIRE Louis feu Joseph, marchand forain",null,null,"- v",null,null,null,""]
[null,2,null,null,null,"RB en 1943",108,"",1913,1947,"Sous le Broue","!D0484","Maison","GONON Jean Baptiste Elie époux ARNOL",null,null,"- v",null,null,null,""]
[null,2,null,null,null,"18 en 1943, 50 en 58",108,199,1947,1958,"Sous la Broue","!D0484","Maison","CROUZET Jean époux GONON, cultivateur et débitant",null,null,"- v",null,null,null,"",""]
[null,0,null,null,null,null,null,null,null,null,"Sous la Broue","!D0486","Maison","FLEUR Maxime",null,null,"- v",null,null,null,"",""]
[null,1,null,"0241",540,null,null,null,null,1832,"Sous la Broue","!D0486","Maison","FLEUR Antoine",null,null,"- v",null,null,null,"",""]
[null,1,"20-","0540","?",null,null,null,1832,1833,"Sous la Broue","!D0486","Maison","FLEUR Antoine",null,null,"- v",null,null,null,"",""]
[null,1,null,"0541",241,null,null,null,1832,1833,"Sous la Broue","!D0486","Maison","FLEUR Antoine",null,null,"- v",null,null,null,"",""]
[null,1,540,"0194",689,null,null,null,1833,1874,"Sous la Broue","!D0486","Maison","FLEUR (Alain ou Antoine)",null,null,"- v",null,null,null,"",""]
[null,1,193,"0697","démolie (sol 412)",null,null,null,1859,"1877","Sous la Broue","!D0486","Maison démolie","ROUX François feu Claude",null,null,"- v",null,null,null,"","",null,null,null,null,null,"1877 (sol 1893)"]
[null,0,null,null,null,null,null,null,null,null,"Sous la Broue","!D0487","Maison","FLEUR Maxime",null,null,"- v",null,null,null,"",""]
[null,1,null,"0215","démolie",null,null,null,null,1843,"Sous la Broue","!D0487","Maison démolie","FLEUR Maxime",null,null,"- v",null,null,null,"",""]
[null,1,"cn","0216","57-",null,null,null,1847,1882,"Sous la Broue","!D0487","Maison","FLEUR Maxime",null,null,"- v",null,null,null,"",""]
[null,2,null,null,null,"",40,125,null,1921,"Sous la Broue","!D0487","Maison","FLEUR Maxime",null,null,"- v",null,null,null,"",""]
[null,2,null,null,null,40,125,"",1921,1943,"Sous la Broue","!D0487","Maison","COSTE Célestin, maréchal ferrant",null,null,"- v",null,null,null,"",""]
[null,2,null,null,null,null,125,"",1943,null,"Sous la Broue","!D0487","Maison","COSTE Célestin époux COCHE, maréchal ferrant, vve et héritiers",null,null,"- v",null,null,null,"",""]
[null,1,"cn","0696",343,null,null,null,1858,1866,"Sous l'Eglise","!D0530","Maison","PELLORCE Pierre fils de Jean-Aimé",null,null,"- v",null,null,null,"",""]
[null,1,674,"0344",null,null,null,null,1866,1868,"Sous l'Eglise","!D0530","Maison","PELLORCE Jean-Aimé fils d'Etienne",null,null,"- v",null,null,null,"",""]
[null,1,343,"0048",814,null,null,null,1868,1876,"Sous l'Eglise","!D0530","Maison","PELLORCE Jean Aimé la vve",null,null,"- v",null,null,null,"",""]
[null,1,48,"0814","122 B",null,null,null,1876,1882,"Sous l'Eglise","!D0530","Maison","PELLORCE Eugène fils de Jean (Aimé ou Elisé)",null,null,"- v",null,null,null,"",""]
[null,2,null,null,null,"",74,121,null,1913,"Sous l'Eglise","!D0530","Maison","PELLORCE Eugène fils de Jean",null,null,"- v",null,null,null,"",""]
[null,2,null,null,null,"",121,"RB en 1943",1913,1947,"Sous l'Eglise","!D0530","Maison","PELLORCE Louis, les héritiers",null,null,"- v",null,null,null,"",""]
[null,2,null,null,null,"RB",121,"",1947,null,"Sous l'Eglise","!D0530","Maison","PELLORCE Lucien dit Louis époux DUSSERT",null,null,"- v",null,null,null,"",""]
[null,0,null,null,null,null,null,null,null,null,"A l'Eglise","!D0586","Maison","FLEUR Louis",null,null,"- v",null,null,null,"",""]
[null,1,null,"0187","42, 187",null,null,null,null,1846,"L'Eglise","!D0586","Maison","FLEUR Louise",null,null,"- v",null,null,null,"",""]
[null,1,187,"0188",577,null,null,null,1846,1847,"L'Eglise *","!D0586p","Maison","FLEUR Louise",null,null,"- v",null,null,null,"","",null,null,null,null,"Noté Sous l'Rdlise"]
[null,1,187,"0042","270, 293",null,null,null,1846,1879,"L'Eglise *","!D0586p","Maison","PELLORCE Louis fils d'Etienne du pont",null,null,"- v",null,null,null,"","",null,null,null,null,"Noté Sous l'Eglise, corrigé"]
[null,1,187,"0577",674,null,null,null,1847,1856,"L'Eglise *","!D0586p","Maison","PELLORCE Pierre feu Denis",null,null,"- v",null,null,null,"","",null,null,null,null,"Noté Sous l'Eglise, corrigé"]
[null,1,577,"0696",343,null,null,null,1856,1866,"L'Eglise","!D0586","Maison","PELLORCE Pierre fils de Jean-Aimé",null,null,"- v",null,null,null,"",""]
[null,1,674,"0344",null,null,null,null,1866,1868,"L'Eglise","!D0586p","Maison","PELLORCE Jean-Aimé fils d'Etienne",null,null,"- v",null,null,null,"",""]
[null,1,343,"0048",814,null,null,null,1868,1876,"L'Eglise *","!D0586p","Maison","PELLORCE Jean Aimé la vve",null,null,"- v",null,null,null,"","",null,null,null,null,"Noté Sous l'Eglise, corrigé"]
[null,1,48,"0814","122 B",null,null,null,1876,1882,"L'Eglise *","!D0586p","Maison","PELLORCE Eugène fils de Jean (Aimé ou Elisé)",null,null,"- v",null,null,null,"","",null,null,null,null,"Noté Sous l'Eglise, corrigé"]
[null,1,42,"0292",null,null,null,null,1879,"1882","L'Eglise *","!D0586","Maison","PELLORCE Joseph fils de Pierre",null,null,"- v",null,null,null,"","",null,null,null,null,"Noté Sous l'Eglise, corrigé","1882 (sol 1898)"]
[null,1,"42-","0270",null,null,null,null,1879,"1882","L'Eglise *","!D0586p","Maison","GERLET Fanny femme PELLORCE Pierre",null,null,"- v",null,null,null,"","",null,null,null,null,"Noté Sous l'Eglise, corrigé","1882 (sol 1898)"]
[null,2,null,null,null,"",74,"119 120 121",null,1913,"Sous l'Eglise","!D0586p","Maison","PELLORCE Eugène fils de Jean",null,null,"- v",null,null,null,"",""]
[null,2,null,null,null,74,120,"B rural",1913,1919,"Sous l'Eglise","!D0586p","Maison","PELLORCE Eugène fils de Eugène",null,null,"- v",null,null,null,"",""]
[null,2,null,null,null,74,119,"D",1913,1926,"Sous l'Eglise","!D0586p","Maison","MOULIN Auguste, instituteur chasseur",null,null,"- v",null,null,null,"",""]
[null,2,null,null,null,74,121,"RB en 1943",1913,1947,"Sous l'Eglise","!D0586p","Maison","PELLORCE Louis, les héritiers",null,null,"- v",null,null,null,"",""]
[null,2,null,null,null,"RB",121,"",1947,1943,"Sous l'Eglise","!D0586p","Maison","PELLORCE Lucien dit Louis époux DUSSERT",null,null,"- v",null,null,null,"",""]
[null,0,null,null,null,null,null,null,null,null,"A l'Eglise","!D0599","Chapelle","La Commune",null,null,"- v",null,null,null,"",""]
[null,1,null,"0221",null,null,null,null,null,null,"L'Eglise","!D0599","Chapelle","Freney la commune",null,null,"- v",null,null,null,"",""]
[null,0,null,null,null,null,null,null,null,null,"A l'Eglise","!D0600","Maison","La Commune",null,null,"- v",null,null,null,"",""]
[null,1,null,"0221",null,null,null,null,null,null,"L'Eglise","!D0600","(Maison)","Freney la commune",null,null,"- v",null,null,null,"",""]
[null,1,null,"0221",null,null,null,null,null,null,"L'Eglise","!D0601","Cimetière","Freney la commune",null,null,"- v",null,null,null,"",""]
[null,0,null,null,null,null,null,null,null,null,"A l'Eglise","!D0602","Eglise","La Commune",null,null,"- v",null,null,null,"",""]
[null,1,null,"0221",null,null,null,null,null,null,"L'Eglise","!D0602","Eglise","Freney la commune",null,null,"- v",null,null,null,"",""]
[null,1,null,"0221",null,null,null,null,null,null,"L'Eglise","!D0603","Presbytère","Freney la commune",null,null,"- v",null,null,null,"",""]
[null,1,null,"0114",303,null,null,null,null,1864,"L'Eglise","!D0615","Eglise","DUPRE Laurent",null,null,"- v",null,null,null,"",""]
[null,2,null,null,null,"",1,"",null,null,"L'Eglise","!D0665","Presbytère","Commune du Frenay",null,null,"- v",null,null,null,"",""]
[null,0,null,null,null,null,null,null,null,null,"A l'Eglise","!D0691","Maison","PELLORCE Etienne fils à Pierre",null,null,"- v",null,null,null,"",""]
[null,1,null,"0377",62,null,null,null,null,1844,"L'Eglise","!D0691","Mais rurale","PELLORCE Etienne",null,null,"- v",null,null,null,"",""]
[null,1,377,"0063","(171)",null,null,null,1844,1845,"L'Eglise *","!D0691bis","Mais rurale","CAIX Magdeleine",null,null,"- v",null,null,null,"","",null,null,null,null,"Noté La Combe, corrigé"]
[null,1,62,"0121","(25)",null,null,null,1845,1859,"L'Eglise *","!D0691bis","Maison","RIVOIRE Auguste feu Paul",null,null,"- v",null,null,null,"","",null,null,null,null,"Noté La Combe, corrigé"]
[null,1,121,"0025",151,null,null,null,1857,"1897","L'Eglise *","!D0691 bis","Bât rural","PELLORCE Etienne fils d'Etienne",null,null,"- v",null,null,null,"","",null,null,null,null,"Noté La Combe, corrigé"]
[null,1,null,"0138",25,null,null,null,1897,null,"L'Eglise *","!D0691bis","Bât rural","MICHEL Rémy",null,null,"- v",null,null,null,"","",null,null,null,null,"Noté La Combe, corrigé"]
[null,0,null,null,null,null,null,null,null,null,"La Combe","!D0700","Maison rurale","CAIX Etienne indivision",null,null,"- v",null,null,null,"",""]
[null,1,null,"0099",null,null,null,null,null,1834,"La Combe","!D0700","Mais rurale","CAIX Etienne",null,null,"- v",null,null,null,"",""]
[null,1,99,"0114",395,null,null,null,1834,1840,"La Combe","!D0700bis","Bât rural","DUPRE Laurent",null,null,"- v",null,null,null,"",""]
[null,1,114,"0395",674,null,null,null,1840,1855,"La Combe","!D0700","Bât rural","PELLORCE Denis fils à Denis",null,null,"- v",null,null,null,"",""]
[null,1,395,"0674",395,null,null,null,1855,1856,"La Combe *","!D0700bis","Bât rural","PELLORCE Pierre fils de Jean Aimé",null,null,"- v",null,null,null,"","",null,null,null,null,"Noté L'Eglise, corrigé"]
[null,1,674,"0396",null,null,null,null,1856,1907,"La Combe *","!D0700bis","Grange","PELLORCE Denis fils à Denis",null,null,"- v",null,null,null,"","",null,null,null,null,"Noté L'Eglise, corrigé"]
[null,1,373,"0950",null,null,null,null,1893,null,"La Combe","!D0700","Bât rural","ROUX Théophile",null,null,"- v",null,null,null,"",""]
[null,1,395,"0949",null,null,null,null,1907,null,"La Combe *","!D0700bis","Grange","PAYAN Félix fils",null,null,"- v",null,null,null,"","",null,null,null,null,"Noté Perier, corrigé"]
[null,0,null,null,null,null,null,null,null,null,"La Combe","!D0701","Maison","CAIX Etienne indivision",null,null,"- v",null,null,null,"",""]
[null,1,69,"0114","?",null,null,null,1834,1840,"La Combe","!D0701","Maison","DUPRE Laurent",null,null,"- v",null,null,null,"",""]
[null,1,114,"0395",674,null,null,null,1840,1855,"La Combe","!D0701","Maison","PELLORCE Denis fils à Denis",null,null,"- v",null,null,null,"",""]
[null,1,395,"0674",395,null,null,null,1855,1856,"La Combe","!D0701","Maison","PELLORCE Pierre fils de Jean Aimé",null,null,"- v",null,null,null,"",""]
[null,1,674,"0396",null,null,null,null,1856,"1882","La Combe","!D0701","Maison","PELLORCE Denis fils à Denis",null,null,"- v",null,null,null,"","",null,null,null,null,null,"1882 (sol 1907)"]
[null,0,null,null,null,null,null,null,null,null,"La Combe","!D0702","Maison","PELLORCE Maximin",null,null,{"$f":"IF(AND(INDIRECT(CONCATENATE(Q$3,ROW()))=\"\",INDIRECT(CONCATENATE(Q$4,ROW()))=\"\"),\"v v\",IF(INDIRECT(CONCATENATE(Q$3,ROW()))=\"\",\"v -\",IF(INDIRECT(CONCATENATE(Q$4,ROW()))=\"\",\"- v\",IF(INDIRECT(CONCATENATE(Q$3,ROW()))=INDIRECT(CONCATENATE(Q$4,ROW())),\"=\",\"<>\"))))","v":"- v"},null,null,null,"",""]
[null,1,null,"0069","39?",null,null,null,null,1834,"La Combe","!D0702 (?)","Maison","CAIX (Pierre)",null,null,"- v",null,null,null,"",""]
[null,1,null,"0373","133B",null,null,null,null,1882,"La Combe","!D0702","Maison","PELLORCE Alexandre fils à Laurent",null,null,"- v",null,null,null,"",""]
[null,2,null,null,null,"",110,"D",null,1926,"La Combe","!D0702","Maison","ROUX Théophile",null,null,"- v",null,null,null,"",""]
[null,0,null,null,null,null,null,null,null,null,"La Combe","!D0703","Maison","PELLORCE (Jean)",null,null,"- v",null,null,null,"",""]
[null,1,null,"0345","Ruteur ?",null,null,null,null,1833,"La Combe","!D0703","Maison","PELLORCE Jean Baptiste",null,null,"- v",null,null,null,"",""]
[null,1,345,"0345",303,null,null,null,1833,1848,"La Combe","!D0703","Maison","PELLORCE Jean Baptiste",null,null,"- v",null,null,null,"",""]
[null,1,345,"0303","262, 800",null,null,null,1848,1885,"La Combe","!D0703","Maison","PELLORCE Etienne",null,null,"- v",null,null,null,"",""]
[null,1,303,"0262","?",null,null,null,1881,1882,"La Combe","!D0703p","Maison","FLEUR Joseph feu Joseph",null,null,"- v",null,null,null,"",""]
[null,1,303,"0800","?",null,null,null,1881,1882,"La Combe","!D0703p","Maison","PELLORCE Rémy, instituteur",null,null,"- v",null,null,null,"",""]
[null,0,null,null,null,null,null,null,null,null,"La Combe","!D0704","Maison","FLEUR Arey",null,null,"- v",null,null,null,"",""]
[null,1,null,"0189",389,null,null,null,null,1848,"La Combe","!D0704","Maison","FLEUR Arey",null,null,"- v",null,null,null,"",""]
[null,1,385,"0346",null,null,null,null,1849,1881,"La Combe","!D0704","Maison","PELLORCE Etienne",null,null,"- v",null,null,null,"",""]
[null,1,303,"0262","?",null,null,null,1861,1882,"La Combe","!D0704p","Maison","FLEUR Joseph feu Joseph",null,null,"- v",null,null,null,"",""]
[null,1,303,"0800","?",null,null,null,1881,1882,"La Combe","!D0704p","Maison","PELLORCE Rémy, instituteur",null,null,"- v",null,null,null,"",""]
[null,0,null,null,null,null,null,null,null,null,"La Combe","!D0706","Maison","FLEUR Arey",null,null,"- v",null,null,null,"",""]
[null,1,null,"0189",303,null,null,null,null,1848,"La Combe","!D0706","Maison","FLEUR Arey",null,null,"- v",null,null,null,"",""]
[null,1,189,"0303",262,null,null,null,1848,1881,"La Combe","!D0706","Maison","PELLORCE Etienne",null,null,"- v",null,null,null,"",""]
[null,1,303,"0262","?",null,null,null,1881,1882,"La Combe","!D0706p","Maison","FLEUR Joseph feu Joseph",null,null,"- v",null,null,null,"",""]
[null,1,303,"0800","'(12-)",null,null,null,1881,1882,"La Combe","!D0706p","Maison","PELLORCE Rémy, instituteur",null,null,"- v",null,null,null,"",""]
[null,0,null,null,null,null,null,null,null,null,"La Combe","!D0746","Maison","CAIX Magdeleine",null,null,"- v",null,null,null,"",""]
[null,1,null,"0062","(121)",null,null,null,null,"(184","La Combe","!D0746","Maison","CAIX Magdeleine",null,null,"- v",null,null,null,"","",null,null,null,null,null,"(1845)"]
[null,1,62,"0121",855,null,null,null,1845,1881,"La Combe","!D0746","Maison","RIVOIRE Auguste feu Paul",null,null,"- v",null,null,null,"",""]
[null,1,121,"0855","168 B",null,null,null,1881,1882,"La Combe","!D0746","Maison","VEURAT Auguste Félix fils de Joseph",null,null,"- v",null,null,null,"",""]
[null,0,null,null,null,null,null,null,null,null,"La Combe","!D0748","Maison","PELLORCE Etienne",null,null,"- v",null,null,null,"",""]
[null,1,null,"0377",683,null,null,null,null,1855,"La Combe","!D0748","Mais rurale","PELLORCE Etienne",null,null,"- v",null,null,null,"",""]
[null,1,null,"0378",null,null,null,null,1842,1855,"La Combe","!D0748","Maison","PELLORCE Etienne",null,null,"- v",null,null,null,"",""]
[null,1,377,"0683",121,null,null,null,1855,1861,"La Combe","!D0748","Mais rurale","PELLORCE la femme RIVOIRE",null,null,"- v",null,null,null,"",""]
[null,1,377,"0683",121,null,null,null,1855,1861,"La Combe","!D0748","Maison","PELLORCE la femme RIVOIRE",null,null,"- v",null,null,null,"",""]
[null,1,683,"0121",855,null,null,null,1861,1881,"La Combe","!D0748","Maison","RIVOIRE Auguste feu Paul",null,null,"- v",null,null,null,"",""]
[null,1,683,"0121",855,null,null,null,1861,1881,"La Combe","!D0748","Maison","RIVOIRE Auguste feu Paul",null,null,"- v",null,null,null,"",""]
[null,1,121,"0855","168 B",null,null,null,1881,1882,"La Combe","!D0748","Maison","VEURAT Auguste Félix fils de Joseph",null,null,"- v",null,null,null,"",""]
[null,1,121,"0855",null,null,null,null,1881,1902,"La Combe","!D0748","Mais rurale","VEURAT Auguste Félix fils de Joseph",null,null,"- v",null,null,null,"",""]
[null,1,null,"0065",637,null,null,null,null,1850,"La Combe *","!D0750","Maison","CAIX Etienne feu Alexandre",null,null,"- v",null,null,null,"","",null,null,null,null,"Noté L'Eglise, corrigé"]
[null,0,null,null,null,null,null,null,null,null,"La Combe","!D0751","Maison","CAIX Alexandre",null,null,"- v",null,null,null,"",""]
[null,1,67,"0869","164 B (sol 241, 1054)",null,null,null,1882,"1882","La Combe","!D0751","Maison","TEMPIER Jean gendre CAIX",null,null,"- v",null,null,null,"","",null,null,null,null,null,"1882 (sol 1907)"]
[null,0,null,null,null,null,null,null,null,null,"La Combe","!D0752","Maison","CAIX Etienne",null,null,"- v",null,null,null,"",""]
[null,1,65,"0637",741,null,null,null,1850,1861,"La Combe","!D0752","Maison","PELLORCE (Paul) fils d'Henry",null,null,"- v",null,null,null,"",""]
[null,1,637,"0741",736,null,null,null,1861,1863,"La Combe","!D0752","Maison","GARNIER Didier à Clavans",null,null,"- v",null,null,null,"",""]
[null,1,741,"0736","22 B",null,null,null,1863,1882,"La Combe","!D0752","Maison","CAIX ? (Louis) Fils d'Alexandre",null,null,"- v",null,null,null,"",""]
[null,0,null,null,null,null,null,null,null,null,"La Combe","!D0756","Maison","DUSSERT (Pierre) vve",null,null,"- v",null,null,null,"",""]
[null,1,null,"0118",null,null,null,null,null,"1867","La Combe *","!D0756","Maison","DUSSERT François",null,null,"- v",null,null,null,"","",null,null,null,null,"Noté L'Eglise, corrigé","1867 (sol en 1884)"]
[null,0,null,null,null,null,null,null,null,null,"La Combe","!D0757","Maison","MICHEL Jacques",null,null,"- v",null,null,null,"",""]
[null,1,null,"0299",745,null,null,null,null,1861,"La Combe","!D0757","Maison","MICHEL (Jacques)",null,null,"- v",null,null,null,"",""]
[null,1,299,"0745","Incendiée (sol 902)",null,null,null,1861,"1867","La Combe","!D0757","Maison incendiée","DUSSERT Madeleine fille de Rose",null,null,"- v",null,null,null,"","",null,null,null,null,null,"1867 (sol 1889)"]
[null,0,null,null,null,null,null,null,null,null,"La Combe","!D0758","Maison","DUSSERT à la Combe",null,null,"- v",null,null,null,"",""]
[null,1,null,"0116","(incendie)",null,null,null,null,1867,"La Combe","!D0758","Maison","DUSSERT Rose feu Barthélémy",null,null,"- v",null,null,null,"",""]
[null,1,null,"0374",null,null,null,null,1834,1893,"La Combe","!D0760","Bât rural","PELLORCE Alexandre",null,null,"- v",null,null,null,"",""]
[null,0,null,null,null,null,null,null,null,null,"Cert Chevallier","!D0782","Maison","ARNODET Paul, PELLORCE Etienne fils à Denis",null,null,"- v",null,null,null,"",""]
[null,1,null,"0017","23.377",null,null,null,null,1841,"Cert Cheval","!D0782 *","Mais rurale","ARNAUDET Paul",null,null,"- v",null,null,null,"","",null,null,null,null,"Hésité entre D712 et D782"]
[null,1,"4(1)","0022",23,null,null,null,1841,1868,"Cert Chevallier","!D0782","Mais rurale","ARNODET Marie-Jeanne",null,null,"- v",null,null,null,"",""]
[null,1,"CN","0022","?",null,null,null,1842,1868,"Cert Chevallier","!D0782","Maison","ARNODET Marie-Jeanne",null,null,"- v",null,null,null,"",""]
[null,1,22,"0023",942,null,null,null,1868,"1882","Cert Chevallier","!D0782","Maison","ARNODET Marie-Jeanne",null,null,"- v",null,null,null,"","",null,null,null,null,null,"1882 (92)"]
[null,0,null,null,null,null,null,null,null,null,"Cert Chavalier","!D0783","Maison","PELLORCE Pierre",null,null,"- v",null,null,null,null,""]
[null,0,null,null,null,null,null,null,null,null,"Cert Chevallier","!D0783b","Maison","PELLORCE Pierre",null,null,"- v",null,null,null,"",""]
[null,1,null,"0377","25, 377",null,null,null,null,1848,"Cert Chevallier","!D0783","Maison","PELLORCE Etienne",null,null,"- v",null,null,null,"",""]
[null,1,null,"0389",614,null,null,null,null,1849,"Cert Chevallier","!D0783","Maison","PELLORCE Pierre",null,null,"- v",null,null,null,"",""]
[null,1,217,"0506",null,null,null,null,null,1881,"Cert Chevallier","!D0783bis *","Maison","DURAND Jean-François gendarme",null,null,"- v",null,null,null,"","",null,null,null,null,"Noté C783, corrigé D783"]
[null,1,null,"0378",null,null,null,null,1848,1855,"Cert Chevallier","!D0783","Maison","PELLORCE Etienne",null,null,"- v",null,null,null,"",""]
[null,1,377,"0025","110B",null,null,null,1848,1882,"Cert Chevallier","!D0783p","Maison","PELLORCE Etienne fils d'Etienne",null,null,"- v",null,null,null,"",""]
[null,1,389,"0614",217,null,null,null,1849,1852,"Cert Chevallier","!D0783bis","Maison","PELLORCE Agnès vve MICHEL",null,null,"- v",null,null,null,"",""]
[null,1,614,"0228","?",null,null,null,1852,1880,"Cert Chevallier","!D0783bis","Maison","MICHEL Antoine feu Blaise",null,null,"- v",null,null,null,"",""]
[null,1,377,"0379",731,null,null,null,1855,1858,"Cert Chevallier","!D0783p","Maison","PELLORCE Etienne",null,null,"- v",null,null,null,"",""]
[null,1,377,"0025","110B",null,null,null,1855,1882,"Cert Chevallier","!D0783p","Maison","PELLORCE Etienne fils d'Etienne",null,null,"- v",null,null,null,"",""]
[null,1,377,"0731","130 B (sol 942)",null,null,null,1858,"1882","Cert Chevallier","!D0783p","Maison","PELLORCE Jeanne Marie fille d'Etienne",null,null,{"$f":"IF(AND(INDIRECT(CONCATENATE(Q$3,ROW()))=\"\",INDIRECT(CONCATENATE(Q$4,ROW()))=\"\"),\"v v\",IF(INDIRECT(CONCATENATE(Q$3,ROW()))=\"\",\"v -\",IF(INDIRECT(CONCATENATE(Q$4,ROW()))=\"\",\"- v\",IF(INDIRECT(CONCATENATE(Q$3,ROW()))=INDIRECT(CONCATENATE(Q$4,ROW())),\"=\",\"<>\"))))","v":"- v"},null,null,null,"","",null,null,null,null,null,"1882 (sol 1892)"]
[null,0,null,null,null,null,null,null,null,null,"Cert Chavalier","!D0843","Bâtiment","REYMOND Jean","extraire 843, 844",null,"- v",null,null,null,"",""]
[null,1,null,"0449",469,null,null,null,null,1856,"Cert Chevallier","!D0843","Bâtiment","REYMOND Jean",null,null,"- v",null,null,null,"",""]
[null,1,418,"0593","142 B (sol 298)",null,null,null,1856,"1882","Cert Chevallier","!D0843","Maison","REYMOND Jean-Denis fils à Jean",null,null,"- v",null,null,null,"","",null,null,null,null,null,"1882 (sol 1908)"]
[null,2,null,null,null,"",99,"D",null,1926,"Sert Chevalier","!D0843","Bâtiment","REYMOND Joseph Célestin",null,null,"- v",null,null,null,"",""]
[null,0,null,null,null,null,null,null,null,null,"Cert Chavalier","!D0844","Bâtiment","FLEUR Arey",null,null,"- v",null,null,null,"",""]
[null,1,null,"0189",545,null,null,null,null,1843,"Cert Chevallier","!D0844","Bâtiment","FLEUR Arey",null,null,"- v",null,null,null,"",""]
[null,1,189,"0545","en ruines",null,null,null,1848,"1875","Cert Chevallier","!D0844","Bâtiment en ruines","DUSSERT Pierre fils à Jean-Louis",null,null,"- v",null,null,null,"","",null,null,null,null,null,"1875 (sol 1877)"]
[null,1,391,"0391",683,null,null,null,1837,1855,"Verney *","!D0894p","Mais rurale","PELLORCE (Denis) père",null,null,"- v",null,null,null,"","",null,null,null,null,"Noté L'Eglise, corrigé"]
[null,1,391,"0683",119,null,null,null,1855,1861,"Verney *","!D0894p","Bât rural","PELLORCE la femme RIVOIRE",null,null,"- v",null,null,null,"","",null,null,null,null,"Noté L'Eglise, corrigé"]
[null,1,683,"0119",819,null,null,null,1861,1899,"Verney *","!D0894p","Bât rural","RIVOIRE Antoine feu Laurent",null,null,"- v",null,null,null,"","",null,null,null,null,"Noté A l'Eglise, corrigé"]
[null,1,null,"0475",286,null,null,null,null,1845,"Montagne de l'Homme","!E0007","Grange","REYMOND François",null,null,"- v",null,null,null,"",""]
[null,0,null,null,null,null,null,null,null,null,"La Faysse","!E0180","Grange","REYMOND François",null,null,"- v",null,null,null,"",""]
[null,1,null,"0426",null,null,null,null,1855,1868," Faysse","!E0180","Grange","JOSSERAND Félix feu Joseph, DUSSERT Pierre",null,null,"- v",null,null,null,"",""]
[null,1,426,"0838","83(1)",null,null,null,1880,1894," Faysse *","!E0180","Grange","DUSSERT Pierre fils de Jean Baptiste",null,null,"- v",null,null,null,"","",null,null,null,null,"Noté L'Homme de Clos Brenet, corrigé"]
[null,1,838,"0830",16,null,null,null,1894,1911," Faysse *","!E0180","Grange","HEST Jean, meunier à Airis",null,null,"- v",null,null,null,"","",null,null,null,null,"Noté Clos Brunet, corrigé"]
[null,1,80,"0016",830,null,null,null,1911,null," Faysse *","!E0180","Grange","LIAUTAUD Vve née HEST Rosalie",null,null,"- v",null,null,null,"","",null,null,null,null,"Noté Clos Brunet, corrigé"]
[null,0,null,null,null,null,null,null,null,null,"Les Feysses","!E0208","Moulin","DUSSERT Jean",null,null,"- v",null,null,null,"",""]
[null,1,null,"0119",545,null,null,null,null,1850,"La Feysse","!E0208","Moulin","(DUSSERT)",null,null,"- v",null,null,null,"",""]
[null,1,119,"0545","40B",null,null,null,1850,1882," Faysse","!E0208","Moulin","DUSSERT Pierre fils à Jean-Louis",null,null,"- v",null,null,null,"",""]
[null,1,null,"0005",253,null,null,null,null,1843,"Chazelat","!E0215","Mais rurale","ARLOT Joseph",null,null,"- v",null,null,null,"",""]
[null,0,null,null,null,null,null,null,null,null,"Les Feysses","!E0217","Grange","DUSSERT Jean",null,null,"- v",null,null,null,"",""]
[null,1,119,"0545",null,null,null,null,1850,null," Faysse","!E0217","Grange","DUSSERT Pierre fils à Jean-Louis",null,null,"- v",null,null,null,"",""]
[null,0,null,null,null,null,null,null,null,null,"Sur le Col de Cluy","!E0231","Grange","HUSTACHE Esprit",null,null,"- v",null,null,null,"",""]
[null,1,null,"0289",315,null,null,null,null,1845,"Sur le Col de Cluy","!E0231","Grange","HOSTACHE Andre de HOSTACHE Esprit",null,null,"- v",null,null,null,"",""]
[null,1,289,"0315",858,null,null,null,1845,1882,"Sur le Col de Cluy","!E0231","Grange ","NICOLLET Louis fils de Jacques, 1863 TRUCHET Charles à Auris, 1872 BORY Georges à Huez, ARNOL Rémy",null,null,"- v",null,null,null,"",""]
[null,1,305,"0858",null,null,null,null,1882,null,"Sur le Col de Cluy","!E0231","Grange","CHALVIN François gendre FAURE",null,null,"- v",null,null,null,"",""]
[null,1,684,1011,829,null,null,null,1899,1900,"Sur le Col de Cluy *","!E0245p","Bât rural","PELLORCE Céline fille à feu Henri",null,null,"- v",null,null,null,"","",null,null,null,null,"Noté Pierre Fendue et Champ Fol, corrigé"]
[null,0,null,null,null,null,null,null,null,null,"Chazelat","!E0274","Maison","PELLORCE Paul",null,null,"- v",null,null,null,"",""]
[null,1,null,"0386",null,null,null,null,null,1839,"Chazelat","!E0274","Mais rurale","PELLORCE Paul feu Jean Pierre",null,null,"- v",null,null,null,"",""]
[null,1,386,"0146",394,null,null,null,1839,1857,"Chazelat","!E0274","Mais rurale","DUSSERT Magdeleine vve",null,null,"- v",null,null,null,"",""]
[null,1,146,"0707",null,null,null,null,1857,null,"Chazelat","!E0274p","Bât rural","ODDOUX Louis feu Louis",null,null,"- v",null,null,null,"",""]
[null,1,null,"0416",null,null,null,null,1857,1872,"Chazelat","!E0274","Bât rural","PELLORCE Jean-Louis",null,null,"- v",null,null,null,"",""]
[null,1,394,"0702",null,null,null,null,1872,1905,"Chazelat","!E0274p","Bât rural","PELLORCE Pierre fils de Pierre",null,null,"- v",null,null,null,"",""]
[null,1,694,1007,null,null,null,null,1905,null,"Chazelat","!E0274p","Bât rural","MOREL Auguste époux PELLORCE",null,null,"- v",null,null,null,"",""]
[null,1,694,1013,null,null,null,null,1905,null,"Chazelat","!E0274p","Bât rural","PELLORCE Pierre fils de Pierre",null,null,"- v",null,null,null,"",""]
[null,0,null,null,null,null,null,null,null,null,"Chazelat","!E0283","Maison","ARLOT Joseph",null,null,"- v",null,null,null,"",""]
[null,1,5,"0253","93, 214, 944",null,null,null,1843,1906,"Chazelat","!E0283","Bât rural","GIROUD Jean-Louis",null,null,"- v",null,null,null,"",""]
[null,1,null,"0231",253,null,null,null,1906,null,"Chazelat","!E0283p","Bât rural","SIAUD Marie Marguerite",null,null,"- v",null,null,null,"",""]
[null,1,253,"0311",null,null,null,null,1906,null,"Chazelat","!E0283p","Bât rural","GIROUD François fils de Jean-Louis",null,null,"- v",null,null,null,"",""]
[null,1,253,"0944",null,null,null,null,1906,null,"Chazelat","!E0283p","Bât rural","RANQUE Clarisse et Fédora filles de Pierre",null,null,"- v",null,null,null,"",""]
[null,1,510,"0191",null,null,null,null,1888,null,"Beau Vallon *","!E0285p","Maison","DUSSERT Pierre, DUSSERT Elie",null,null,"- v",null,null,null,"","",null,null,null,null,"Noté Les Beaux, corrigé"]
[null,0,null,null,null,null,null,null,null,null,"Beaux Vallons","!E0288","Maison","ARLOT Apolinaire",null,null,"- v",null,null,null,"",""]
[null,1,null,"0010",158,null,null,null,null,null,"Beau Vallon","!E0288","Mais rurale","ARLOT Alphonse",null,null,"- v",null,null,null,"",""]
[null,1,"reste","0227",null,null,null,null,1844,"B","Beau Vallon","!E0288","Mais rurale","Freney la commune",null,null,"- v",null,null,null,"","",null,null,null,null,null,"B"]
[null,1,637,"0741",684,null,null,null,1861,1865,"Pierre Fendue et Champ Long","!E0291p","Bât rural","GARNIER Didier à Clavans",null,null,"- v",null,null,null,"",""]
[null,1,380,"0684","829, 10(1)1",null,null,null,1855,1899,"Pierre Fendue et Champ Long","!E0293","Bât rural","PELLORCE Henry père",null,null,"- v",null,null,null,"",""]
[null,1,741,"0717","829, 1021",null,null,null,1865,1899,"Pierre Fendue et Champ Long","!E0294p","Bât rural","PELLORCE Henry père",null,null,"- v",null,null,null,"",""]
[null,0,null,null,null,null,null,null,null,null,"Pierre Fendue et Campaloud","!E0295","Maison","PELLORCE Henri",null,null,"- v",null,null,null,"",""]
[null,1,null,"0380",null,null,null,null,null,1855,"Pierre Fendue et Champ Long","!E0295","Mais rurale","PELLORCE Henry",null,null,"- v",null,null,null,"",""]
[null,1,380,"0637",746,null,null,null,1855,1861,"Pierre Fendue et Champ Long","!E0295p","Bât rural","PELLORCE (Paul) fils d'Henry",null,null,"- v",null,null,null,"",""]
[null,1,684,"0847",null,null,null,null,1899,null,"Pierre Fendue et Champ Long","!E0295p","Bât rural","GIROLLET Marie de Pierre, PELLORCE Alphonse fils d'Henri",null,null,"- v",null,null,null,"",""]
[null,1,684,"0847",null,null,null,null,1899,null,"Pierre Fendue et Champ Long","!E0295p","Bât rural","GIROLLET Marie de Pierre, PELLORCE Alphonse fils d'Henri",null,null,"- v",null,null,null,"",""]
[null,1,1011,"0847",null,null,null,null,1900,null,"Pierre Fendue et Champ Long","!E0295p","Bât rural","GIROLLET Marie de Pierre, PELLORCE Alphonse fils d'Henri",null,null,"- v",null,null,null,"",""]
[null,0,null,null,null,null,null,null,null,null,"Pierre Fendue et Campaloud","!E0297","Maison","REYMOND André",null,null,"- v",null,null,null,"",""]
[null,1,null,"0479",283,null,null,null,null,1849,"Pierre Fendue et Champ Long","!E0297","Mais rurale","REYMOND André",null,null,"- v",null,null,null,"",""]
[null,1,478,"0283","195, 895, 911",null,null,null,1849,1900,"Pierre Fendue et Champ Long","!E0297","Mais rurale","REYMOND Joseph André",null,null,"- v",null,null,null,"",""]
[null,1,null,"0196",283,null,null,null,1900,1901,"Pierre fendue et Champ Fol","!E0297p","Mais rurale","BLANC Paul",null,null,"- v",null,null,null,"",""]
[null,1,283,"0211",null,null,null,null,1900,null,"Pierre Fendue et Champ Long","!E0297p","Mais rurale","BASSET Etienne instituteur",null,null,"- v",null,null,null,"",""]
[null,1,283,"0892",null,null,null,null,1900,null,"Pierre Fendue et Champ Long (du Champ Fol)","!E0297p","Mais rurale","REYMOND Rémy fils de Joseph André gendre DUPRE",null,null,"- v",null,null,null,"",""]
[null,0,null,null,null,null,null,null,null,null,"Beaucers","!E0309","Fontaine","La Commune",null,null,"- v",null,null,null,"",""]
[null,1,null,"0223",null,null,null,null,null,null,"Beaucaire","!E0309","Fontaine","Freney la commune",null,null,"- v",null,null,null,"",""]
[null,0,null,null,null,null,null,null,null,null,"Beaucers","!E0311","Maison","DUSSERT (la héritière d'Antoine)",null,null,"- v",null,null,null,"",""]
[null,1,489,"0146","?",null,null,null,null,1835,"Beaucaire","!E0311","Mais rurale","DUSSERT Antoine",null,null,"- v",null,null,null,"",""]
[null,1,146,"0489",124,null,null,null,1835,1851,"Beaucaire","!E0311","Mais rurale","RIVOIRE Laurent",null,null,{"$f":"IF(AND(INDIRECT(CONCATENATE(Q$3,ROW()))=\"\",INDIRECT(CONCATENATE(Q$4,ROW()))=\"\"),\"v v\",IF(INDIRECT(CONCATENATE(Q$3,ROW()))=\"\",\"v -\",IF(INDIRECT(CONCATENATE(Q$4,ROW()))=\"\",\"- v\",IF(INDIRECT(CONCATENATE(Q$3,ROW()))=INDIRECT(CONCATENATE(Q$4,ROW())),\"=\",\"<>\"))))","v":"- v"},null,null,null,"",""]
[null,1,146,"0137","573, 574",null,null,null,1835,1863,"Beaucaire *","!E0311","Mais rurale","DUSSERT (André)",null,null,"- v",null,null,null,"","",null,null,null,null,"(Noté Beau Cert)"]
[null,1,489,"0161",875,null,null,null,1851,1883,"Beaucaire","!E0311","Mais rurale","DUSSERT Louis fils à Pierre",null,null,"- v",null,null,null,"",""]
[null,1,136,"0575",828,null,null,null,1863,1887,"Beaucaire","!E0311p","Mais rurale","GIROLLET Pierre feu André",null,null,"- v",null,null,null,"",""]
[null,1,136,"0575",828,null,null,null,1863,1887,"Beaucaire","!E0311p","Ecurie","GIROLLET Pierre feu André",null,null,"- v",null,null,null,"",""]
[null,1,136,"0579",null,null,null,null,1863,null,"Beaucaire","!E0311p","Mais rurale","GIROLLET Jacques feu André",null,null,"- v",null,null,null,"",""]
[null,1,124,"0875",null,null,null,null,1883,null,"Beaucaire","!E0311","Mais rurale","DUSSERT Joseph feu Louis",null,null,"- v",null,null,null,"",""]
[null,1,573,"0857",null,null,null,null,1887,null,"Beaucaire","!E0311p","Mais rurale","GIROLLET Pierre fils de Pierre",null,null,"- v",null,null,null,"",""]
[null,0,null,null,null,null,null,null,null,null,"Beaucers","!E0312","Maison","GARDENT André",null,null,"- v",null,null,null,"",""]
[null,1,null,"0057",361,null,null,null,1885,null,"Beaucaire *","!E0312p","Masure","DUSSERT Pierre, DUSSERT Elie",null,null,"- v",null,null,null,"","",null,null,null,null,"Noté Laval, corrigé"]
[null,1,83,"0836",361,null,null,null,1885,1913,"Beaucaire *","!E0312p","Masure","DUSSERT Jean de feu Pierre",null,null,"- v",null,null,null,"","",null,null,null,null,"Noté Laval, corrigé"]
[null,1,null,"0076",249,null,null,null,1902,null,"Beaucaire","!E0312p","Mais rurale","ARNAUDET Achille",null,null,"- v",null,null,null,"",""]
[null,1,249,"0249","118, 249, 1003",null,null,null,1902,1908,"Beaucaire","!E0312p","Mais rurale","GARDENT Marius",null,null,"- v",null,null,null,"",""]
[null,1,249,"0249","47, 85, 92",null,null,null,1908,1914,"Beaucaire","!E0312p","Mais rurale","GARDENT Marius",null,null,"- v",null,null,null,"",""]
[null,1,249,1003,null,null,null,null,1908,null,"Beaucaire","!E0312p","Mais rurale","DUSSERT Pierre, instituteur",null,null,"- v",null,null,null,"",""]
[null,1,null,"0118","(240)",null,null,null,1908,null,"Beaucaire","!E0312p","Mais rurale","GARDENT Georges feu Georges",null,null,"- v",null,null,null,"",""]
[null,1,825,1010,null,null,null,null,1913,null,"Beaucaire *","!E0312p","Masure","DUSSERT Jean vve née GIROLLET Rosalie",null,null,"- v",null,null,null,"","",null,null,null,null,"Noté Laval, corrigé"]
[null,1,249,"0047",null,null,null,null,1914,null,"Beaucaire","!E0312p","Mais rurale","BORY Félicien à Huez",null,null,"- v",null,null,null,"",""]
[null,1,249,"0085",null,null,null,null,1914,null,"Beaucaire","!E0312p","Mais rurale","DEGOUL Hippolyte",null,null,"- v",null,null,null,"",""]
[null,1,249,"0092",null,null,null,null,1914,null,"Beaucère","!E0312p","Mais rurale","GARDEN Marius fils de Georges",null,null,"- v",null,null,null,"",""]
[null,0,null,null,null,null,null,null,null,null,"Beaucers","!E0315","Ecurie","DUSSERT (Là Haut ?)",null,null,"- v",null,null,null,"",""]
[null,1,489,"0146","?",null,null,null,null,1835,"Beaucaire","!E0315","Ecurie","DUSSERT Antoine",null,null,"- v",null,null,null,"",""]
[null,1,null,"0490",null,null,null,null,1835,1851,"Beaucaire","!E0315","Ecurie","RIVOIRE Laurent",null,null,"- v",null,null,null,"",""]
[null,1,489,"0161",875,null,null,null,1851,1883,"Beaucaire","!E0315","Ecurie","DUSSERT Louis fils à Pierre",null,null,"- v",null,null,null,"",""]
[null,1,134,"0579",null,null,null,null,1863,null,"Beaucaire","!E0315p","Ecurie","GIROLLET Jacques feu André",null,null,"- v",null,null,null,"",""]
[null,1,573,"0857",null,null,null,null,1887,null,"Beaucaire","!E0315p","Ecurie","GIROLLET Pierre fils de Pierre",null,null,"- v",null,null,null,"",""]
[null,1,124,"0875",null,null,null,null,1883,null,"Beaucaire","!E0318","Ecurie","DUSSERT Joseph feu Louis",null,null,"- v",null,null,null,"",""]
[null,1,null,"0131","306, 653",null,null,null,null,1853,"L'Enfrey d'Outres","!E0399","Mais rurale","DUSSERT André",null,null,"- v",null,null,null,"",""]
[null,0,null,null,null,null,null,null,null,null,"L'Enfrey d'Outres","!E0426","Maison","GARDENT Jullien",null,null,"- v",null,null,null,"",""]
[null,1,245,"0333",809,null,null,null,1838,1880,"L'enfrey d'Outres","!E0426","Maison","PELLAT Denis fils de Denis",null,null,"- v",null,null,null,"",""]
[null,1,332,"0809",999,null,null,null,1880,1898,"L'Enfrey d'Outres","!E0426","Maison","VERNET Jean Pierre gendre PELLAT",null,null,"- v",null,null,null,"",""]
[null,1,809,"0999",981,null,null,null,1898,1899,"L'Enfrey d'Outres","!E0426","Maison","VERNET Marie Fannie",null,null,"- v",null,null,null,"",""]
[null,1,981,"0086",null,null,null,null,1914,null,"L'enfrey d'Outres","!E0426","Sol et cour","DODE Louis époux PELLORCE",null,null,"- v",null,null,null,"",""]
[null,0,null,null,null,null,null,null,null,null,"L'Enfrey d'Outres","!E0427","Maison","DUSSERT Séraphin",null,null,"- v",null,null,null,"",""]
[null,1,null,"0149",543,null,null,null,null,1853,"L'Enfrey d'Outres","!E0427","Mais rurale","DUSSERT Séraphin",null,null,"- v",null,null,null,"",""]
[null,1,149,"0543",825,null,null,null,1853,1887,"L'Enfrey d'Outres","!E0427","Mais rurale","DUSSERT Anne vve Etienne VEYRAT",null,null,"- v",null,null,null,"",""]
[null,1,"5(4)3","0856","3(91)",null,null,null,1889,1913,"L'Enfrey d'Outres","!E0427","Mais rurale","DUSSERT Jean de feu Pierre",null,null,"- v",null,null,null,"",""]
[null,1,825,"0968",null,null,null,null,1913,null,"L'Enfrey d'Outres","!E0427","Mais rurale","DUSSERT Joseph époux REYMOND",null,null,"- v",null,null,null,"",""]
[null,0,null,null,null,null,null,null,null,null,"L'Enfrey d'Outres","!E0430","Maison","DUSSERT André",null,null,"- v",null,null,null,"",""]
[null,1,131,"0653",null,null,null,null,1853,null,"L'Enfrey d'Outres","!E0430","Mais rurale","(DUSSERT Louis) HOSTACHE ?",null,null,"- v",null,null,null,"",""]
[null,0,null,null,null,null,null,null,null,null,"L'Enfrey d'Outres","!E0431","Maison","DUSSERT Séraphin",null,null,"- v",null,null,null,"",""]
[null,1,null,"0149",543,null,null,null,null,1839,"L'Enfrey d'Outres","!E0431","Mais rurale","DUSSERT Séraphin",null,null,"- v",null,null,null,"",""]
[null,1,"(139)","0091","303, 650",null,null,null,1839,1864,"L'Enfrey d'Outres","!E0431","Mais rurale","(CHALVIN)",null,null,"- v",null,null,null,"",""]
[null,1,91,"0346",null,null,null,null,1864,1865,"L'Enfrey d'Outres","!E0431pbis","Mais rurale","PELLORCE Etienne",null,null,"- v",null,null,null,"",""]
[null,1,null,"0658",null,null,null,null,1864,1865,"L'Enfrey d'Outres","!E0431pbis","Mais rurale","DUSSERT Pierre feu Louis",null,null,"- v",null,null,null,"",""]
[null,1,650,"0307","870, 863",null,null,null,1865,1882,"L'Enfrey d'Outres","!E0431pbis","Mais rurale","MERVAL Paul",null,null,"- v",null,null,null,"",""]
[null,1,650,"0307","870, 864",null,null,null,1865,1882,"L'Enfrey d'Outres","!E0431pbis","Mais rurale","MERVAL Paul",null,null,"- v",null,null,null,"",""]
[null,1,306,"0870",867,null,null,null,1882,1885,"L'Enfrey d'Outres","!E0431bis","Mais rurale","MERVAL Eugénie femme PELLERIN FAURE",null,null,"- v",null,null,null,"",""]
[null,1,306,"0870",867,null,null,null,1882,1885,"L'Enfrey d'Outres","!E0431bis","Mais rurale","MERVAL Eugénie femme PELLERIN",null,null,"- v",null,null,null,"",""]
[null,1,306,"0864",867,null,null,null,1882,1887,"L'Enfrey d'Outres","!E0431bis","Mais rurale","MERVAL Rémy",null,null,"- v",null,null,null,"",""]
[null,1,306,"0864",867,null,null,null,1882,1887,"L'Enfrey d'Outres","!E0431bis","Mais rurale","MERVAL Rémy",null,null,"- v",null,null,null,"",""]
[null,1,870,"0867",995,null,null,null,1885,1898,"L'Enfrey d'Outres","!E0431bis","Mais rurale","REYMOND Louise femme DUSSERT",null,null,"- v",null,null,null,"",""]
[null,1,864,"0867","495 ou 995",null,null,null,1887,1898,"L'Enfrey d'Outres","!E0431bis","Mais rurale","REYMOND Louise femme DUSSERT",null,null,"- v",null,null,null,"",""]
[null,1,867,"0995",null,null,null,null,1898,null,"L'Enfrey d'Outres","!E0431bis","Mais rurale","DUSSERT Séraphin gendre RANQUE",null,null,"- v",null,null,null,"",""]
[null,1,664,"0916",null,null,null,null,1889,null,"L'Enfrey d'Outres *","!E0509p","Mais rurale","RANQUE Rémy",null,null,"- v",null,null,null,"","",null,null,null,null,"Noté Perchon, corrigé"]
[null,0,null,null,null,null,null,null,null,null,"Perrochon","!E0519","Maison","SARRET Jean",null,null,"- v",null,null,null,"",""]
[null,1,null,"0514","41-",null,null,null,null,1853,"Perrochon","!E0519","Maison","SARRET Jean",null,null,"- v",null,null,null,"",""]
[null,1,514,"0664","880, 8--",null,null,null,1853,1889,"Perrochon","!E0519","Mais rurale","SARRET Catherine vve RANQUE",null,null,"- v",null,null,null,"",""]
[null,1,514,"0656",937,null,null,null,1853,1890,"Perrochon","!E0519p","Mais rurale","FLEUR Pierre Auguste feu Mathieu",null,null,"- v",null,null,null,"",""]
[null,1,664,"0880",null,null,null,null,1889,null,"Perrochon","!E0519p","Mais rurale","RANQUE Joseph feu André",null,null,"- v",null,null,null,"",""]
[null,1,656,"0937",880,null,null,null,1890,1896,"Perrochon","!E0519p","Mais rurale","FLEUR André Emile fils de Pierre",null,null,"- v",null,null,null,"",""]
[null,1,937,"0921",null,null,null,null,1896,null,"Perrochon","!E0519p","Mais rurale","RANQUE Joseph feu André",null,null,"- v",null,null,null,"",""]
[null,1,null,"0479","508, 576",null,null,null,null,1849,"Perrochon","!E0551","Mais rurale","REYMOND André",null,null,"- v",null,null,null,"",""]
[null,1,"(478)","0576","37-",null,null,null,1849,1852,"Perrochon","!E0551","Mais rurale","MICHEL Joseph fils de Paul",null,null,"- v",null,null,null,"",""]
[null,1,478,"0508",370,null,null,null,1849,1852,"Perrochon","!E0551p","Mais rurale","REYMOND André fils de Joseph",null,null,{"$f":"IF(AND(INDIRECT(CONCATENATE(Q$3,ROW()))=\"\",INDIRECT(CONCATENATE(Q$4,ROW()))=\"\"),\"v v\",IF(INDIRECT(CONCATENATE(Q$3,ROW()))=\"\",\"v -\",IF(INDIRECT(CONCATENATE(Q$4,ROW()))=\"\",\"- v\",IF(INDIRECT(CONCATENATE(Q$3,ROW()))=INDIRECT(CONCATENATE(Q$4,ROW())),\"=\",\"<>\"))))","v":"- v"},null,null,null,"",""]
[null,1,null,"0372",null,null,null,null,1852,1878,"Perrochon","!E0551","Mais rurale","PELLORCE Vincent fils de Vincent",null,null,"- v",null,null,null,"",""]
[null,1,null,"0372",null,null,null,null,1852,1878,"Perrochon","!E0551","Mais rurale","PELLORCE Vincent fils de Vincent",null,null,"- v",null,null,null,"",""]
[null,1,null,"0284","?",null,null,null,1878,1900,"Perrochon","!E0551p","Mais rurale","REYMOND Joseph André",null,null,"- v",null,null,null,"",""]
[null,1,null,"0284",null,null,null,null,1878,1900,"Perrochon","!E0551p","Mais rurale","REYMOND Joseph André",null,null,"- v",null,null,null,"",""]
[null,1,283,"0211",null,null,null,null,1900,null,"Perrochon","!E0551","Mais rurale","BASSET Etienne instituteur",null,null,"- v",null,null,null,"",""]
[null,1,283,"0211",null,null,null,null,1900,null,"Perrochon","!E0551p","Mais rurale","BASSET Etienne instituteur",null,null,"- v",null,null,null,"",""]
[null,1,283,"0314",null,null,null,null,1900,null,"Perrochon","!E0551p","Mais rurale","ARNOL Rémy",null,null,"- v",null,null,null,"",""]
[null,1,283,"0314",null,null,null,null,1900,null,"Perrochon","!E0551p","Mais rurale","ARNOL Rémy",null,null,"- v",null,null,null,"",""]
[null,1,283,"0892",null,null,null,null,1900,null,"Perrochon","!E0551p","Mais rurale","REYMOND Rémy fils de Joseph André gendre DUPRE",null,null,"- v",null,null,null,"",""]
[null,1,283,"0896",null,null,null,null,1900,null,"Perrochon","!E0551p","Mais rurale","REYMOND Rémy fils de Joseph André gendre DUPRE",null,null,"- v",null,null,null,"",""]
[null,1,null,"0345","21, 303",null,null,null,null,1848,"Perrochon","!E0560","Mais rurale","PELLORCE Jean Baptiste",null,null,"- v",null,null,null,"",""]
[null,1,345,"0021",null,null,null,null,1848,1849,"Perrochon","!E0560","Mais rurale","FLEUR Pierre, PELLORCE Anne vve de Pierre FLEUR",null,null,"- v",null,null,null,"",""]
[null,1,345,"0303",800,null,null,null,1848,1885,"Perrochon","!E0560 *","Mais rurale","PELLORCE Etienne",null,null,"- v",null,null,null,"","",null,null,null,null,"Noté D560, corrigé E"]
[null,1,303,"0800","?",null,null,null,1881,null,"Perrochon","!E0560","Mais rurale","PELLORCE Rémy, instituteur",null,null,"- v",null,null,null,"",""]
[null,0,null,null,null,null,null,null,null,null,"Perrochon","!E0589","Maison","PELLORCE Pierre",null,null,"- v",null,null,null,"",""]
[null,1,null,"0389",614,null,null,null,null,1849,"Perrochon","!E0589","Mais rurale","PELLORCE Pierre",null,null,"- v",null,null,null,"",""]
[null,1,389,"0614",217,null,null,null,1849,1852,"Perrochon","!E0589","Mais rurale","PELLORCE Agnès vve MICHEL",null,null,"- v",null,null,null,"",""]
[null,1,614,"0228","?",null,null,null,1852,1880,"Perrochon","!E0589","Mais rurale","MICHEL Antoine feu Blaise",null,null,"- v",null,null,null,"",""]
[null,1,217,"0506",null,null,null,null,1880,null,"Perrochon","!E0589","Mais rurale","DURAND Jean-François gendarme",null,null,"- v",null,null,null,"",""]
[null,0,null,null,null,null,null,null,null,null,"Perrochon","!E0592","Maison","REYMOND Joseph",null,null,"- v",null,null,null,"",""]
[null,1,null,"0458",null,null,null,null,null,1853,"Perrochon","!E0592","Mais rurale","REYMOND Joseph feu Guillaume",null,null,"- v",null,null,null,"",""]
[null,1,457,"0029","898, 899, 900",null,null,null,1853,1894,"Perrochon","!E0592","Maison rurale","BLANC Joseph vve REYMOND Louise",null,null,"- v",null,null,null,"",""]
[null,1,29,"0898",null,null,null,null,1894,null,"Perrochon","!E0592p","Mais rurale","BLANC Alphonsine",null,null,"- v",null,null,null,"",""]
[null,1,29,"0899",null,null,null,null,1894,null,"Perrochon","!E0592p","Mais rurale","BLANC Marie feu Joseph",null,null,"- v",null,null,null,"",""]
[null,1,29,"0900",null,null,null,null,1894,null,"Perrochon","!E0592p","Mais rurale","BLANC Rémy",null,null,"- v",null,null,null,"",""]
[null,0,null,null,null,null,null,null,null,null,"Perrochon","!E0594","Mazure","GIROLET André",null,null,"- v",null,null,null,"",""]
[null,1,null,"0259",573,null,null,null,null,1837,"Perrochon","!E0594","Maison","GIROLLET André",null,null,"- v",null,null,null,"",""]
[null,1,573,"0573",389,null,null,null,1837,1840,"Perrochon","!E0594","Maison","GIROLLET Pierre feu André",null,null,"- v",null,null,null,"",""]
[null,1,573,"0389",614,null,null,null,1840,1849,"Perrochon","!E0594","Maison","PELLORCE Pierre",null,null,"- v",null,null,null,"",""]
[null,1,389,"0614",217,null,null,null,1849,1852,"Perrochon","!E0594","Maison","PELLORCE Agnès vve MICHEL",null,null,"- v",null,null,null,"",""]
[null,1,614,"0228","?",null,null,null,1852,1880,"Perrochon","!E0594","Masure","MICHEL Antoine feu Blaise",null,null,"- v",null,null,null,"",""]
[null,1,217,"0506",null,null,null,null,1880,null,"Perrochon","!E0594","Masure","DURAND Jean-François gendarme",null,null,"- v",null,null,null,"",""]
[null,0,null,null,null,null,null,null,null,null,"Bergières","!E0651","Maison","PELLORCE Vincent",null,null,"- v",null,null,null,"",""]
[null,1,null,"0359",712,null,null,null,null,1909,"Bergières","!E0651","Mais rurale","PELLORCE Vincent",null,null,"- v",null,null,null,"",""]
[null,1,359,"0617",null,null,null,null,1909,null,"Bergières","!E0651","Mais rurale","PELLORCE Théophile feu Vincent",null,null,"- v",null,null,null,"",""]
[null,0,null,null,null,null,null,null,null,null,"Cogniet de Bergières","!E0740","Four à chaux","PELLORCE Henri",null,null,"- v",null,null,null,"",""]
[null,1,null,"0380",null,null,null,null,null,1855,"Cognet de Bergières","!E0740","Four à chaux","PELLORCE Henry",null,null,"- v",null,null,null,"",""]
[null,1,380,"0028",null,null,null,null,1877,null,"Cognet de Bergières","!E0740","Four à chaux","RAYMOND Denis fils",null,null,"- v",null,null,null,"",""]
[null,1,189,"0389",21,null,null,null,1848,1849,"Les Sagnes *","!E0784","Maison","PELLORCE Pierre",null,null,"- v",null,null,null,"","",null,null,null,null,"Noté La Combe, corrigé"]
[null,0,null,null,null,null,null,null,null,null,"La Fond des Sauges","!E0887","Maison","ODDOUX (Louis)",null,null,"- v",null,null,null,"",""]
[null,0,null,null,null,null,null,null,null,null,"La Fond des Sauges","!E0894","Maison","PELLORCE Denis",null,null,"- v",null,null,null,"",""]
[null,1,null,"0391","362, 377, 391",null,null,null,null,1837,"La Font des Sauges","!E0894","Mais rurale","PELLORCE (Denis) père",null,null,"- v",null,null,null,"",""]
[null,1,null,"0378",null,null,null,null,1837,1855,"La Font des Sauges","!E0894","Mais rurale","PELLORCE Etienne",null,null,"- v",null,null,null,"",""]
[null,1,395,"0363",711,null,null,null,1837,1857,"La Font des Sauges","!E0894","Mais rurale","PELLORCE Vincent",null,null,"- v",null,null,null,"",""]
[null,1,377,"0683",119,null,null,null,1855,1861,"La Font des Sauges","!E0894p","Mais rurale","PELLORCE la femme RIVOIRE",null,null,"- v",null,null,null,"",""]
[null,1,362,"0711",1069,null,null,null,1857,1907,"La Font des Sauges","!E0894p","Bât rural","PELLORCE Pierre fils de BLANC Magdeleine",null,null,"- v",null,null,null,"",""]
[null,1,683,"0119",819,null,null,null,1861,1899,"La Font des Sauges","!E0894p","Mais rurale","RIVOIRE Antoine feu Laurent",null,null,"- v",null,null,null,"",""]
[null,1,119,"0821",null,null,null,null,1899,null,"La Font des Sauges","!E0894p","Bât rural","RIVOIRE Hippolyte fils de Joseph",null,null,"- v",null,null,null,"",""]
[null,1,119,"0821",1042,null,null,null,1899,1903,"La Font des Sauges","!E0894p","Mais rurale","RIVOIRE Hippolyte fils de Joseph",null,null,"- v",null,null,null,"",""]
[null,1,819,1042,null,null,null,null,1903,null,"La Font des Sauges","!E0894p","Mais rurale","RIVOIRE Léon époux CAIX",null,null,"- v",null,null,null,"",""]
[null,1,711,"1069",239,null,null,null,1907,1909,"La Font des Sauges","!E0894p","Bât rural","PAYAN vve PELLORCE Adélaïde",null,null,"- v",null,null,null,"",""]
[null,1,null,"0244",1069,null,null,null,1909,null,"La Font des Sauges","!E0894p","Bât rural","PELLORCE Jean-Denis, fille de feu Denis ; PAYAN Honoré ; PAYAN vve née PELLORCE Adeline",null,null,"- v",null,null,null,"",""]
[null,1,915,"0931",null,null,null,null,1901,null,"Pierre Aiguë","!E0903p","Mais rurale","PELLORCE Vincent époux DUSSERT",null,null,"- v",null,null,null,"",""]
[null,0,null,null,null,null,null,null,null,null,"Pierre Aiguë","!E0904","Maison","CAIX Magdeleine",null,null,"- v",null,null,null,"",""]
[null,1,null,"0062","18 ?",null,null,null,null,1845,"Pierre Aiguë *","!E0904","Mais rurale","CAIX Magdeleine",null,null,"- v",null,null,null,"","",null,null,null,null,"Noté Perrochon, corrigé"]
[null,1,62,"0121",204,null,null,null,1845,1859,"Pierre Aiguë *","!E0904p","Mais rurale","RIVOIRE Auguste feu Paul",null,null,"- v",null,null,null,"","",null,null,null,null,"Noté Perrochon, corrigé"]
[null,1,"(62)","0204",432,null,null,null,1845,1885,"Pierre Aiguë *","!E0904","Mais rurale","RIVOIRE Amable feu Paul",null,null,"- v",null,null,null,"","",null,null,null,null,"Noté Perrochon, corrigé"]
[null,1,121,"0212","?",null,null,null,1859,1885,"Pierre Aiguë *","!E0904p","Mais rurale","RIVOIRE Amable",null,null,"- v",null,null,null,"","",null,null,null,null,"Noté Perrochon, corrigé"]
[null,1,null,"0436",null,null,null,null,1885,1888,"Pierre Aiguë","!E0904p","Mais rurale","RIVOIRE Pierre fils d'Aimable",null,null,"- v",null,null,null,"",""]
[null,1,204,"0915",933,null,null,null,1885,1901,"Pierre Aiguë","!E0904p","Mais rurale","RIVOIRE Théophile",null,null,"- v",null,null,null,"",""]
[null,1,436,"0915",933,null,null,null,1888,1901,"Pierre Aiguë","!E0904p","Mais rurale","RIVOIRE Théophile",null,null,"- v",null,null,null,"",""]
[null,1,915,"0931",null,null,null,null,1901,null,"Pierre Aiguë","!E0904p","Mais rurale","PELLORCE Vincent époux DUSSERT",null,null,"- v",null,null,null,"",""]
[null,0,null,null,null,null,null,null,null,null,"Pierre Aiguë","!E0910","Mazure","SARRET Pierre",null,null,"- v",null,null,null,"",""]
[null,1,null,"0517",584,null,null,null,null,1841,"Pierre Aiguë","!E0910","Maison","SARRET Pierre",null,null,{"$f":"IF(AND(INDIRECT(CONCATENATE(Q$3,ROW()))=\"\",INDIRECT(CONCATENATE(Q$4,ROW()))=\"\"),\"v v\",IF(INDIRECT(CONCATENATE(Q$3,ROW()))=\"\",\"v -\",IF(INDIRECT(CONCATENATE(Q$4,ROW()))=\"\",\"- v\",IF(INDIRECT(CONCATENATE(Q$3,ROW()))=INDIRECT(CONCATENATE(Q$4,ROW())),\"=\",\"<>\"))))","v":"- v"},null,null,null,"",""]
[null,1,"(59-)","0584",null,null,null,null,1841,1873,"Pierre Aiguë","!E0910","Masure en terre","FLEUR André feu Claude",null,null,"- v",null,null,null,"",""]
[null,1,66,"0290","(847)",null,null,null,1873,1879,"Pierre Aiguë","!E0910","Masure","FLEUR Claude fils de feu André",null,null,"- v",null,null,null,"",""]
[null,1,null,"0300","(290)",null,null,null,1879,1899,"Pierre Aiguë","!E0910","Masure","SARRET Magdeleine épouse PELLORCE Laurent dit Partant",null,null,"- v",null,null,null,"",""]
[null,1,800,"0952",1063,null,null,null,1893,1906,"Pierre Aiguë","!E0910","Masure","ARNAUDET Eugène, la vve née RANQUE",null,null,"- v",null,null,null,"",""]
[null,1,952,"1063",1051,null,null,null,1906,1912,"Pierre Aiguë","!E0910","Masure","PEYSSELIER époux MERVAL Léonie",null,null,"- v",null,null,null,"",""]
[null,1,1063,1051,null,null,null,null,1912,null,"Pierre Aiguë","!E0910 *","Masure","ARNAUDET Rémy Achille",null,null,"- v",null,null,null,"","",null,null,null,null,"Noté D910, corrigé E910"]
[null,0,null,null,null,null,null,null,null,null,"Pierre Aiguë","!E0916","Maison","ARLOT Benoit",null,null,"- v",null,null,null,"",""]
[null,1,8,"0761",302,null,null,null,1862,1867,"Pierre Aiguë","!E0916p","Mais rurale","ARLOT Antoine feu Benoit, ARLOT Alexis",null,null,"- v",null,null,null,"",""]
[null,1,8,"0765",null,null,null,null,1862,null,"Pierre Aiguë","!E0916p","Mais rurale","ARLOT Madeleine fille de feu Benoit, DUSSERT Joseph, la vve Zoé née ARLOT",null,null,"- v",null,null,null,"",""]
[null,1,8,"0763",285,null,null,null,1862,1879,"Pierre Aiguë","!E0916p","Mais rurale","ARLOT Louis feu Benoit",null,null,"- v",null,null,null,"",""]
[null,1,"76-","0302",null,null,null,null,1867,1884,"Pierre Aiguë","!E0916p","Mais rurale","MICHEL Antoine vve Marie, MICHEL Pierre",null,null,"- v",null,null,null,"",""]
[null,1,763,"0285",null,null,null,null,1879,null,"Pierre Aiguë","!E0916p","Mais rurale","MICHEL Antoine feu Antoine",null,null,"- v",null,null,null,"",""]
[null,1,null,"0138",302,null,null,null,1884,null,"Pierre Aiguë","!E0916p","Mais rurale","MICHEL Rémy",null,null,"- v",null,null,null,"",""]
[null,1,null,"0008","?",null,null,null,"1882",1862,"Pierre Aiguë","!E0926 916","Mais rurale","ARLOT Benoit",null,null,"- v",null,null,null,"",""]
[null,0,null,null,null,null,null,null,null,null,"Pierre Aiguë","!E0929","Masure","DUPRE Jean-Charles",null,null,"- v",null,null,null,"",""]
[null,1,null,"0110",42,null,null,null,null,1849,"Pierre Aiguë","!E0929","Maison","DUPRE Jean-Claude",null,null,"- v",null,null,null,"",""]
[null,1,110,"0112",98,null,null,null,1849,1883,"Pierre Aiguë","!E0929","Masure","DUPRE Jean-Claude",null,null,"- v",null,null,null,"",""]
[null,1,112,"0098",null,null,null,null,1883,null,"Pierre Aiguë","!E0929p","Masure","DUPRE Joseph feu Simon",null,null,"- v",null,null,null,"",""]
[null,1,112,"0159",null,null,null,null,1883,null,"Pierre Aiguë","!E0929p","Masure","DUPRE Joseph feu Simon",null,null,"- v",null,null,null,"",""]
[null,0,null,null,null,null,null,null,null,null,"Chatelard","!E1342","Oratoire St Roch","La Commune",null,null,"- v",null,null,null,"",""]
[null,1,457,"0591",17,null,null,null,1853,1888,"Clappe et Sagne Bannale *","!E1483","Mais rurale","FLEUR Joseph de Joseph à Lachenal",null,null,"- v",null,null,null,"","",null,null,null,null,"Noté L'Eguillette, corrigé"]
[null,0,null,null,null,null,null,null,null,null,"Puy le Haut *","!E1599","Maison","DUPRE Jean-Claude","Parking Ph Langrand",null,"- v",null,null,null,"","",null,null,null,null,"Noté Le Puy Dessous, corrigé"]
[null,1,null,"0110",608,null,null,null,null,1849,"Le Puy Dessus *","!E1599","Mais rurale","DUPRE Jean-Claude",null,null,"- v",null,null,null,"","",null,null,null,null,"Noté Le Puy Dessous, corrigé"]
[null,1,110,"0608",12,null,null,null,1849,1851,"Le Puy Dessus","!E1599","Mais rurale","DUPRE Antoine fils de Jean Charles",null,null,"- v",null,null,null,"",""]
[null,1,608,"0014","64?",null,null,null,1851,1869,"Le Puy Dessus","!E1599","Mais rurale","ARNAUDET André",null,null,"- v",null,null,null,"","",null,null,null,null,"1579 ou 99, Choisir 1599"]
[null,1,12,"0064",null,null,null,null,1869,null,"Le Puy Dessus","!E1599","Mais rurale","ARNAUDET Achille",null,null,"- v",null,null,null,"",""]
[null,0,null,null,null,null,null,null,null,null,"Puy le Haut *","!E1600","Maison","ARNODET André","Parking Ph Langrand",null,"- v",null,null,null,"","",null,null,null,null,"Noté Le Puy Dessous, corrigé"]
[null,1,null,"0012","?",null,null,null,null,1851,"Le Puy Dessus","!E1600","Maison","ARNAUDET André",null,null,"- v",null,null,null,"",""]
[null,1,12,"0064",null,null,null,null,1879,null,"Puy Dessus","!E1600","Sol","ARNAUDET Achille",null,null,"- v",null,null,null,"",""]
[null,1,null,"0076",null,null,null,null,1880,1882,"Le Puy Dessus","!E1600","Maison","ARNAUDET Achille",null,null,"- v",null,null,null,"",""]
[null,2,null,null,null,"",4,"en ruines",null,1921,"Puy le Haut *","!E1600","Maison, ruines en 1921","ARNAUDET Achille",null,null,"- v",null,null,null,"","",null,null,null,null,"Noté Le Puy, corrigé"]
[null,0,null,null,null,null,null,null,null,null,"Puy le Haut *","!E1601","Maison","VEYRAT Etienne","Jardin Ph Raybaudi",null,"- v",null,null,null,"","",null,null,null,null,"Noté Le Puy Dessous, corrigé"]
[null,1,null,"0522",543,null,null,null,null,1835,"Le Puy Dessus","!E1601","Maison","VEYRAT Etienne",null,null,"- v",null,null,null,"",""]
[null,1,182,"0543","543B",null,null,null,1835,"1882","Le Puy Dessus","!E1601","Maison","DUSSERT Anne vve Etienne VEYRAT",null,null,"- v",null,null,null,"","",null,null,null,null,null,"1882 (sol 1885)"]
[null,2,null,null,null,"",29,"",null,1913,"Puy de Dessus","!E1602","Chambre","DUSSERT Jean fils de feu Pierre","Raybaudi",null,"- v",null,null,null,"",""]
[null,2,null,null,null,"",29,118,1913,1920,"Puy de Dessus","!E1602","Chambre","DUSSERT Jean fils vve née GIROLLET Rosalie",null,null,"- v",null,null,null,"",""]
[null,2,null,null,null,29,118,"Dém",1924,1943,"Puy de Dessus","!E1602","Chambre","DUSSERT Joseph époux REYMOND",null,null,"- v",null,null,null,"","",null,null,null,null,"Noté C, corrigé"]
[null,0,null,null,null,null,null,null,null,null,"Puy le Haut *","!E1604","Maison","ODDOUX Louis","Ph Rayb ou Loren",null,"- v",null,null,null,"","",null,null,null,null,"Noté Le Puy Dessous, corrigé"]
[null,1,"?","0320",null,null,null,null,null,1849,"Le Puy Dessus","!E1604","Maison","ODDOUX Louis",null,null,"- v",null,null,null,"",""]
[null,1,320,"0446",750,null,null,null,1849,1860,"Le Puy Dessus","!E1604","Maison","RANQUE Blaise",null,null,"- v",null,null,null,"",""]
[null,0,null,null,null,null,null,null,null,null,"Puy le Haut *","!E1605","Maison","ARLOT Laurent","Ruines Loren",null,"- v",null,null,null,"","",null,null,null,null,"Noté Le Puy Dessous, corrigé"]
[null,1,null,"0008","?",null,null,null,null,1852,"Le Puy Dessus","!E1605","Maison","ARLOT Benoit",null,null,"- v",null,null,null,"",""]
[null,1,8,"0112","36B",null,null,null,1852,1882,"Le Puy Dessus","!E1605","Maison","DUPRE Jean-Claude",null,null,"- v",null,null,null,"",""]
[null,1,98,"0087",null,null,null,null,1887,null,"Le Puy Dessus","!E1605","Sol et cour","DUPRE Simon",null,null,"- v",null,null,null,"",""]
[null,0,null,null,null,null,null,null,null,null,"Puy le Haut *","!E1606","Maison","MICHEL Gabriel","Ruines Loren",null,"- v",null,null,null,"","",null,null,null,null,"Noté Le Puy Dessous, corrigé"]
[null,1,"?","0306",null,null,null,null,null,1851,"Le Puy Dessus","!E1606","Maison","MICHEL Gabriel (ou Gaston), MERVAL Paul",null,null,"- v",null,null,null,"",""]
[null,1,null,"","",null,null,null,"1851","1853","Puy le Haut","!E1606","Maison","MICHEL Gabriel",null,null,"- v",null,null,null,"",""]
[null,1,306,"0527",685,null,null,null,1851,1855,"Le Puy Dessus","!E1606","Maison","BALME Etienne",null,null,"- v",null,null,null,"",""]
[null,1,527,"0685","119 B",null,null,null,1855,1882,"Le Puy Dessus","!E1606","Maison","PELLORCE Marie fille de Henry",null,null,"- v",null,null,null,"",""]
[null,0,null,null,null,null,null,null,null,null,"Le Puy Dessus","!E1607","Maison","VEYRAT la veuve","Loren",null,"- v",null,null,null,"",""]
[null,1,null,"0530",527,null,null,null,null,1852,"Le Puy Dessus","!E1607","Maison","VEYRAT Pierre",null,null,"- v",null,null,null,"",""]
[null,1,530,"0527",394,null,null,null,1852,1866,"Le Puy Dessus","!E1607","Maison","BALME Etienne",null,null,"- v",null,null,null,"",""]
[null,1,null,"0416",null,null,null,null,1866,1869,"Le Puy Dessus","!E1607","Maison","PELLORCE Jean-Louis",null,null,"- v",null,null,null,"",""]
[null,1,394,"0701","27 B",null,null,null,1869,1882,"Le Puy Dessus","!E1607","Maison","CAROLLINE",null,null,"- v",null,null,null,"",""]
[null,1,null,"0113",701,null,null,null,null,1903,"Le Puy de Dessus","!E1607","Sol","ARNAUDET Achille",null,null,"- v",null,null,null,"",""]
[null,0,null,null,null,null,null,null,null,null,"Le Puy Dessus","!E1608","Maison","FLEUR Etienne","Loren, Maison à toit de tôles",null,"- v",null,null,null,"",""]
[null,1,null,"0210","7--",null,null,null,null,1881,"Le Puy Dessus *","!E1608","Maison","FLEUR Etienne feu Vincent",null,null,"- v",null,null,null,"","",null,null,null,null,"Noté Puy Dessous, corrigé"]
[null,1,210,"0786","79B",null,null,null,1881,1882,"Le Puy Dessus","!E1608","Maison","GUBIAN Pierre",null,null,"- v",null,null,null,"",""]
[null,2,null,null,null,"",52,57,null,1922,"Puy Dessus","!E1608","Maison","GUBIAN Pierre",null,null,"- v",null,null,null,"",""]
[null,2,null,null,null,52,57,159,1922,1936,"Puy Dessus","!E1608","Maison","MERVAL Emile",null,null,"- v",null,null,null,"",""]
[null,2,null,null,null,57,159,"",1936,null,"Puy Dessus","!E1608","Maison","BERNARDI Jacques",null,null,"- v",null,null,null,"",""]
[null,0,null,null,null,null,null,null,null,null,"Le Puy Dessus","!E1609","Maison","PELLORCE Alexandre","Loren",null,"- v",null,null,null,"",""]
[null,1,null,"0367",660,null,null,null,null,"1856","Le Puy Dessus *","!E1609","Maison","PELLORCE Marie fille de feu Pierre",null,null,"- v",null,null,null,"","",null,null,null,null,"Noté Le Puy Dessous, corrigé","1856 (sol 1852 !)"]
[null,1,660,"0291","104B",null,null,null,1882,"1882","Le Puy Dessus","!E1609","Maison","PELLORCE Adolphe fils d'Alexande, 1890 vve ODDOUX Florentine,  femme de GAY Michel",null,null,"- v",null,null,null,"","",null,null,null,null,null,"1882 (sol 1902)"]
[null,2,null,null,null,"",45,"",null,1933,"Puy Dessus","!E1609","Maison","GAY Michel",null,null,"- v",null,null,null,"",""]
[null,2,null,null,null,"",45,"",1933,null,"Puy Dessus","!E1609","Maison","GAY Lucien fils de Michel",null,null,{"$f":"IF(AND(INDIRECT(CONCATENATE(Q$3,ROW()))=\"\",INDIRECT(CONCATENATE(Q$4,ROW()))=\"\"),\"v v\",IF(INDIRECT(CONCATENATE(Q$3,ROW()))=\"\",\"v -\",IF(INDIRECT(CONCATENATE(Q$4,ROW()))=\"\",\"- v\",IF(INDIRECT(CONCATENATE(Q$3,ROW()))=INDIRECT(CONCATENATE(Q$4,ROW())),\"=\",\"<>\"))))","v":"- v"},null,null,null,"",""]
[null,0,null,null,null,null,null,null,null,null,"Le Puy Dessus","!E1610","Maison","CAIX Anne",null,null,null,null,null,null,"",""]
[null,0,null,null,null,null,null,null,null,null,"Le Puy Dessus","!E1610b","Maison","FLEUR Marie",null,null,null,null,null,null,"",""]
[null,1,null,"0082",200,null,null,null,null,1852,"Le Puy Dessus *","!E1610","Maison","CAIX (Claire), MICHEL Denis",null,null,null,null,null,null,"","",null,null,null,null,"Noté Le Puy Dessous, corrigé"]
[null,1,22,"0646",199,null,null,null,1852,1855,"Le Puy Dessus","!E1610","Maison","RIBOT Jean à Auris",null,null,null,null,null,null,"",""]
[null,1,null,"0200","?",null,null,null,null,"1877","Le Puy Dessus *","!E1610","Maison","FLEUR Marie fille au Paul, FLEUR Vincent",null,null,null,null,null,null,"","",null,null,null,null,"Noté Le Puy Dessous, corrigé","1877 (sol en 1895)"]
[null,1,646,"0199","58B",null,null,null,1855,"1882","Le Puy Dessus *","!E1610","Maison","FLEUR Marie Rose",null,null,null,null,null,null,"","",null,null,null,null,"Noté Le Puy Dessous, corrigé","1882 (sol en 1898)"]
[null,0,null,null,null,null,null,null,null,null,"Le Puy Dessus","!E1611","Maison","CAIX Jean","Et Rérat",null,"- v",null,null,null,"",""]
[null,1,null,"0084","?",null,null,null,null,1858,"Le Puy Dessus *","!E1611","Maison","CAIX Jean feu André",null,null,"- v",null,null,null,"","",null,null,null,null,"Noté Le Puy Dessous, corrigé"]
[null,1,84,"0324",null,null,null,null,1858,1882,"Le Puy Dessus *","!E1611 *","Maison","CAIX Louis",null,null,"- v",null,null,null,"","",null,null,null,null,"Noté D1611, Le Puy Dessous, corrigé"]
[null,1,84,"0719","318 (sol 880)",null,null,null,1858,"1881","Le Puy Dessus","!E1611p","Maison","CAIX Hippolitte",null,null,"- v",null,null,null,"","",null,null,null,null,null,"1881 (sol 1900)"]
[null,1,719,"0328",null,null,null,null,1881,1882,"Le Puy Dessus","!E1611p","Maison","CAIX Louis",null,null,"- v",null,null,null,"",""]
[null,2,null,null,null,"",20,123,null,1920,"Puy de Dessus","!E1611p *","Maison","CAIX Louis fils de Jean",null,null,"- v",null,null,null,"","",null,null,null,null,"Noté D1411, corrigé"]
[null,2,null,null,null,"",86,"Ruines",null,1924,"Puy de Dessus","!E1611p *","Maison, ruine en 1924","RANQUE Joseph",null,null,"- v",null,null,null,"","",null,null,null,null,"Noté D, corrigé E"]
[null,2,null,null,null,20,123,"ruines",1920,1924,"Puy de Dessous","!E1611p","Maison","DUSSERT Séraphin (Mme) née RANQUE",null,null,"- v",null,null,null,"","",null,null,null,null,"Noté D, corrigé E"]
[null,0,null,null,null,null,null,null,null,null,"Le Puy Dessus","!E1612","Maison","CAIX Jean","Gérard Jaskulski",null,{"$f":"IF(AND(INDIRECT(CONCATENATE(Q$3,ROW()))=\"\",INDIRECT(CONCATENATE(Q$4,ROW()))=\"\"),\"v v\",IF(INDIRECT(CONCATENATE(Q$3,ROW()))=\"\",\"v -\",IF(INDIRECT(CONCATENATE(Q$4,ROW()))=\"\",\"- v\",IF(INDIRECT(CONCATENATE(Q$3,ROW()))=INDIRECT(CONCATENATE(Q$4,ROW())),\"=\",\"<>\"))))","v":"- v"},null,null,null,"",""]
[null,1,null,"0084","?",null,null,null,null,1858,"Le Puy Dessus *","!E1612","Maison","CAIX Jean feu André",null,null,"- v",null,null,null,"","",null,null,null,null,"Noté Le Puy Dessous, corrigé"]
[null,1,84,"0718","24 B (sol 888)",null,null,null,1858,"1982","Le Puy Dessus","!E1612p","Maison","CAIX Jean fils de Jean gendre RIVOIRE",null,null,"- v",null,null,null,"","",null,null,null,null,null,"1982 (sol 1900)"]
[null,1,84,"0719","26 B (sol 318)",null,null,null,1858,"1882","Le Puy Dessus","!E1612p","Maison","CAIX Hippolitte",null,null,"- v",null,null,null,"","",null,null,null,null,null,"1882 (sol 1897)"]
[null,2,null,null,null,"",86,"Ruines",null,1924,"Puy de Dessus","!E1612p *","Maison, ruine en 1925","RANQUE Joseph",null,null,"- v",null,null,null,"","",null,null,null,null,"Noté D, corrigé"]
[null,0,null,null,null,null,null,null,null,null,"Le Puy Dessus","!E1613","Maison","ARNODET Joseph",null,null,"- v",null,null,null,"",""]
[null,0,null,null,null,null,null,null,null,null,"Le Puy Dessus","!E1614","Maison","ARNODET Joseph","Arrière Raissiguier","x","- v",null,null,null,"",""]
[null,1,null,"0015",12,null,null,null,null,1835,"Le puy Dessus","!E1614 *","Mais rurale","ARNAUUDET Jacques","Dr Philippe","x","- v",null,null,null,"","",null,null,null,null,"Hésité entre 1614 ou 1674"]
[null,1,15,"0013","84.12",null,null,null,1835,1844,"Le Puy Dessus","!E1614","Mais rurale","ARNAUDET André",null,"x","- v",null,null,null,"",""]
[null,1,14,"0014","?",null,null,null,1844,1857,"Le Puy Dessus","!E1614","Mais rurale","ARNAUDET André",null,"x","- v",null,null,null,"",""]
[null,1,12,"0701",112,null,null,null,1857,1869,"Le Puy Dessus","!E1614","Bât rural","CAROLINE",null,"x","- v",null,null,null,"",""]
[null,1,84,"0324",null,null,null,null,1858,null,"Le Puy Dessus","!E1614","Mais rurale","CAIX Louis",null,"x","- v",null,null,null,"",""]
[null,1,"nc","0701",112,null,null,null,1859,1869,"Le Puy Dessus","!E1614","Maison CN","CAROLINE",null,"x","- v",null,null,null,"",""]
[null,1,112,"0159",87,null,null,null,1883,"1887","Le Puy Dessus","!E1614","Bât rural","DUPRE Joseph feu Simon",null,"x","- v",null,null,null,"","",null,null,null,null,null,"1887 (ou 89)"]
[null,1,318,921,"3, 880",null,null,null,1900,1911,"Le Puy Dessus","!E1614","Bât rural","RANQUE Joseph feu André",null,"x","- v",null,null,null,"",""]
[null,2,null,null,null,"Omis 1890",167,"",1943,1948,"Puy le Haut","!E1614","Maison","PESSELIER Louis, époux ARNAUDET",null,null,"- v",null,null,null,"",""]
[null,2,null,null,null,null,167,"",1948,null,"Puy le Haut","!E1614","Maison","RAISSIGUIER André, époux BACHELIN, instituteur",null,null,"- v",null,null,null,"",""]
[null,1,null,"0084","?",null,null,null,1844,1858,"Le Puy Dessus","!E1614p","Mais rurale","CAIX Jean feu André",null,"x","- v",null,null,null,"",""]
[null,1,84,"0719",318,null,null,null,1858,1881,"Le Puy Dessus","!E1614p","Bât rural","CAIX Hippolitte",null,"x","- v",null,null,null,"",""]
[null,1,84,"0718",783,null,null,null,1858,1881,"Le Puy Dessus","!E1614p","Bât rural","CAIX Jean fils de Jean gendre RIVOIRE",null,"x","- v",null,null,null,"",""]
[null,1,"(701)","0112","?",null,null,null,1869,1882,"Le Puy Dessus","!E1614p","Maison","DUPRE Jean-Claude",null,"x",{"$f":"IF(AND(INDIRECT(CONCATENATE(Q$3,ROW()))=\"\",INDIRECT(CONCATENATE(Q$4,ROW()))=\"\"),\"v v\",IF(INDIRECT(CONCATENATE(Q$3,ROW()))=\"\",\"v -\",IF(INDIRECT(CONCATENATE(Q$4,ROW()))=\"\",\"- v\",IF(INDIRECT(CONCATENATE(Q$3,ROW()))=INDIRECT(CONCATENATE(Q$4,ROW())),\"=\",\"<>\"))))","v":"- v"},null,null,null,"",""]
[null,1,"(701)","0112","?",null,null,null,1869,1883,"Le Puy Dessus","!E1614p","Bât rural","DUPRE Jean-Claude",null,"x",{"$f":"IF(AND(INDIRECT(CONCATENATE(Q$3,ROW()))=\"\",INDIRECT(CONCATENATE(Q$4,ROW()))=\"\"),\"v v\",IF(INDIRECT(CONCATENATE(Q$3,ROW()))=\"\",\"v -\",IF(INDIRECT(CONCATENATE(Q$4,ROW()))=\"\",\"- v\",IF(INDIRECT(CONCATENATE(Q$3,ROW()))=INDIRECT(CONCATENATE(Q$4,ROW())),\"=\",\"<>\"))))","v":"- v"},null,null,null,"",""]
[null,1,12,"0001",105,null,null,null,1879,1906,"Le Puy Dessus","!E1614p","Bât rural","ARNAUDET Eugène",null,"x",{"$f":"IF(AND(INDIRECT(CONCATENATE(Q$3,ROW()))=\"\",INDIRECT(CONCATENATE(Q$4,ROW()))=\"\"),\"v v\",IF(INDIRECT(CONCATENATE(Q$3,ROW()))=\"\",\"v -\",IF(INDIRECT(CONCATENATE(Q$4,ROW()))=\"\",\"- v\",IF(INDIRECT(CONCATENATE(Q$3,ROW()))=INDIRECT(CONCATENATE(Q$4,ROW())),\"=\",\"<>\"))))","v":"- v"},null,null,null,"",""]
[null,1,718,"0783",718,null,null,null,1881,1887,"Le Puy Dessus","!E1614p","Bât rural","DUSSERT Jean, aubergiste à Clavans",null,"x",{"$f":"IF(AND(INDIRECT(CONCATENATE(Q$3,ROW()))=\"\",INDIRECT(CONCATENATE(Q$4,ROW()))=\"\"),\"v v\",IF(INDIRECT(CONCATENATE(Q$3,ROW()))=\"\",\"v -\",IF(INDIRECT(CONCATENATE(Q$4,ROW()))=\"\",\"- v\",IF(INDIRECT(CONCATENATE(Q$3,ROW()))=INDIRECT(CONCATENATE(Q$4,ROW())),\"=\",\"<>\"))))","v":"- v"},null,null,null,"",""]
[null,1,null,"0328",null,null,null,null,1881,1900,"Le Puy Dessus","!E1614p","Bât rural","CAIX Louis",null,"x","- v",null,null,null,"",""]
[null,1,783,"0733",880,null,null,null,1887,1900,"Le Puy Dessus","!E1614p","Bât rural","CAIX Jean fils de Jean gendre RIVOIRE",null,"x","- v",null,null,null,"",""]
[null,1,98,"0087",null,null,null,null,1887,null,"Le Puy Dessus","!E1614p","Bât rural","DUPRE Simon",null,"x","- v",null,null,null,"",""]
[null,1,null,"0882",null,null,null,null,1900,1911,"Le Puy Dessus","!E1614p","Bât rural","RANQUE Joseph feu André",null,"x","- v",null,null,null,"",""]
[null,1,1,1051,null,null,null,null,1906,null,"Le Puy Dessus","!E1614p","Bât rural","ARNAUDET Rémy Achille",null,null,"- v",null,null,null,"",""]
[null,1,null,882,-80,null,null,null,1911,null,"Le Puy Dessus","!E1614p","Bât rural","RANQUE Joseph feu André"]
[null,1,880,"0003",null,null,null,null,1911,null,"Le Puy Dessus","!E1614p","Bât rural","DUSSERT Séraphin vve née RANQUE",null,"x","- v",null,null,null,"",""]
[null,0,null,null,null,null,null,null,null,null,"Le Puy Dessus","!E1615","Maison","SARRET Pierre","Emplacement du lavoir",null,"- v",null,null,null,"",""]
[null,1,null,"0517",681,null,null,null,null,1887,"Le Puy Dessus","!E1615","Bât rural","SARRET Pierre",null,null,"- v",null,null,null,"",""]
[null,1,517,"0681",null,null,null,null,1887,null,"Le Puy Dessus *","!E1615","Bât rural","CHALVIN (François) feu (André)",null,null,"- v",null,null,null,"","",null,null,null,null,"Noté Le Puy Dessous, corrigé"]
[null,0,null,null,null,null,null,null,null,null,"Le Puy Dessus","!E1616","Maison","ARNODET André","Dr Philippe devant",null,"- v",null,null,null,"",""]
[null,1,null,"0012",1,null,null,null,null,1879,"Le Puy Dessus","!E1616","Maison","ARNAUDET André",null,null,"- v",null,null,null,"",""]
[null,1,"C(1)2-","0014","?",null,null,null,1842,1879,"Le Puy Dessus *","!E1616","Maison","ARNAUDET André",null,null,"- v",null,null,null,"","",null,null,null,null,"Noté Puy ?, corrigé"]
[null,1,12,"0001","3B",null,null,null,1879,"1882","Le Puy Dessus","!E1616","Maison","ARNAUDET Eugène",null,null,"- v",null,null,null,"",""]
[null,0,null,null,null,null,null,null,null,null,"Le Puy Dessus","!E1617","Maison","DUPRE Jean-Charles","Fège détruite",null,"- v",null,null,null,"",""]
[null,1,null,"0110",608,null,null,null,null,1849,"Le Puy Dessus *","!E1617","Maison","DUPRE Jean-Claude",null,null,"- v",null,null,null,"","",null,null,null,null,"Noté Le Puy Dessous, corrigé"]
[null,1,110,"0608",17,null,null,null,1849,1870,"Le Puy Dessus","!E1617","Maison","DUPRE Antoine fils de Jean Charles",null,null,"- v",null,null,null,"",""]
[null,1,608,"0017",825,null,null,null,1870,1875,"Le Puy Dessus","!E1617","Maison","DUSSERT Pierre, DUSSERT Elie",null,null,"- v",null,null,null,"",""]
[null,1,17,"0825","51 B (sol 1010)",null,null,null,1875,"1882","Le Puy Dessus","!E1617","Maison","DUSSERT Jean de feu Pierre",null,null,"- v",null,null,null,"","",null,null,null,null,null,"1882 (sol 1913)"]
[null,2,null,null,null,"",29,"",null,1913,"Puy de Dessus","!E1617","Maison","DUSSERT Jean fils de feu Pierre",null,null,"- v",null,null,null,"",""]
[null,2,null,null,null,"",29,118,1913,1920,"Puy de Dessus","!E1617","Maison","DUSSERT Jean vve née GIROLLET Rosalie",null,null,"- v",null,null,null,"",""]
[null,2,null,null,null,"",118,"Dém",1924,1953,"Puy de Dessus","!E1617","Maison","DUSSERT Joseph époux REYMOND",null,null,"- v",null,null,null,"","",null,null,null,null,"Noté C, corrigé"]
[null,0,null,null,null,null,null,null,null,null,"Le Puy Dessus","!E1618","Maison","DUPRE Jean-Charles","Paul Fourrier",null,"- v",null,null,null,"",""]
[null,1,null,"0110",608,null,null,null,null,1849,"Le Puy Dessus *","!E1618","Maison","DUPRE Jean-Claude",null,null,"- v",null,null,null,"","",null,null,null,null,"Noté Le Puy Dessous, corrigé"]
[null,1,110,"0608",12,null,null,null,1849,1855,"Le Puy Dessus","!E1618","Maison","DUPRE Antoine fils de Jean Charles",null,null,"- v",null,null,null,"",""]
[null,1,608,"0014","?",null,null,null,1855,1879,"Le Puy Dessus","!E1618","Maison","ARNAUDET André",null,null,"- v",null,null,null,"",""]
[null,1,null,"0598",null,null,null,null,1879,1882,"Le Puy Dessus","!E1618","Maison","ARNAUD Joseph fils d'André, instituteur",null,null,"- v",null,null,null,"",""]
[null,2,null,null,null,"",5,"m rural",null,1918,"Le Puy dessus","!E1618","Maison (rurale en 1926)","ARNAUDET Joseph fils André, ancien instituteur au Freney",null,null,"- v",null,null,null,"",""]
[null,0,null,null,null,null,null,null,null,null,"Le Puy Dessus","!E1621","Maison","FLEUR Vincent","Cave",null,"- v",null,null,null,"",""]
[null,1,null,"0208","démolie",null,null,null,null,"1865","Le Puy Dessus *","!E1621","Maison démolie","FLEUR Vincent",null,null,"- v",null,null,null,"","",null,null,null,null,"Noté Puy Dessous, corrigé","1865 (sol en 1870)"]
[null,0,null,null,null,null,null,null,null,null,"Le Puy Dessus","!E1623","Maison","SARRET Etienne",null,null,"- v",null,null,null,"",""]
[null,1,null,"0516",null,null,null,null,null,1854,"Le Puy Dessus *","!E1623","Maison","SARRET Etienne",null,null,"- v",null,null,null,"","",null,null,null,null,"Noté Le Puy Dessous, corrigé"]
[null,1,516,"0675","démolie (sol 17)",null,null,null,1854,"1865","Le Puy Dessus","!E1623","Maison démolie","PELLORCE Laurent dit Partant",null,null,"- v",null,null,null,"","",null,null,null,null,null,"1865 (sol 1871)"]
[null,0,null,null,null,null,null,null,null,null,"Le Puy Dessus","!E1625","Maison","MICHEL Pierre","Emplacement René Boiteau",null,{"$f":"IF(AND(INDIRECT(CONCATENATE(Q$3,ROW()))=\"\",INDIRECT(CONCATENATE(Q$4,ROW()))=\"\"),\"v v\",IF(INDIRECT(CONCATENATE(Q$3,ROW()))=\"\",\"v -\",IF(INDIRECT(CONCATENATE(Q$4,ROW()))=\"\",\"- v\",IF(INDIRECT(CONCATENATE(Q$3,ROW()))=INDIRECT(CONCATENATE(Q$4,ROW())),\"=\",\"<>\"))))","v":"- v"},null,null,null,"",""]
[null,1,null,"0301",675,null,null,null,null,1862,"Le Puy Dessus","!E1625","Maison","MICHEL (Pierre)",null,null,"- v",null,null,null,"",""]
[null,1,301,"0675","118 B",null,null,null,1862,1882,"Le Puy Dessus","!E1625","Maison","PELLORCE Laurent dit Partant",null,null,"- v",null,null,null,"",""]
[null,2,null,null,null,"",76,"Dém",null,1943,"Puy Dessus","!E1625","Maison","PELLORCE Laurent dit Partan",null,null,"- v",null,null,null,"",""]
[null,0,null,null,null,null,null,null,null,null,"Le Puy Dessus","!E1627","Maison","PELLORCE Etienne","Emplacement René Boiteau",null,"- v",null,null,null,"",""]
[null,1,null,"0356",null,null,null,null,null,1861,"Le Puy Dessus *","!E1627","Maison","PELLORCE Etienne",null,null,"- v",null,null,null,"","",null,null,null,null,"Noté Le Puy Dessous, corrigé"]
[null,1,356,"0759",675,null,null,null,1861,1867,"Le Puy Dessus","!E1627p","Maison","PELLORCE Jeanne Marie fille d'Etienne",null,null,"- v",null,null,null,"",""]
[null,1,356,"0675",98,null,null,null,1861,1880,"Le Puy Dessus","!E1627p","Maison","PELLORCE Laurent dit Partant",null,null,"- v",null,null,null,"",""]
[null,1,759,"0675",98,null,null,null,1867,1880,"Le Puy Dessus","!E1627p","Maison","PELLORCE Laurent dit Partant",null,null,"- v",null,null,null,"",""]
[null,1,675,"0098","35B",null,null,null,1880,1882,"Le Puy Dessus","!E1627p","Maison","DUPRE Joseph feu Simon",null,null,"- v",null,null,null,"",""]
[null,0,null,null,null,null,null,null,null,null,"Le Puy Dessus","!E1630","Maison","ARNODET Joseph oncle","Ruines Hamidi",null,"- v",null,null,null,"",""]
[null,1,null,"0018",null,null,null,null,null,1839,"Le Puy Dessus","!E1630","Maison","ARNAUDET Joseph",null,null,"- v",null,null,null,"",""]
[null,1,null,"0376",null,null,null,null,1839,1949,"Le Puy Dessus","!E1630","Maison","PELLORCE Antoine feu Paul",null,null,"- v",null,null,null,"",""]
[null,1,376,"0009","761, 763",null,null,null,1849,1862,"Le Puy Dessus","!E1630","Maison","ARLOT Benoit",null,null,"- v",null,null,null,"",""]
[null,1,761,"0761","(1)7",null,null,null,1862,1870,"Le Puy Dessus","!E1630p","Maison","ARLOT Antoine feu Benoit, ARLOT Alexis",null,null,"- v",null,null,null,"",""]
[null,1,8,"0763",174,null,null,null,1862,1870,"Le Puy Dessus","!E1630p","Maison","Arlot Louis feu Benoit",null,null,"- v",null,null,null,"",""]
[null,1,8,"0765","1 B",null,null,null,1862,1882,"Le Puy Dessus","!E1630p","Maison","ARLOT Madeleine fille de feu Benoit, DUSSERT Joseph, la vve Zoé née ARLOT",null,null,"- v",null,null,null,"",""]
[null,1,761,"0174","?",null,null,null,1870,"1882","Le Puy Dessus","!E1630p","Maison","DUSSERT Joseph feu Louis",null,null,"- v",null,null,null,"","",null,null,null,null,null,"1882 (sol en 84)"]
[null,1,763,"0174","?",null,null,null,1870,"1882","Le Puy Dessus","!E1630p","Maison","DUSSERT Joseph feu Louis",null,null,"- v",null,null,null,"","",null,null,null,null,null,"1882 (sol en 84)"]
[null,0,null,null,null,null,null,null,null,null,"Le Puy Dessus","!E1632","Grenier","ODDOUX Louis",null,null,"- v",null,null,null,"",""]
[null,1,null,"0321",null,null,null,null,null,null,"Le Puy Dessus","!E1632","Bât rural","ODDOUX Louis",null,null,"- v",null,null,null,"",""]
[null,0,null,null,null,null,null,null,null,null,"Le Puy Dessus","!E1635","Maison","DUSSERT André","Marie Madeleine Lanne",null,"- v",null,null,null,"",""]
[null,1,null,"0136",825,null,null,null,null,1893,"Le Puy Dessus *","!E1635","Mais rurale","DUSSERT (André)",null,null,"- v",null,null,null,"","",null,null,null,null,"Noté Le Puy Dessous, corrigé"]
[null,1,"cn","0137","démolie",null,null,null,1842,1844,"Le Puy Dessus","!E1635","Maison démolie","DUSSERT (André)",null,null,"- v",null,null,null,"",""]
[null,1,"cn","0137","115B",null,null,null,1844,1882,"Le Puy Dessus","!E1635","Maison","DUSSERT (André)",null,null,"- v",null,null,null,"",""]
[null,1,136,"0673",990,null,null,null,1893,1913,"Le Puy Dessus","!E1635","Mais rurale","DUSSERT Jean feu Pierre",null,null,"- v",null,null,null,"",""]
[null,1,825,"0962",null,null,null,null,1913,null,"Le Puy Dessus","!E1635","Mais rurale","DUSSERT Joseph époux REYMOND",null,null,"- v",null,null,null,"",""]
[null,0,null,null,null,null,null,null,null,null,"Le Puy Dessus","!E1637","Maison","PELLORCE Henri","Jean-Pierre Cochard",null,"- v",null,null,null,"",""]
[null,1,null,"0380",null,null,null,null,null,1852,"Le Puy Dessus","!E1637","Mais rurale","PELLORCE Henry",null,null,"- v",null,null,null,"",""]
[null,1,null,"0643",380,null,null,null,1852,null,"Le Puy Dessus","!E1637","Mais rurale","MERVAL Paul",null,null,"- v",null,null,null,"",""]
[null,1,"?","0306",null,null,null,null,1853,1882,"Le Puy Dessus","!E1637","Mais rurale","MICHEL Gabriel",null,null,"- v",null,null,null,"",""]
[null,1,"cn","0307",863,null,null,null,1866,1882,"Le Puy Dessus *","!E1637","Maison","MERVAL Paul",null,null,"- v",null,null,null,"","",null,null,null,null,"Noté Le Puy, corrigé"]
[null,1,306,"0863","85 B",null,null,null,1882,1882,"Le Puy Dessus","!E1637","Maison","MERVAL Emile",null,null,"- v",null,null,null,"",""]
[null,1,306,"0863",null,null,null,null,1882,null,"Le Puy Dessus","!E1637","Mais rurale","MERVAL Emile",null,null,"- v",null,null,null,"",""]
[null,2,null,null,null,"",57,"",null,1943,"Puy Dessus","!E1637","Maison","MERVAL Emile",null,null,"- v",null,null,null,"",""]
[null,2,null,null,null,"",57,174,1943,1948,"Puy Dessus","!E1637","Maison","MERVAL Emile, héritiers",null,null,"- v",null,null,null,"",""]
[null,2,null,null,null,57,174,"",1948,null,"Puy le Haut *","!E1637","Maison","MERVAL Marie Louise",null,null,"- v",null,null,null,"","",null,null,null,null,"Noté Puy Dessous, corrigé"]
[null,0,null,null,null,null,null,null,null,null,"Le Puy Dessus","!E1638","Maison","DUSSERT André","M-Madeleine Lanne",null,"- v",null,null,null,"",""]
[null,1,null,"0136",136,null,null,null,null,1892,"Le Puy Dessus *","!E1638","Maison","DUSSERT (André)",null,null,"- v",null,null,null,"","",null,null,null,null,"Noté Le Puy Dessous, corrigé"]
[null,1,"cn","0137","45 B",null,null,null,1844,1882,"Le Puy Dessus","!E1638","Maison","DUSSERT (André)",null,null,"- v",null,null,null,"",""]
[null,0,null,null,null,null,null,null,null,null,"Le Puy Dessus","!E1639","Maison","SARRET Etienne","M-Madeleine Lanne",null,"- v",null,null,null,"",""]
[null,1,null,"0516",null,null,null,null,null,1854,"Le Puy Dessus *","!E1639 *","(Mon rurale)","SARRET Etienne",null,null,"- v",null,null,null,"","",null,null,null,null,"Hésité entre 1629 ou 1639, noté le Puy Dessous, corrigé"]
[null,1,516,"0675",98,null,null,null,1854,1880,"Le Puy Dessus","!E1639","Bât rural","PELLORCE Laurent dit Partant",null,null,"- v",null,null,null,"",""]
[null,1,675,"0098",null,null,null,null,1880,null,"Le Puy Dessus","!E1639","Bât rural","DUPRE Joseph feu Simon",null,null,"- v",null,null,null,"",""]
[null,0,null,null,null,null,null,null,null,null,"Le Puy Dessus","!E1640","Maison","PELLORCE Henri","Ryo",null,"- v",null,null,null,"",""]
[null,1,"nc","0381",643,null,null,null,1845,1852,"Le Puy Dessus","!E1640","Maison CN","PELLORCE Henry",null,null,"- v",null,null,null,"",""]
[null,1,null,"0380",null,null,null,null,1845,"1855","Le Puy Dessus","!E1640","Maison","PELLORCE Henry",null,null,"- v",null,null,null,"","",null,null,null,null,null,"1855 (sol 1852 !)"]
[null,1,null,"0643",380,null,null,null,1852,null,"Le Puy Dessus","!E1640","Maison","MERVAL Paul",null,null,"- v",null,null,null,"",""]
[null,1,"?","0306",null,null,null,null,1853,1882,"Le Puy Dessus","!E1640","Maison","MICHEL Gabriel",null,null,"- v",null,null,null,"",""]
[null,1,306,"0863","85 B",null,null,null,1882,1882,"Le Puy Dessus","!E1640","Maison","MERVAL Emile",null,null,"- v",null,null,null,"",""]
[null,2,null,null,null,"",57,"",null,1943,"Puy Dessus","!E1640","Maison","MERVAL Emile",null,null,"- v",null,null,null,"",""]
[null,2,null,null,null,"",57,"RB",1943,1948,"Puy Dessus","!E1640","Maison","MERVAL Emile, héritiers",null,null,"- v",null,null,null,"",""]
[null,2,null,null,null,57,49,"",1948,null,"Puy le Haut","!E1640","Maison","MERVAL Emile époux GIROUD",null,null,"- v",null,null,null,"",""]
[null,0,null,null,null,null,null,null,null,null,"Le Puy Dessus","!E1641","Chapelle","Le Puy Dessus Hameau","Daniel Brenu",null,"- v",null,null,null,"",""]
[null,1,null,"0419",217,null,null,null,null,1834,"Le Puy Dessus","!E1641","Chapelle","Puy d'en Haut, hameau, … DUSSERT … , CAIX Jean",null,null,"- v",null,null,null,"",""]
[null,1,null,"0227",419,null,null,null,1834,null,"Le Puy Dessus","!E1641","Chapelle","Freney la commune",null,null,"- v",null,null,null,"",""]
[null,0,null,null,null,null,null,null,null,null,"Le Puy Dessus","!E1642","Maison","DUSSERT Pierre",null,null,"- v",null,null,null,"",""]
[null,1,null,"0120",null,null,null,null,null,1844,"Le Puy Dessus *","!E1642","Maison","DUSSERT Pierre",null,null,"- v",null,null,null,"","",null,null,null,null,"Noté Le Puy Dessous, corrigé"]
[null,1,null,"0125","1",null,null,null,1844,1868,"Le Puy Dessus *","!E1642","Maison","DUSSERT Louis fils à Pierre",null,null,"- v",null,null,null,"","",null,null,null,null,"Noté Le Puy Dessous, corrigé"]
[null,1,124,"0001","3B (1062 pour le sol)",null,null,null,1868,"1882","Le Puy Dessus *","!E1642","Maison","ARNAUDET Eugène fils à André",null,null,"- v",null,null,null,"","",null,null,null,null,"Noté Le Puy Dessous, corrigé","1882 (sol 1904)"]
[null,2,null,null,null,"",62,57,null,1919,"Puy le Haut *","!E1642","Maison","MATHONNET Noémie épouse NOIREY",null,null,"- v",null,null,null,"","",null,null,null,null,"Noté Puy Dessous, corrigé"]
[null,2,null,null,null,62,57,"RB",1919,1943,"Puy Dessus","!E1642","Maison","MERVAL Emile",null,null,"- v",null,null,null,"",""]
[null,2,null,null,null,"RB",57,"49, 173",1943,1948,"Puy Dessus","!E1642","Maison","MERVAL Emile, héritiers",null,null,"- v",null,null,null,"",""]
[null,2,null,null,null,57,173,"",1948,null,"Puy le Haut","!E1642","Maison","BÉRARD Alfred ep Merval",null,null,"- v",null,null,null,"",""]
[null,1,null,"0368",null,null,null,null,null,1834,"Le Puy Dessus *","!E1644","Mais rurale","PELLORCE M fille de Pierre","Ph Langrand",null,"- v",null,null,null,"","",null,null,null,null,"Noté Le Puy Dessous, corrigé"]
[null,1,367,"0465",455,null,null,null,1834,1852,"Le Puy Dessus","!E1644","Bât rural","REYMOND André Fils à Blaise",null,null,"- v",null,null,null,"",""]
[null,1,465,"0455",672,null,null,null,1852,1886,"Le Puy Dessus","!E1644","Bât rural","REYMOND Joseph fils à Blaise",null,null,{"$f":"IF(AND(INDIRECT(CONCATENATE(Q$3,ROW()))=\"\",INDIRECT(CONCATENATE(Q$4,ROW()))=\"\"),\"v v\",IF(INDIRECT(CONCATENATE(Q$3,ROW()))=\"\",\"v -\",IF(INDIRECT(CONCATENATE(Q$4,ROW()))=\"\",\"- v\",IF(INDIRECT(CONCATENATE(Q$3,ROW()))=INDIRECT(CONCATENATE(Q$4,ROW())),\"=\",\"<>\"))))","v":"- v"},null,null,null,"",""]
[null,1,"(8)7(3)","0652",null,null,null,null,1905,null,"Le Puy Dessus","!E1644","Bât rural","DUSSERT Séraphin Barthélémy feu André",null,null,"- v",null,null,null,"",""]
[null,1,null,920,null,null,null,null,1886,1898,"Puy Dessus","!E1644p","Bât rural","DUSSERT Séraphin, André frères indivis"]
[null,1,455,"0672",652,null,null,null,1886,1905,"Le Puy Dessus","!E1644p","Bât rural","FLEUR Louis fils de Joseph à Lachenal",null,null,"- v",null,null,null,"",""]
[null,1,920,"0995",null,null,null,null,1898,null,"Le Puy Dessus","!E1644p","Bât rural","DUSSERT Séraphin gendre RANQUE",null,null,"- v",null,null,null,"",""]
[null,2,null,null,null,"",36,"RB",null,1943,"Puy Dessus","!E1644p","Maison","DUSSERT Joseph Séraphin gendre RANQUE",null,null,"- v",null,null,null,"",""]
[null,2,null,null,null,"",36,181,1943,1955,"Puy Dessus","!E1644p","Maison","DUSSERT Joseph Séraphin gendre RANQUE, la veuve et les héritiers",null,null,"- v",null,null,null,"",""]
[null,2,null,null,null,36,181,"",1955,1960,"Puy Dessus","!E1644p","Maison","DUSSERT Rémy époux GARNIER, charpentier",null,null,"- v",null,null,null,"",""]
[null,2,null,null,null,null,181,"",1960,null,"Puy Dessus","!E1644p","Maison","LANGRAND André époux LASCOUX",null,null,{"$f":"IF(AND(INDIRECT(CONCATENATE(Q$3,ROW()))=\"\",INDIRECT(CONCATENATE(Q$4,ROW()))=\"\"),\"v v\",IF(INDIRECT(CONCATENATE(Q$3,ROW()))=\"\",\"v -\",IF(INDIRECT(CONCATENATE(Q$4,ROW()))=\"\",\"- v\",IF(INDIRECT(CONCATENATE(Q$3,ROW()))=INDIRECT(CONCATENATE(Q$4,ROW())),\"=\",\"<>\"))))","v":"- v"},null,null,null,"",""]
[null,0,null,null,null,null,null,null,null,null,"Le Puy Dessus","!E1645","Maison","PELLORCE Alexandre",null,null,"- v",null,null,null,"",""]
[null,0,null,null,null,null,null,null,null,null,"Le Puy Dessus","!E1646","Maison","PELLORCE Alexandre","Mousty",null,"- v",null,null,null,"",""]
[null,1,null,"0368",null,null,null,null,null,1856,"Le Puy Dessus *","!E1646","Maison","PELLORCE M fille de Pierre",null,null,"- v",null,null,null,"","",null,null,null,null,"Noté Le Puy Dessous, corrigé"]
[null,1,660,"0291","104B",null,null,null,1882,"1882","Le Puy Dessus","!E1646","Maison","PELLORCE Adolphe fils d'Alexande, 1890 vve ODDOUX Florentine",null,null,"- v",null,null,null,"","",null,null,null,null,null,"1882 (sol 1902)"]
[null,2,null,null,null,"",45,"156, 157",null,1933,"Puy Dessus","!E1646","Maison","GAY Lucien fils de Michel",null,null,"- v",null,null,null,"",""]
[null,2,null,null,null,45,156,157,1933,1961,"Puy le Haut","!E1646","Maison","GAY Marie Célestine",null,null,"- v",null,null,null,"",""]
[null,2,null,null,null,"115, 156 en 61",157,"",1933,null,"Puy Dessus","!E1646","Maison","VEYRAT Louis époux GAY, facteur ",null,null,"- v",null,null,null,"",""]
[null,0,null,null,null,null,null,null,null,null,"Le Puy Dessus","!E1647","Maison","CAIX Théotiste","démolie",null,"- v",null,null,null,"",""]
[null,1,null,"0070",12,null,null,null,null,"(183","Le Puy Dessus","!E1647","Maison","CAIX Charles fils",null,null,"- v",null,null,null,"","",null,null,null,null,null,"(1838)"]
[null,1,70,"0013",320,null,null,null,1838,1841,"Le Puy Dessus","!E1647","Maison","ARNAUDET André",null,null,"- v",null,null,null,"",""]
[null,1,12,"0321","BB",null,null,null,1841,"1845","Le Puy Dessus","!E1647","Maison","ODDOUX Louis",null,null,"- v",null,null,null,"","",null,null,null,null,null,"1845, 1882"]
[null,2,null,null,null,"49 AC1960",19,"",1961,null,"Puy le Haut","!E1648 *","Maison","VANPEENE René (1957)",null,null,"- v",null,null,null,"","",null,null,null,null,"Noté E1448, corrigé"]
[null,0,null,null,null,null,null,null,null,null,"Le Puy Dessus","!E1650","Maison","GIROLET Pierre","démolie",null,"- v",null,null,null,"",""]
[null,1,null,"0257",444,null,null,null,null,1860,"Le Puy Dessus","!E1650","Maison","GIROLLET Pierre",null,null,"- v",null,null,null,"",""]
[null,1,null,"0452",null,null,null,null,1860,1865,"Le Puy Dessus","!E1650","Maison","RIVOIRE André fils Laurent",null,null,"- v",null,null,null,"",""]
[null,1,444,"0672","60 B",null,null,null,1865,1882,"Le Puy Dessus","!E1650","Maison","FLEUR Louis fils de Joseph à Lachenal",null,null,"- v",null,null,null,"",""]
[null,2,null,null,null,"",36,"RB",null,1943,"Puy Dessus","!E1650","Maison","DUSSERT Joseph Séraphin gendre RANQUE la veuve et les héritiers",null,null,"- v",null,null,null,"",""]
[null,0,null,null,null,null,null,null,null,null,"Le Puy Dessus","!E1651","Maison","REYMOND Joseph","Wiart",null,"- v",null,null,null,"",""]
[null,1,null,"0455",null,null,null,null,null,"1882","Le Puy Dessus","!E1651","Maison","REYMOND Joseph fils à Blaise",null,null,"- v",null,null,null,"","",null,null,null,null,null,"1882 (sol 1886)"]
[null,2,null,null,null,"",36,"RB",null,1943,"Puy Dessus","!E1651","Maison","DUSSERT Joseph Séraphin gendre RANQUE la veuve et les héritiers",null,null,"- v",null,null,null,"",""]
[null,0,null,null,null,null,null,null,null,null,"Le Puy Dessus","!E1654","Maison","CAIX Jacques","Dournon",null,"- v",null,null,null,"",""]
[null,1,null,"0071",127,null,null,null,null,1872,"Le Puy Dessus","!E1654","Maison","CAIX Jacques",null,null,"- v",null,null,null,"",""]
[null,1,71,"0127",127,null,null,null,1872,"1874","Le Puy Dessus","!E1654","Maison","DUPRE Louis fils à Louis CAIX Joseph, Antoine, Eugène et Rosalie",null,null,"- v",null,null,null,"","",null,null,null,null,null,"1874 (Sol en 1878)"]
[null,1,127,"0127",770,null,null,null,1874,1878,"Le Puy Dessus","!E1654","Maison","DUPRE Louis fils à Louis",null,null,"- v",null,null,null,"",""]
[null,1,127,"0127",770,null,null,null,1874,1878,"Le Puy Dessus","!E1654","Chambre","DUPRE Louis fils à Louis",null,null,"- v",null,null,null,"",""]
[null,1,127,"0770","2-",null,null,null,1878,1882,"Le Puy Dessus","!E1654","Maison","CAIX Arthur fils de Jacques",null,null,"- v",null,null,null,"",""]
[null,1,127,"0770","2-",null,null,null,1878,1882,"Le Puy Dessus","!E1654","Chambre","CAIX Arthur fils de Jacques",null,null,"- v",null,null,null,"",""]
[null,2,null,null,null,"",29,118,null,1913,"Puy de Dessus","!E1654","Chambre","DUSSERT Jean fils de feu Pierre",null,null,"- v",null,null,null,"",""]
[null,2,null,null,null,"",29,118,null,1913,"Puy de Dessus","!E1654","Maison","DUSSERT Jean fils de feu Pierre",null,null,"- v",null,null,null,"",""]
[null,2,null,null,null,"29",118,200,1913,1958,"Puy Dessus","!E1654","Maison","DUSSERT Joseph époux REYMOND",null,null,"- v",null,null,null,"",""]
[null,2,null,null,null,118,200,200,1958,1959,"Puy de Dessus","!E1654","Maison","La Prévoyance de Marseille (SA) ",null,null,"- v",null,null,null,"",""]
[null,2,null,null,null,"200ac",200,"",1959,null,"Puy de Dessus","!E1654","Maison","La Prévoyance de Marseille (SA) ",null,null,"- v",null,null,null,"",""]
[null,0,null,null,null,null,null,null,null,null,"Le Puy Dessus","!E1656","Maison","DUSSERT Louis","Hamidi",null,"- v",null,null,null,"",""]
[null,1,null,"0125","43B",null,null,null,null,"1882","Le Puy Dessus *","!E1656","Maison","DUSSERT Louis fils à Pierre",null,null,"- v",null,null,null,"","",null,null,null,null,"Noté Le Puy Dessous, corrigé","1882 (Sol en 1883)"]
[null,2,null,null,null,"",19,"",null,1953,"Puy Dessus","!E1656","Maison","CAIX Jules, Joséphine et Noémie indivis",null,null,"- v",null,null,null,"",""]
[null,2,null,null,null,"",19,"",1953,1957,"Puy Dessus","!E1656","Maison","RIVOIRE Jules et consorts",null,null,"- v",null,null,null,"",""]
[null,2,null,null,null,"",19,"",1957,null,"Puy Dessus","!E1656","Maison","VANPEENE René",null,null,"- v",null,null,null,"",""]
[null,0,null,null,null,null,null,null,null,null,"Le Puy Dessus","!E1659","Maison","PELLORCE Henri","Sous Dournon",null,"- v",null,null,null,"",""]
[null,1,null,"0380",null,null,null,null,1845,1855,"Le Puy Dessus","!E1659","Maison","PELLORCE Henry",null,null,"- v",null,null,null,"",""]
[null,1,"nc","0381","28, 681, 686",null,null,null,1845,1855,"Le Puy Dessus","!E1659","Maison CN","PELLORCE Henry",null,null,"- v",null,null,null,"",""]
[null,1,380,"0686",681,null,null,null,1855,1863,"Le Puy Dessus","!E1659p","Maison","PELLORCE Alexandre Auguste feu Henry",null,null,"- v",null,null,null,"",""]
[null,1,380,"0028","?",null,null,null,1855,1879,"Le Puy Dessus *","!E1659p","Maison","RAYMOND Denis fils",null,null,"- v",null,null,null,null,"",null,null,null,null,"Noté Le Puy Dessous, corrigé"]
[null,1,380,"0681","29 B",null,null,null,1855,1882,"Le Puy Dessus","!E1659p","Maison","CHALVIN (François) feu (André)",null,null,"- v",null,null,null,"",""]
[null,1,null,"0634",null,null,null,null,1859,1882,"Le Puy Dessus","!E1659p","Maison","ODDOUX Jean Baptiste fils de Jean",null,null,"- v",null,null,null,"",""]
[null,1,686,"0681","29 B",null,null,null,1863,1882,"Le Puy Dessus","!E1659p","Maison","CHALVIN (François) feu (André)",null,null,"- v",null,null,null,null,""]
[null,0,null,null,null,null,null,null,null,null,"Le Puy Dessus","!E1660","Maison","PELLORCE Henri",null,null,"- v",null,null,null,"",""]
[null,1,null,"0380",null,null,null,null,null,1855,"Le Puy Dessus","!E1660","Mais rurale","PELLORCE Henry",null,null,"- v",null,null,null,null,""]
[null,1,380,"0686",611,null,null,null,1855,1863,"Le Puy Dessus","!E1660","Bât rural","PELLORCE Alexandre Auguste feu Henry",null,null,"- v",null,null,null,null,""]
[null,1,686,"0681",null,null,null,null,1863,null,"Le Puy Dessus","!E1660","Bât rural","CHALVIN (François) feu (André)",null,null,"- v",null,null,null,"",""]
[null,1,12,"0014","4?",null,null,null,1857,1879,"Le Puy Dessus","!E1674p (ou 1614) ","Bât rural","ARNAUDET André",null,null,"- v",null,null,null,"",""]
[null,0,null,null,null,null,null,null,null,null,"Sagne Cloche","!E1693","Fontaine",null,null,null,"- v",null,null,null,null,""]
[null,1,null,"0419",217,null,null,null,null,1834,"Sagne Cloche","!E1693","Fontaine","Puy d'en Haut, hameau",null,null,"- v",null,null,null,"",""]
[null,1,null,"0227",419,null,null,null,1834,null,"Sagne Cloche","!E1693","Fontaine","Freney la commune",null,null,"- v",null,null,null,null,""]
[null,0,null,null,null,null,null,null,null,null,"Le Puy Dessous hameau","!E1772","Maison","SARRET Pierre","Lachenal du Haut",null,"- v",null,null,null,null,""]
[null,1,null,"0517",584,null,null,null,null,1841,"Le Puy Dessous Hameau","!E1772","Maison","SARRET Pierre",null,null,"- v",null,null,null,"",""]
[null,1,"(59-)","0584",null,null,null,null,1841,1873,"Le Puy Dessous Hameau","!E1772","Maison","FLEUR André feu Claude",null,null,"- v",null,null,null,null,""]
[null,1,null,"0290","?",null,null,null,1873,1879,"Le Puy Dessous Hameau","!E1772","Maison","FLEUR Claude fils de feu André","ok",null,"- v",null,null,null,null,""]
[null,1,null,"0300","27(0)",null,null,null,1879,"1882","Le Puy Dessous Hameau *","!E1772","Maison","SARRET Magdeleine épouse PELLORCE Laurent dit Partant",null,null,"- v",null,null,null,null,"",null,null,null,null,"Noté Puy Dessus, corrigé","1882 (sol 1887)"]
[null,0,null,null,null,null,null,null,null,null,"Le Puy Dessous hameau","!E1774","Maison","FLEUR Joseph","du milieu",null,"- v",null,null,null,null,""]
[null,1,null,"0205",586,null,null,null,null,1861,"Le Puy Dessous Hameau","!E1774","Maison","FLEUR Joseph","ok",null,"- v",null,null,null,"",""]
[null,1,null,"0584",null,null,null,null,1861,1873,"Le Puy Dessous Hameau","!E1774","Maison","FLEUR André feu Claude",null,null,{"$f":"IF(AND(INDIRECT(CONCATENATE(Q$3,ROW()))=\"\",INDIRECT(CONCATENATE(Q$4,ROW()))=\"\"),\"v v\",IF(INDIRECT(CONCATENATE(Q$3,ROW()))=\"\",\"v -\",IF(INDIRECT(CONCATENATE(Q$4,ROW()))=\"\",\"- v\",IF(INDIRECT(CONCATENATE(Q$3,ROW()))=INDIRECT(CONCATENATE(Q$4,ROW())),\"=\",\"<>\"))))","v":"- v"},null,null,null,null,""]
[null,1,null,"0290","?",null,null,null,1873,1882,"Le Puy Dessous Hameau","!E1774","Maison","FLEUR Claude fils de feu André",null,null,"- v",null,null,null,null,""]
[null,0,null,null,null,null,null,null,null,null,"Le Puy Dessous hameau","!E1775","Maison","DUSSERT André","du bas",null,"- v",null,null,null,null,""]
[null,1,null,"0131",652,null,null,null,null,1853,"Le Puy Dessous Hameau","!E1775","Maison (forge)","DUSSERT",null,null,"- v",null,"",null,"",""]
[null,1,131,"0652","17, ---",null,null,null,1853,1880,"Le Puy Dessous Hameau","!E1775","Maison (forge)","DUSSERT Séraphin Barthélémy feu André","Voir généalogie Séraphin (généalogie des Dussert) - 2 Séraphin, le 2ème a vendu à la commune (est chez les Wiart, à l'école, à Lachenal)",null,"- v",null,"",null,"",""]
[null,1,652,"0037","46B",null,null,null,1880,1882,"Le Puy Dessous Hameau","!E1775p","Mon forge","DUSSERT Pierre, DUSSERT Elie","ok",null,"- v",null,"",null,"",""]
[null,1,652,"0826","51 B (sol 891)",null,null,null,1880,"1882","Le Puy Dessous Hameau *","!E1775p","Mon forge","DUSSERT Jean de feu Pierre",null,null,"- v",null,"",null,null,"",null,null,null,null,"Noté Le Puy Dessus, corrigé","1882 (sol 1884)"]
[null,0,null,null,null,null,null,null,null,null,"Le Puy Dessous hameau","!E1783","Maison","REYMOND Joseph","ok - Maison confirmée en 1783",null,"- v"]
[null,1,null,"0458",null,null,null,null,1833,1853,"Le Puy Dessous Hameau","!E1783","Mais rurale","REYMOND Joseph","Était en E1782, effectivement E1783, corrigé le 12/11/24 - C'est 1783",null,"- v",null,null,null,null,""]
[null,1,585,"0191",null,null,null,null,1888,null,"Le Puy Dessous Hameau","!E1783 *","Mais rurale","DUSSERT Pierre, DUSSERT Elie","Terrain Ratte ?",null,"- v",null,null,null,"","",null,null,null,null,"Noté A1783, corrigé en E1783"]
[null,0,null,null,null,null,null,null,null,null,"Le Puy Dessous hameau","!E1788","Fontaine","La Commune","ok",null,"- v",null,"",null,null,""]
[null,1,null,"0226",null,null,null,null,null,null,"Le Puy Dessous Hameau","!E1788","Fontaine","Freney la commune","Rechercher la 1790 et 1791, pas dans Cad2, ni 0 mais dans Cad1, Reymond Esprit",null,"- v",null,null,null,"",""]
[null,1,null,"0461",null,null,null,null,null,null,"Le Puy Dessous Hameau","!E1790","Mais rurale","REYMOND Blaise",null,null,"- v",null,null,null,"",""]
[null,1,448,"0044",149,null,null,null,1846,1882,"Le Puy Dessous Hameau","!E1790","Maison","REYMOND Esprit feu Jean",null,null,"- v",null,"",null,"",""]
[null,0,null,null,null,null,null,null,null,null,"Le Puy Dessous hameau","!E1792","Maison","RIVOIRE Laurent","Les Sabots, Fontaine - Voir avec Ranque Théophile, Edouard, Hest Ida, Vieux Maurice époux Hest",null,"- v",null,"",null,"",""]
[null,1,null,"0489",119,null,null,null,null,1851,"Le Puy Dessous Hameau","!E1792","Maison","RIVOIRE Laurent",null,null,"- v",null,"",null,"",""]
[null,1,489,"0119","152B, 421",null,null,null,1851,"1882","Le Puy Dessous Hameau","!E1792","Maison","RIVOIRE Antoine feu Laurent","pas de maison sur la carte cadastrale - ok",null,"- v",null,"",null,"","",null,null,null,null,null,"1882 (sol en 1898)"]
[null,2,null,null,null,"",90,"",null,1937,"Puy Dessous","!E1792p","Chambre","RANQUE Théophile",null,null,"- v",null,null,null,"",""]
[null,2,null,null,null,"",90,"RB en 1943",1937,1947,"Puy Dessous","!E1792p","Maison","RANQUE Edouard vve née HEST",null,null,"- v"]
[null,2,null,null,null,"RB",90,"",1947,1951,"Puy Dessous","!E1792p","Maison","HEST Ida",null,null,"- v",null,"",null,""]
[null,2,null,null,null,"",90,179,1951,1953,"Puy Dessous","!E1792p","Maison","VIEUX Maurice époux HEST",null,null,"- v",null,"",null,""]
[null,2,null,null,null,90,179,"",1953,null,"Puy le Bas","!E1792","Maison partie","FONTAINE Jacques Nestor, époux SOURNAIS, instituteur",null,null,"- v",null,"",null,"","",null,null,null,null,"Pas de p pour !E1792"]
[null,0,null,null,null,null,null,null,null,null,"Le Puy Dessous hameau","!E1793","Maison","REYMOND Joseph","Actuellement maison Démaret + cour",null,"- v",null,""]
[null,1,null,"0450",27,null,null,null,null,1856,"Le Puy Dessous Hameau","!E1793","Maison","REYMOND Jean","ok",null,"- v",null,"",null,null,""]
[null,2,null,null,null,"",13,"15, 147",null,1930,"Puy d'en Bas","!E1793","Maison","BLANC Joseph Laurent fils de Joseph gendre RAYMOND",null,null,null,null,"",null,"",""]
[null,2,null,null,null,13,15,147,1930,1941,"Puy d'en Bas","!E1793p","Maison","BLANC Rémy époux DUSSERT",null,null,null,null,"",null,"",""]
[null,2,null,null,null,"13 et 15",147,"RB en 1943",1930,1973,"Puy le Bas","!E1793p","Maison","PIERA André fils",null,null,null,null,null,null,"",""]
[null,2,null,null,null,"RB en 43",147,"",1943,1947,"Puy le Bas","!E1793p","Maison","PIERA André fils",null,null,"- v",null,null,null,"",""]
[null,2,null,null,null,147,169,193,1947,1957,"Puy le Bas *","!E1793","Maison","HOSTACHE Aimé époux RIBOT",null,null,"- v",null,null,null,"","",null,null,null,null,"Noté le Puy de Dessus, corrigé - le 17/11/24, bonne continuité pais pas de p à E1793"]
[null,2,null,null,null,169,193,"",1957,null,"Le Puy Dessous","!E1793","Maison","DEMARET Yvon Clément, directeur d'école",null,null,"- v",null,null,null,"",""]
[null,0,null,null,null,null,null,null,null,null,"Le Puy Dessous hameau","!E1794","Maison","REYMOND Joseph","Philippe Ratte",null,"- v",null,null,null,"",""]
[null,1,null,"0458",null,null,null,null,null,1853,"Le Puy Dessous Hameau","!E1794","Mais rurale","REYMOND Joseph",null,null,"- v",null,null,null,"",""]
[null,1,457,"0029",null,null,null,null,1853,1894,"Le Puy Dessous Hameau","!E1794","Maison","BLANC Joseph vve REYMOND Louise","ok",null,"- v",null,null,null,"",""]
[null,1,461,"0713",924,null,null,null,1882,1908,"Le Puy Dessous Hameau","!E1794bis","Mais rurale","PELLAT Jean René gendre REYMOND","La Tour",null,"- v",null,"",null,"",""]
[null,1,709,"0663",null,null,null,null,1908,null,"Le Puy Dessous Hameau","!E1794bis","Mais rurale","RANQUE Théophile à La Chenal","Jacques Duret",null,"- v",null,"",null,null,""]
[null,0,null,null,null,null,null,null,null,null,"Le Puy Dessous hameau","!E1795","Maison","REYMOND Henri","Maison Ratte Duret",null,"- v",null,null,null,null,""]
[null,1,null,"0463",461,null,null,null,null,1843,"Le Puy Dessous Hameau","!E1795","Maison","REYMOND Antoine",null,null,"- v",null,"",null,"",""]
[null,1,null,"0464",null,null,null,null,1843,1855,"Le Puy Dessous Hameau","!E1795p","Maison","REYMOND Antoine",null,null,"- v",null,"",null,"",""]
[null,1,null,"0462",463,null,null,null,1843,1882,"Le Puy Dessous Hameau","!E1795","Maison","REYMOND Blaise","ok",null,"- v",null,"",null,"",""]
[null,1,null,"0462",463,null,null,null,1855,1882,"Le Puy Dessous Hameau","!E1795p","Maison","REYMOND Blaise",null,null,"- v",null,"",null,"",""]
[null,1,461,"0715","103 B (sol 924)",null,null,null,1882,"1882","Le Puy Dessous Hameau","!E1795","Maison","PELLAT Jean Rémy gendre REYMOND",null,null,"- v",null,"",null,null,"",null,null,null,null,null,"1882 (sol 1909)"]
[null,2,null,null,null,"",90,"",null,1937,"Puy le Bas","!E1795","Maison partie","RANQUE Théophile",null,null,"- v",null,"",null,"",""]
[null,2,null,null,null,"",90,"RB en 1943",1937,1947,"Puy le Bas","!E1795","Maison partie","RANQUE Edouard vve née HEST",null,null,"- v",null,"",null,"",""]
[null,2,null,null,null,"RB",90,"",1947,1951,"Puy le Bas","!E1795","Maison partie","HEST Ida",null,null,"- v",null,"",null,null,""]
[null,2,null,null,null,"",90,194,1951,1953,"Puy le Bas","!E1795","Maison partie","VIEUX Maurice époux HEST",null,null,"- v",null,null,null,"",""]
[null,2,null,null,null,90,194,"",1957,null,"Puy d'en Bas","!E1795","Maison","LAITEM Robert Charlemagne, boulanger",null,null,"- v",null,null,null,"",""]
[null,0,null,null,null,null,null,null,null,null,"Le Puy Dessous hameau","!E1796","Grange","DUSSERT Séraphin","1er ou 2ème ?",null,"- v",null,"",null,"",""]
[null,1,null,"0122",546,null,null,null,null,1835,"Le Puy Dessous Hameau","!E1796","Grange","DUSSERT Séraphin","Ecroulée, mais ancienne photo",null,"- v",null,"",null,"",""]
[null,1,122,"0546","5--",null,null,null,1835,1841,"Le Puy Dessous Hameau","!E1796","Grange","DUSSERT Pierre fils de Séraphin",null,null,"- v",null,"",null,"",""]
[null,1,"nc","0585","62 B",null,null,null,1841,1882,"Le Puy Dessous Hameau *","!E1796","Maison CN","FLEUR Joseph de Joseph à Lachenal",null,null,"- v",null,null,null,"","",null,null,null,null,"Noté Le Puy Dessus, corrigé"]
[null,1,"5(3)6","0585",17,null,null,null,1841,1903,"Le Puy Dessous Hameau *","!E1796","Grange","FLEUR Joseph de Joseph à Lachenal",null,null,"- v",null,null,null,"","",null,null,null,null,"Noté Le Puy Dessus, corrigé"]
[null,1,null,"0194",585,null,null,null,1903,null,"Le Puy Dessous Hameau","!E1796","Grange","DUSSERT Pierre, DUSSERT Elie","ok",null,"- v",null,null,null,"",""]
[null,0,null,null,null,null,null,null,null,null,"Le Puy Dessous hameau","!E1799","Maison","DUSSERT Séraphin","ok",null,"- v",null,"",null,"",""]
[null,1,null,"0122",149,null,null,null,null,1835,"Le Puy Dessous Hameau","!E1799","Maison","DUSSERT Séraphin",null,null,"- v",null,"",null,"",""]
[null,1,null,"0149","(287)",null,null,null,1835,1853,"Le Puy Dessous Hameau","!E1799","Maison","DUSSERT Séraphin",null,null,"- v",null,null,null,"",""]
[null,1,149,"0647",709,null,null,null,1853,1863,"Le Puy Dessous Hameau","!E1799","Maison","REYMOND Catherine vve (GIROLLET)","Voir généalogie Dussert, pas Girollet",null,"- v",null,"",null,"",""]
[null,1,647,"0710",219,null,null,null,1863,1867,"Le Puy Dessous Hameau","!E1799","Maison","PELLAT Jean René gendre REYMOND",null,null,"- v",null,"",null,"",""]
[null,1,null,"0227",709,null,null,null,1867,null,"Le Puy Dessous Hameau","!E1799","Mais (école)","Freney la commune",null,null,"- v",null,"",null,"",""]
[null,0,null,null,null,null,null,null,null,null,"Le Puy Dessous hameau","!E1800","Maison","PELLAT André","Pas en 1830, 1806, Maison écroulée - Mettre à jour, différence entre 1800 et 1800bis",null,"- v",null,null,null,""]
[null,1,null,"0335",726,null,null,null,null,1858,"Le Puy Dessous Hameau","!E1800","Maison","PELLAT ? Fils de Pierre","C'est du 1806",null,"- v",null,null,null,"",""]
[null,2,null,null,null,"CN",90,"",1924,1937,"Puy Dessous","!E1800","Maison","RANQUE Théophile",1800,null,"- v",null,null,null,"",""]
[null,2,null,null,null,"",90,"RB en 1943",1937,1947,"Puy Dessous","!E1800","Maison","RANQUE Edouard vve née HEST",1800,null,"- v",null,null,null,"",""]
[null,2,null,null,null,"",90,"",1947,1951,"Puy Dessous","!E1800","Maison","HEST Ida",1800,null,"- v",null,null,null,null,""]
[null,2,null,null,null,"",90,194,1951,1953,"Puy Dessous","!E1800","Maison","VIEUX Maurice époux HEST",1800,null,"- v",null,null,null,null,""]
[null,2,null,null,null,"",71,"RB",1943,1943,"Puy le Bas","!E1800","Maison","PELLAT Aristide feu André",1806,null,"- v",null,null,null,"",""]
[null,2,null,null,null,"RB",71,"",1943,1946,"Puy le Bas","!E1800","Maison","PELLAT Aristide feu André, les héritiers",1806,null,{"$f":"IF(AND(INDIRECT(CONCATENATE(Q$3,ROW()))=\"\",INDIRECT(CONCATENATE(Q$4,ROW()))=\"\"),\"v v\",IF(INDIRECT(CONCATENATE(Q$3,ROW()))=\"\",\"v -\",IF(INDIRECT(CONCATENATE(Q$4,ROW()))=\"\",\"- v\",IF(INDIRECT(CONCATENATE(Q$3,ROW()))=INDIRECT(CONCATENATE(Q$4,ROW())),\"=\",\"<>\"))))","v":"- v"},null,null,null,"",""]
[null,2,null,null,null,"",71,121,1946,1954,"Puy le Bas","!E1800","Maison","PELLORCE Louis Aimé",1806,null,"- v",null,null,null,"",""]
[null,2,null,null,null,90,179,"",1953,null,"Puy le Bas","!E1800","Maison partie","FONTAINE Jacques Nestor, époux SOURNAIS, instituteur",1800,null,"- v",null,null,null,"",""]
[null,2,null,null,null,71,121,"",1954,null,"Puy le Bas","!E1800","Maison","PELLORCE Lucien dit Louis époux DUSSERT","?",null,"- v",null,null,null,"",""]
[null,2,null,null,null,"Omis",185,"",1955,null,"Le Puy de Dessous","!E1800","Maison","VATILLEUX Paul Louis","Sur 1807 : Vatilleux à partir de 1914",null,"- v",null,null,null,"","",null,null,null,null,"Nloté le Puy de Dessus, corrigé"]
[null,0,null,null,null,null,null,null,null,null,"Le Puy Dessous hameau","!E1800b","Maison","PELLAT André",1806,null,{"$f":"IF(AND(INDIRECT(CONCATENATE(Q$3,ROW()))=\"\",INDIRECT(CONCATENATE(Q$4,ROW()))=\"\"),\"v v\",IF(INDIRECT(CONCATENATE(Q$3,ROW()))=\"\",\"v -\",IF(INDIRECT(CONCATENATE(Q$4,ROW()))=\"\",\"- v\",IF(INDIRECT(CONCATENATE(Q$3,ROW()))=INDIRECT(CONCATENATE(Q$4,ROW())),\"=\",\"<>\"))))","v":"- v"},null,null,null,"",""]
[null,1,335,"0726","7--",null,null,null,1858,1863,"Le Puy Dessous Hameau","!E1800bis","Maison","PELLAT Jean fils d'André",1806,null,"- v",null,null,null,"",""]
[null,1,"cn","0728",510,null,null,null,1858,1875,"Le Puy Dessous Hameau","!E1800bis","Maison","PELLAT Magdeleine fils d'André",1806,null,"- v",null,null,null,"",""]
[null,1,"cn","0727","102 B",null,null,null,1858,1882,"Le Puy Dessous Hameau","!E1800bis","Maison","PELLAT André fils d'André",1806,null,"- v",null,null,null,null,""]
[null,1,726,"0727","démolie (sol 1024)",null,null,null,1863,"1882","Le Puy Dessous Hameau","!E1800bis","Maison démolie","PELLAT André fils d'André",1806,null,"- v",null,null,null,"","",null,null,null,null,null,"1882 (sol 1908)"]
[null,1,728,"0510",null,null,null,null,1875,1882,"Le Puy Dessous Hameau","!E1800bis","Maison","FLEUR Joseph vve née REYMOND Anne",1806,null,"- v",null,null,null,"",""]
[null,0,null,null,null,null,null,null,null,null,"Le Puy Dessous hameau","!E1801","Maison","REYMOND Joseph","Voir 1806",null,"- v",null,"",null,null,""]
[null,1,null,"0458",null,null,null,null,null,1853,"Le Puy Dessous Hameau","!E1801","Maison","REYMOND Joseph",null,null,"- v",null,null,null,"",""]
[null,1,457,"0661",585,null,null,null,1853,1862,"Le Puy Dessous Hameau","!E1801","Maison","REYMOND Rose feu Joseph",null,null,"- v",null,"",null,"",""]
[null,1,661,"0591",237,null,null,null,1862,1879,"Le Puy Dessous Hameau","!E1801","Maison","FLEUR Joseph de Joseph à Lachenal",null,null,"- v",null,"",null,null,""]
[null,1,585,"0237","50B",null,null,null,1879,1882,"Le Puy Dessous Hameau","!E1801","Maison","DUSSERT Pierre la femme née FLEUR Joséphine","a appartenu à Mme Horquin auparavant",null,"- v",null,null,null,"",""]
[null,1,237,"0057",null,null,null,null,1884,null,"Puy de Dessous","!E1801","Sol et cour","DUSSERT Pierre, DUSSERT Elie","Hélène Ratte",null,"- v",null,null,null,"",""]
[null,2,null,null,null,"",34,"",null,1914,"Puy Dessous","!E1801p","Maison","DUSSERT Pierre feu Pierre",null,null,"- v",null,null,null,"",""]
[null,2,null,null,null,"",34,71,1914,1920,"Puy Dessous","!E1801p","Maison","DUSSERT Elie gendarme",null,null,"- v",null,"",null,"",""]
[null,2,null,null,null,34,71,"RB",1920,1943,"Puy le Bas","!E1801","Maison","PELLAT Aristide feu André",null,null,"- v",null,"",null,"",""]
[null,2,null,null,null,"RB",71,"",1943,1946,"Puy le Bas","!E1801","Maison","PELLAT Aristide feu André, les héritiers",null,null,"- v",null,"",null,"",""]
[null,2,null,null,null,"",71,121,1946,1954,"Puy le Bas","!E1801","Maison","PELLORCE Louis Aimé",null,null,"- v",null,"",null,"",""]
[null,2,null,null,null,71,121,"",1954,null,"Puy le Bas","!E1801","Maison","PELLORCE Lucien dit Louis époux DUSSERT",null,null,"- v",null,"",null,"",""]
[null,0,null,null,null,null,null,null,null,null,"Le Puy Dessous hameau","!E1803","Maison","RIVOIRE Laurent","Normalement rien en 1830",null,"- v",null,"",null,"",""]
[null,1,null,"0489",103,null,null,null,null,1851,"Le Puy Dessous Hameau","!E1803","Masure","RIVOIRE Laurent",null,null,"- v",null,null,null,"",""]
[null,1,489,"0103",119,null,null,null,1851,1870,"Le Puy Dessous Hameau","!E1803","Masure","RIVOIRE François feu Laurent",null,null,"- v",null,null,null,"",""]
[null,1,"cn","0103",119,null,null,null,1866,1870,"Le Puy Dessous Hameau","!E1803","Maison","RIVOIRE François feu Laurent","Maison agrandie sur 1803 et 1802",null,"- v",null,null,null,"",""]
[null,1,103,"0142","?",null,null,null,1870,1882,"Le Puy Dessous Hameau","!E1803","Maison","RIVOIRE Antoine",null,null,"- v",null,null,null,"",""]
[null,1,103,"0142","(89)",null,null,null,1870,1899,"Le Puy Dessous Hameau","!E1803","Masure","RIVOIRE Antoine",null,null,"- v",null,null,null,"",""]
[null,1,119,"0851","1040, 1044",null,null,null,1899,1903,"Le Puy Dessous Hameau","!E1803","Masure","RIVOIRE Hippolyte fils de Joseph",null,null,"- v",null,null,null,"",""]
[null,1,119,"0853","1040, 1044",null,null,null,1899,1903,"Le Puy Dessous Hameau","!E1803","Masure","RIVOIRE Hippolyte fils de Joseph",null,null,"- v",null,"",null,"",""]
[null,1,819,1040,null,null,null,null,1903,null,"Le Puy Dessous Hameau","!E1803p","Maison","RIVOIRE Casimir, aubergiste",null,null,"- v",null,"",null,"",""]
[null,1,819,1044,421,null,null,null,1903,1905,"Le Puy Dessous Hameau","!E1803p","Masure","RIVOIRE Victor fils d'Hippolyte, SALLES Jacques, cabaretier",null,null,"- v",null,"",null,"",""]
[null,1,null,"0426",null,null,null,null,1905,1907,"Puy Dessous","!E1803","Masure","GIROLLET Hippolyte",null,null,"- v",null,"",null,"",""]
[null,2,null,null,null,"",88,"",1950,null,"Puy le Bas","!E1803","Maison","COLOGNOLI Vincent",null,null,"- v",null,"",null,null,""]
[null,0,null,null,null,null,null,null,null,null,"Le Puy Dessous hameau","!E1804","Maison","GIROLET André",null,null,"- v",null,"",null,null,""]
[null,1,null,"0260",null,null,null,null,null,1897,"Le Puy Dessous Hameau","!E1804","Masure","GIROLLET (André)",null,null,"- v",null,"",null,"",""]
[null,1,259,"0574",null,null,null,null,1837,1842,"Le Puy Dessous Hameau *","!E1804","Masure","GIROLLET Jacques feu André",null,null,"- v",null,"",null,"","",null,null,null,null,"Noté (Mondier), corrigé"]
[null,1,574,"0217",807,null,null,null,1842,1865,"Le Puy Dessous Hameau *","!E1804","(Maison)","FONTANT Michel Euphroisine , MICHEL Antoine",null,null,"- v",null,"",null,"","",null,null,null,null,"Noté Puy d'en Haut, corrigé"]
[null,1,548,"0229",506,null,null,null,1855,1880,"Le Puy Dessous Hameau","!E1804","Maison","MICHEL Antoine feu Blaise",null,null,"- v",null,"",null,"",""]
[null,1,217,"0807",null,null,null,null,1865,null,"Le Puy Dessous Hameau","!E1804","Masure","RANQUE Louis Philippe",null,null,"- v",null,"",null,"",""]
[null,1,"cn","0807","139 B",null,null,null,1867,1882,"Le Puy Dessous Hameau","!E1804","Maison","RANQUE Louis Philippe",null,null,"- v",null,null,null,"",""]
[null,1,217,"0506","?",null,null,null,1880,1882,"Le Puy Dessous Hameau","!E1804 *","Maison","DURAND Jean-François gendarme",null,null,"- v",null,null,null,"","",null,null,null,null,"Noté C1804, corrigé E1804"]
[null,2,null,null,null,"",38,88,null,1926,"Puy d'en Bas","!E1804","Maison","DURAND Jean François gendarme",null,null,"- v",null,"",null,null,""]
[null,2,null,null,null,"",88,"",1919,1939,"Puy Dessus","!E1804","Maison","RANQUE Clarisse Fédora Céphise fille à Pierre",null,null,"- v",null,"",null,"",""]
[null,2,null,null,null,"",88,"RB en 1943",1939,null,"Puy Dessus","!E1804","Maison","COLOGNOLI Vincent",null,null,"- v",null,"",null,"",""]
[null,0,null,null,null,null,null,null,null,null,"Le Puy Dessous hameau","!E1809","Maison","PELLISSIER (la héritière du Jean)","ok",null,"- v",null,"",null,"",""]
[null,1,null,"0339",421,null,null,null,null,1849,"Le Puy Dessous Hameau","!E1809","Maison","PELLISSIER Y- Louis","Hélène Ratte",null,"- v",null,"",null,"",""]
[null,1,338,"0421","71B",null,null,null,1849,1882,"Le Puy Dessous Hameau","!E1809","Maison","GIROLLET Hippolyte",null,null,"- v",null,"",null,null,""]
[null,2,null,null,null,"",46,90,null,1920,"Puy Dessous","!E1809","Maison","GIROLET Hippolyte",null,null,"- v",null,"",null,"",""]
[null,2,null,null,null,46,90,"",1920,1937,"Puy Dessous","!E1809","Maison","RANQUE Théophile",null,null,"- v",null,"",null,"",""]
[null,2,null,null,null,"",90,"RB en 1943",1937,1947,"Puy Dessous","!E1809","Maison","RANQUE Edouard vve née HEST",null,null,"- v",null,null,null,"",""]
[null,2,null,null,null,"",90,"",1947,1951,"Puy Dessous","!E1809","Maison","HEST Ida",null,null,"- v",null,"",null,"",""]
[null,2,null,null,null,"",90,179,1951,null,"Puy Dessous","!E1809","Maison","VIEUX Maurice époux HEST",null,null,"- v",null,"",null,null,""]
[null,2,null,null,null,90,179,"",1953,null,"Puy le Bas","!E1809","Maison partie","FONTAINE Jacques Nestor, époux SOURNAIS, instituteur",null,null,"- v",null,"",null,null,""]
[null,0,null,null,null,null,null,null,null,null,"Le Puy Dessous hameau","!E1810","Maison","ODDOUX Jean","Ancienne maison Fontaine, Maintenant Ratte",null,"- v",null,"",null,"",""]
[null,1,"?","0326",null,null,null,null,null,1861,"Le Puy Dessous Hameau","!E1810","Maison","ODDOUX Jean-Pierre",null,null,"- v",null,"",null,"",""]
[null,1,"(326)","0636",null,null,null,null,1861,"1882","Le Puy Dessous Hameau","!E1810","Maison","ODDOUX Vincent fils de Jean",null,null,"- v",null,null,null,"","",null,null,null,null,null,"1882 (sol 1889)"]
[null,2,null,null,null,"",44,64,null,1926,"Puy Dessous","!E1810","Maison","FLEUR Vincent instituteur",null,null,"- v",null,null,null,null,""]
[null,2,null,null,null,44,64,"Dém",1926,1943,"Puy Dessous","!E1810","Maison","ODDOUX Edouard fils de Vincent",null,null,"- v",null,"",null,"",""]
[null,0,null,null,null,null,null,null,null,null,"Le Puy Dessous hameau","!E1811","Maison","RANQUE Jean Charles","Ancienne maison Fontaine, Maintenant Ratte",null,"- v",null,"",null,null,""]
[null,1,null,"0326",null,null,null,null,null,1861,"Le Puy Dessous Hameau","!E1811","Maison","ODDOUX Jean-Pierre",null,null,"- v",null,"",null,"",""]
[null,1,"(326)","0636",null,null,null,null,1861,"1882","Le Puy Dessous Hameau","!E1811","Maison","ODDOUX Vincent fils de Jean",null,null,"- v",null,"",null,"","",null,null,null,null,null,"1882 (sol 1889)"]
[null,2,null,null,null,"",44,64,null,1926,"Puy Dessous","!E1811","Maison","FLEUR Vincent instituteur",null,null,"- v",null,null,null,"",""]
[null,2,null,null,null,44,64,"Dém",1926,1943,"Puy Dessous","!E1811","Maison","ODDOUX Edouard fils de Vincent",null,null,"- v",null,null,null,"",""]
[null,1,null,"0305","Convertie en écurie",null,null,null,1835,"1861","Le Puy Dessous Hameau","!E1812","Maison convertie en écurie","MICHEL Jean Marie","ok - Revoir le tableau Puy le Bas pour E1812",null,"- v",null,"",null,"","",null,null,null,null,null,"1861 (sol 1882)"]
[null,1,"cn","0305",807,null,null,null,1861,1882,"Le Puy Dessous Hameau","!E1812","Maison","MICHEL Jean Marie","ok",null,"- v",null,"",null,null,""]
[null,1,305,"0837","54 B",null,null,null,1882,1882,"Le Puy Dessous Hameau","!E1812","Maison","DUSSERT Louis fils de Louis",null,null,"- v",null,"",null,"",""]
[null,2,null,null,null,"",32,"",null,null,"Puy Dessous","!E1812","Maison","DUSSERT Louis fils de Louis",null,null,"- v",null,"",null,"",""]
[null,2,null,null,null,32,61,"",1960,null,"Puy Dessous","!E1812","Maison","PELLORCE Léon Elie dit Jules et Pierre dit Rémy époux HUMBERT",null,null,"- v",null,null,null,"",""]
[null,0,null,null,null,null,null,null,null,null,"Le Puy Dessous hameau","!E1813","Maison","RANQUE Jean Charles","Ok",null,"- v",null,"",null,"",""]
[null,1,null,"0445","305, 148",null,null,null,null,1835,"Le Puy Dessous Hameau","!E1813","Maison","RANQUE Jean Charles",null,null,"- v",null,null,null,"",""]
[null,1,"D45","0148","38-",null,null,null,1835,1863,"Le Puy Dessous Hameau","!E1813","Maison","DUSSERT Pierre","Séparer les propriétaires",null,"- v",null,"",null,"",""]
[null,1,148,"0781","92 B (sol 485)",null,null,null,1863,"1882","Le Puy Dessous Hameau","!E1813","Maison","NOYRET Constantin",null,null,"- v",null,"",null,"","",null,null,null,null,null,"1882 (sol 1904)"]
[null,2,null,null,null,"",61,"",null,1921,"Puy Dessous","!E1813","Maison","NOIREY époux ARNAUDET Céphise",null,null,"- v",null,"",null,null,""]
[null,2,null,null,null,"",61,"",1921,1944,"Puy Dessous","!E1813","Maison","PELLORCE Victor",null,null,"- v",null,"",null,"",""]
[null,2,null,null,null,"",61,"",1944,1960,"Puy Dessous","!E1813","Maison","PELLORCE Rémy Alphonse Victor époux DUSSERT, vve et héritiers",null,null,"- v",null,"",null,null,""]
[null,2,null,null,null,"",61,"",1960,null,"Puy Dessous","!E1813","Maison","PELLORCE Léon Elie dit Jules et Pierre dit Rémy époux HUMBERT",null,null,"- v",null,"",null,"",""]
[null,0,null,null,null,null,null,null,null,null,"Le Puy Dessous hameau","!E1815","Maison","GIROUD la héritière de Blaise","A valider par Loren",null,"- v",null,null,null,"",""]
[null,1,null,"0256",null,null,null,null,null,1840,"Le Puy Dessous Hameau","!E1815","Maison","GIROUD Blaise",null,null,"- v",null,"",null,"",""]
[null,1,null,"0444",null,null,null,null,1840,1876,"Le Puy Dessous Hameau","!E1815","Maison","RIVOIRE André fils Laurent",null,null,"- v",null,"",null,"",""]
[null,2,null,null,null,"",104,"Rural",null,1926,"Puy Dessous","!E1815","Maison","RIVOIRE André vve née BERGOIN Marie",null,null,"- v",null,"",null,"","",null,null,null,null,"écrit 1815 sans le p"]
[null,1,444,"0168",null,null,null,null,1876,1882,"Le Puy Dessous Hameau","!E1815p","Maison","DUPRE Louis fils à Louis, RIVOIRE Firmin",null,null,"- v",null,"",null,null,""]
[null,1,444,"0452",null,null,null,null,1876,"1882","Le Puy Dessous Hameau","!E1815p","Maison","RIVOIRE André fils Laurent",null,null,"- v",null,"",null,"","",null,null,null,null,null,"1882 (sol 1888)"]
[null,2,null,null,null,"",106,122,null,1943,"Puy Dessous","!E1815p","Maison","RIVOIRE Firmin ",null,null,{"$f":"IF(AND(INDIRECT(CONCATENATE(Q$3,ROW()))=\"\",INDIRECT(CONCATENATE(Q$4,ROW()))=\"\"),\"v v\",IF(INDIRECT(CONCATENATE(Q$3,ROW()))=\"\",\"v -\",IF(INDIRECT(CONCATENATE(Q$4,ROW()))=\"\",\"- v\",IF(INDIRECT(CONCATENATE(Q$3,ROW()))=INDIRECT(CONCATENATE(Q$4,ROW())),\"=\",\"<>\"))))","v":"- v"},null,"",null,null,""]
[null,2,null,null,null,106,122,"RB en 1943",1915,null,"Puy Dessous","!E1815p","Maison","RIVOIRE Rémy",null,null,"- v",null,"",null,"",""]
[null,0,null,null,null,null,null,null,null,null,"Le Puy Dessous hameau","!E1816","Maison","GIROUD Jean-Louis","voir avec Loren",null,"- v",null,"",null,"",""]
[null,1,null,"0253","77B",null,null,null,null,"1882","Le Puy Dessous Hameau","!E1816","Maison","GIROUD Jean-Louis",null,null,"- v",null,null,null,"","",null,null,null,null,null,"1882 (sol 1906)"]
[null,0,null,null,null,null,null,null,null,null,"Le Puy Dessous hameau","!E1818","Maison","RIVOIRE Mathieu","ok",null,"- v",null,null,null,"",""]
[null,1,null,"0483",718,null,null,null,null,1864,"Le Puy Dessous Hameau","!E1818","Maison","RIVOIRE ?",null,null,"- v",null,null,null,null,""]
[null,1,483,"0718","78-",null,null,null,1864,1981,"Le Puy Dessous Hameau","!E1818","Maison","CAIX Jean fils de Jean gendre RIVOIRE",null,null,"- v",null,null,null,"",""]
[null,1,718,"0783","55 B (sol 718)",null,null,null,1881,"1882","Le Puy Dessous Hameau","!E1818","Maison","DUSSERT Jean, aubergiste à Clavans",null,null,"- v",null,"",null,"","",null,null,null,null,null,"1882 (sol 1887)"]
[null,2,null,null,null,"",87,"",null,1938,"Puy Dessous","!E1818","Maison","RANQUE Joseph Louis gendre PELLORCE",null,null,"- v",null,"",null,"",""]
[null,2,null,null,null,"",87,"",1938,1947,"Puy Dessous","!E1818","Maison","HAMELIN Jean Emile époux RANQUE",null,null,"- v",null,"",null,"",""]
[null,2,null,null,null,"",87,"",1947,null,"Puy Dessous","!E1818","Maison","HAMELIN Jean Emile époux RANQUE, héritiers",null,null,"- v",null,"",null,"",""]
[null,0,null,null,null,null,null,null,null,null,"Le Puy Dessous hameau","!E1820","Maison","REYMOND Denis","Maison du père Rivoire",null,"- v",null,"",null,"",""]
[null,1,null,"0471","468 (sol 472)",null,null,null,null,1841,"Le Puy Dessous Hameau","!E1820","Maison","REYMOND Denis",null,null,"- v",null,"",null,"",""]
[null,1,null,"0472",null,null,null,null,1841,1844,"Le Puy Dessous Hameau","!E1820","Maison","REYMOND Denis",null,null,"- v",null,"",null,null,""]
[null,1,null,"0474","70-",null,null,null,1841,1879,"Le Puy Dessous Hameau","!E1820","Maison","REYMOND Joseph","2 maisons",null,"- v",null,"",null,"",""]
[null,1,468,"0712",444,null,null,null,1859,1865,"Le Puy Dessous Hameau","!E1820","Maison","PELLORCE Vincent feu Vincent, PELLORCE Théophile feu Vincent",null,null,"- v",null,null,null,"",""]
[null,1,712,"0452",null,null,null,null,1865,"1882","Le Puy Dessous Hameau","!E1820","Maison","RIVOIRE André fils Laurent","appartient à Pierre Mathieu Dordain",null,"- v",null,null,null,"","",null,null,null,null,null,"1882 (sol 1891)"]
[null,2,null,null,null,"",103,122,null,1943,"Puy Dessous","!E1820","Maison","RIVOIRE André fils de Laurent",null,null,"- v",null,"",null,"",""]
[null,2,null,null,null,103,122,"",1943,null,"Puy le Bas *","!E1820","Maison","RIVOIRE Rémy",null,null,"- v",null,null,null,"","",null,null,null,null,"Noté Puy de Dessus, corrigé"]
[null,1,470,"0474","70-",null,null,null,1844,1859,"Le Puy Dessous Hameau *","!E1820p","Maison","REYMOND Joseph",null,null,"- v",null,"",null,"","",null,null,null,null,"Noté Le Puy Dessus, corrigé"]
[null,1,470,"0043",590,null,null,null,1846,1864,"Le Puy Dessous Hameau *","!E1820p","Maison","REYMOND Jean",null,null,"- v",null,null,null,"","",null,null,null,null,"Noté Puy Dessus, corrigé"]
[null,1,43,"0607","147 B (sol 310, 311)",null,null,null,1864,"1882","Le Puy Dessous Hameau","!E1820p","Maison","REYMOND Louis",null,null,"- v",null,null,null,"","",null,null,null,null,null,"1882 (sol 1901)"]
[null,2,null,null,null,"",97,122,null,1915,"Puy le Bas *","!E1820p","Maison","REYMOND Florentine",null,null,"- v",null,"",null,null,"",null,null,null,null,"Noté Puy Dessus, corrigé"]
[null,2,null,null,null,"",98,122,null,1915,"Puy le Bas *","!E1820p","Maison","REYMOND Honorine",null,null,"- v",null,"",null,"","",null,null,null,null,"Noté Puy Dessus, corrigé"]
[null,2,null,null,null,"97 et 98",122,"Dém en 1943",1915,null,"Puy le Bas *","!E1820p","Maison","RIVOIRE Rémy",null,null,"- v",null,"",null,"","",null,null,null,null,"Noté Puy de Dessus, corrigé"]
[null,2,null,null,null,"",72,61,null,1944,"Puy d'en Bas","!E1821","Maison","PELLORCE Alphonse Henri, les héritiers","Four",null,"- v",null,"",null,"",""]
[null,2,null,null,null,72,61,"",1944,1960,"Puy d'en Bas","!E1821","Maison","PELLORCE Rémy Alphonse Victor époux DUSSERT, vve et héritiers",null,null,"- v",null,"",null,"",""]
[null,2,null,null,null,"",61,"",1960,null,"Puy d'en Bas","!E1821","Maison","PELLORCE Léon Elie, Pierre dit Jules",null,null,"- v",null,null,null,"",""]
[null,2,null,null,null,"",117,61,null,1933,"Puy d'en Bas","!E1821p","Maison","PELLORCE Alphonse Henri, fils de Henri",null,null,"- v",null,"",null,null,""]
[null,2,null,null,null,117,61,"",1933,1944,"Puy d'en Bas","!E1821p","Maison","PELLORCE Victor",null,null,"- v",null,"",null,"",""]
[null,2,null,null,null,117,61,"",1944,1960,"Puy d'en Bas","!E1821p","Maison","PELLORCE Rémy Alphonse Victor époux DUSSERT, vve et héritiers",null,null,"- v",null,"",null,"",""]
[null,2,null,null,null,"",61,"",1960,null,"Puy d'en Bas","!E1821p","Maison","PELLORCE Léon Elie dit Jules et Pierre dit Rémy époux HUMBERT",null,null,"- v",null,"",null,"",""]
[null,0,null,null,null,null,null,null,null,null,"Le Puy Dessous hameau","!E1824","Maison","ARLOT Joseph","Jean Poulet",null,"- v",null,"",null,"",""]
[null,1,5,"0537","138B",null,null,null,1857,"1882","Le Puy Dessous Hameau","!E1824","Maison","RANQUE Claude",null,null,"- v",null,"",null,"","",null,null,null,null,null,"1882 (sol 1886)"]
[null,2,null,null,null,"",30,"",null,1940,"Puy de Dessous","!E1824p","Maison","DUSSERT Joseph fils de Louis gendre RANQUE",null,null,"- v",null,"",null,null,""]
[null,2,null,null,null,61,178,"",1952,null,"Puy d'en Bas","!E1824p","Maison","DUSSERT Marius Emile",null,null,"- v",null,"",null,"",""]
[null,0,null,null,null,null,null,null,null,null,"Le Puy Dessous hameau","!E1827","Maison","PELLISSIER Anne","ok",null,"- v",null,"",null,"",""]
[null,1,null,"0337",726,null,null,null,null,1863,"Le Puy Dessous Hameau","!E1827","Maison","PELLISSIER vve GIROLLET",null,null,"- v",null,"",null,"",""]
[null,1,337,"0726","101(3)",null,null,null,1863,"1882","Le Puy Dessous Hameau","!E1827","Maison","PELLAT Jean fils d'André",null,null,"- v",null,"",null,null,"",null,null,null,null,null,"1882 (sol 1897)"]
[null,2,null,null,null,"",70,62,null,1919,"Puy Dessous","!E1827","Maison","PELLAT Alphonsine femme DODE André",null,null,"- v",null,null,null,"",""]
[null,2,null,null,null,70,62,"",1919,1956,"Puy Dessous","!E1827","Maison","MATHONNET Noémie épouse NOIREY",null,null,"- v",null,"",null,"",""]
[null,2,null,null,null,"",62,"",1956,null,"Puy Dessous","!E1827","Maison","REBETEZ André Georges, menuisier ébéniste",null,null,"- v",null,"",null,null,""]
[null,0,null,null,null,null,null,null,null,null,"Le Puy Dessous hameau","!E1828","Maison","PELLORCE Jean-Claude","Rebetez",null,"- v",null,"",null,"",""]
[null,1,null,"0342",null,null,null,null,null,1882,"Le Puy Dessous Hameau","!E1828","Maison","PELLORCE Jean",null,null,"- v",null,null,null,"",""]
[null,2,null,null,null,"Omis",184,"",1955,null,"Puy le Bas *","!E1828","Maison","REBETEZ Marie vve née PELLAT",null,null,"- v",null,"",null,null,"",null,null,null,null,"Noté Le Puy de Dessus, corrigé"]
[null,2,null,null,null,"Omis",184,"",1955,null,"Le Puy de Dessus","!E1829","Maison","REBETEZ Marie vve née PELLAT","Rebetez",null,"- v",null,null,null,"","",null,null,null,null,"Noté Le Puy de Dessus, corrigé"]
[null,0,null,null,null,null,null,null,null,null,"Le Puy Dessous hameau","!E1831","Maison","RIVOIRE Marie","Ruine derrière Jo Rebetez",null,"- v",null,"",null,"",""]
[null,1,null,"0491",550,null,null,null,null,1835,"Le Puy Dessous Hameau","!E1831","Maison","RIVOIRE ?",null,null,"- v",null,"",null,"",""]
[null,1,null,"0550",null,null,null,null,1835,1870,"Le Puy Dessous Hameau","!E1831","Maison","MICHEL Marie feu Claire",null,null,"- v",null,"",null,"",""]
[null,1,550,"0207","89B",null,null,null,1870,"1882","Le Puy Dessous Hameau","!E1831p","Maison","MICHEL Marie Victoire vve PONCET",null,null,"- v",null,"",null,null,"",null,null,null,null,null,"1882 (sol en 1889)"]
[null,0,null,null,null,null,null,null,null,null,"Le Puy Dessous hameau","!E1832","Maison","PELLORCE Paul","Ruine derrière Jo Rebetez",null,"- v",null,null,null,null,""]
[null,1,null,"0394",null,null,null,null,1839,1865,"Le Puy Dessous Hameau","!E1832","Maison","PELLORCE Jean-Louis",null,null,"- v",null,"",null,"",""]
[null,1,null,"0416",null,null,null,null,1865,1882,"Le Puy Dessous Hameau","!E1832","Maison","PELLORCE Jean-Louis",null,null,"- v",null,"",null,"",""]
[null,0,null,null,null,null,null,null,null,null,"Le Puy Dessous hameau","!E1837","Maison","RANQUE Laurent","Voir Loren",null,"- v",null,"",null,"",""]
[null,1,null,"0440",null,null,null,null,null,1847,"Le Puy Dessous Hameau","!E1837","Maison","RANQUE Laurent",null,null,"- v",null,null,null,"",""]
[null,1,440,"0537",253,null,null,null,1847,1858,"Le Puy Dessous Hameau","!E1837","Maison","RANQUE Claude",null,null,"- v",null,"",null,"",""]
[null,1,539,"0254",null,null,null,null,1858,1878,"Le Puy Dessous Hameau","!E1837","Maison","GIROUD Jean-Louis","ruines",null,"- v",null,"",null,"",""]
[null,1,253,"0311","76B",null,null,null,1878,1882,"Le Puy Dessous Hameau","!E1837","Maison","GIROUD François fils de Jean-Louis",null,null,"- v",null,null,null,"",""]
[null,2,null,null,null,"",48,"RB",null,1943,"Puy Dessous","!E1837","Maison","GIROUD François fils de Jean Louis",null,null,"- v",null,"",null,"",""]
[null,2,null,null,null,"RB",48,"",1943,1953,"Puy Dessous","!E1837","Maison","BERTRAND vve née GIROUD",null,null,"- v",null,"",null,"",""]
[null,2,null,null,null,"",48,"",1953,null,"Puy Dessous","!E1837","Maison","BERTRAND vve née GIROUD, les héritiers",null,null,"- v",null,"",null,"",""]
[null,0,null,null,null,null,null,null,null,null,"Le Puy Dessous hameau","!E1838","Maison","VEYRAT Anne vve DUSSERT","Voir Loren",null,"- v",null,"",null,"",""]
[null,1,null,"0528","6, 63",null,null,null,null,1868,"Le Puy Dessous Hameau","!E1838","Maison","VEYRAT (Anne Marie)","ruines",null,"- v",null,"",null,"",""]
[null,1,528,"0006",718,null,null,null,1868,1875,"Le Puy Dessous Hameau *","!E1838p","Maison","DUSSERT Jean Baptiste",null,null,"- v",null,null,null,"","",null,null,null,null,"Noté Le Puy, corrigé"]
[null,1,528,"0063",214,null,null,null,1868,1876,"Le Puy Dessous Hameau *","!E1838p","Maison","SERBON Joseph",null,null,"- v",null,null,null,"","",null,null,null,null,"Noté Le Puy, corrigé"]
[null,1,6,"0733","24 B (sol 214)",null,null,null,1875,"1882","Le Puy Dessous Hameau *","!E1838p","Maison","CAIX Jean fils de Jean gendre RIVOIRE",null,null,"- v",null,"",null,null,"",null,null,null,null,"Noté Le Puy, corrigé","1882 (sol 1904)"]
[null,1,63,"0214","?",null,null,null,1876,1882,"Le Puy Dessous Hameau *","!E1838p","Maison","GIROUD François fils de Jean-Louis",null,null,"- v",null,"",null,"","",null,null,null,null,"Noté Le Puy, corrigé"]
[null,2,null,null,null,"",48,"RB",null,1943,"Le Puy","!E1838p","Maison","GIROUD François fils de Jean Louis",null,null,"- v",null,"",null,"",""]
[null,2,null,null,null,"RB",48,"",1943,1953,"Le Puy","!E1838p","Maison","BERTRAND vve née GIROUD",null,null,"- v",null,"",null,"",""]
[null,2,null,null,null,"",48,"",1953,null,"Le Puy","!E1838p","Maison","BERTRAND vve née GIROUD, les héritiers",null,null,"- v",null,"",null,"",""]
[null,0,null,null,null,null,null,null,null,null,"Le Puy Dessous hameau","!E1852","Maison","DUSSERT la héritière d'Antoine",null,null,"- v",null,"",null,"",""]
[null,1,"150, 48","0146",null,null,null,null,null,1835,"Le Puy Dessous Hameau","!E1852","Maison","DUSSERT Antoine",null,null,"- v",null,"",null,"",""]
[null,1,null,"0386",null,null,null,null,null,1839,"Le Puy Dessous Hameau","!E1852","Maison","PELLORCE Paul feu Jean Pierre",null,null,"- v",null,"",null,"",""]
[null,1,146,"0387",394,null,null,null,1835,1839,"Le Puy Dessous Hameau","!E1852","Maison","PELLORCE Paul feu Jean Pierre",null,null,"- v",null,"",null,"",""]
[null,1,146,"0489",109,null,null,null,1835,1851,"Le Puy Dessous Hameau","!E1852","Maison","RIVOIRE Laurent",null,null,"- v",null,"",null,"",""]
[null,1,146,"0150","7--",null,null,null,1835,1867,"Le Puy Dessous Hameau","!E1852","Maison","DUSSERT gendre, DUSSERT Antoine",null,null,{"$f":"IF(AND(INDIRECT(CONCATENATE(Q$3,ROW()))=\"\",INDIRECT(CONCATENATE(Q$4,ROW()))=\"\"),\"v v\",IF(INDIRECT(CONCATENATE(Q$3,ROW()))=\"\",\"v -\",IF(INDIRECT(CONCATENATE(Q$4,ROW()))=\"\",\"- v\",IF(INDIRECT(CONCATENATE(Q$3,ROW()))=INDIRECT(CONCATENATE(Q$4,ROW())),\"=\",\"<>\"))))","v":"- v"},null,"",null,null,""]
[null,1,null,"0394",null,null,null,null,1839,1858,"Le Puy Dessous Hameau","!E1852","Maison","PELLORCE Jean-Louis",null,null,"- v",null,"",null,"",""]
[null,1,489,"0109",438,null,null,null,1850,1878,"Le Puy Dessous Hameau","!E1852","Maison","RIVOIRE Magdeleine feu Laurent","Voir Loren",null,"- v",null,"",null,"",""]
[null,1,null,"0438",null,null,null,null,1858,1860,"Le Puy Dessous Hameau","!E1852","Maison","RANQUE Joseph",null,null,"- v",null,"",null,"",""]
[null,1,null,"0438",null,null,null,null,1868,1879,"Le Puy Dessous Hameau","!E1852","Maison","RANQUE Joseph",null,null,"- v",null,"",null,"",""]
[null,1,438,"0109",438,null,null,null,1860,1868,"Le Puy Dessous Hameau","!E1852p","Maison","RIVOIRE Magdeleine feu Laurent",null,null,"- v",null,"",null,"",""]
[null,1,null,"0438",null,null,null,null,1860,1879,"Le Puy Dessous Hameau","!E1852p","Maison","RANQUE Joseph",null,null,"- v",null,null,null,null,""]
[null,1,15,"0705","75 B (sol 173)",null,null,null,1867,"1882","Le Puy Dessous Hameau","!E1852p","Maison","GIROUD Joseph fils de Jean",null,null,"- v",null,"",null,"","",null,null,null,null,null,"1882 (sol 1895)"]
[null,1,438,"0451",705,null,null,null,1879,1882,"Le Puy Dessous Hameau","!E1852p","Maison","RANQUE Marguerite",null,null,"- v",null,"",null,null,""]
[null,1,451,"0706","75 B (sol 17-)",null,null,null,1882,"1882","Le Puy Dessous Hameau","!E1852p","Maison","GIROUD Joseph",null,null,"- v",null,"",null,"","",null,null,null,null,null,"1882 (sol 1895)"]
[null,2,null,null,null,"",49,"",null,1941,"Puy le Bas","!E1852p","Maison","GIROUD Rémy gendre FLEUR",null,null,"- v",null,"",null,"","",null,null,null,null,"Noté E1252, corrigé"]
[null,2,null,null,null,"",49,"",1941,null,"Puy le Bas","!E1852p","Maison","MERVAL Emile époux GIROUD",null,null,"- v",null,"",null,"","",null,null,null,null,"Noté E1252, corrigé"]
[null,0,null,null,null,null,null,null,null,null,"Le Puy Dessous hameau","!E1853","Maison","DUSSERT Antoine","Voir Loren",null,"- v",null,"",null,"",""]
[null,1,null,"0150","(785)",null,null,null,null,1862,"Le Puy Dessous Hameau","!E1853","Maison","DUSSERT gendre, DUSSERT Antoine",null,null,"- v",null,"",null,"",""]
[null,1,150,"0705","75 B",null,null,null,1862,"1882","Le Puy Dessous Hameau","!E1853","Maison","GIROUD Joseph fils de Jean",null,null,"- v",null,"",null,"","",null,null,null,null,null,"1882 (sol 1895)"]
[null,2,null,null,null,"",49,"",null,1941,"Puy Dessous","!E1853","Maison","GIROUD Rémy gendre FLEUR",null,null,"- v",null,"",null,"","",null,null,null,null,"Noté E1253, corrigé"]
[null,2,null,null,null,"",49,"",1941,null,"Puy Dessous","!E1853","Maison","MERVAL Emile époux GIROUD",null,null,"- v",null,null,null,"","",null,null,null,null,"Noté E1253, corrigé"]
[null,0,null,null,null,null,null,null,null,null,"Le Puy Dessous hameau","!E1854","Maison","DUSSERT Louis","Voir Loren",null,"- v",null,"",null,"",""]
[null,1,null,"0124","(785)",null,null,null,null,1884,"Le Puy Dessous Hameau","!E1854","Mais rurale","DEGOUL Pierre",null,null,"- v",null,"",null,"",""]
[null,1,124,"0706","17-",null,null,null,1884,1895,"Le Puy Dessous Hameau","!E1854","Bât rural","GIROUD Joseph",null,null,"- v",null,"",null,"",""]
[null,1,705,"0232",null,null,null,null,1895,null,"Le Puy Dessous Hameau","!E1854","Bât rural","GIROUD Rémy gendre FLEUR","gendre FLEUR ?",null,"- v",null,"",null,"",""]
[null,0,null,null,null,null,null,null,null,null,"Le Puy Dessous hameau","!E1855","Maison","GIROLET André",null,null,"- v",null,"",null,null,""]
[null,1,null,"0260",null,null,null,null,null,1897,"Le Puy Dessous Hameau","!E1855","Maison","GIROLLET (André)",null,null,"- v",null,null,null,null,""]
[null,1,259,"0210","5--",null,null,null,1837,1856,"Le Puy Dessous Hameau","!E1855","Maison","FLEUR Etienne feu Vincent",null,null,"- v",null,"",null,null,""]
[null,1,259,"0574",null,null,null,null,1837,"1882","Le Puy Dessous Hameau *","!E1855","Maison","GIROLLET Jacques feu André",null,null,"- v",null,"",null,null,"",null,null,null,null,"Noté (Mondier), corrigé","1882 (sol 1891)"]
[null,1,null,"0828","74 B (sol (947))",null,null,null,1881,"1882","Le Puy Dessous Hameau","!E1855","Maison","GIROLLET Pierre fils de Pierre",null,null,"- v",null,null,null,null,"",null,null,null,null,null,"1882 (sol 1891)"]
[null,1,573,"0573","573, 541",null,null,null,1837,1876,"Le Puy Dessous Hameau","!E1855p","Maison","GIROLLET Pierre feu André",null,null,"- v",null,null,null,null,""]
[null,1,210,"0573","573, 541",null,null,null,1856,1876,"Le Puy Dessous Hameau","!E1855p","Maison","GIROLLET Pierre feu André",null,null,"- v",null,null,null,null,""]
[null,1,210,"0574",null,null,null,null,1856,"1882","Le Puy Dessous Hameau","!E1855p","Maison","GIROLLET Jacques feu André",null,null,"- v",null,null,null,{"$f":"IF(O2110=\"\",\"\",L2110)","v":""},"",null,null,null,null,null,"1882 (sol 1887)"]
[null,1,573,"0601","828, 829",null,null,null,1876,1881,"Puy Dessous","!E1855p","Maison","GIROLLET Pierre feu André",null,null,"- v",null,null,null,null,""]
[null,1,573,"0541","541B",null,null,null,1876,"1882","Le Puy Dessous Hameau","!E1855p","Maison","GIROLLET Marie feu Jacques",null,null,{"$f":"IF(AND(INDIRECT(CONCATENATE(Q$3,ROW()))=\"\",INDIRECT(CONCATENATE(Q$4,ROW()))=\"\"),\"v v\",IF(INDIRECT(CONCATENATE(Q$3,ROW()))=\"\",\"v -\",IF(INDIRECT(CONCATENATE(Q$4,ROW()))=\"\",\"- v\",IF(INDIRECT(CONCATENATE(Q$3,ROW()))=INDIRECT(CONCATENATE(Q$4,ROW())),\"=\",\"<>\"))))","v":"- v"},null,null,null,null,"",null,null,null,null,null,"1882 (sol 1887)"]
[null,1,573,"0829","120 B (sol 947)",null,null,null,1881,"1882","Le Puy Dessous Hameau","!E1855p","Maison","GIROLLET Marie de Pierre, PELLORCE Alphonse fils d'Henri",null,null,{"$f":"IF(AND(INDIRECT(CONCATENATE(Q$3,ROW()))=\"\",INDIRECT(CONCATENATE(Q$4,ROW()))=\"\"),\"v v\",IF(INDIRECT(CONCATENATE(Q$3,ROW()))=\"\",\"v -\",IF(INDIRECT(CONCATENATE(Q$4,ROW()))=\"\",\"- v\",IF(INDIRECT(CONCATENATE(Q$3,ROW()))=INDIRECT(CONCATENATE(Q$4,ROW())),\"=\",\"<>\"))))","v":"- v"},null,null,null,null,"",null,null,null,null,null,"1882 (sol 1891)"]
[null,2,null,null,null,"",56,"ruines",null,1934,"Puy Dessous","!E1855p","Maison","JOUVEL Louis Rémy ",null,null,"- v",null,null,null,"",""]
[null,null,null,null,null,null,null,null,null,null,null,null,null,null,null,null,"v v",null,null,null,""]
[null,null,null,null,null,null,null,null,null,null,null,null,null,null,null,null,"v v"]
[null,null,null,null,null,null,null,null,null,null,null,null,null,null,null,null,"v v"]
[null,null,null,null,null,null,null,null,null,null,null,null,null,null,null,null,"v v"]
[null,null,null,null,null,null,null,null,null,null,null,null,null,null,null,null,"v v"]
[null,null,null,null,null,null,null,null,null,null,null,null,null,null,null,null,"v v"]
[null,null,null,null,null,null,null,null,null,null,null,null,null,null,null,null,"v v"]
[null,null,null,null,null,null,null,null,null,null,null,null,null,null,null,null,null,null,null,null,null,""]
[null,null,null,"Retrait"]
[]
[null,1,null,"0548",null,null,null,null,1845,1855,"Le Puy Dessous Hameau","!E1808","Maison","MICHEL Catherine feu Blaise","A enlever",null,null,null,null,null,null,""]
[null,2,null,null,null,47,134,"RB",1943,1943,"Périer","!D0289","Bâtiment","HOSTACHE vve née BRUN",null,null,null,null,null,null,null,"",null,null,null,null,"16/11/24, c'est une erreur, reporté à D259"]
[null,2,null,null,null,74,121,"RB",1913,null,"Sous l'Eglise","!D0330","Maison","PELLORCE Louis, les héritiers, PELLORCE Lucien dit Louis époux DUSSERT (1947)",null,null,null,null,null,null,null,"",null,null,null,null,"16/11/24, c'est une erreur, reporté à D530"]
[null,2,null,null,null,"",30,61,1940,1943,"Puy de Dessous","!E1824p","Maison","PONS Marie fille de Julien","Retrait à la demande de JP",null,"- v",null,"",null,"",""]
[null,2,null,null,null,"",61,"",1943,1944,"Puy d'en Bas","!E1824p","Maison","PELLORCE Victor","Retrait à la demande de JP",null,"- v",null,null,null,"",""]
[null,2,null,null,null,"",61,"",1944,1960,"Puy d'en Bas","!E1824p","Maison","PELLORCE Rémy Alphonse Victor époux DUSSERT, vve et héritiers","Retrait à la demande de JP",null,"- v",null,"",null,null,""]
[null,null,null,null,null,null,null,null,null,null,null,null,null,null,null,null,"v v"]